Workbook

Sheet notes (hidden)
A1: FY26 Chapter 70 Prelim
A3: Tabs | B3: What happens on this sheet | C3: Data source (if any) | D3: Notes
A4: Parameters | B4: Allows the user to adjust all of the policy levers in Chapter 70, except for changes to foundation. Foundation budget scenarios can be changed, but they must 1st be run separately and dropped into localcont (all the way to the right). Up to 11 alternatives can be included. | D4: Updated
A5: Index | B5: Controls the district being viewed for all reports except regional dist members | C5: Dropdown box reads LEAs
A6: Rates | B6: CY and PY foundation budget rates Used to calculate foundation budget report | C6: Copied in from found file | D6: Updated
A7: Foundation Budget | B7: 1 district report showing build-up of foundation budget | C7: Rates, dist435
A8: Municipal Contribution | B8: 1 city/town report showing build-up of required local contribution (municipal level) | C8: townwide contributions
A9: Regional Allocation | B9: 1 city/town report showing allocation of total municipal required local contribution based on proportion of foundation budget at each district to which it belongs | C9: localcont
A10: Summary | B10: 1 district report summarizing C70 calculation and comparison to PY | C10: aid436, disthist
A11: Regional Dist Members | B11: 1 regional district report summarizing enrollment and local contribution for each member town Changed in FY18 to vlookup on localcont | C11: localcont, leas
A12: LocalCont | B12: Results from distfrac get copied into the far right (up to 11 versions of foundation budget can be entered). Toggle is on parameters sheet. Data is organized in 5 row format for each city/town (municipality and its districts, blanks are 998 and total is 999). Used to calculate each municipal-district combination's RLC. | C12: found file, distfrac (allocate sheet) | D12: Updated
A14: Comparison to FY25 | B14: 2 year comparison for operating districts | C14: aid436, disthist, localcont | D14: Updated
A15: Townwide Contributions | B15: Calculates municipal required local contributions | C15: DOR (EQV, Income, MRGFs), PY file (RLCs), parameters | D15: Updated
A16: Aid436 | B16: Calculates district Ch 70 aid | C16: disthist, localcont, frac, parameters Starting w/ LEA 406, in col J (target aid %), formula changes to pull from frac tab. | D16: min aid adjustment only applied to operating districts; adjusted base aid for Southwick, Tolland, Granville, and Southwick-Tolland-Granville
A17: Frac | B17: Calculates target aid percentage for regional districts | D17: Updated
A18: DistHist | B18: ***Don't forget to copy in target aid %s from PY Historical C70 data used in summary report, and other places | D18: Updated
A19: Dist435 | B19: Data source for foundation budget report, shows detailed enrollment and budget columns | C19: found26prelim | D19: Updated

Sheet Index
A1: Massachusetts Department of Elementary and Secondary Education
A2: =parameters!B1& " Chapter 70 and Net School Spending Formula Spreadsheet" -> FY26 Chapter 70 and Net School Spending Formula Spreadsheet
B3: Select or type full district name below | C3: LEA code
A4: =C4 -> 999 | B4: Select a district | C4: =VLOOKUP(B4,leas!$E$4:$F$445,2,FALSE) -> 999
B6: Use the drop-down menu to select a municipal or regional district and then go to any of the first four links below.
B7: Only municipal district selections will activate the Municipal Contribution Requirement and Regional Allocation reports.
B8: A list of LEAs by code begins on row 26 of this sheet.
B10: We recommend that you save this workbook to your computer before proceeding, then leave this browser, and open the workbook using Excel or My Computer.
B12: Summary
B13: Foundation Budget
B14: Municipal Contribution Requirement
B15: Regional Allocation
B17: Regional District Detail | D17: (go to this sheet to see any particular regional district's comparison of enrollment and minimum contributions to the prior year)
B19: There are also a number of "hidden" sheets which contain the underlying spreadsheet calculations.
B20: They can be accessed by right-clicking on any of the tabs below and choosing a sheet to unhide.
B22: Questions or comments about Chapter 70 may be directed to:
B24: Meghan Ryan | D24: Meghan.Ryan2@mass.gov | G24: 781-338-6507
B25: Rob O'Donnell | D25: Robert.F.O'Donnell@mass.gov | G25: 781-338-6512
B27: District | D27: LEA Number
B28: Abington | D28: 1
B29: Acton | D29: 2
B30: Acton Boxborough | D30: 600
B31: Acushnet | D31: 3
B32: Adams | D32: 4
B33: Agawam | D33: 5
B34: Alford | D34: 6
B35: Amesbury | D35: 7
B36: Amherst | D36: 8
B37: Amherst Pelham | D37: 605
B38: Andover | D38: 9
B39: Aquinnah | D39: 104
B40: Arlington | D40: 10
B41: Ashburnham | D41: 11
B42: Ashburnham Westminster | D42: 610
B43: Ashby | D43: 12
B44: Ashfield | D44: 13
B45: Ashland | D45: 14
B46: Assabet Valley | D46: 801
B47: Athol | D47: 15
B48: Athol Royalston | D48: 615
B49: Attleboro | D49: 16
B50: Auburn | D50: 17
B51: Avon | D51: 18
B52: Ayer | D52: 19
B53: Ayer Shirley | D53: 616
B54: Barnstable | D54: 20
B55: Barre | D55: 21
B56: Becket | D56: 22
B57: Bedford | D57: 23
B58: Belchertown | D58: 24
B59: Bellingham | D59: 25
B60: Belmont | D60: 26
B61: Berkley | D61: 27
B62: Berkshire Hills | D62: 618
B63: Berlin | D63: 28
B64: Berlin Boylston | D64: 620
B65: Bernardston | D65: 29
B66: Beverly | D66: 30
B67: Billerica | D67: 31
B68: Blackstone | D68: 32
B69: Blackstone Millville | D69: 622
B70: Blackstone Valley | D70: 805
B71: Blandford | D71: 33
B72: Blue Hills | D72: 806
B73: Bolton | D73: 34
B74: Boston | D74: 35
B75: Bourne | D75: 36
B76: Boxborough | D76: 37
B77: Boxford | D77: 38
B78: Boylston | D78: 39
B79: Braintree | D79: 40
B80: Brewster | D80: 41
B81: Bridgewater | D81: 42
B82: Bridgewater Raynham | D82: 625
B83: Brimfield | D83: 43
B84: Bristol County | D84: 910
B85: Bristol Plymouth | D85: 810
B86: Brockton | D86: 44
B87: Brookfield | D87: 45
B88: Brookline | D88: 46
B89: Buckland | D89: 47
B90: Burlington | D90: 48
B91: Cambridge | D91: 49
B92: Canton | D92: 50
B93: Cape Cod | D93: 815
B94: Carlisle | D94: 51
B95: Carver | D95: 52
B96: Central Berkshire | D96: 635
B97: Charlemont | D97: 53
B98: Charlton | D98: 54
B99: Chatham | D99: 55
B100: Chelmsford | D100: 56
B101: Chelsea | D101: 57
B102: Cheshire | D102: 58
B103: Chester | D103: 59
B104: Chesterfield | D104: 60
B105: Chesterfield Goshen | D105: 632
B106: Chicopee | D106: 61
B107: Chilmark | D107: 62
B108: Clarksburg | D108: 63
B109: Clinton | D109: 64
B110: Cohasset | D110: 65
B111: Colrain | D111: 66
B112: Concord | D112: 67
B113: Concord Carlisle | D113: 640
B114: Conway | D114: 68
B115: Cummington | D115: 69
B116: Dalton | D116: 70
B117: Danvers | D117: 71
B118: Dartmouth | D118: 72
B119: Dedham | D119: 73
B120: Deerfield | D120: 74
B121: Dennis | D121: 75
B122: Dennis Yarmouth | D122: 645
B123: Dighton | D123: 76
B124: Dighton Rehoboth | D124: 650
B125: Douglas | D125: 77
B126: Dover | D126: 78
B127: Dover Sherborn | D127: 655
B128: Dracut | D128: 79
B129: Dudley | D129: 80
B130: Dudley Charlton | D130: 658
B131: Dunstable | D131: 81
B132: Duxbury | D132: 82
B133: East Bridgewater | D133: 83
B134: East Brookfield | D134: 84
B135: East Longmeadow | D135: 87
B136: Eastham | D136: 85
B137: Easthampton | D137: 86
B138: Easton | D138: 88
B139: Edgartown | D139: 89
B140: Egremont | D140: 90
B141: Erving | D141: 91
B142: Essex | D142: 92
B143: Essex North Shore | D143: 817
B144: Everett | D144: 93
B145: Fairhaven | D145: 94
B146: Fall River | D146: 95
B147: Falmouth | D147: 96
B148: Farmington River | D148: 662
B149: Fitchburg | D149: 97
B150: Florida | D150: 98
B151: Foxborough | D151: 99
B152: Framingham | D152: 100
B153: Franklin | D153: 101
B154: Franklin County | D154: 818
B155: Freetown | D155: 102
B156: Freetown Lakeville | D156: 665
B157: Frontier | D157: 670
B158: Gardner | D158: 103
B159: Gateway | D159: 672
B160: Georgetown | D160: 105
B161: Gill | D161: 106
B162: Gill Montague | D162: 674
B163: Gloucester | D163: 107
B164: Goshen | D164: 108
B165: Gosnold | D165: 109
B166: Grafton | D166: 110
B167: Granby | D167: 111
B168: Granville | D168: 112
B169: Great Barrington | D169: 113
B170: Greater Fall River | D170: 821
B171: Greater Lawrence | D171: 823
B172: Greater Lowell | D172: 828
B173: Greater New Bedford | D173: 825
B174: Greenfield | D174: 114
B175: Groton | D175: 115
B176: Groton Dunstable | D176: 673
B177: Groveland | D177: 116
B178: Hadley | D178: 117
B179: Halifax | D179: 118
B180: Hamilton | D180: 119
B181: Hamilton Wenham | D181: 675
B182: Hampden | D182: 120
B183: Hampden Wilbraham | D183: 680
B184: Hampshire | D184: 683
B185: Hancock | D185: 121
B186: Hanover | D186: 122
B187: Hanson | D187: 123
B188: Hardwick | D188: 124
B189: Harvard | D189: 125
B190: Harwich | D190: 126
B191: Hatfield | D191: 127
B192: Haverhill | D192: 128
B193: Hawlemont | D193: 685
B194: Hawley | D194: 129
B195: Heath | D195: 130
B196: Hingham | D196: 131
B197: Hinsdale | D197: 132
B198: Holbrook | D198: 133
B199: Holden | D199: 134
B200: Holland | D200: 135
B201: Holliston | D201: 136
B202: Holyoke | D202: 137
B203: Hoosac Valley | D203: 603
B204: Hopedale | D204: 138
B205: Hopkinton | D205: 139
B206: Hubbardston | D206: 140
B207: Hudson | D207: 141
B208: Hull | D208: 142
... 257 more rows

Sheet localcont (hidden)
I1: c70fy25 | J1: c70fy25 | O1: c70fy25 | R1: c70fy25 | CM1: Lookup table for foundation budget scenarios | CN1: 1 | CO1: 2
CN2: 2 | CO2: 8
D3: 1 | E3: 2 | F3: 3 | G3: 4 | H3: 5 | I3: 6 | J3: 7 | K3: 8 | L3: 9 | M3: 10 | N3: 11 | O3: 12 | P3: 13 | Q3: 14 | R3: 15 | S3: 16 | T3: 17 | U3: 18 | V3: 19 | W3: 20 | X3: 21 | CN3: 3 | CO3: 14
G4: lea1755 | K4: found1755 | N4: prelcont1755 | O4: pynetmin | R4: pyenro | W4: enro1755 | CN4: 4 | CO4: 20
Z5: 1 | AF5: 2 | AL5: 3 | AR5: 4 | AX5: 5 | BD5: 6 | BJ5: 7 | BP5: 8 | BV5: 9 | CB5: 10 | CH5: 11 | CN5: 5 | CO5: 26
T6: =parameters!$C$6 -> 1 | Z6: Final run (found26prelim) | CN6: 6 | CO6: 32
I7: =PYr -> FY25 | J7: =PYr -> FY25 | K7: =CYr -> FY26 | L7: =CYr -> FY26 | M7: =CYr -> FY26 | N7: =CYr -> FY26 | O7: =PYr -> FY25 | CN7: 7 | CO7: 38
I8: Foundation | J8: Share of Total | K8: Foundation | L8: Share of Total | M8: Townwide | N8: Net Minimum | O8: Net Minimum | P8: =PYr&" to "&CYr -> FY25 to FY26 | Q8: Percent | R8: =PYr -> FY25 | S8: =CYr -> FY26 | W8: final | X8: foundation | BG8: final | BH8: foundation | BM8: final | BN8: foundation | BS8: final | BT8: foundation | BY8: final | BZ8: foundation | CE8: final | CF8: foundation | CK8: final | CL8: foundation | CN8: 8 | CO8: 44
A9: TownLEA | B9: Town | C9: LEA | D9: Order | E9: Town | F9: City or Town | G9: LEA | H9: School District | I9: Budget25 | J9: Foundation25 | K9: Budget26 | L9: Foundation26 | M9: Contribution26 | N9: Contribution26 | O9: Contribution25 | P9: Change | Q9: Change | R9: Enrollment25 | S9: Enrollment26 | T9: Town | U9: LEA | V9: Order | W9: enrollment | X9: budget | AF9: Town | AG9: LEA | AH9: Order | AI9: Foundation Enrollment | AJ9: Foundation Budget | AL9: Town | AM9: LEA | AN9: Order | AO9: Foundation Enrollment | AP9: Foundation Budget | AR9: Town | AS9: LEA | AT9: Order | AU9: Foundation Enrollment | AV9: Foundation Budget | AX9: Town | AY9: LEA | AZ9: Order | BA9: Foundation Enrollment | BB9: Foundation Budget | BD9: Town | BE9: LEA | BF9: Order | BG9: enrollment | BH9: budget | BJ9: Town | BK9: LEA | BL9: Order | BM9: Foundation Enrollment | BN9: Foundation Budget | BP9: Town | BQ9: LEA | BR9: Order | BS9: enrollment | BT9: budget | BV9: Town | BW9: LEA | BX9: Order | BY9: enrollment | BZ9: budget | CB9: Town | CC9: LEA | CD9: Order | CE9: enrollment | CF9: budget | CH9: Town | CI9: LEA | CJ9: Order | CK9: enrollment | CL9: budget | CN9: 9 | CO9: 50
A10: =B10&C10 -> 00010001 | B10: 0001 | C10: 0001 | D10: 1 | E10: 1 | F10: Abington | G10: 1 | H10: Abington | I10: 32236384.53 | J10: 0.9312713637 | K10: =X10 -> 33501030.56 | L10: =IF(K14>0, K10/K14, 0) -> 0.9368844606 | N10: =ROUND(M14*L10,0) -> 18800612 | O10: 17754107 | P10: =N10-O10 -> 1046505 | Q10: =IF(O10>0,P10*100/O10,IF(P10>0,100,0)) -> 5.89443896 | R10: 2202 | S10: =W10 -> 2200 | T10: =VLOOKUP($D10, foundoptions, VLOOKUP($T$6, foundoptcell, 2, FALSE), FALSE) -> 1 | U10: =VLOOKUP($D10, foundoptions, VLOOKUP($T$6, foundoptcell, 2, FALSE)+1, FALSE) -> 1 | V10: =VLOOKUP($D10, foundoptions, VLOOKUP($T$6, foundoptcell, 2, FALSE)+2, FALSE) -> 1 | W10: =VLOOKUP($D10, foundoptions, VLOOKUP($T$6, foundoptcell, 2, FALSE)+3, FALSE) -> 2200 | X10: =VLOOKUP($D10, foundoptions, VLOOKUP($T$6, foundoptcell, 2, FALSE)+4, FALSE) -> 33501030.56 | Y10: =D10 -> 1 | Z10: 1 | AA10: 1 | AB10: 1 | AC10: 2200 | AD10: 33501030.56 | CN10: 10 | CO10: 56
A11: 00010873 | B11: 0001 | C11: 0873 | D11: 2 | E11: 1 | F11: Abington | G11: 873 | H11: South Shore | I11: 2379073.204 | J11: 0.06872863627 | K11: =X11 -> 2256879.8 | L11: =IF(K14>0, K11/K14, 0) -> 0.0631155394 | N11: =ROUND(M14*L11,0) -> 1266550 | O11: 1310268 | P11: =N11-O11 -> -43718 | Q11: -3.336569313 | R11: 114 | S11: =W11 -> 105 | T11: =VLOOKUP($D11, foundoptions, VLOOKUP($T$6, foundoptcell, 2, FALSE), FALSE) -> 1 | U11: 873 | V11: 2 | W11: 105 | X11: 2256879.8 | Y11: =D11 -> 2 | Z11: 1 | AA11: 873 | AB11: 2 | AC11: 105 | AD11: 2256879.8 | CN11: 11 | CO11: 62
A12: 00010998 | B12: 0001 | C12: 0998 | D12: 3 | E12: 1 | G12: 998 | I12: 0 | J12: 0 | K12: =X12 -> 0 | L12: =IF(K14>0, K12/K14, 0) -> 0 | N12: =ROUND(M14*L12,0) -> 0 | O12: 0 | P12: =N12-O12 -> 0 | Q12: 0 | R12: 0 | S12: 0 | T12: 1 | U12: 998 | V12: 3 | W12: 0 | X12: 0 | Y12: 3 | Z12: 1 | AA12: 998 | AB12: 3 | AC12: 0 | AD12: 0
A13: 00010998 | B13: 0001 | C13: 0998 | D13: 4 | E13: 1 | G13: 998 | I13: 0 | J13: 0 | K13: =X13 -> 0 | L13: =IF(K14>0, K13/K14, 0) -> 0 | N13: =ROUND(M14*L13,0) -> 0 | O13: 0 | P13: =N13-O13 -> 0 | Q13: 0 | R13: 0 | S13: 0 | T13: 1 | U13: 998 | V13: 4 | W13: 0 | X13: 0 | Y13: 4 | Z13: 1 | AA13: 998 | AB13: 4 | AC13: 0 | AD13: 0
A14: 00010999 | B14: 0001 | C14: 0999 | D14: 5 | E14: 1 | F14: Abington | G14: 999 | H14: Total | I14: 34615457.74 | J14: 1 | K14: =SUM(K10:K13) -> 35757910.36 | L14: =SUM(L10:L13) -> 1 | M14: =VLOOKUP(E14,town351,24) -> 20067162 | N14: =SUM(N10:N13) -> 20067162 | O14: 19064375 | P14: =SUM(P10:P13) -> 1002787 | Q14: 5.26000459 | R14: 2316 | S14: 2305 | T14: 1 | U14: 999 | V14: 5 | W14: 2305 | X14: 35757910.36 | Y14: 5 | Z14: 1 | AA14: 999 | AB14: 5 | AC14: 2305 | AD14: 35757910.36
A15: 00020002 | B15: 0002 | C15: 0002 | D15: 6 | E15: 2 | F15: Acton | G15: 2 | H15: Acton | I15: 0 | J15: 0 | K15: =X15 -> 0 | L15: =IF(K19>0, K15/K19, 0) -> 0 | N15: =ROUND(M19*L15,0) -> 0 | O15: 0 | P15: =N15-O15 -> 0 | Q15: 0 | R15: 0 | S15: 0 | T15: 2 | U15: 2 | V15: 6 | W15: 0 | X15: 0 | Y15: 6 | Z15: 2 | AA15: 2 | AB15: 6 | AC15: 0 | AD15: 0
A16: 00020600 | B16: 0002 | C16: 0600 | D16: 7 | E16: 2 | F16: Acton | G16: 600 | H16: Acton Boxborough | I16: 54000661.22 | J16: 0.9638426603 | K16: 56088694.26 | L16: =IF(K19>0, K16/K19, 0) -> 0.9681678326 | N16: =ROUND(M19*L16,0) -> 45393703 | O16: 43461158 | P16: =N16-O16 -> 1932545 | Q16: 4.446602642 | R16: 4082.280285 | S16: 4082.22284 | T16: 2 | U16: 600 | V16: 7 | W16: 4082.22284 | X16: 56088694.26 | Y16: 7 | Z16: 2 | AA16: 600 | AB16: 7 | AC16: 4082.22284 | AD16: 56088694.26
A17: 00020830 | B17: 0002 | C17: 0830 | D17: 8 | E17: 2 | F17: Acton | G17: 830 | H17: Minuteman | I17: 2025766.58 | J17: 0.03615733966 | K17: 1844127.27 | L17: =IF(K19>0, K17/K19, 0) -> 0.03183216735 | N17: =ROUND(M19*L17,0) -> 1492489 | O17: 1630390 | P17: =N17-O17 -> -137901 | Q17: -8.458160317 | R17: 97 | S17: 85 | T17: 2 | U17: 830 | V17: 8 | W17: 85 | X17: 1844127.27 | Y17: 8 | Z17: 2 | AA17: 830 | AB17: 8 | AC17: 85 | AD17: 1844127.27
A18: 00020998 | B18: 0002 | C18: 0998 | D18: 9 | E18: 2 | G18: 998 | I18: 0 | J18: 0 | K18: 0 | L18: =IF(K19>0, K18/K19, 0) -> 0 | N18: =ROUND(M19*L18,0) -> 0 | O18: 0 | P18: =N18-O18 -> 0 | Q18: 0 | R18: 0 | S18: 0 | T18: 2 | U18: 998 | V18: 9 | W18: 0 | X18: 0 | Y18: 9 | Z18: 2 | AA18: 998 | AB18: 9 | AC18: 0 | AD18: 0
A19: 00020999 | B19: 0002 | C19: 0999 | D19: 10 | E19: 2 | F19: Acton | G19: 999 | H19: Total | I19: 56026427.8 | J19: 1 | K19: =SUM(K15:K18) -> 57932821.53 | L19: =SUM(L15:L18) -> 1 | M19: =VLOOKUP(E19,town351,24) -> 46886192 | N19: =SUM(N15:N18) -> 46886192 | O19: 45091548 | P19: =SUM(P15:P18) -> 1794644 | Q19: =IF(O19>0,P19*100/O19,IF(P19>0,100,0)) -> 3.980000864 | R19: 4179.280285 | S19: 4167.22284 | T19: 2 | U19: 999 | V19: 10 | W19: 4167.22284 | X19: 57932821.53 | Y19: 10 | Z19: 2 | AA19: 999 | AB19: 10 | AC19: 4167.22284 | AD19: 57932821.53
A20: 00030003 | B20: 0003 | C20: 0003 | D20: 11 | E20: 3 | F20: Acushnet | G20: 3 | H20: Acushnet | I20: 15622821.81 | J20: 0.7903763915 | K20: =X20 -> 15639642.75 | L20: =IF(K24>0, K20/K24, 0) -> 0.781461807 | N20: =ROUND(M24*L20,0) -> 9288698 | O20: 8852864 | P20: =N20-O20 -> 435834 | Q20: 4.923084778 | R20: 1173 | S20: 1131 | T20: 3 | U20: 3 | V20: 11 | W20: 1131 | X20: 15639642.75 | Y20: 11 | Z20: 3 | AA20: 3 | AB20: 11 | AC20: 1131 | AD20: 15639642.75
A21: 00030855 | B21: 0003 | C21: 0855 | D21: 12 | E21: 3 | F21: Acushnet | G21: 855 | H21: Old Colony | I21: 3747380.496 | J21: 0.1895842576 | K21: 3929419.546 | L21: =IF(K24>0, K21/K24, 0) -> 0.1963402456 | N21: =ROUND(M24*L21,0) -> 2333761 | O21: 2123499 | P21: =N21-O21 -> 210262 | Q21: 9.901676431 | R21: 190 | S21: 194 | T21: 3 | U21: 855 | V21: 12 | W21: 194 | X21: 3929419.546 | Y21: 12 | Z21: 3 | AA21: 855 | AB21: 12 | AC21: 194 | AD21: 3929419.546
A22: 00030910 | B22: 0003 | C22: 0910 | D22: 13 | E22: 3 | F22: Acushnet | G22: 910 | H22: Bristol County | I22: 396103.9475 | J22: 0.02003935093 | K22: 444254.5537 | L22: =IF(K24>0, K22/K24, 0) -> 0.02219794735 | N22: =ROUND(M24*L22,0) -> 263852 | O22: 224457 | P22: =N22-O22 -> 39395 | Q22: 17.5512459 | R22: 19 | S22: 21 | T22: 3 | U22: 910 | V22: 13 | W22: 21 | X22: 444254.5537 | Y22: 13 | Z22: 3 | AA22: 910 | AB22: 13 | AC22: 21 | AD22: 444254.5537
A23: 00030998 | B23: 0003 | C23: 0998 | D23: 14 | E23: 3 | G23: 998 | I23: 0 | J23: 0 | K23: 0 | L23: =IF(K24>0, K23/K24, 0) -> 0 | N23: =ROUND(M24*L23,0) -> 0 | O23: 0 | P23: =N23-O23 -> 0 | Q23: 0 | R23: 0 | S23: 0 | T23: 3 | U23: 998 | V23: 14 | W23: 0 | X23: 0 | Y23: 14 | Z23: 3 | AA23: 998 | AB23: 14 | AC23: 0 | AD23: 0
A24: 00030999 | B24: 0003 | C24: 0999 | D24: 15 | E24: 3 | F24: Acushnet | G24: 999 | H24: Total | I24: 19766306.25 | J24: 1 | K24: =SUM(K20:K23) -> 20013316.85 | L24: =SUM(L20:L23) -> 1 | M24: =VLOOKUP(E24,town351,24) -> 11886311 | N24: =SUM(N20:N23) -> 11886311 | O24: 11200820 | P24: =SUM(P20:P23) -> 685491 | Q24: 6.120007285 | R24: 1382 | S24: 1346 | T24: 3 | U24: 999 | V24: 15 | W24: 1346 | X24: 20013316.85 | Y24: 15 | Z24: 3 | AA24: 999 | AB24: 15 | AC24: 1346 | AD24: 20013316.85
A25: 00040004 | B25: 0004 | C25: 0004 | D25: 16 | E25: 4 | F25: Adams | G25: 4 | H25: Adams | I25: 0 | J25: 0 | K25: =X25 -> 0 | L25: =IF(K29>0, K25/K29, 0) -> 0 | N25: =ROUND(M29*L25,0) -> 0 | O25: 0 | P25: =N25-O25 -> 0 | Q25: 0 | R25: 0 | S25: 0 | T25: 4 | U25: 4 | V25: 16 | W25: 0 | X25: 0 | Y25: 16 | Z25: 4 | AA25: 4 | AB25: 16 | AC25: 0 | AD25: 0
A26: 00040603 | B26: 0004 | C26: 0603 | D26: 17 | E26: 4 | F26: Adams | G26: 603 | H26: Hoosac Valley | I26: 13561431.97 | J26: 0.8122285492 | K26: 14076200.33 | L26: =IF(K29>0, K26/K29, 0) -> 0.8240066003 | N26: =ROUND(M29*L26,0) -> 4301696 | O26: 4059948 | P26: =N26-O26 -> 241748 | Q26: 5.9544605 | R26: 860.1831224 | S26: 847.358171 | T26: 4 | U26: 603 | V26: 17 | W26: 847.358171 | X26: 14076200.33 | Y26: 17 | Z26: 4 | AA26: 603 | AB26: 17 | AC26: 847.358171 | AD26: 14076200.33
A27: 00040851 | B27: 0004 | C27: 0851 | D27: 18 | E27: 4 | F27: Adams | G27: 851 | H27: Northern Berkshire | I27: 3135139.437 | J27: 0.1877714508 | K27: 3006430.229 | L27: =IF(K29>0, K27/K29, 0) -> 0.1759933997 | N27: =ROUND(M29*L27,0) -> 918767 | O27: 938581 | P27: =N27-O27 -> -19814 | Q27: -2.111059141 | R27: 143 | S27: 132 | T27: 4 | U27: 851 | V27: 18 | W27: 132 | X27: 3006430.229 | Y27: 18 | Z27: 4 | AA27: 851 | AB27: 18 | AC27: 132 | AD27: 3006430.229
A28: 00040998 | B28: 0004 | C28: 0998 | D28: 19 | E28: 4 | G28: 998 | I28: 0 | J28: 0 | K28: 0 | L28: =IF(K29>0, K28/K29, 0) -> 0 | N28: =ROUND(M29*L28,0) -> 0 | O28: 0 | P28: =N28-O28 -> 0 | Q28: 0 | R28: 0 | S28: 0 | T28: 4 | U28: 998 | V28: 19 | W28: 0 | X28: 0 | Y28: 19 | Z28: 4 | AA28: 998 | AB28: 19 | AC28: 0 | AD28: 0
A29: 00040999 | B29: 0004 | C29: 0999 | D29: 20 | E29: 4 | F29: Adams | G29: 999 | H29: Total | I29: 16696571.41 | J29: 1 | K29: =SUM(K25:K28) -> 17082630.56 | L29: =SUM(L25:L28) -> 1 | M29: =VLOOKUP(E29,town351,24) -> 5220463 | N29: =SUM(N25:N28) -> 5220463 | O29: 4998529 | P29: =SUM(P25:P28) -> 221934 | Q29: 4.439986244 | R29: 1003.183122 | S29: 979.358171 | T29: 4 | U29: 999 | V29: 20 | W29: 979.358171 | X29: 17082630.56 | Y29: 20 | Z29: 4 | AA29: 999 | AB29: 20 | AC29: 979.358171 | AD29: 17082630.56
A30: 00050005 | B30: 0005 | C30: 0005 | D30: 21 | E30: 5 | F30: Agawam | G30: 5 | H30: Agawam | I30: 52988778.25 | J30: 1 | K30: =X30 -> 55345476.31 | L30: =IF(K34>0, K30/K34, 0) -> 1 | N30: =ROUND(M34*L30,0) -> 28135196 | O30: 26903037 | P30: =N30-O30 -> 1232159 | Q30: 4.579999648 | R30: 3486 | S30: 3463 | T30: 5 | U30: 5 | V30: 21 | W30: 3463 | X30: 55345476.31 | Y30: 21 | Z30: 5 | AA30: 5 | AB30: 21 | AC30: 3463 | AD30: 55345476.31
A31: 00050998 | B31: 0005 | C31: 0998 | D31: 22 | E31: 5 | G31: 998 | I31: 0 | J31: 0 | K31: 0 | L31: =IF(K34>0, K31/K34, 0) -> 0 | N31: =ROUND(M34*L31,0) -> 0 | O31: 0 | P31: =N31-O31 -> 0 | Q31: 0 | R31: 0 | S31: 0 | T31: 5 | U31: 998 | V31: 22 | W31: 0 | X31: 0 | Y31: 22 | Z31: 5 | AA31: 998 | AB31: 22 | AC31: 0 | AD31: 0
A32: 00050998 | B32: 0005 | C32: 0998 | D32: 23 | E32: 5 | G32: 998 | I32: 0 | J32: 0 | K32: 0 | L32: =IF(K34>0, K32/K34, 0) -> 0 | N32: =ROUND(M34*L32,0) -> 0 | O32: 0 | P32: =N32-O32 -> 0 | Q32: 0 | R32: 0 | S32: 0 | T32: 5 | U32: 998 | V32: 23 | W32: 0 | X32: 0 | Y32: 23 | Z32: 5 | AA32: 998 | AB32: 23 | AC32: 0 | AD32: 0
A33: 00050998 | B33: 0005 | C33: 0998 | D33: 24 | E33: 5 | G33: 998 | I33: 0 | J33: 0 | K33: 0 | L33: =IF(K34>0, K33/K34, 0) -> 0 | N33: =ROUND(M34*L33,0) -> 0 | O33: 0 | P33: =N33-O33 -> 0 | Q33: 0 | R33: 0 | S33: 0 | T33: 5 | U33: 998 | V33: 24 | W33: 0 | X33: 0 | Y33: 24 | Z33: 5 | AA33: 998 | AB33: 24 | AC33: 0 | AD33: 0
A34: 00050999 | B34: 0005 | C34: 0999 | D34: 25 | E34: 5 | F34: Agawam | G34: 999 | H34: Total | I34: 52988778.25 | J34: 1 | K34: =SUM(K30:K33) -> 55345476.31 | L34: =SUM(L30:L33) -> 1 | M34: =VLOOKUP(E34,town351,24) -> 28135196 | N34: =SUM(N30:N33) -> 28135196 | O34: 26903037 | P34: =SUM(P30:P33) -> 1232159 | Q34: 4.579999648 | R34: 3486 | S34: 3463 | T34: 5 | U34: 999 | V34: 25 | W34: 3463 | X34: 55345476.31 | Y34: 25 | Z34: 5 | AA34: 999 | AB34: 25 | AC34: 3463 | AD34: 55345476.31
A35: 00060006 | B35: 0006 | C35: 0006 | D35: 26 | E35: 6 | F35: Alford | G35: 6 | H35: Alford | I35: 0 | J35: 0 | K35: =X35 -> 0 | L35: =IF(K39>0, K35/K39, 0) -> 0 | N35: =ROUND(M39*L35,0) -> 0 | O35: 0 | P35: =N35-O35 -> 0 | Q35: 0 | R35: 0 | S35: 0 | T35: 6 | U35: 6 | V35: 26 | W35: 0 | X35: 0 | Y35: 26 | Z35: 6 | AA35: 6 | AB35: 26 | AC35: 0 | AD35: 0
A36: 00060765 | B36: 0006 | C36: 0765 | D36: 27 | E36: 6 | F36: Alford | G36: 765 | H36: Southern Berkshire | I36: 279039.0652 | J36: 1 | K36: 307313.0163 | L36: =IF(K39>0, K36/K39, 0) -> 1 | N36: =ROUND(M39*L36,0) -> 253533 | O36: 230207 | P36: =N36-O36 -> 23326 | Q36: 10.13261977 | R36: 19.17304747 | S36: 20.3498452 | T36: 6 | U36: 765 | V36: 27 | W36: 20.3498452 | X36: 307313.0163 | Y36: 27 | Z36: 6 | AA36: 765 | AB36: 27 | AC36: 20.3498452 | AD36: 307313.0163
A37: 00060998 | B37: 0006 | C37: 0998 | D37: 28 | E37: 6 | G37: 998 | I37: 0 | J37: 0 | K37: 0 | L37: =IF(K39>0, K37/K39, 0) -> 0 | N37: =ROUND(M39*L37,0) -> 0 | O37: 0 | P37: =N37-O37 -> 0 | Q37: 0 | R37: 0 | S37: 0 | T37: 6 | U37: 998 | V37: 28 | W37: 0 | X37: 0 | Y37: 28 | Z37: 6 | AA37: 998 | AB37: 28 | AC37: 0 | AD37: 0
A38: 00060998 | B38: 0006 | C38: 0998 | D38: 29 | E38: 6 | G38: 998 | I38: 0 | J38: 0 | K38: 0 | L38: =IF(K39>0, K38/K39, 0) -> 0 | N38: =ROUND(M39*L38,0) -> 0 | O38: 0 | P38: =N38-O38 -> 0 | Q38: 0 | R38: 0 | S38: 0 | T38: 6 | U38: 998 | V38: 29 | W38: 0 | X38: 0 | Y38: 29 | Z38: 6 | AA38: 998 | AB38: 29 | AC38: 0 | AD38: 0
A39: 00060999 | B39: 0006 | C39: 0999 | D39: 30 | E39: 6 | F39: Alford | G39: 999 | H39: Total | I39: 279039.0652 | J39: 1 | K39: =SUM(K35:K38) -> 307313.0163 | L39: =SUM(L35:L38) -> 1 | M39: =VLOOKUP(E39,town351,24) -> 253533 | N39: =SUM(N35:N38) -> 253533 | O39: 230207 | P39: =SUM(P35:P38) -> 23326 | Q39: 10.13261977 | R39: 19.17304747 | S39: 20.3498452 | T39: 6 | U39: 999 | V39: 30 | W39: 20.3498452 | X39: 307313.0163 | Y39: 30 | Z39: 6 | AA39: 999 | AB39: 30 | AC39: 20.3498452 | AD39: 307313.0163
A40: 00070007 | B40: 0007 | C40: 0007 | D40: 31 | E40: 7 | F40: Amesbury | G40: 7 | H40: Amesbury | I40: 26495878.26 | J40: 0.9098416439 | K40: =X40 -> 28109289.03 | L40: =IF(K44>0, K40/K44, 0) -> 0.9160759897 | N40: =ROUND(M44*L40,0) -> 20286760 | O40: 19160041 | P40: =N40-O40 -> 1126719 | Q40: 5.880566748 | R40: 1898 | S40: 1919 | T40: 7 | U40: 7 | V40: 31 | W40: 1919 | X40: 28109289.03 | Y40: 31 | Z40: 7 | AA40: 7 | AB40: 31 | AC40: 1919 | AD40: 28109289.03
A41: 00070885 | B41: 0007 | C41: 0885 | D41: 32 | E41: 7 | F41: Amesbury | G41: 885 | H41: Whittier | I41: 2625539.118 | J41: 0.09015835611 | K41: 2575162.201 | L41: =IF(K44>0, K41/K44, 0) -> 0.0839240103 | N41: =ROUND(M44*L41,0) -> 1858521 | O41: 1898614 | P41: =N41-O41 -> -40093 | Q41: -2.111698323 | R41: 123.2896389 | S41: 117 | T41: 7 | U41: 885 | V41: 32 | W41: 117 | X41: 2575162.201 | Y41: 32 | Z41: 7 | AA41: 885 | AB41: 32 | AC41: 117 | AD41: 2575162.201
A42: 00070998 | B42: 0007 | C42: 0998 | D42: 33 | E42: 7 | G42: 998 | I42: 0 | J42: 0 | K42: 0 | L42: =IF(K44>0, K42/K44, 0) -> 0 | N42: =ROUND(M44*L42,0) -> 0 | O42: 0 | P42: =N42-O42 -> 0 | Q42: 0 | R42: 0 | S42: 0 | T42: 7 | U42: 998 | V42: 33 | W42: 0 | X42: 0 | Y42: 33 | Z42: 7 | AA42: 998 | AB42: 33 | AC42: 0 | AD42: 0
A43: 00070998 | B43: 0007 | C43: 0998 | D43: 34 | E43: 7 | G43: 998 | I43: 0 | J43: 0 | K43: 0 | L43: =IF(K44>0, K43/K44, 0) -> 0 | N43: =ROUND(M44*L43,0) -> 0 | O43: 0 | P43: =N43-O43 -> 0 | Q43: 0 | R43: 0 | S43: 0 | T43: 7 | U43: 998 | V43: 34 | W43: 0 | X43: 0 | Y43: 34 | Z43: 7 | AA43: 998 | AB43: 34 | AC43: 0 | AD43: 0
A44: 00070999 | B44: 0007 | C44: 0999 | D44: 35 | E44: 7 | F44: Amesbury | G44: 999 | H44: Total | I44: 29121417.38 | J44: 1 | K44: =SUM(K40:K43) -> 30684451.23 | L44: =SUM(L40:L43) -> 1 | M44: =VLOOKUP(E44,town351,24) -> 22145281 | N44: =SUM(N40:N43) -> 22145281 | O44: 21058655 | P44: =SUM(P40:P43) -> 1086626 | Q44: 5.15999716 | R44: 2021.289639 | S44: 2036 | T44: 7 | U44: 999 | V44: 35 | W44: 2036 | X44: 30684451.23 | Y44: 35 | Z44: 7 | AA44: 999 | AB44: 35 | AC44: 2036 | AD44: 30684451.23
A45: 00080008 | B45: 0008 | C45: 0008 | D45: 36 | E45: 8 | F45: Amherst | G45: 8 | H45: Amherst | I45: 13476149.79 | J45: 0.4916392939 | K45: =X45 -> 14981907.18 | L45: =IF(K49>0, K45/K49, 0) -> 0.5013028915 | N45: =ROUND(M49*L45,0) -> 11896370 | O45: 11117824 | P45: =N45-O45 -> 778546 | Q45: 7.002683259 | R45: 984 | S45: 1037 | T45: 8 | U45: 8 | V45: 36 | W45: 1037 | X45: 14981907.18 | Y45: 36 | Z45: 8 | AA45: 8 | AB45: 36 | AC45: 1037 | AD45: 14981907.18
A46: 00080605 | B46: 0008 | C46: 0605 | D46: 37 | E46: 8 | F46: Amherst | G46: 605 | H46: Amherst Pelham | I46: 13934494.47 | J46: 0.5083607061 | K46: 14904030.91 | L46: =IF(K49>0, K46/K49, 0) -> 0.4986971085 | N46: =ROUND(M49*L46,0) -> 11834533 | O46: 11495958 | P46: =N46-O46 -> 338575 | Q46: 2.945165596 | R46: 964 | S46: 987.5813954 | T46: 8 | U46: 605 | V46: 37 | W46: 987.5813954 | X46: 14904030.91 | Y46: 37 | Z46: 8 | AA46: 605 | AB46: 37 | AC46: 987.5813954 | AD46: 14904030.91
A47: 00080998 | B47: 0008 | C47: 0998 | D47: 38 | E47: 8 | G47: 998 | I47: 0 | J47: 0 | K47: 0 | L47: =IF(K49>0, K47/K49, 0) -> 0 | N47: =ROUND(M49*L47,0) -> 0 | O47: 0 | P47: =N47-O47 -> 0 | Q47: 0 | R47: 0 | S47: 0 | T47: 8 | U47: 998 | V47: 38 | W47: 0 | X47: 0 | Y47: 38 | Z47: 8 | AA47: 998 | AB47: 38 | AC47: 0 | AD47: 0
A48: 00080998 | B48: 0008 | C48: 0998 | D48: 39 | E48: 8 | G48: 998 | I48: 0 | J48: 0 | K48: 0 | L48: =IF(K49>0, K48/K49, 0) -> 0 | N48: =ROUND(M49*L48,0) -> 0 | O48: 0 | P48: =N48-O48 -> 0 | Q48: 0 | R48: 0 | S48: 0 | T48: 8 | U48: 998 | V48: 39 | W48: 0 | X48: 0 | Y48: 39 | Z48: 8 | AA48: 998 | AB48: 39 | AC48: 0 | AD48: 0
A49: 00080999 | B49: 0008 | C49: 0999 | D49: 40 | E49: 8 | F49: Amherst | G49: 999 | H49: Total | I49: 27410644.26 | J49: 1 | K49: =SUM(K45:K48) -> 29885938.09 | L49: =SUM(L45:L48) -> 1 | M49: =VLOOKUP(E49,town351,24) -> 23730903 | N49: =SUM(N45:N48) -> 23730903 | O49: 22613782 | P49: =SUM(P45:P48) -> 1117121 | Q49: 4.940000748 | R49: 1948 | S49: 2024.581395 | T49: 8 | U49: 999 | V49: 40 | W49: 2024.581395 | X49: 29885938.09 | Y49: 40 | Z49: 8 | AA49: 999 | AB49: 40 | AC49: 2024.581395 | AD49: 29885938.09
A50: 00090009 | B50: 0009 | C50: 0009 | D50: 41 | E50: 9 | F50: Andover | G50: 9 | H50: Andover | I50: 72595075.47 | J50: 0.9827547764 | K50: =X50 -> 75901319.69 | L50: =IF(K54>0, K50/K54, 0) -> 0.9830188447 | N50: =ROUND(M54*L50,0) -> 62087646 | O50: 59890937 | P50: =N50-O50 -> 2196709 | Q50: 3.667848777 | R50: 5465 | S50: 5464 | T50: 9 | U50: 9 | V50: 41 | W50: 5464 | X50: 75901319.69 | Y50: 41 | Z50: 9 | AA50: 9 | AB50: 41 | AC50: 5464 | AD50: 75901319.69
A51: 00090823 | B51: 0009 | C51: 0823 | D51: 42 | E51: 9 | F51: Andover | G51: 823 | H51: Greater Lawrence | I51: 1273886.768 | J51: 0.01724522356 | K51: 1311157.057 | L51: =IF(K54>0, K51/K54, 0) -> 0.01698115528 | N51: =ROUND(M54*L51,0) -> 1072533 | O51: 1050957 | P51: =N51-O51 -> 21576 | Q51: 2.052985993 | R51: 49 | S51: 48 | T51: 9 | U51: 823 | V51: 42 | W51: 48 | X51: 1311157.057 | Y51: 42 | Z51: 9 | AA51: 823 | AB51: 42 | AC51: 48 | AD51: 1311157.057
A52: 00090998 | B52: 0009 | C52: 0998 | D52: 43 | E52: 9 | G52: 998 | I52: 0 | J52: 0 | K52: 0 | L52: =IF(K54>0, K52/K54, 0) -> 0 | N52: =ROUND(M54*L52,0) -> 0 | O52: 0 | P52: =N52-O52 -> 0 | Q52: 0 | R52: 0 | S52: 0 | T52: 9 | U52: 998 | V52: 43 | W52: 0 | X52: 0 | Y52: 43 | Z52: 9 | AA52: 998 | AB52: 43 | AC52: 0 | AD52: 0
A53: 00090998 | B53: 0009 | C53: 0998 | D53: 44 | E53: 9 | G53: 998 | I53: 0 | J53: 0 | K53: 0 | L53: =IF(K54>0, K53/K54, 0) -> 0 | N53: =ROUND(M54*L53,0) -> 0 | O53: 0 | P53: =N53-O53 -> 0 | Q53: 0 | R53: 0 | S53: 0 | T53: 9 | U53: 998 | V53: 44 | W53: 0 | X53: 0 | Y53: 44 | Z53: 9 | AA53: 998 | AB53: 44 | AC53: 0 | AD53: 0
A54: 00090999 | B54: 0009 | C54: 0999 | D54: 45 | E54: 9 | F54: Andover | G54: 999 | H54: Total | I54: 73868962.24 | J54: 1 | K54: =SUM(K50:K53) -> 77212476.74 | L54: =SUM(L50:L53) -> 1 | M54: =VLOOKUP(E54,town351,24) -> 63160179 | N54: =SUM(N50:N53) -> 63160179 | O54: 60941894 | P54: =SUM(P50:P53) -> 2218285 | Q54: 3.640000096 | R54: 5514 | S54: 5512 | T54: 9 | U54: 999 | V54: 45 | W54: 5512 | X54: 77212476.74 | Y54: 45 | Z54: 9 | AA54: 999 | AB54: 45 | AC54: 5512 | AD54: 77212476.74
A55: 00100010 | B55: 0010 | C55: 0010 | D55: 46 | E55: 10 | F55: Arlington | G55: 10 | H55: Arlington | I55: 77449420.44 | J55: 0.9449614075 | K55: =X55 -> 81515548.27 | L55: =IF(K59>0, K55/K59, 0) -> 0.9496996656 | N55: =ROUND(M59*L55,0) -> 61905761 | O55: 58893679 | P55: =N55-O55 -> 3012082 | Q55: 5.11444021 | R55: 6021 | S55: 6114 | T55: 10 | U55: 10 | V55: 46 | W55: 6114 | X55: 81515548.27 | Y55: 46 | Z55: 10 | AA55: 10 | AB55: 46 | AC55: 6114 | AD55: 81515548.27
A56: 00100830 | B56: 0010 | C56: 0830 | D56: 47 | E56: 10 | F56: Arlington | G56: 830 | H56: Minuteman | I56: 4510985.374 | J56: 0.05503859247 | K56: 4317427.374 | L56: =IF(K59>0, K56/K59, 0) -> 0.05030033436 | N56: =ROUND(M59*L56,0) -> 3278805 | O56: 3430220 | P56: =N56-O56 -> -151415 | Q56: -4.414148364 | R56: 216 | S56: 199 | T56: 10 | U56: 830 | V56: 47 | W56: 199 | X56: 4317427.374 | Y56: 47 | Z56: 10 | AA56: 830 | AB56: 47 | AC56: 199 | AD56: 4317427.374
A57: 00100998 | B57: 0010 | C57: 0998 | D57: 48 | E57: 10 | G57: 998 | I57: 0 | J57: 0 | K57: 0 | L57: =IF(K59>0, K57/K59, 0) -> 0 | N57: =ROUND(M59*L57,0) -> 0 | O57: 0 | P57: =N57-O57 -> 0 | Q57: 0 | R57: 0 | S57: 0 | T57: 10 | U57: 998 | V57: 48 | W57: 0 | X57: 0 | Y57: 48 | Z57: 10 | AA57: 998 | AB57: 48 | AC57: 0 | AD57: 0
A58: 00100998 | B58: 0010 | C58: 0998 | D58: 49 | E58: 10 | G58: 998 | I58: 0 | J58: 0 | K58: 0 | L58: =IF(K59>0, K58/K59, 0) -> 0 | N58: =ROUND(M59*L58,0) -> 0 | O58: 0 | P58: =N58-O58 -> 0 | Q58: 0 | R58: 0 | S58: 0 | T58: 10 | U58: 998 | V58: 49 | W58: 0 | X58: 0 | Y58: 49 | Z58: 10 | AA58: 998 | AB58: 49 | AC58: 0 | AD58: 0
A59: 00100999 | B59: 0010 | C59: 0999 | D59: 50 | E59: 10 | F59: Arlington | G59: 999 | H59: Total | I59: 81960405.82 | J59: 1 | K59: =SUM(K55:K58) -> 85832975.65 | L59: =SUM(L55:L58) -> 1 | M59: =VLOOKUP(E59,town351,24) -> 65184566 | N59: =SUM(N55:N58) -> 65184566 | O59: 62323899 | P59: =SUM(P55:P58) -> 2860667 | Q59: 4.590000058 | R59: 6237 | S59: 6313 | T59: 10 | U59: 999 | V59: 50 | W59: 6313 | X59: 85832975.65 | Y59: 50 | Z59: 10 | AA59: 999 | AB59: 50 | AC59: 6313 | AD59: 85832975.65
A60: 00110011 | B60: 0011 | C60: 0011 | D60: 51 | E60: 11 | F60: Ashburnham | G60: 11 | H60: Ashburnham | I60: 0 | J60: 0 | K60: =X60 -> 0 | L60: =IF(K64>0, K60/K64, 0) -> 0 | N60: =ROUND(M64*L60,0) -> 0 | O60: 0 | P60: =N60-O60 -> 0 | Q60: 0 | R60: 0 | S60: 0 | T60: 11 | U60: 11 | V60: 51 | W60: 0 | X60: 0 | Y60: 51 | Z60: 11 | AA60: 11 | AB60: 51 | AC60: 0 | AD60: 0
A61: 00110610 | B61: 0011 | C61: 0610 | D61: 52 | E61: 11 | F61: Ashburnham | G61: 610 | H61: Ashburnham Westminster | I61: 13011229.3 | J61: 0.9093704068 | K61: 13604805.48 | L61: =IF(K64>0, K61/K64, 0) -> 0.9107681447 | N61: =ROUND(M64*L61,0) -> 6245654 | O61: 5969244 | P61: =N61-O61 -> 276410 | Q61: 4.630569633 | R61: 982.8947368 | S61: 989.8699294 | T61: 11 | U61: 610 | V61: 52 | W61: 989.8699294 | X61: 13604805.48 | Y61: 52 | Z61: 11 | AA61: 610 | AB61: 52 | AC61: 989.8699294 | AD61: 13604805.48
A62: 00110832 | B62: 0011 | C62: 0832 | D62: 53 | E62: 11 | F62: Ashburnham | G62: 832 | H62: Montachusett | I62: 1296723.986 | J62: 0.09062959319 | K62: 1332921.052 | L62: =IF(K64>0, K62/K64, 0) -> 0.08923185527 | N62: =ROUND(M64*L62,0) -> 611914 | O62: 594906 | P62: =N62-O62 -> 17008 | Q62: 2.858939059 | R62: 63.99999999 | S62: 64 | T62: 11 | U62: 832 | V62: 53 | W62: 64 | X62: 1332921.052 | Y62: 53 | Z62: 11 | AA62: 832 | AB62: 53 | AC62: 64 | AD62: 1332921.052
A63: 00110998 | B63: 0011 | C63: 0998 | D63: 54 | E63: 11 | G63: 998 | I63: 0 | J63: 0 | K63: 0 | L63: =IF(K64>0, K63/K64, 0) -> 0 | N63: =ROUND(M64*L63,0) -> 0 | O63: 0 | P63: =N63-O63 -> 0 | Q63: 0 | R63: 0 | S63: 0 | T63: 11 | U63: 998 | V63: 54 | W63: 0 | X63: 0 | Y63: 54 | Z63: 11 | AA63: 998 | AB63: 54 | AC63: 0 | AD63: 0
A64: 00110999 | B64: 0011 | C64: 0999 | D64: 55 | E64: 11 | F64: Ashburnham | G64: 999 | H64: Total | I64: 14307953.29 | J64: 1 | K64: =SUM(K60:K63) -> 14937726.53 | L64: =SUM(L60:L63) -> 1 | M64: =VLOOKUP(E64,town351,24) -> 6857568 | N64: =SUM(N60:N63) -> 6857568 | O64: 6564150 | P64: =SUM(P60:P63) -> 293418 | Q64: 4.470007541 | R64: 1046.894737 | S64: 1053.869929 | T64: 11 | U64: 999 | V64: 55 | W64: 1053.869929 | X64: 14937726.53 | Y64: 55 | Z64: 11 | AA64: 999 | AB64: 55 | AC64: 1053.869929 | AD64: 14937726.53
A65: 00120012 | B65: 0012 | C65: 0012 | D65: 56 | E65: 12 | F65: Ashby | G65: 12 | H65: Ashby | I65: 0 | J65: 0 | K65: =X65 -> 0 | L65: =IF(K69>0, K65/K69, 0) -> 0 | N65: =ROUND(M69*L65,0) -> 0 | O65: 0 | P65: =N65-O65 -> 0 | Q65: 0 | R65: 0 | S65: 0 | T65: 12 | U65: 12 | V65: 56 | W65: 0 | X65: 0 | Y65: 56 | Z65: 12 | AA65: 12 | AB65: 56 | AC65: 0 | AD65: 0
A66: 00120735 | B66: 0012 | C66: 0735 | D66: 57 | E66: 12 | F66: Ashby | G66: 735 | H66: North Middlesex | I66: 5451782.324 | J66: 0.896691979 | K66: 5465706.935 | L66: =IF(K69>0, K66/K69, 0) -> 0.8883003335 | N66: =ROUND(M69*L66,0) -> 2931213 | O66: 2832572 | P66: =N66-O66 -> 98641 | Q66: 3.482382796 | R66: 405.9739269 | S66: 389.2687459 | T66: 12 | U66: 735 | V66: 57 | W66: 389.2687459 | X66: 5465706.935 | Y66: 57 | Z66: 12 | AA66: 735 | AB66: 57 | AC66: 389.2687459 | AD66: 5465706.935
A67: 00120832 | B67: 0012 | C67: 0832 | D67: 58 | E67: 12 | F67: Ashby | G67: 832 | H67: Montachusett | I67: 628100.6809 | J67: 0.103308021 | K67: 687287.4173 | L67: =IF(K69>0, K67/K69, 0) -> 0.1116996665 | N67: =ROUND(M69*L67,0) -> 368587 | O67: 326341 | P67: =N67-O67 -> 42246 | Q67: 12.94535471 | R67: 31 | S67: 32.99999999 | T67: 12 | U67: 832 | V67: 58 | W67: 32.99999999 | X67: 687287.4173 | Y67: 58 | Z67: 12 | AA67: 832 | AB67: 58 | AC67: 32.99999999 | AD67: 687287.4173
A68: 00120998 | B68: 0012 | C68: 0998 | D68: 59 | E68: 12 | G68: 998 | I68: 0 | J68: 0 | K68: 0 | L68: =IF(K69>0, K68/K69, 0) -> 0 | N68: =ROUND(M69*L68,0) -> 0 | O68: 0 | P68: =N68-O68 -> 0 | Q68: 0 | R68: 0 | S68: 0 | T68: 12 | U68: 998 | V68: 59 | W68: 0 | X68: 0 | Y68: 59 | Z68: 12 | AA68: 998 | AB68: 59 | AC68: 0 | AD68: 0
A69: 00120999 | B69: 0012 | C69: 0999 | D69: 60 | E69: 12 | F69: Ashby | G69: 999 | H69: Total | I69: 6079883.004 | J69: 1 | K69: =SUM(K65:K68) -> 6152994.353 | L69: =SUM(L65:L68) -> 1 | M69: =VLOOKUP(E69,town351,24) -> 3299800 | N69: =SUM(N65:N68) -> 3299800 | O69: 3158913 | P69: =SUM(P65:P68) -> 140887 | Q69: 4.459983545 | R69: 436.9739269 | S69: 422.2687458 | T69: 12 | U69: 999 | V69: 60 | W69: 422.2687458 | X69: 6152994.353 | Y69: 60 | Z69: 12 | AA69: 999 | AB69: 60 | AC69: 422.2687458 | AD69: 6152994.353
A70: 00130013 | B70: 0013 | C70: 0013 | D70: 61 | E70: 13 | F70: Ashfield | G70: 13 | H70: Ashfield | I70: 216797.25 | J70: 0.09216245857 | K70: =X70 -> 240365.82 | L70: =IF(K74>0, K70/K74, 0) -> 0.09974518784 | N70: =ROUND(M74*L70,0) -> 182183 | O70: 158626 | P70: =N70-O70 -> 23557 | Q70: 14.850655 | R70: 11 | S70: 12 | T70: 13 | U70: 13 | V70: 61 | W70: 12 | X70: 240365.82 | Y70: 61 | Z70: 13 | AA70: 13 | AB70: 61 | AC70: 12 | AD70: 240365.82
A71: 00130717 | B71: 0013 | C71: 0717 | D71: 62 | E71: 13 | F71: Ashfield | G71: 717 | H71: Mohawk Trail | I71: 2135540.713 | J71: 0.9078375414 | K71: 2169432.84 | L71: =IF(K74>0, K71/K74, 0) -> 0.9002548122 | N71: =ROUND(M74*L71,0) -> 1644305 | O71: 1562527 | P71: =N71-O71 -> 81778 | Q71: 5.233701562 | R71: 141.641791 | S71: 136.3636364 | T71: 13 | U71: 717 | V71: 62 | W71: 136.3636364 | X71: 2169432.84 | Y71: 62 | Z71: 13 | AA71: 717 | AB71: 62 | AC71: 136.3636364 | AD71: 2169432.84
A72: 00130998 | B72: 0013 | C72: 0998 | D72: 63 | E72: 13 | G72: 998 | I72: 0 | J72: 0 | K72: 0 | L72: =IF(K74>0, K72/K74, 0) -> 0 | N72: =ROUND(M74*L72,0) -> 0 | O72: 0 | P72: =N72-O72 -> 0 | Q72: 0 | R72: 0 | S72: 0 | T72: 13 | U72: 998 | V72: 63 | W72: 0 | X72: 0 | Y72: 63 | Z72: 13 | AA72: 998 | AB72: 63 | AC72: 0 | AD72: 0
A73: 00130998 | B73: 0013 | C73: 0998 | D73: 64 | E73: 13 | G73: 998 | I73: 0 | J73: 0 | K73: 0 | L73: =IF(K74>0, K73/K74, 0) -> 0 | N73: =ROUND(M74*L73,0) -> 0 | O73: 0 | P73: =N73-O73 -> 0 | Q73: 0 | R73: 0 | S73: 0 | T73: 13 | U73: 998 | V73: 64 | W73: 0 | X73: 0 | Y73: 64 | Z73: 13 | AA73: 998 | AB73: 64 | AC73: 0 | AD73: 0
A74: =B74&C74 -> 00130999 | B74: 0013 | C74: 0999 | D74: 65 | E74: 13 | F74: Ashfield | G74: 999 | H74: Total | I74: 2352337.963 | J74: 1 | K74: =SUM(K70:K73) -> 2409798.66 | L74: =SUM(L70:L73) -> 1 | M74: =VLOOKUP(E74,town351,24) -> 1826488 | N74: =SUM(N70:N73) -> 1826488 | O74: 1721153 | P74: =SUM(P70:P73) -> 105335 | Q74: 6.120025355 | R74: 152.641791 | S74: 148.3636364 | T74: =VLOOKUP($D74, foundoptions, VLOOKUP($T$6, foundoptcell, 2, FALSE), FALSE) -> 13 | U74: =VLOOKUP($D74, foundoptions, VLOOKUP($T$6, foundoptcell, 2, FALSE)+1, FALSE) -> 999 | V74: =VLOOKUP($D74, foundoptions, VLOOKUP($T$6, foundoptcell, 2, FALSE)+2, FALSE) -> 65 | W74: =VLOOKUP($D74, foundoptions, VLOOKUP($T$6, foundoptcell, 2, FALSE)+3, FALSE) -> 148.3636364 | X74: =VLOOKUP($D74, foundoptions, VLOOKUP($T$6, foundoptcell, 2, FALSE)+4, FALSE) -> 2409798.66 | Y74: 65 | Z74: 13 | AA74: 999 | AB74: 65 | AC74: 148.3636364 | AD74: 2409798.66
A75: 00140014 | B75: 0014 | C75: 0014 | D75: 66 | E75: 14 | F75: Ashland | G75: 14 | H75: Ashland | I75: 37765344.57 | J75: 0.9627456276 | K75: =X75 -> 39209499.74 | L75: =IF(K79>0, K75/K79, 0) -> 0.9651292159 | N75: =ROUND(M79*L75,0) -> 28541470 | O75: 26791174 | P75: =N75-O75 -> 1750296 | Q75: 6.533106761 | R75: 2857 | S75: =W75 -> 2837 | T75: 14 | U75: 14 | V75: 66 | W75: 2837 | X75: 39209499.74 | Y75: =D75 -> 66 | Z75: 14 | AA75: 14 | AB75: 66 | AC75: 2837 | AD75: 39209499.74
A76: 00140829 | B76: 0014 | C76: 0829 | D76: 67 | E76: 14 | F76: Ashland | G76: 829 | H76: South Middlesex | I76: 1461366.501 | J76: 0.03725437236 | K76: 1416666.262 | L76: =IF(K79>0, K76/K79, 0) -> 0.03487078406 | N76: =ROUND(M79*L76,0) -> 1031223 | O76: 1036710 | P76: =N76-O76 -> -5487 | Q76: -0.5292704807 | R76: 62.2147806 | S76: 58.26067416 | T76: 14 | U76: 829 | V76: 67 | W76: 58.26067416 | X76: 1416666.262 | Y76: 67 | Z76: 14 | AA76: 829 | AB76: 67 | AC76: 58.26067416 | AD76: 1416666.262
A77: 00140998 | B77: 0014 | C77: 0998 | D77: 68 | E77: 14 | G77: 998 | I77: 0 | J77: 0 | K77: 0 | L77: =IF(K79>0, K77/K79, 0) -> 0 | N77: =ROUND(M79*L77,0) -> 0 | O77: 0 | P77: =N77-O77 -> 0 | Q77: 0 | R77: 0 | S77: 0 | T77: 14 | U77: 998 | V77: 68 | W77: 0 | X77: 0 | Y77: 68 | Z77: 14 | AA77: 998 | AB77: 68 | AC77: 0 | AD77: 0
A78: 00140998 | B78: 0014 | C78: 0998 | D78: 69 | E78: 14 | G78: 998 | I78: 0 | J78: 0 | K78: 0 | L78: =IF(K79>0, K78/K79, 0) -> 0 | N78: =ROUND(M79*L78,0) -> 0 | O78: 0 | P78: =N78-O78 -> 0 | Q78: 0 | R78: 0 | S78: 0 | T78: 14 | U78: 998 | V78: 69 | W78: 0 | X78: 0 | Y78: 69 | Z78: 14 | AA78: 998 | AB78: 69 | AC78: 0 | AD78: 0
A79: 00140999 | B79: 0014 | C79: 0999 | D79: 70 | E79: 14 | F79: Ashland | G79: 999 | H79: Total | I79: 39226711.07 | J79: 1 | K79: =SUM(K75:K78) -> 40626166 | L79: =SUM(L75:L78) -> 1 | M79: =VLOOKUP(E79,town351,24) -> 29572693 | N79: =SUM(N75:N78) -> 29572693 | O79: 27827884 | P79: =SUM(P75:P78) -> 1744809 | Q79: 6.270002419 | R79: 2919.214781 | S79: 2895.260674 | T79: 14 | U79: 999 | V79: 70 | W79: 2895.260674 | X79: 40626166 | Y79: 70 | Z79: 14 | AA79: 999 | AB79: 70 | AC79: 2895.260674 | AD79: 40626166
A80: 00150015 | B80: 0015 | C80: 0015 | D80: 71 | E80: 15 | F80: Athol | G80: 15 | H80: Athol | I80: 0 | J80: 0 | K80: =X80 -> 0 | L80: =IF(K84>0, K80/K84, 0) -> 0 | N80: =ROUND(M84*L80,0) -> 0 | O80: 0 | P80: =N80-O80 -> 0 | Q80: =IF(O80>0,P80*100/O80,IF(P80>0,100,0)) -> 0 | R80: 0 | S80: 0 | T80: 15 | U80: 15 | V80: 71 | W80: 0 | X80: 0 | Y80: 71 | Z80: 15 | AA80: 15 | AB80: 71 | AC80: 0 | AD80: 0
A81: 00150615 | B81: 0015 | C81: 0615 | D81: 72 | E81: 15 | F81: Athol | G81: 615 | H81: Athol Royalston | I81: 26801046.44 | J81: 0.9271080591 | K81: 28544905.74 | L81: =IF(K84>0, K81/K84, 0) -> 0.926330409 | N81: =ROUND(M84*L81,0) -> 4250280 | O81: 4034378 | P81: =N81-O81 -> 215902 | Q81: =IF(O81>0,P81*100/O81,IF(P81>0,100,0)) -> 5.351556052 | R81: 1656.30365 | S81: 1674.370756 | T81: 15 | U81: 615 | V81: 72 | W81: 1674.370756 | X81: 28544905.74 | Y81: 72 | Z81: 15 | AA81: 615 | AB81: 72 | AC81: 1674.370756 | AD81: 28544905.74
A82: 00150832 | B82: 0015 | C82: 0832 | D82: 73 | E82: 15 | F82: Athol | G82: 832 | H82: Montachusett | I82: 2107176.478 | J82: 0.07289194093 | K82: 2270131.167 | L82: =IF(K84>0, K82/K84, 0) -> 0.07366959105 | N82: =ROUND(M84*L82,0) -> 338018 | O82: 317195 | P82: =N82-O82 -> 20823 | Q82: =IF(O82>0,P82*100/O82,IF(P82>0,100,0)) -> 6.564731474 | R82: 104 | S82: 109 | T82: 15 | U82: 832 | V82: 73 | W82: 109 | X82: 2270131.167 | Y82: 73 | Z82: 15 | AA82: 832 | AB82: 73 | AC82: 109 | AD82: 2270131.167
A83: 00150998 | B83: 0015 | C83: 0998 | D83: 74 | E83: 15 | G83: 998 | I83: 0 | J83: 0 | K83: 0 | L83: =IF(K84>0, K83/K84, 0) -> 0 | N83: =ROUND(M84*L83,0) -> 0 | O83: 0 | P83: =N83-O83 -> 0 | Q83: =IF(O83>0,P83*100/O83,IF(P83>0,100,0)) -> 0 | R83: 0 | S83: 0 | T83: 15 | U83: 998 | V83: 74 | W83: 0 | X83: 0 | Y83: 74 | Z83: 15 | AA83: 998 | AB83: 74 | AC83: 0 | AD83: 0
A84: 00150999 | B84: 0015 | C84: 0999 | D84: 75 | E84: 15 | F84: Athol | G84: 999 | H84: Total | I84: 28908222.92 | J84: 1 | K84: =SUM(K80:K83) -> 30815036.9 | L84: =SUM(L80:L83) -> 1 | M84: =VLOOKUP(E84,town351,24) -> 4588298 | N84: =SUM(N80:N83) -> 4588298 | O84: 4351573 | P84: =SUM(P80:P83) -> 236725 | Q84: =IF(O84>0,P84*100/O84,IF(P84>0,100,0)) -> 5.439986874 | R84: 1760.30365 | S84: 1783.370756 | T84: 15 | U84: 999 | V84: 75 | W84: 1783.370756 | X84: 30815036.9 | Y84: 75 | Z84: 15 | AA84: 999 | AB84: 75 | AC84: 1783.370756 | AD84: 30815036.9
A85: 00160016 | B85: 0016 | C85: 0016 | D85: 76 | E85: 16 | F85: Attleboro | G85: 16 | H85: Attleboro | I85: 102004503.3 | J85: 0.9957263836 | K85: =X85 -> 110074456.2 | L85: =IF(K89>0, K85/K89, 0) -> 0.9955991315 | N85: =ROUND(M89*L85,0) -> 48277999 | O85: 46028760 | P85: =N85-O85 -> 2249239 | Q85: 4.886594816 | R85: 6313 | S85: 6440 | T85: 16 | U85: 16 | V85: 76 | W85: 6440 | X85: 110074456.2 | Y85: 76 | Z85: 16 | AA85: 16 | AB85: 76 | AC85: 6440 | AD85: 110074456.2
A86: 00160910 | B86: 0016 | C86: 0910 | D86: 77 | E86: 16 | F86: Attleboro | G86: 910 | H86: Bristol County | I86: 437799.0999 | J86: 0.004273616362 | K86: 486564.5112 | L86: =IF(K89>0, K86/K89, 0) -> 0.004400868482 | N86: =ROUND(M89*L86,0) -> 213404 | O86: 197554 | P86: =N86-O86 -> 15850 | Q86: 8.023122792 | R86: 21 | S86: 23 | T86: 16 | U86: 910 | V86: 77 | W86: 23 | X86: 486564.5112 | Y86: 77 | Z86: 16 | AA86: 910 | AB86: 77 | AC86: 23 | AD86: 486564.5112
A87: 00160998 | B87: 0016 | C87: 0998 | D87: 78 | E87: 16 | G87: 998 | I87: 0 | J87: 0 | K87: 0 | L87: =IF(K89>0, K87/K89, 0) -> 0 | N87: =ROUND(M89*L87,0) -> 0 | O87: 0 | P87: =N87-O87 -> 0 | Q87: 0 | R87: 0 | S87: 0 | T87: 16 | U87: 998 | V87: 78 | W87: 0 | X87: 0 | Y87: 78 | Z87: 16 | AA87: 998 | AB87: 78 | AC87: 0 | AD87: 0
A88: 00160998 | B88: 0016 | C88: 0998 | D88: 79 | E88: 16 | G88: 998 | I88: 0 | J88: 0 | K88: 0 | L88: =IF(K89>0, K88/K89, 0) -> 0 | N88: =ROUND(M89*L88,0) -> 0 | O88: 0 | P88: =N88-O88 -> 0 | Q88: 0 | R88: 0 | S88: 0 | T88: 16 | U88: 998 | V88: 79 | W88: 0 | X88: 0 | Y88: 79 | Z88: 16 | AA88: 998 | AB88: 79 | AC88: 0 | AD88: 0
A89: 00160999 | B89: 0016 | C89: 0999 | D89: 80 | E89: 16 | F89: Attleboro | G89: 999 | H89: Total | I89: 102442302.4 | J89: 1 | K89: =SUM(K85:K88) -> 110561020.7 | L89: =SUM(L85:L88) -> 1 | M89: =VLOOKUP(E89,town351,24) -> 48491403 | N89: =SUM(N85:N88) -> 48491403 | O89: 46226314 | P89: =SUM(P85:P88) -> 2265089 | Q89: 4.899999165 | R89: 6334 | S89: 6463 | T89: 16 | U89: 999 | V89: 80 | W89: 6463 | X89: 110561020.7 | Y89: 80 | Z89: 16 | AA89: 999 | AB89: 80 | AC89: 6463 | AD89: 110561020.7
A90: 00170017 | B90: 0017 | C90: 0017 | D90: 81 | E90: 17 | F90: Auburn | G90: 17 | H90: Auburn | I90: 32470504.22 | J90: 0.9230643155 | K90: =X90 -> 34174444.38 | L90: =IF(K94>0, K90/K94, 0) -> 0.9249049222 | N90: =ROUND(M94*L90,0) -> 18808409 | O90: 17758731 | P90: =N90-O90 -> 1049678 | Q90: 5.91077144 | R90: 2367 | S90: 2400 | T90: 17 | U90: 17 | V90: 81 | W90: 2400 | X90: 34174444.38 | Y90: 81 | Z90: 17 | AA90: 17 | AB90: 81 | AC90: 2400 | AD90: 34174444.38
A91: 00170876 | B91: 0017 | C91: 0876 | D91: 82 | E91: 17 | F91: Auburn | G91: 876 | H91: Southern Worcester | I91: 2706355.806 | J91: 0.07693568454 | K91: 2774698.78 | L91: =IF(K94>0, K91/K94, 0) -> 0.07509507779 | N91: =ROUND(M94*L91,0) -> 1527096 | O91: 1480157 | P91: =N91-O91 -> 46939 | Q91: 3.171217648 | R91: 131 | S91: 131 | T91: 17 | U91: 876 | V91: 82 | W91: 131 | X91: 2774698.78 | Y91: 82 | Z91: 17 | AA91: 876 | AB91: 82 | AC91: 131 | AD91: 2774698.78
A92: 00170998 | B92: 0017 | C92: 0998 | D92: 83 | E92: 17 | G92: 998 | I92: 0 | J92: 0 | K92: 0 | L92: =IF(K94>0, K92/K94, 0) -> 0 | N92: =ROUND(M94*L92,0) -> 0 | O92: 0 | P92: =N92-O92 -> 0 | Q92: 0 | R92: 0 | S92: 0 | T92: 17 | U92: 998 | V92: 83 | W92: 0 | X92: 0 | Y92: 83 | Z92: 17 | AA92: 998 | AB92: 83 | AC92: 0 | AD92: 0
A93: 00170998 | B93: 0017 | C93: 0998 | D93: 84 | E93: 17 | G93: 998 | I93: 0 | J93: 0 | K93: 0 | L93: =IF(K94>0, K93/K94, 0) -> 0 | N93: =ROUND(M94*L93,0) -> 0 | O93: 0 | P93: =N93-O93 -> 0 | Q93: 0 | R93: 0 | S93: 0 | T93: 17 | U93: 998 | V93: 84 | W93: 0 | X93: 0 | Y93: 84 | Z93: 17 | AA93: 998 | AB93: 84 | AC93: 0 | AD93: 0
A94: 00170999 | B94: 0017 | C94: 0999 | D94: 85 | E94: 17 | F94: Auburn | G94: 999 | H94: Total | I94: 35176860.03 | J94: 1 | K94: =SUM(K90:K93) -> 36949143.16 | L94: =SUM(L90:L93) -> 1 | M94: =VLOOKUP(E94,town351,24) -> 20335505 | N94: =SUM(N90:N93) -> 20335505 | O94: 19238888 | P94: =SUM(P90:P93) -> 1096617 | Q94: 5.700001996 | R94: 2498 | S94: 2531 | T94: 17 | U94: 999 | V94: 85 | W94: 2531 | X94: 36949143.16 | Y94: 85 | Z94: 17 | AA94: 999 | AB94: 85 | AC94: 2531 | AD94: 36949143.16
A95: 00180018 | B95: 0018 | C95: 0018 | D95: 86 | E95: 18 | F95: Avon | G95: 18 | H95: Avon | I95: 9514711.52 | J95: 0.8991302458 | K95: =X95 -> 10349488.58 | L95: =IF(K99>0, K95/K99, 0) -> 0.8923645784 | N95: =ROUND(M99*L95,0) -> 5949758 | O95: 5674808 | P95: =N95-O95 -> 274950 | Q95: 4.845097843 | R95: 572 | S95: 588 | T95: 18 | U95: 18 | V95: 86 | W95: 588 | X95: 10349488.58 | Y95: 86 | Z95: 18 | AA95: 18 | AB95: 86 | AC95: 588 | AD95: 10349488.58
A96: 00180806 | B96: 0018 | C96: 0806 | D96: 87 | E96: 18 | F96: Avon | G96: 806 | H96: Blue Hills | I96: 1045392.697 | J96: 0.09878851197 | K96: 1225553.771 | L96: =IF(K99>0, K96/K99, 0) -> 0.1056709968 | N96: =ROUND(M99*L96,0) -> 704552 | O96: 623498 | P96: =N96-O96 -> 81054 | Q96: 12.99988131 | R96: 47 | S96: 54 | T96: 18 | U96: 806 | V96: 87 | W96: 54 | X96: 1225553.771 | Y96: 87 | Z96: 18 | AA96: 806 | AB96: 87 | AC96: 54 | AD96: 1225553.771
A97: 00180915 | B97: 0018 | C97: 0915 | D97: 88 | E97: 18 | F97: Avon | G97: 915 | H97: Norfolk County | I97: 22023.97186 | J97: 0.00208124221 | K97: 22783.05611 | L97: =IF(K99>0, K97/K99, 0) -> 0.001964424822 | N97: =ROUND(M99*L97,0) -> 13098 | O97: 13136 | P97: =N97-O97 -> -38 | Q97: -0.2892813642 | R97: 0.9999999989 | S97: 1 | T97: 18 | U97: 915 | V97: 88 | W97: 1 | X97: 22783.05611 | Y97: 88 | Z97: 18 | AA97: 915 | AB97: 88 | AC97: 1 | AD97: 22783.05611
A98: 00180998 | B98: 0018 | C98: 0998 | D98: 89 | E98: 18 | G98: 998 | I98: 0 | J98: 0 | K98: 0 | L98: =IF(K99>0, K98/K99, 0) -> 0 | N98: =ROUND(M99*L98,0) -> 0 | O98: 0 | P98: =N98-O98 -> 0 | Q98: 0 | R98: 0 | S98: 0 | T98: 18 | U98: 998 | V98: 89 | W98: 0 | X98: 0 | Y98: 89 | Z98: 18 | AA98: 998 | AB98: 89 | AC98: 0 | AD98: 0
A99: 00180999 | B99: 0018 | C99: 0999 | D99: 90 | E99: 18 | F99: Avon | G99: 999 | H99: Total | I99: 10582128.19 | J99: 1 | K99: =SUM(K95:K98) -> 11597825.41 | L99: =SUM(L95:L98) -> 1 | M99: =VLOOKUP(E99,town351,24) -> 6667407 | N99: =SUM(N95:N98) -> 6667408 | O99: 6311442 | P99: =SUM(P95:P98) -> 355966 | Q99: 5.640010635 | R99: 620 | S99: 643 | T99: 18 | U99: 999 | V99: 90 | W99: 643 | X99: 11597825.41 | Y99: 90 | Z99: 18 | AA99: 999 | AB99: 90 | AC99: 643 | AD99: 11597825.41
A100: 00190019 | B100: 0019 | C100: 0019 | D100: 91 | E100: 19 | F100: Ayer | G100: 19 | H100: Ayer | I100: 0 | J100: 0 | K100: =X100 -> 0 | L100: =IF(K104>0, K100/K104, 0) -> 0 | N100: =ROUND(M104*L100,0) -> 0 | O100: 0 | P100: =N100-O100 -> 0 | Q100: 0 | R100: 0 | S100: 0 | T100: 19 | U100: 19 | V100: 91 | W100: 0 | X100: 0 | Y100: 91 | Z100: 19 | AA100: 19 | AB100: 91 | AC100: 0 | AD100: 0
A101: 00190616 | B101: 0019 | C101: 0616 | D101: 92 | E101: 19 | F101: Ayer | G101: 616 | H101: Ayer Shirley | I101: 13652034.55 | J101: 0.9131570085 | K101: 15286162.83 | L101: =IF(K104>0, K101/K104, 0) -> 0.929658566 | N101: =ROUND(M104*L101,0) -> 10635704 | O101: 9736178 | P101: =N101-O101 -> 899526 | Q101: 9.239005285 | R101: 971.8488577 | S101: 1040.450992 | T101: 19 | U101: 616 | V101: 92 | W101: 1040.450992 | X101: 15286162.83 | Y101: 92 | Z101: 19 | AA101: 616 | AB101: 92 | AC101: 1040.450992 | AD101: 15286162.83
A102: 00190852 | B102: 0019 | C102: 0852 | D102: 93 | E102: 19 | F102: Ayer | G102: 852 | H102: Nashoba Valley | I102: 1298334.797 | J102: 0.08684299145 | K102: 1156608.085 | L102: =IF(K104>0, K102/K104, 0) -> 0.070341434 | N102: =ROUND(M104*L102,0) -> 804737 | O102: 925929 | P102: =N102-O102 -> -121192 | Q102: -13.08869255 | R102: 63 | S102: 55 | T102: 19 | U102: 852 | V102: 93 | W102: 55 | X102: 1156608.085 | Y102: 93 | Z102: 19 | AA102: 852 | AB102: 93 | AC102: 55 | AD102: 1156608.085
A103: 00190998 | B103: 0019 | C103: 0998 | D103: 94 | E103: 19 | G103: 998 | I103: 0 | J103: 0 | K103: 0 | L103: =IF(K104>0, K103/K104, 0) -> 0 | N103: =ROUND(M104*L103,0) -> 0 | O103: 0 | P103: =N103-O103 -> 0 | Q103: 0 | R103: 0 | S103: 0 | T103: 19 | U103: 998 | V103: 94 | W103: 0 | X103: 0 | Y103: 94 | Z103: 19 | AA103: 998 | AB103: 94 | AC103: 0 | AD103: 0
A104: 00190999 | B104: 0019 | C104: 0999 | D104: 95 | E104: 19 | F104: Ayer | G104: 999 | H104: Total | I104: 14950369.34 | J104: 1 | K104: =SUM(K100:K103) -> 16442770.91 | L104: =SUM(L100:L103) -> 1 | M104: =VLOOKUP(E104,town351,24) -> 11440441 | N104: =SUM(N100:N103) -> 11440441 | O104: 10662107 | P104: =SUM(P100:P103) -> 778334 | Q104: 7.300001773 | R104: 1034.848858 | S104: 1095.450992 | T104: 19 | U104: 999 | V104: 95 | W104: 1095.450992 | X104: 16442770.91 | Y104: 95 | Z104: 19 | AA104: 999 | AB104: 95 | AC104: 1095.450992 | AD104: 16442770.91
A105: 00200020 | B105: 0020 | C105: 0020 | D105: 96 | E105: 20 | F105: Barnstable | G105: 20 | H105: Barnstable | I105: 88879328.45 | J105: 0.9574442705 | K105: =X105 -> 91282281.55 | L105: =IF(K109>0, K105/K109, 0) -> 0.9552862917 | N105: =ROUND(M109*L105,0) -> 68459559 | O105: 63910403 | P105: =N105-O105 -> 4549156 | Q105: 7.118021146 | R105: 5306 | S105: 5230 | T105: 20 | U105: 20 | V105: 96 | W105: 5230 | X105: 91282281.55 | Y105: 96 | Z105: 20 | AA105: 20 | AB105: 96 | AC105: 5230 | AD105: 91282281.55
A106: 00200815 | B106: 0020 | C106: 0815 | D106: 97 | E106: 20 | F106: Barnstable | G106: 815 | H106: Cape Cod | I106: 3950438.454 | J106: 0.04255572954 | K106: 4272613.715 | L106: =IF(K109>0, K106/K109, 0) -> 0.04471370831 | N106: =ROUND(M109*L106,0) -> 3204360 | O106: 2840639 | P106: =N106-O106 -> 363721 | Q106: 12.80419652 | R106: 181.2717718 | S106: 195 | T106: 20 | U106: 815 | V106: 97 | W106: 195 | X106: 4272613.715 | Y106: 97 | Z106: 20 | AA106: 815 | AB106: 97 | AC106: 195 | AD106: 4272613.715
A107: 00200998 | B107: 0020 | C107: 0998 | D107: 98 | E107: 20 | G107: 998 | I107: 0 | J107: 0 | K107: 0 | L107: =IF(K109>0, K107/K109, 0) -> 0 | N107: =ROUND(M109*L107,0) -> 0 | O107: 0 | P107: =N107-O107 -> 0 | Q107: 0 | R107: 0 | S107: 0 | T107: 20 | U107: 998 | V107: 98 | W107: 0 | X107: 0 | Y107: 98 | Z107: 20 | AA107: 998 | AB107: 98 | AC107: 0 | AD107: 0
A108: 00200998 | B108: 0020 | C108: 0998 | D108: 99 | E108: 20 | G108: 998 | I108: 0 | J108: 0 | K108: 0 | L108: =IF(K109>0, K108/K109, 0) -> 0 | N108: =ROUND(M109*L108,0) -> 0 | O108: 0 | P108: =N108-O108 -> 0 | Q108: 0 | R108: 0 | S108: 0 | T108: 20 | U108: 998 | V108: 99 | W108: 0 | X108: 0 | Y108: 99 | Z108: 20 | AA108: 998 | AB108: 99 | AC108: 0 | AD108: 0
A109: 00200999 | B109: 0020 | C109: 0999 | D109: 100 | E109: 20 | F109: Barnstable | G109: 999 | H109: Total | I109: 92829766.9 | J109: 1 | K109: =SUM(K105:K108) -> 95554895.26 | L109: =SUM(L105:L108) -> 1 | M109: =VLOOKUP(E109,town351,24) -> 71663919 | N109: =SUM(N105:N108) -> 71663919 | O109: 66751042 | P109: =SUM(P105:P108) -> 4912877 | Q109: 7.360000463 | R109: 5487.271772 | S109: 5425 | T109: 20 | U109: 999 | V109: 100 | W109: 5425 | X109: 95554895.26 | Y109: 100 | Z109: 20 | AA109: 999 | AB109: 100 | AC109: 5425 | AD109: 95554895.26
A110: 00210021 | B110: 0021 | C110: 0021 | D110: 101 | E110: 21 | F110: Barre | G110: 21 | H110: Barre | I110: 0 | J110: 0 | K110: =X110 -> 0 | L110: =IF(K114>0, K110/K114, 0) -> 0 | N110: =ROUND(M114*L110,0) -> 0 | O110: 0 | P110: =N110-O110 -> 0 | Q110: 0 | R110: 0 | S110: 0 | T110: 21 | U110: 21 | V110: 101 | W110: 0 | X110: 0 | Y110: 101 | Z110: 21 | AA110: 21 | AB110: 101 | AC110: 0 | AD110: 0
A111: 00210753 | B111: 0021 | C111: 0753 | D111: 102 | E111: 21 | F111: Barre | G111: 753 | H111: Quabbin | I111: 10417949.31 | J111: 0.9195249318 | K111: 10666409.63 | L111: =IF(K114>0, K111/K114, 0) -> 0.9159432455 | N111: =ROUND(M114*L111,0) -> 4210985 | O111: 3988915 | P111: =N111-O111 -> 222070 | Q111: 5.567178042 | R111: 726.1880342 | S111: 721.303719 | T111: 21 | U111: 753 | V111: 102 | W111: 721.303719 | X111: 10666409.63 | Y111: 102 | Z111: 21 | AA111: 753 | AB111: 102 | AC111: 721.303719 | AD111: 10666409.63
A112: 00210832 | B112: 0021 | C112: 0832 | D112: 103 | E112: 21 | F112: Barre | G112: 832 | H112: Montachusett | I112: 911759.0528 | J112: 0.08047506817 | K112: 978863.8977 | L112: =IF(K114>0, K112/K114, 0) -> 0.08405675451 | N112: =ROUND(M114*L112,0) -> 386445 | O112: 349102 | P112: =N112-O112 -> 37343 | Q112: 10.69687369 | R112: 45 | S112: 47.00000001 | T112: 21 | U112: 832 | V112: 103 | W112: 47.00000001 | X112: 978863.8977 | Y112: 103 | Z112: 21 | AA112: 832 | AB112: 103 | AC112: 47.00000001 | AD112: 978863.8977
A113: 00210998 | B113: 0021 | C113: 0998 | D113: 104 | E113: 21 | G113: 998 | I113: 0 | J113: 0 | K113: 0 | L113: =IF(K114>0, K113/K114, 0) -> 0 | N113: =ROUND(M114*L113,0) -> 0 | O113: 0 | P113: =N113-O113 -> 0 | Q113: 0 | R113: 0 | S113: 0 | T113: 21 | U113: 998 | V113: 104 | W113: 0 | X113: 0 | Y113: 104 | Z113: 21 | AA113: 998 | AB113: 104 | AC113: 0 | AD113: 0
A114: 00210999 | B114: 0021 | C114: 0999 | D114: 105 | E114: 21 | F114: Barre | G114: 999 | H114: Total | I114: 11329708.36 | J114: 1 | K114: =SUM(K110:K113) -> 11645273.52 | L114: =SUM(L110:L113) -> 1 | M114: =VLOOKUP(E114,town351,24) -> 4597430 | N114: =SUM(N110:N113) -> 4597430 | O114: 4338017 | P114: =SUM(P110:P113) -> 259413 | Q114: 5.979990397 | R114: 771.1880342 | S114: 768.303719 | T114: 21 | U114: 999 | V114: 105 | W114: 768.303719 | X114: 11645273.52 | Y114: 105 | Z114: 21 | AA114: 999 | AB114: 105 | AC114: 768.303719 | AD114: 11645273.52
A115: 00220022 | B115: 0022 | C115: 0022 | D115: 106 | E115: 22 | F115: Becket | G115: 22 | H115: Becket | I115: 250517.91 | J115: 0.08463946763 | K115: =X115 -> 361845.85 | L115: =IF(K119>0, K115/K119, 0) -> 0.1163814296 | N115: =ROUND(M119*L115,0) -> 287491 | O115: 198708 | P115: =N115-O115 -> 88783 | Q115: 44.68013366 | R115: 13 | S115: 19 | T115: 22 | U115: 22 | V115: 106 | W115: 19 | X115: 361845.85 | Y115: 106 | Z115: 22 | AA115: 22 | AB115: 106 | AC115: 19 | AD115: 361845.85
A116: 00220635 | B116: 0022 | C116: 0635 | D116: 107 | E116: 22 | F116: Becket | G116: 635 | H116: Central Berkshire | I116: 2709305.881 | J116: 0.9153605324 | K116: 2747291.504 | L116: =IF(K119>0, K116/K119, 0) -> 0.8836185704 | N116: =ROUND(M119*L116,0) -> 2182755 | O116: 2148988 | P116: =N116-O116 -> 33767 | Q116: 1.571297746 | R116: 184.1082474 | S116: 177.6657895 | T116: 22 | U116: 635 | V116: 107 | W116: 177.6657895 | X116: 2747291.504 | Y116: 107 | Z116: 22 | AA116: 635 | AB116: 107 | AC116: 177.6657895 | AD116: 2747291.504
A117: 00220998 | B117: 0022 | C117: 0998 | D117: 108 | E117: 22 | G117: 998 | I117: 0 | J117: 0 | K117: 0 | L117: =IF(K119>0, K117/K119, 0) -> 0 | N117: =ROUND(M119*L117,0) -> 0 | O117: 0 | P117: =N117-O117 -> 0 | Q117: 0 | R117: 0 | S117: 0 | T117: 22 | U117: 998 | V117: 108 | W117: 0 | X117: 0 | Y117: 108 | Z117: 22 | AA117: 998 | AB117: 108 | AC117: 0 | AD117: 0
A118: 00220998 | B118: 0022 | C118: 0998 | D118: 109 | E118: 22 | G118: 998 | I118: 0 | J118: 0 | K118: 0 | L118: =IF(K119>0, K118/K119, 0) -> 0 | N118: =ROUND(M119*L118,0) -> 0 | O118: 0 | P118: =N118-O118 -> 0 | Q118: 0 | R118: 0 | S118: 0 | T118: 22 | U118: 998 | V118: 109 | W118: 0 | X118: 0 | Y118: 109 | Z118: 22 | AA118: 998 | AB118: 109 | AC118: 0 | AD118: 0
A119: 00220999 | B119: 0022 | C119: 0999 | D119: 110 | E119: 22 | F119: Becket | G119: 999 | H119: Total | I119: 2959823.791 | J119: 1 | K119: =SUM(K115:K118) -> 3109137.354 | L119: =SUM(L115:L118) -> 1 | M119: =VLOOKUP(E119,town351,24) -> 2470246 | N119: =SUM(N115:N118) -> 2470246 | O119: 2347696 | P119: =SUM(P115:P118) -> 122550 | Q119: 5.22001145 | R119: 197.1082474 | S119: 196.6657895 | T119: 22 | U119: 999 | V119: 110 | W119: 196.6657895 | X119: 3109137.354 | Y119: 110 | Z119: 22 | AA119: 999 | AB119: 110 | AC119: 196.6657895 | AD119: 3109137.354
A120: 00230023 | B120: 0023 | C120: 0023 | D120: 111 | E120: 23 | F120: Bedford | G120: 23 | H120: Bedford | I120: 34828204.55 | J120: 0.9783529687 | K120: =X120 -> 35245066.37 | L120: =IF(K124>0, K120/K124, 0) -> 0.9745374852 | N120: =ROUND(M124*L120,0) -> 29077179 | O120: 28733269 | P120: =N120-O120 -> 343910 | Q120: 1.196905232 | R120: 2579 | S120: 2528 | T120: 23 | U120: 23 | V120: 111 | W120: 2528 | X120: 35245066.37 | Y120: 111 | Z120: 23 | AA120: 23 | AB120: 111 | AC120: 2528 | AD120: 35245066.37
A121: 00230871 | B121: 0023 | C121: 0871 | D121: 112 | E121: 23 | F121: Bedford | G121: 871 | H121: Shawsheen Valley | I121: 770608.6223 | J121: 0.02164703128 | K121: 920875.8395 | L121: =IF(K124>0, K121/K124, 0) -> 0.02546251482 | N121: =ROUND(M124*L121,0) -> 759723 | O121: 635752 | P121: =N121-O121 -> 123971 | Q121: 19.49989933 | R121: 39 | S121: 45 | T121: 23 | U121: 871 | V121: 112 | W121: 45 | X121: 920875.8395 | Y121: 112 | Z121: 23 | AA121: 871 | AB121: 112 | AC121: 45 | AD121: 920875.8395
A122: 00230998 | B122: 0023 | C122: 0998 | D122: 113 | E122: 23 | G122: 998 | I122: 0 | J122: 0 | K122: 0 | L122: =IF(K124>0, K122/K124, 0) -> 0 | N122: =ROUND(M124*L122,0) -> 0 | O122: 0 | P122: =N122-O122 -> 0 | Q122: 0 | R122: 0 | S122: 0 | T122: 23 | U122: 998 | V122: 113 | W122: 0 | X122: 0 | Y122: 113 | Z122: 23 | AA122: 998 | AB122: 113 | AC122: 0 | AD122: 0
A123: 00230998 | B123: 0023 | C123: 0998 | D123: 114 | E123: 23 | G123: 998 | I123: 0 | J123: 0 | K123: 0 | L123: =IF(K124>0, K123/K124, 0) -> 0 | N123: =ROUND(M124*L123,0) -> 0 | O123: 0 | P123: =N123-O123 -> 0 | Q123: 0 | R123: 0 | S123: 0 | T123: 23 | U123: 998 | V123: 114 | W123: 0 | X123: 0 | Y123: 114 | Z123: 23 | AA123: 998 | AB123: 114 | AC123: 0 | AD123: 0
A124: 00230999 | B124: 0023 | C124: 0999 | D124: 115 | E124: 23 | F124: Bedford | G124: 999 | H124: Total | I124: 35598813.17 | J124: 1 | K124: =SUM(K120:K123) -> 36165942.21 | L124: =SUM(L120:L123) -> 1 | M124: =VLOOKUP(E124,town351,24) -> 29836902 | N124: =SUM(N120:N123) -> 29836902 | O124: 29369021 | P124: =SUM(P120:P123) -> 467881 | Q124: 1.593110645 | R124: 2618 | S124: 2573 | T124: 23 | U124: 999 | V124: 115 | W124: 2573 | X124: 36165942.21 | Y124: 115 | Z124: 23 | AA124: 999 | AB124: 115 | AC124: 2573 | AD124: 36165942.21
A125: 00240024 | B125: 0024 | C125: 0024 | D125: 116 | E125: 24 | F125: Belchertown | G125: 24 | H125: Belchertown | I125: 27898291.62 | J125: 0.9169260378 | K125: =X125 -> 27957662.77 | L125: =IF(K129>0, K125/K129, 0) -> 0.9195300779 | N125: =ROUND(M129*L125,0) -> 15052180 | O125: 14251380 | P125: =N125-O125 -> 800800 | Q125: 5.619104957 | R125: 2106 | S125: 2043 | T125: 24 | U125: 24 | V125: 116 | W125: 2043 | X125: 27957662.77 | Y125: 116 | Z125: 24 | AA125: 24 | AB125: 116 | AC125: 2043 | AD125: 27957662.77
A126: 00240860 | B126: 0024 | C126: 0860 | D126: 117 | E126: 24 | F126: Belchertown | G126: 860 | H126: Pathfinder | I126: 2527599.313 | J126: 0.08307396218 | K126: 2446631.166 | L126: =IF(K129>0, K126/K129, 0) -> 0.08046992214 | N126: =ROUND(M129*L126,0) -> 1317247 | O126: 1291182 | P126: =N126-O126 -> 26065 | Q126: 2.01869295 | R126: 116 | S126: 110 | T126: 24 | U126: 860 | V126: 117 | W126: 110 | X126: 2446631.166 | Y126: 117 | Z126: 24 | AA126: 860 | AB126: 117 | AC126: 110 | AD126: 2446631.166
A127: 00240998 | B127: 0024 | C127: 0998 | D127: 118 | E127: 24 | G127: 998 | I127: 0 | J127: 0 | K127: 0 | L127: =IF(K129>0, K127/K129, 0) -> 0 | N127: =ROUND(M129*L127,0) -> 0 | O127: 0 | P127: =N127-O127 -> 0 | Q127: 0 | R127: 0 | S127: 0 | T127: 24 | U127: 998 | V127: 118 | W127: 0 | X127: 0 | Y127: 118 | Z127: 24 | AA127: 998 | AB127: 118 | AC127: 0 | AD127: 0
A128: 00240998 | B128: 0024 | C128: 0998 | D128: 119 | E128: 24 | G128: 998 | I128: 0 | J128: 0 | K128: 0 | L128: =IF(K129>0, K128/K129, 0) -> 0 | N128: =ROUND(M129*L128,0) -> 0 | O128: 0 | P128: =N128-O128 -> 0 | Q128: 0 | R128: 0 | S128: 0 | T128: 24 | U128: 998 | V128: 119 | W128: 0 | X128: 0 | Y128: 119 | Z128: 24 | AA128: 998 | AB128: 119 | AC128: 0 | AD128: 0
A129: 00240999 | B129: 0024 | C129: 0999 | D129: 120 | E129: 24 | F129: Belchertown | G129: 999 | H129: Total | I129: 30425890.93 | J129: 1 | K129: =SUM(K125:K128) -> 30404293.94 | L129: =SUM(L125:L128) -> 1 | M129: =VLOOKUP(E129,town351,24) -> 16369427 | N129: =SUM(N125:N128) -> 16369427 | O129: 15542562 | P129: =SUM(P125:P128) -> 826865 | Q129: 5.320004514 | R129: 2222 | S129: 2153 | T129: 24 | U129: 999 | V129: 120 | W129: 2153 | X129: 30404293.94 | Y129: 120 | Z129: 24 | AA129: 999 | AB129: 120 | AC129: 2153 | AD129: 30404293.94
A130: 00250025 | B130: 0025 | C130: 0025 | D130: 121 | E130: 25 | F130: Bellingham | G130: 25 | H130: Bellingham | I130: 30088447.59 | J130: 0.944129411 | K130: =X130 -> 31820375.34 | L130: =IF(K134>0, K130/K134, 0) -> 0.9426335114 | N130: =ROUND(M134*L130,0) -> 22163244 | O130: 20822076 | P130: =N130-O130 -> 1341168 | Q130: 6.441086854 | R130: 2175 | S130: 2206 | T130: 25 | U130: 25 | V130: 121 | W130: 2206 | X130: 31820375.34 | Y130: 121 | Z130: 25 | AA130: 25 | AB130: 121 | AC130: 2206 | AD130: 31820375.34
A131: 00250805 | B131: 0025 | C131: 0805 | D131: 122 | E131: 25 | F131: Bellingham | G131: 805 | H131: Blackstone Valley | I131: 1472203.447 | J131: 0.04619548978 | K131: 1526419.21 | L131: =IF(K134>0, K131/K134, 0) -> 0.04521800528 | N131: =ROUND(M134*L131,0) -> 1063168 | O131: 1018807 | P131: =N131-O131 -> 44361 | Q131: 4.354210366 | R131: 76 | S131: 76 | T131: 25 | U131: 805 | V131: 122 | W131: 76 | X131: 1526419.21 | Y131: 122 | Z131: 25 | AA131: 805 | AB131: 122 | AC131: 76 | AD131: 1526419.21
A132: 00250915 | B132: 0025 | C132: 0915 | D132: 123 | E132: 25 | F132: Bellingham | G132: 915 | H132: Norfolk County | I132: 308335.6063 | J132: 0.009675099173 | K132: 410095.0099 | L132: =IF(K134>0, K132/K134, 0) -> 0.01214848332 | N132: =ROUND(M134*L132,0) -> 285636 | O132: 213377 | P132: =N132-O132 -> 72259 | Q132: 33.86447462 | R132: 14 | S132: 18 | T132: 25 | U132: 915 | V132: 123 | W132: 18 | X132: 410095.0099 | Y132: 123 | Z132: 25 | AA132: 915 | AB132: 123 | AC132: 18 | AD132: 410095.0099
A133: 00250998 | B133: 0025 | C133: 0998 | D133: 124 | E133: 25 | G133: 998 | I133: 0 | J133: 0 | K133: 0 | L133: =IF(K134>0, K133/K134, 0) -> 0 | N133: =ROUND(M134*L133,0) -> 0 | O133: 0 | P133: =N133-O133 -> 0 | Q133: 0 | R133: 0 | S133: 0 | T133: 25 | U133: 998 | V133: 124 | W133: 0 | X133: 0 | Y133: 124 | Z133: 25 | AA133: 998 | AB133: 124 | AC133: 0 | AD133: 0
A134: 00250999 | B134: 0025 | C134: 0999 | D134: 125 | E134: 25 | F134: Bellingham | G134: 999 | H134: Total | I134: 31868986.64 | J134: 1 | K134: =SUM(K130:K133) -> 33756889.56 | L134: =SUM(L130:L133) -> 1 | M134: =VLOOKUP(E134,town351,24) -> 23512048 | N134: =SUM(N130:N133) -> 23512048 | O134: 22054260 | P134: =SUM(P130:P133) -> 1457788 | Q134: 6.610006411 | R134: 2265 | S134: 2300 | T134: 25 | U134: 999 | V134: 125 | W134: 2300 | X134: 33756889.56 | Y134: 125 | Z134: 25 | AA134: 999 | AB134: 125 | AC134: 2300 | AD134: 33756889.56
A135: 00260026 | B135: 0026 | C135: 0026 | D135: 126 | E135: 26 | F135: Belmont | G135: 26 | H135: Belmont | I135: 59533725.07 | J135: 1 | K135: =X135 -> 61875520.81 | L135: =IF(K139>0, K135/K139, 0) -> 1 | N135: =ROUND(M139*L135,0) -> 49876878 | O135: 47889465 | P135: =N135-O135 -> 1987413 | Q135: 4.150000423 | R135: 4521 | S135: 4538 | T135: 26 | U135: 26 | V135: 126 | W135: 4538 | X135: 61875520.81 | Y135: 126 | Z135: 26 | AA135: 26 | AB135: 126 | AC135: 4538 | AD135: 61875520.81
A136: 00260830 | B136: 0026 | C136: 0830 | D136: 127 | E136: 26 | G136: 998 | I136: 0 | J136: 0 | K136: 0 | L136: =IF(K139>0, K136/K139, 0) -> 0 | N136: =ROUND(M139*L136,0) -> 0 | O136: 0 | P136: =N136-O136 -> 0 | Q136: 0 | R136: 0 | S136: 0 | T136: 26 | U136: 830 | V136: 127 | W136: 0 | X136: 0 | Y136: 127 | Z136: 26 | AA136: 830 | AB136: 127 | AC136: 0 | AD136: 0
A137: 00260998 | B137: 0026 | C137: 0998 | D137: 128 | E137: 26 | G137: 998 | I137: 0 | J137: 0 | K137: 0 | L137: =IF(K139>0, K137/K139, 0) -> 0 | N137: =ROUND(M139*L137,0) -> 0 | O137: 0 | P137: =N137-O137 -> 0 | Q137: 0 | R137: 0 | S137: 0 | T137: 26 | U137: 998 | V137: 128 | W137: 0 | X137: 0 | Y137: 128 | Z137: 26 | AA137: 998 | AB137: 128 | AC137: 0 | AD137: 0
A138: =B138&C138 -> 00260998 | B138: 0026 | C138: 0998 | D138: 129 | E138: 26 | G138: 998 | I138: 0 | J138: 0 | K138: 0 | L138: =IF(K139>0, K138/K139, 0) -> 0 | N138: =ROUND(M139*L138,0) -> 0 | O138: 0 | P138: =N138-O138 -> 0 | Q138: 0 | R138: 0 | S138: 0 | T138: =VLOOKUP($D138, foundoptions, VLOOKUP($T$6, foundoptcell, 2, FALSE), FALSE) -> 26 | U138: =VLOOKUP($D138, foundoptions, VLOOKUP($T$6, foundoptcell, 2, FALSE)+1, FALSE) -> 998 | V138: =VLOOKUP($D138, foundoptions, VLOOKUP($T$6, foundoptcell, 2, FALSE)+2, FALSE) -> 129 | W138: =VLOOKUP($D138, foundoptions, VLOOKUP($T$6, foundoptcell, 2, FALSE)+3, FALSE) -> 0 | X138: =VLOOKUP($D138, foundoptions, VLOOKUP($T$6, foundoptcell, 2, FALSE)+4, FALSE) -> 0 | Y138: 129 | Z138: 26 | AA138: 998 | AB138: 129 | AC138: 0 | AD138: 0
A139: 00260999 | B139: 0026 | C139: 0999 | D139: 130 | E139: 26 | F139: Belmont | G139: 999 | H139: Total | I139: 59533725.07 | J139: 1 | K139: =SUM(K135:K138) -> 61875520.81 | L139: =SUM(L135:L138) -> 1 | M139: =VLOOKUP(E139,town351,24) -> 49876878 | N139: =SUM(N135:N138) -> 49876878 | O139: 47889465 | P139: =SUM(P135:P138) -> 1987413 | Q139: 4.150000423 | R139: 4521 | S139: =W139 -> 4538 | T139: 26 | U139: 999 | V139: 130 | W139: 4538 | X139: 61875520.81 | Y139: =D139 -> 130 | Z139: 26 | AA139: 999 | AB139: 130 | AC139: 4538 | AD139: 61875520.81
A140: 00270027 | B140: 0027 | C140: 0027 | D140: 131 | E140: 27 | F140: Berkley | G140: 27 | H140: Berkley | I140: 8895289.57 | J140: 0.5978388754 | K140: =X140 -> 8738336.55 | L140: =IF(K144>0, K140/K144, 0) -> 0.5919797195 | N140: =ROUND(M144*L140,0) -> 5232212 | O140: 5017565 | P140: =N140-O140 -> 214647 | Q140: 4.277911696 | R140: 682 | S140: 640 | T140: 27 | U140: 27 | V140: 131 | W140: 640 | X140: 8738336.55 | Y140: 131 | Z140: 27 | AA140: 27 | AB140: 131 | AC140: 640 | AD140: 8738336.55
A141: 00270763 | B141: 0027 | C141: 0763 | D141: 132 | E141: 27 | F141: Berkley | G141: 763 | H141: Somerset Berkley | I141: 3436437.904 | J141: 0.2309577621 | K141: 3495358.001 | L141: =IF(K144>0, K141/K144, 0) -> 0.2367934718 | N141: =ROUND(M144*L141,0) -> 2092899 | O141: 1938391 | P141: =N141-O141 -> 154508 | Q141: 7.970940847 | R141: 232 | S141: 226.5168539 | T141: 27 | U141: 763 | V141: 132 | W141: 226.5168539 | X141: 3495358.001 | Y141: 132 | Z141: 27 | AA141: 763 | AB141: 132 | AC141: 226.5168539 | AD141: 3495358.001
A142: 00270810 | B142: 0027 | C142: 0810 | D142: 133 | E142: 27 | F142: Berkley | G142: 810 | H142: Bristol Plymouth | I142: 2255481.634 | J142: 0.1515874883 | K142: 2167880.125 | L142: =IF(K144>0, K142/K144, 0) -> 0.1468633144 | N142: =ROUND(M144*L142,0) -> 1298051 | O142: 1272249 | P142: =N142-O142 -> 25802 | Q142: 2.028062117 | R142: 111.3269514 | S142: 104.3798393 | T142: 27 | U142: 810 | V142: 133 | W142: 104.3798393 | X142: 2167880.125 | Y142: 133 | Z142: 27 | AA142: 810 | AB142: 133 | AC142: 104.3798393 | AD142: 2167880.125
A143: 00270910 | B143: 0027 | C143: 0910 | D143: 134 | E143: 27 | F143: Berkley | G143: 910 | H143: Bristol County | I143: 291866.0665 | J143: 0.01961587418 | K143: 359634.6388 | L143: =IF(K144>0, K143/K144, 0) -> 0.02436349428 | N143: =ROUND(M144*L143,0) -> 215337 | O143: 164633 | P143: =N143-O143 -> 50704 | Q143: 30.79819963 | R143: 14 | S143: 17 | T143: 27 | U143: 910 | V143: 134 | W143: 17 | X143: 359634.6388 | Y143: 134 | Z143: 27 | AA143: 910 | AB143: 134 | AC143: 17 | AD143: 359634.6388
A144: 00270999 | B144: 0027 | C144: 0999 | D144: 135 | E144: 27 | F144: Berkley | G144: 999 | H144: Total | I144: 14879075.17 | J144: 1 | K144: =SUM(K140:K143) -> 14761209.32 | L144: =SUM(L140:L143) -> 1 | M144: =VLOOKUP(E144,town351,24) -> 8838498 | N144: =SUM(N140:N143) -> 8838499 | O144: 8392838 | P144: =SUM(P140:P143) -> 445661 | Q144: =IF(O144>0,P144*100/O144,IF(P144>0,100,0)) -> 5.310015516 | R144: 1039.326951 | S144: 987.8966932 | T144: 27 | U144: 999 | V144: 135 | W144: 987.8966932 | X144: 14761209.32 | Y144: 135 | Z144: 27 | AA144: 999 | AB144: 135 | AC144: 987.8966932 | AD144: 14761209.32
A145: 00280028 | B145: 0028 | C145: 0028 | D145: 136 | E145: 28 | F145: Berlin | G145: 28 | H145: Berlin | I145: 0 | J145: 0 | K145: =X145 -> 0 | L145: =IF(K149>0, K145/K149, 0) -> 0 | N145: =ROUND(M149*L145,0) -> 0 | O145: 0 | P145: =N145-O145 -> 0 | Q145: 0 | R145: 0 | S145: 0 | T145: 28 | U145: 28 | V145: 136 | W145: 0 | X145: 0 | Y145: 136 | Z145: 28 | AA145: 28 | AB145: 136 | AC145: 0 | AD145: 0
A146: 00280620 | B146: 0028 | C146: 0620 | D146: 137 | E146: 28 | F146: Berlin | G146: 620 | H146: Berlin Boylston | I146: 5315826.474 | J146: 0.8625110516 | K146: 5607166.988 | L146: =IF(K149>0, K146/K149, 0) -> 0.8416496701 | N146: =ROUND(M149*L146,0) -> 3932096 | O146: 3750867 | P146: =N146-O146 -> 181229 | Q146: 4.831656254 | R146: 415.631728 | S146: 422.001885 | T146: 28 | U146: 620 | V146: 137 | W146: 422.001885 | X146: 5607166.988 | Y146: 137 | Z146: 28 | AA146: 620 | AB146: 137 | AC146: 422.001885 | AD146: 5607166.988
A147: 00280801 | B147: 0028 | C147: 0801 | D147: 138 | E147: 28 | F147: Berlin | G147: 801 | H147: Assabet Valley | I147: 847371.6257 | J147: 0.1374889484 | K147: 1054948.126 | L147: =IF(K149>0, K147/K149, 0) -> 0.1583503299 | N147: =ROUND(M149*L147,0) -> 739795 | O147: 597909 | P147: =N147-O147 -> 141886 | Q147: 23.730367 | R147: 37 | S147: 44 | T147: 28 | U147: 801 | V147: 138 | W147: 44 | X147: 1054948.126 | Y147: 138 | Z147: 28 | AA147: 801 | AB147: 138 | AC147: 44 | AD147: 1054948.126
A148: 00280998 | B148: 0028 | C148: 0998 | D148: 139 | E148: 28 | G148: 998 | I148: 0 | J148: 0 | K148: 0 | L148: =IF(K149>0, K148/K149, 0) -> 0 | N148: =ROUND(M149*L148,0) -> 0 | O148: 0 | P148: =N148-O148 -> 0 | Q148: 0 | R148: 0 | S148: 0 | T148: 28 | U148: 998 | V148: 139 | W148: 0 | X148: 0 | Y148: 139 | Z148: 28 | AA148: 998 | AB148: 139 | AC148: 0 | AD148: 0
A149: 00280999 | B149: 0028 | C149: 0999 | D149: 140 | E149: 28 | F149: Berlin | G149: 999 | H149: Total | I149: 6163198.1 | J149: 1 | K149: =SUM(K145:K148) -> 6662115.114 | L149: =SUM(L145:L148) -> 1 | M149: =VLOOKUP(E149,town351,24) -> 4671891 | N149: =SUM(N145:N148) -> 4671891 | O149: 4348776 | P149: =SUM(P145:P148) -> 323115 | Q149: 7.430021689 | R149: 452.6317281 | S149: 466.001885 | T149: 28 | U149: 999 | V149: 140 | W149: 466.001885 | X149: 6662115.114 | Y149: 140 | Z149: 28 | AA149: 999 | AB149: 140 | AC149: 466.001885 | AD149: 6662115.114
A150: 00290029 | B150: 0029 | C150: 0029 | D150: 141 | E150: 29 | F150: Bernardston | G150: 29 | H150: Bernardston | I150: 0 | J150: 0 | K150: =X150 -> 0 | L150: =IF(K154>0, K150/K154, 0) -> 0 | N150: =ROUND(M154*L150,0) -> 0 | O150: 0 | P150: =N150-O150 -> 0 | Q150: 0 | R150: 0 | S150: 0 | T150: 29 | U150: 29 | V150: 141 | W150: 0 | X150: 0 | Y150: 141 | Z150: 29 | AA150: 29 | AB150: 141 | AC150: 0 | AD150: 0
A151: 00290750 | B151: 0029 | C151: 0750 | D151: 142 | E151: 29 | F151: Bernardston | G151: 750 | H151: Pioneer | I151: 3076751.257 | J151: 0.8243228084 | K151: 3212120.316 | L151: =IF(K154>0, K151/K154, 0) -> 0.8500030656 | N151: =ROUND(M154*L151,0) -> 1839118 | O151: 1656501 | P151: =N151-O151 -> 182617 | Q151: 11.02426138 | R151: 219.2066421 | S151: 222 | T151: 29 | U151: 750 | V151: 142 | W151: 222 | X151: 3212120.316 | Y151: 142 | Z151: 29 | AA151: 750 | AB151: 142 | AC151: 222 | AD151: 3212120.316
A152: 00290818 | B152: 0029 | C152: 0818 | D152: 143 | E152: 29 | F152: Bernardston | G152: 818 | H152: Franklin County | I152: 655707.9514 | J152: 0.1756771916 | K152: 566831.1324 | L152: =IF(K154>0, K152/K154, 0) -> 0.1499969344 | N152: =ROUND(M154*L152,0) -> 324543 | O152: 353029 | P152: =N152-O152 -> -28486 | Q152: -8.069025491 | R152: 30 | S152: 25 | T152: 29 | U152: 818 | V152: 143 | W152: 25 | X152: 566831.1324 | Y152: 143 | Z152: 29 | AA152: 818 | AB152: 143 | AC152: 25 | AD152: 566831.1324
A153: 00290998 | B153: 0029 | C153: 0998 | D153: 144 | E153: 29 | G153: 998 | I153: 0 | J153: 0 | K153: 0 | L153: =IF(K154>0, K153/K154, 0) -> 0 | N153: =ROUND(M154*L153,0) -> 0 | O153: 0 | P153: =N153-O153 -> 0 | Q153: 0 | R153: 0 | S153: 0 | T153: 29 | U153: 998 | V153: 144 | W153: 0 | X153: 0 | Y153: 144 | Z153: 29 | AA153: 998 | AB153: 144 | AC153: 0 | AD153: 0
A154: 00290999 | B154: 0029 | C154: 0999 | D154: 145 | E154: 29 | F154: Bernardston | G154: 999 | H154: Total | I154: 3732459.209 | J154: 1 | K154: =SUM(K150:K153) -> 3778951.448 | L154: =SUM(L150:L153) -> 1 | M154: =VLOOKUP(E154,town351,24) -> 2163661 | N154: =SUM(N150:N153) -> 2163661 | O154: 2009530 | P154: =SUM(P150:P153) -> 154131 | Q154: 7.670002438 | R154: 249.2066421 | S154: 247 | T154: 29 | U154: 999 | V154: 145 | W154: 247 | X154: 3778951.448 | Y154: 145 | Z154: 29 | AA154: 999 | AB154: 145 | AC154: 247 | AD154: 3778951.448
A155: 00300030 | B155: 0030 | C155: 0030 | D155: 146 | E155: 30 | F155: Beverly | G155: 30 | H155: Beverly | I155: 62707090.12 | J155: 0.9401081578 | K155: =X155 -> 64124970 | L155: =IF(K159>0, K155/K159, 0) -> 0.9368655515 | N155: =ROUND(M159*L155,0) -> 51585549 | O155: 49168020 | P155: =N155-O155 -> 2417529 | Q155: 4.916872797 | R155: 4466 | S155: 4437 | T155: 30 | U155: 30 | V155: 146 | W155: 4437 | X155: 64124970 | Y155: 146 | Z155: 30 | AA155: 30 | AB155: 146 | AC155: 4437 | AD155: 64124970
A156: 00300817 | B156: 0030 | C156: 0817 | D156: 147 | E156: 30 | F156: Beverly | G156: 817 | H156: Essex North Shore | I156: 3994905.392 | J156: 0.05989184224 | K156: 4321318.692 | L156: =IF(K159>0, K156/K159, 0) -> 0.06313444855 | N156: =ROUND(M159*L156,0) -> 3476299 | O156: 3132367 | P156: =N156-O156 -> 343932 | Q156: 10.97993945 | R156: 198 | S156: 207 | T156: 30 | U156: 817 | V156: 147 | W156: 207 | X156: 4321318.692 | Y156: 147 | Z156: 30 | AA156: 817 | AB156: 147 | AC156: 207 | AD156: 4321318.692
A157: 00300998 | B157: 0030 | C157: 0998 | D157: 148 | E157: 30 | G157: 998 | I157: 0 | J157: 0 | K157: 0 | L157: =IF(K159>0, K157/K159, 0) -> 0 | N157: =ROUND(M159*L157,0) -> 0 | O157: 0 | P157: =N157-O157 -> 0 | Q157: 0 | R157: 0 | S157: 0 | T157: 30 | U157: 998 | V157: 148 | W157: 0 | X157: 0 | Y157: 148 | Z157: 30 | AA157: 998 | AB157: 148 | AC157: 0 | AD157: 0
A158: 00300998 | B158: 0030 | C158: 0998 | D158: 149 | E158: 30 | G158: 998 | I158: 0 | J158: 0 | K158: 0 | L158: =IF(K159>0, K158/K159, 0) -> 0 | N158: =ROUND(M159*L158,0) -> 0 | O158: 0 | P158: =N158-O158 -> 0 | Q158: 0 | R158: 0 | S158: 0 | T158: 30 | U158: 998 | V158: 149 | W158: 0 | X158: 0 | Y158: 149 | Z158: 30 | AA158: 998 | AB158: 149 | AC158: 0 | AD158: 0
A159: 00300999 | B159: 0030 | C159: 0999 | D159: 150 | E159: 30 | F159: Beverly | G159: 999 | H159: Total | I159: 66701995.51 | J159: 1 | K159: =SUM(K155:K158) -> 68446288.69 | L159: =SUM(L155:L158) -> 1 | M159: =VLOOKUP(E159,town351,24) -> 55061848 | N159: =SUM(N155:N158) -> 55061848 | O159: 52300387 | P159: =SUM(P155:P158) -> 2761461 | Q159: 5.280001083 | R159: 4664 | S159: 4644 | T159: 30 | U159: 999 | V159: 150 | W159: 4644 | X159: 68446288.69 | Y159: 150 | Z159: 30 | AA159: 999 | AB159: 150 | AC159: 4644 | AD159: 68446288.69
A160: 00310031 | B160: 0031 | C160: 0031 | D160: 151 | E160: 31 | F160: Billerica | G160: 31 | H160: Billerica | I160: 65232366.11 | J160: 0.8753767706 | K160: =X160 -> 68911291.64 | L160: =IF(K164>0, K160/K164, 0) -> 0.8793562068 | N160: =ROUND(M164*L160,0) -> 55154759 | O160: 52490595 | P160: =N160-O160 -> 2664164 | Q160: 5.075507336 | R160: 4925 | S160: 4999 | T160: 31 | U160: 31 | V160: 151 | W160: 4999 | X160: 68911291.64 | Y160: 151 | Z160: 31 | AA160: 31 | AB160: 151 | AC160: 4999 | AD160: 68911291.64
A161: 00310871 | B161: 0031 | C161: 0871 | D161: 152 | E161: 31 | F161: Billerica | G161: 871 | H161: Shawsheen Valley | I161: 9286821.859 | J161: 0.1246232294 | K161: 9454325.285 | L161: =IF(K164>0, K161/K164, 0) -> 0.1206437932 | N161: =ROUND(M164*L161,0) -> 7566990 | O161: 7472836 | P161: =N161-O161 -> 94154 | Q161: 1.259950038 | R161: 470 | S161: 462 | T161: 31 | U161: 871 | V161: 152 | W161: 462 | X161: 9454325.285 | Y161: 152 | Z161: 31 | AA161: 871 | AB161: 152 | AC161: 462 | AD161: 9454325.285
A162: 00310998 | B162: 0031 | C162: 0998 | D162: 153 | E162: 31 | G162: 998 | I162: 0 | J162: 0 | K162: 0 | L162: =IF(K164>0, K162/K164, 0) -> 0 | N162: =ROUND(M164*L162,0) -> 0 | O162: 0 | P162: =N162-O162 -> 0 | Q162: 0 | R162: 0 | S162: 0 | T162: 31 | U162: 998 | V162: 153 | W162: 0 | X162: 0 | Y162: 153 | Z162: 31 | AA162: 998 | AB162: 153 | AC162: 0 | AD162: 0
A163: 00310998 | B163: 0031 | C163: 0998 | D163: 154 | E163: 31 | G163: 998 | I163: 0 | J163: 0 | K163: 0 | L163: =IF(K164>0, K163/K164, 0) -> 0 | N163: =ROUND(M164*L163,0) -> 0 | O163: 0 | P163: =N163-O163 -> 0 | Q163: 0 | R163: 0 | S163: 0 | T163: 31 | U163: 998 | V163: 154 | W163: 0 | X163: 0 | Y163: 154 | Z163: 31 | AA163: 998 | AB163: 154 | AC163: 0 | AD163: 0
A164: 00310999 | B164: 0031 | C164: 0999 | D164: 155 | E164: 31 | F164: Billerica | G164: 999 | H164: Total | I164: 74519187.97 | J164: 1 | K164: =SUM(K160:K163) -> 78365616.92 | L164: =SUM(L160:L163) -> 1 | M164: =VLOOKUP(E164,town351,24) -> 62721749 | N164: =SUM(N160:N163) -> 62721749 | O164: 59963431 | P164: =SUM(P160:P163) -> 2758318 | Q164: 4.60000029 | R164: 5395 | S164: 5461 | T164: 31 | U164: 999 | V164: 155 | W164: 5461 | X164: 78365616.92 | Y164: 155 | Z164: 31 | AA164: 999 | AB164: 155 | AC164: 5461 | AD164: 78365616.92
A165: 00320032 | B165: 0032 | C165: 0032 | D165: 156 | E165: 32 | F165: Blackstone | G165: 32 | H165: Blackstone | I165: 317959.23 | J165: 0.01769945289 | K165: =X165 -> 240365.82 | L165: =IF(K169>0, K165/K169, 0) -> 0.01231971532 | N165: =ROUND(M169*L165,0) -> 120024 | O165: 163461 | P165: =N165-O165 -> -43437 | Q165: -26.57331107 | R165: 17 | S165: 12 | T165: 32 | U165: 32 | V165: 156 | W165: 12 | X165: 240365.82 | Y165: 156 | Z165: 32 | AA165: 32 | AB165: 156 | AC165: 12 | AD165: 240365.82
A166: 00320622 | B166: 0032 | C166: 0622 | D166: 157 | E166: 32 | F166: Blackstone | G166: 622 | H166: Blackstone Millville | I166: 16561612.87 | J166: 0.9219153247 | K166: 17984892.02 | L166: =IF(K169>0, K166/K169, 0) -> 0.9217980736 | N166: =ROUND(M169*L166,0) -> 8980523 | O166: 8514234 | P166: =N166-O166 -> 466289 | Q166: 5.476581922 | R166: 1194.073665 | S166: 1212.743034 | T166: 32 | U166: 622 | V166: 157 | W166: 1212.743034 | X166: 17984892.02 | Y166: 157 | Z166: 32 | AA166: 622 | AB166: 157 | AC166: 1212.743034 | AD166: 17984892.02
A167: 00320805 | B167: 0032 | C167: 0805 | D167: 158 | E167: 32 | F167: Blackstone | G167: 805 | H167: Blackstone Valley | I167: 1084781.487 | J167: 0.06038522243 | K167: 1285405.651 | L167: =IF(K169>0, K167/K169, 0) -> 0.06588221109 | N167: =ROUND(M169*L167,0) -> 641851 | O167: 557680 | P167: =N167-O167 -> 84171 | Q167: 15.09306412 | R167: 56 | S167: 64 | T167: 32 | U167: 805 | V167: 158 | W167: 64 | X167: 1285405.651 | Y167: 158 | Z167: 32 | AA167: 805 | AB167: 158 | AC167: 64 | AD167: 1285405.651
A168: 00320998 | B168: 0032 | C168: 0998 | D168: 159 | E168: 32 | G168: 998 | I168: 0 | J168: 0 | K168: 0 | L168: =IF(K169>0, K168/K169, 0) -> 0 | N168: =ROUND(M169*L168,0) -> 0 | O168: 0 | P168: =N168-O168 -> 0 | Q168: 0 | R168: 0 | S168: 0 | T168: 32 | U168: 998 | V168: 159 | W168: 0 | X168: 0 | Y168: 159 | Z168: 32 | AA168: 998 | AB168: 159 | AC168: 0 | AD168: 0
A169: 00320999 | B169: 0032 | C169: 0999 | D169: 160 | E169: 32 | F169: Blackstone | G169: 999 | H169: Total | I169: 17964353.59 | J169: 1 | K169: =SUM(K165:K168) -> 19510663.49 | L169: =SUM(L165:L168) -> 1 | M169: =VLOOKUP(E169,town351,24) -> 9742397 | N169: =SUM(N165:N168) -> 9742398 | O169: 9235375 | P169: =SUM(P165:P168) -> 507023 | Q169: 5.49000988 | R169: 1267.073665 | S169: 1288.743034 | T169: 32 | U169: 999 | V169: 160 | W169: 1288.743034 | X169: 19510663.49 | Y169: 160 | Z169: 32 | AA169: 999 | AB169: 160 | AC169: 1288.743034 | AD169: 19510663.49
A170: 00330033 | B170: 0033 | C170: 0033 | D170: 161 | E170: 33 | F170: Blandford | G170: 33 | H170: Blandford | I170: 250517.91 | J170: 0.1464015553 | K170: =X170 -> 223011.53 | L170: =IF(K174>0, K170/K174, 0) -> 0.1303668337 | N170: =ROUND(M174*L170,0) -> 162784 | O170: 172932 | P170: =N170-O170 -> -10148 | Q170: -5.86820253 | R170: 13 | S170: 11 | T170: 33 | U170: 33 | V170: 161 | W170: 11 | X170: 223011.53 | Y170: 161 | Z170: 33 | AA170: 33 | AB170: 161 | AC170: 11 | AD170: 223011.53
A171: 00330672 | B171: 0033 | C171: 0672 | D171: 162 | E171: 33 | F171: Blandford | G171: 672 | H171: Gateway | I171: 1460651.821 | J171: 0.8535984447 | K171: 1487634.68 | L171: =IF(K174>0, K171/K174, 0) -> 0.8696331663 | N171: =ROUND(M174*L171,0) -> 1085880 | O171: 1008285 | P171: =N171-O171 -> 77595 | Q171: 7.695740788 | R171: 93.38509317 | S171: 93.49095608 | T171: 33 | U171: 672 | V171: 162 | W171: 93.49095608 | X171: 1487634.68 | Y171: 162 | Z171: 33 | AA171: 672 | AB171: 162 | AC171: 93.49095608 | AD171: 1487634.68
A172: 00330998 | B172: 0033 | C172: 0998 | D172: 163 | E172: 33 | G172: 998 | I172: 0 | J172: 0 | K172: 0 | L172: =IF(K174>0, K172/K174, 0) -> 0 | N172: =ROUND(M174*L172,0) -> 0 | O172: 0 | P172: =N172-O172 -> 0 | Q172: 0 | R172: 0 | S172: 0 | T172: 33 | U172: 998 | V172: 163 | W172: 0 | X172: 0 | Y172: 163 | Z172: 33 | AA172: 998 | AB172: 163 | AC172: 0 | AD172: 0
A173: 00330998 | B173: 0033 | C173: 0998 | D173: 164 | E173: 33 | G173: 998 | I173: 0 | J173: 0 | K173: 0 | L173: =IF(K174>0, K173/K174, 0) -> 0 | N173: =ROUND(M174*L173,0) -> 0 | O173: 0 | P173: =N173-O173 -> 0 | Q173: 0 | R173: 0 | S173: 0 | T173: 33 | U173: 998 | V173: 164 | W173: 0 | X173: 0 | Y173: 164 | Z173: 33 | AA173: 998 | AB173: 164 | AC173: 0 | AD173: 0
A174: 00330999 | B174: 0033 | C174: 0999 | D174: 165 | E174: 33 | F174: Blandford | G174: 999 | H174: Total | I174: 1711169.731 | J174: 1 | K174: =SUM(K170:K173) -> 1710646.21 | L174: =SUM(L170:L173) -> 1 | M174: =VLOOKUP(E174,town351,24) -> 1248664 | N174: =SUM(N170:N173) -> 1248664 | O174: 1181217 | P174: =SUM(P170:P173) -> 67447 | Q174: 5.709958458 | R174: 106.3850932 | S174: 104.4909561 | T174: 33 | U174: 999 | V174: 165 | W174: 104.4909561 | X174: 1710646.21 | Y174: 165 | Z174: 33 | AA174: 999 | AB174: 165 | AC174: 104.4909561 | AD174: 1710646.21
A175: 00340034 | B175: 0034 | C175: 0034 | D175: 166 | E175: 34 | F175: Bolton | G175: 34 | H175: Bolton | I175: 0 | J175: 0 | K175: =X175 -> 17898.5144 | L175: =IF(K179>0, K175/K179, 0) -> 0.001255557173 | N175: =ROUND(M179*L175,0) -> 14425 | O175: 0 | P175: =N175-O175 -> 14425 | Q175: 100 | R175: 0 | S175: 1 | T175: 34 | U175: 34 | V175: 166 | W175: 1 | X175: 17898.5144 | Y175: 166 | Z175: 34 | AA175: 34 | AB175: 166 | AC175: 1 | AD175: 17898.5144
A176: 00340725 | B176: 0034 | C176: 0725 | D176: 167 | E176: 34 | F176: Bolton | G176: 725 | H176: Nashoba | I176: 12919235.34 | J176: 0.945005687 | K176: 13413103.7 | L176: =IF(K179>0, K176/K179, 0) -> 0.9409115297 | N176: =ROUND(M179*L176,0) -> 10809995 | O176: 10432433 | P176: =N176-O176 -> 377562 | Q176: 3.61911742 | R176: 1006.288184 | S176: 1002.330902 | T176: 34 | U176: 725 | V176: 167 | W176: 1002.330902 | X176: 13413103.7 | Y176: 167 | Z176: 34 | AA176: 725 | AB176: 167 | AC176: 1002.330902 | AD176: 13413103.7
A177: 00340830 | B177: 0034 | C177: 0830 | D177: 168 | E177: 34 | F177: Bolton | G177: 830 | H177: Minuteman | I177: 751830.8957 | J177: 0.05499431299 | K177: 824433.3679 | L177: =IF(K179>0, K177/K179, 0) -> 0.05783291313 | N177: =ROUND(M179*L177,0) -> 664434 | O177: 607112 | P177: =N177-O177 -> 57322 | Q177: 9.441750451 | R177: 36 | S177: 38 | T177: 34 | U177: 830 | V177: 168 | W177: 38 | X177: 824433.3679 | Y177: 168 | Z177: 34 | AA177: 830 | AB177: 168 | AC177: 38 | AD177: 824433.3679
A178: 00340998 | B178: 0034 | C178: 0998 | D178: 169 | E178: 34 | G178: 998 | I178: 0 | J178: 0 | K178: 0 | L178: =IF(K179>0, K178/K179, 0) -> 0 | N178: =ROUND(M179*L178,0) -> 0 | O178: 0 | P178: =N178-O178 -> 0 | Q178: 0 | R178: 0 | S178: 0 | T178: 34 | U178: 998 | V178: 169 | W178: 0 | X178: 0 | Y178: 169 | Z178: 34 | AA178: 998 | AB178: 169 | AC178: 0 | AD178: 0
A179: 00340999 | B179: 0034 | C179: 0999 | D179: 170 | E179: 34 | F179: Bolton | G179: 999 | H179: Total | I179: 13671066.24 | J179: 1 | K179: =SUM(K175:K178) -> 14255435.59 | L179: =SUM(L175:L178) -> 1 | M179: =VLOOKUP(E179,town351,24) -> 11488854 | N179: =SUM(N175:N178) -> 11488854 | O179: 11039545 | P179: =SUM(P175:P178) -> 449309 | Q179: 4.069995638 | R179: 1042.288184 | S179: 1041.330902 | T179: 34 | U179: 999 | V179: 170 | W179: 1041.330902 | X179: 14255435.59 | Y179: 170 | Z179: 34 | AA179: 999 | AB179: 170 | AC179: 1041.330902 | AD179: 14255435.59
A180: 00350035 | B180: 0035 | C180: 0035 | D180: 171 | E180: 35 | F180: Boston | G180: 35 | H180: Boston | I180: 1145949554 | J180: 1 | K180: =X180 -> 1220875807 | L180: =IF(K184>0, K180/K184, 0) -> 1 | N180: =ROUND(M184*L180,0) -> 1007222540 | O180: 945408382 | P180: =N180-O180 -> 61814158 | Q180: 6.538355189 | R180: 57369 | S180: 57616 | T180: 35 | U180: 35 | V180: 171 | W180: 57616 | X180: 1220875807 | Y180: 171 | Z180: 35 | AA180: 35 | AB180: 171 | AC180: 57616 | AD180: 1220875807
A181: 00350998 | B181: 0035 | C181: 0998 | D181: 172 | E181: 35 | G181: 998 | I181: 0 | J181: 0 | K181: 0 | L181: =IF(K184>0, K181/K184, 0) -> 0 | N181: =ROUND(M184*L181,0) -> 0 | O181: 0 | P181: =N181-O181 -> 0 | Q181: 0 | R181: 0 | S181: 0 | T181: 35 | U181: 998 | V181: 172 | W181: 0 | X181: 0 | Y181: 172 | Z181: 35 | AA181: 998 | AB181: 172 | AC181: 0 | AD181: 0
A182: 00350998 | B182: 0035 | C182: 0998 | D182: 173 | E182: 35 | G182: 998 | I182: 0 | J182: 0 | K182: 0 | L182: =IF(K184>0, K182/K184, 0) -> 0 | N182: =ROUND(M184*L182,0) -> 0 | O182: 0 | P182: =N182-O182 -> 0 | Q182: 0 | R182: 0 | S182: 0 | T182: 35 | U182: 998 | V182: 173 | W182: 0 | X182: 0 | Y182: 173 | Z182: 35 | AA182: 998 | AB182: 173 | AC182: 0 | AD182: 0
A183: 00350998 | B183: 0035 | C183: 0998 | D183: 174 | E183: 35 | G183: 998 | I183: 0 | J183: 0 | K183: 0 | L183: =IF(K184>0, K183/K184, 0) -> 0 | N183: =ROUND(M184*L183,0) -> 0 | O183: 0 | P183: =N183-O183 -> 0 | Q183: 0 | R183: 0 | S183: 0 | T183: 35 | U183: 998 | V183: 174 | W183: 0 | X183: 0 | Y183: 174 | Z183: 35 | AA183: 998 | AB183: 174 | AC183: 0 | AD183: 0
A184: 00350999 | B184: 0035 | C184: 0999 | D184: 175 | E184: 35 | F184: Boston | G184: 999 | H184: Total | I184: 1145949554 | J184: 1 | K184: =SUM(K180:K183) -> 1220875807 | L184: =SUM(L180:L183) -> 1 | M184: =VLOOKUP(E184,town351,24) -> 1007222540 | N184: =SUM(N180:N183) -> 1007222540 | O184: 945408382 | P184: =SUM(P180:P183) -> 61814158 | Q184: 6.538355189 | R184: 57369 | S184: 57616 | T184: 35 | U184: 999 | V184: 175 | W184: 57616 | X184: 1220875807 | Y184: 175 | Z184: 35 | AA184: 999 | AB184: 175 | AC184: 57616 | AD184: 1220875807
A185: 00360036 | B185: 0036 | C185: 0036 | D185: 176 | E185: 36 | F185: Bourne | G185: 36 | H185: Bourne | I185: 24109451.63 | J185: 0.8507444537 | K185: =X185 -> 24040569.22 | L185: =IF(K189>0, K185/K189, 0) -> 0.8360417376 | N185: =ROUND(M189*L185,0) -> 19771933 | O185: 19319804 | P185: =N185-O185 -> 452129 | Q185: 2.340235957 | R185: 1698 | S185: 1624 | T185: 36 | U185: 36 | V185: 176 | W185: 1624 | X185: 24040569.22 | Y185: 176 | Z185: 36 | AA185: 36 | AB185: 176 | AC185: 1624 | AD185: 24040569.22
A186: 00360879 | B186: 0036 | C186: 0879 | D186: 177 | E186: 36 | F186: Bourne | G186: 879 | H186: Upper Cape Cod | I186: 4229788.813 | J186: 0.1492555463 | K186: 4714656.911 | L186: =IF(K189>0, K186/K189, 0) -> 0.1639582624 | N186: =ROUND(M189*L186,0) -> 3877524 | O186: 3389488 | P186: =N186-O186 -> 488036 | Q186: 14.39851683 | R186: 199.6998828 | S186: 214.7404844 | T186: 36 | U186: 879 | V186: 177 | W186: 214.7404844 | X186: 4714656.911 | Y186: 177 | Z186: 36 | AA186: 879 | AB186: 177 | AC186: 214.7404844 | AD186: 4714656.911
A187: 00360998 | B187: 0036 | C187: 0998 | D187: 178 | E187: 36 | G187: 998 | I187: 0 | J187: 0 | K187: 0 | L187: =IF(K189>0, K187/K189, 0) -> 0 | N187: =ROUND(M189*L187,0) -> 0 | O187: 0 | P187: =N187-O187 -> 0 | Q187: 0 | R187: 0 | S187: 0 | T187: 36 | U187: 998 | V187: 178 | W187: 0 | X187: 0 | Y187: 178 | Z187: 36 | AA187: 998 | AB187: 178 | AC187: 0 | AD187: 0
A188: 00360998 | B188: 0036 | C188: 0998 | D188: 179 | E188: 36 | G188: 998 | I188: 0 | J188: 0 | K188: 0 | L188: =IF(K189>0, K188/K189, 0) -> 0 | N188: =ROUND(M189*L188,0) -> 0 | O188: 0 | P188: =N188-O188 -> 0 | Q188: 0 | R188: 0 | S188: 0 | T188: 36 | U188: 998 | V188: 179 | W188: 0 | X188: 0 | Y188: 179 | Z188: 36 | AA188: 998 | AB188: 179 | AC188: 0 | AD188: 0
A189: 00360999 | B189: 0036 | C189: 0999 | D189: 180 | E189: 36 | F189: Bourne | G189: 999 | H189: Total | I189: 28339240.44 | J189: 1 | K189: =SUM(K185:K188) -> 28755226.13 | L189: =SUM(L185:L188) -> 1 | M189: =VLOOKUP(E189,town351,24) -> 23649457 | N189: =SUM(N185:N188) -> 23649457 | O189: 22709292 | P189: =SUM(P185:P188) -> 940165 | Q189: 4.14000137 | R189: 1897.699883 | S189: 1838.740484 | T189: 36 | U189: 999 | V189: 180 | W189: 1838.740484 | X189: 28755226.13 | Y189: 180 | Z189: 36 | AA189: 999 | AB189: 180 | AC189: 1838.740484 | AD189: 28755226.13
A190: 00370037 | B190: 0037 | C190: 0037 | D190: 181 | E190: 37 | F190: Boxborough | G190: 37 | H190: Boxborough | I190: 90908.90505 | J190: 0.007769035243 | K190: =X190 -> 74532.86936 | L190: =IF(K194>0, K190/K194, 0) -> 0.006226592813 | N190: =ROUND(M194*L190,0) -> 57871 | O190: 69316 | P190: =N190-O190 -> -11445 | Q190: -16.51133937 | R190: 5 | S190: 4 | T190: 37 | U190: 37 | V190: 181 | W190: 4 | X190: 74532.86936 | Y190: 181 | Z190: 37 | AA190: 37 | AB190: 181 | AC190: 4 | AD190: 74532.86936
A191: 00370600 | B191: 0037 | C191: 0600 | D191: 182 | E191: 37 | F191: Boxborough | G191: 600 | H191: Acton Boxborough | I191: 11610531.78 | J191: 0.9922309648 | K191: 11895556.01 | L191: =IF(K194>0, K191/K194, 0) -> 0.9937734072 | N191: =ROUND(M194*L191,0) -> 9236267 | O191: 8852771 | P191: =N191-O191 -> 383496 | Q191: 4.331931776 | R191: 877.719715 | S191: 865.7771599 | T191: 37 | U191: 600 | V191: 182 | W191: 865.7771599 | X191: 11895556.01 | Y191: 182 | Z191: 37 | AA191: 600 | AB191: 182 | AC191: 865.7771599 | AD191: 11895556.01
A192: 00370830 | B192: 0037 | C192: 0830 | D192: 183 | E192: 37 | G192: 998 | I192: 0 | J192: 0 | K192: 0 | L192: =IF(K194>0, K192/K194, 0) -> 0 | N192: =ROUND(M194*L192,0) -> 0 | O192: 0 | P192: =N192-O192 -> 0 | Q192: 0 | R192: 0 | S192: 0 | T192: 37 | U192: 998 | V192: 183 | W192: 0 | X192: 0 | Y192: 183 | Z192: 37 | AA192: 998 | AB192: 183 | AC192: 0 | AD192: 0
A193: 00370998 | B193: 0037 | C193: 0998 | D193: 184 | E193: 37 | G193: 998 | I193: 0 | J193: 0 | K193: 0 | L193: =IF(K194>0, K193/K194, 0) -> 0 | N193: =ROUND(M194*L193,0) -> 0 | O193: 0 | P193: =N193-O193 -> 0 | Q193: 0 | R193: 0 | S193: 0 | T193: 37 | U193: 998 | V193: 184 | W193: 0 | X193: 0 | Y193: 184 | Z193: 37 | AA193: 998 | AB193: 184 | AC193: 0 | AD193: 0
A194: 00370999 | B194: 0037 | C194: 0999 | D194: 185 | E194: 37 | F194: Boxborough | G194: 999 | H194: Total | I194: 11701440.68 | J194: 1 | K194: =SUM(K190:K193) -> 11970088.87 | L194: =SUM(L190:L193) -> 1 | M194: =VLOOKUP(E194,town351,24) -> 9294138 | N194: =SUM(N190:N193) -> 9294138 | O194: 8922087 | P194: =SUM(P190:P193) -> 372051 | Q194: 4.169999687 | R194: 882.719715 | S194: 869.7771599 | T194: 37 | U194: 999 | V194: 185 | W194: 869.7771599 | X194: 11970088.87 | Y194: 185 | Z194: 37 | AA194: 999 | AB194: 185 | AC194: 869.7771599 | AD194: 11970088.87
A195: 00380038 | B195: 0038 | C195: 0038 | D195: 186 | E195: 38 | F195: Boxford | G195: 38 | H195: Boxford | I195: 9024222.11 | J195: 0.5170025979 | K195: =X195 -> 9323322.947 | L195: =IF(K199>0, K195/K199, 0) -> 0.5228381401 | N195: =ROUND(M199*L195,0) -> 7499139 | O195: 7139841 | P195: =N195-O195 -> 359298 | Q195: 5.032296938 | R195: 745 | S195: 743 | T195: 38 | U195: 38 | V195: 186 | W195: 743 | X195: 9323322.947 | Y195: 186 | Z195: 38 | AA195: 38 | AB195: 186 | AC195: 743 | AD195: 9323322.947
A196: 00380705 | B196: 0038 | C196: 0705 | D196: 187 | E196: 38 | F196: Boxford | G196: 705 | H196: Masconomet | I196: 7926258.002 | J196: 0.4540996364 | K196: 7799035.309 | L196: =IF(K199>0, K196/K199, 0) -> 0.4373583472 | N196: =ROUND(M199*L196,0) -> 6273091 | O196: 6271147 | P196: =N196-O196 -> 1944 | Q196: 0.03099911388 | R196: 594.1309599 | S196: 567.8766578 | T196: 38 | U196: 705 | V196: 187 | W196: 567.8766578 | X196: 7799035.309 | Y196: 187 | Z196: 38 | AA196: 705 | AB196: 187 | AC196: 567.8766578 | AD196: 7799035.309
A197: 00380817 | B197: 0038 | C197: 0817 | D197: 188 | E197: 38 | F197: Boxford | G197: 817 | H197: Essex North Shore | I197: 504407.2465 | J197: 0.02889776577 | K197: 709781.814 | L197: =IF(K199>0, K197/K199, 0) -> 0.03980351271 | N197: =ROUND(M199*L197,0) -> 570907 | O197: 399080 | P197: =N197-O197 -> 171827 | Q197: 43.05577829 | R197: 25 | S197: 33.99999999 | T197: 38 | U197: 817 | V197: 188 | W197: 33.99999999 | X197: 709781.814 | Y197: 188 | Z197: 38 | AA197: 817 | AB197: 188 | AC197: 33.99999999 | AD197: 709781.814
A198: 00380998 | B198: 0038 | C198: 0998 | D198: 189 | E198: 38 | G198: 998 | I198: 0 | J198: 0 | K198: 0 | L198: =IF(K199>0, K198/K199, 0) -> 0 | N198: =ROUND(M199*L198,0) -> 0 | O198: 0 | P198: =N198-O198 -> 0 | Q198: 0 | R198: 0 | S198: 0 | T198: 38 | U198: 998 | V198: 189 | W198: 0 | X198: 0 | Y198: 189 | Z198: 38 | AA198: 998 | AB198: 189 | AC198: 0 | AD198: 0
A199: 00380999 | B199: 0038 | C199: 0999 | D199: 190 | E199: 38 | F199: Boxford | G199: 999 | H199: Total | I199: 17454887.36 | J199: 1 | K199: =SUM(K195:K198) -> 17832140.07 | L199: =SUM(L195:L198) -> 1 | M199: =VLOOKUP(E199,town351,24) -> 14343137 | N199: =SUM(N195:N198) -> 14343137 | O199: 13810068 | P199: =SUM(P195:P198) -> 533069 | Q199: 3.860002717 | R199: 1364.13096 | S199: 1344.876658 | T199: 38 | U199: 999 | V199: 190 | W199: 1344.876658 | X199: 17832140.07 | Y199: 190 | Z199: 38 | AA199: 999 | AB199: 190 | AC199: 1344.876658 | AD199: 17832140.07
A200: 00390039 | B200: 0039 | C200: 0039 | D200: 191 | E200: 39 | F200: Boylston | G200: 39 | H200: Boylston | I200: 267378.24 | J200: 0.03175830373 | K200: =X200 -> 156188.61 | L200: =IF(K204>0, K200/K204, 0) -> 0.01820345373 | N200: =ROUND(M204*L200,0) -> 128856 | O200: 220587 | P200: =N200-O200 -> -91731 | Q200: -41.58495288 | R200: 14 | S200: 9 | T200: 39 | U200: 39 | V200: 191 | W200: 9 | X200: 156188.61 | Y200: 191 | Z200: 39 | AA200: 39 | AB200: 191 | AC200: 9 | AD200: 156188.61
... 1565 more rows

Sheet MoreAboutData
B1: =CYr&" Chapter 70 and Net School Spending Formula" -> FY26 Chapter 70 and Net School Spending Formula | C1: FY18 Chapter 70 and Net School Spending Formula Spreadsheet | D1: FY18 Chapter 70 and Net School Spending Formula Spreadsheet | E1: FY18 Chapter 70 and Net School Spending Formula Spreadsheet | F1: FY18 Chapter 70 and Net School Spending Formula Spreadsheet | G1: Return to Index
B2: More about the data
A3: TABLE OF CONTENTS
A4: Index | E4: Back to the top
A5: Select the district you're interested in from the dropdown list on this sheet.
A6: Foundation Budget | E6: Back to the top
A7: This report displays the foundation enrollment and foundation budget for a single district. A district’s foundation budget is updated each year and it is derived by multiplying the number of pupils in thirteen enrollment categories by cost rates in eleven functional areas.
A9: Key Terms
A10: Foundation Enrollment: A count of the students for whom a school district is financially responsible on October 1st of any given year. Inflation: Foundation budget rates are adjusted each year by a statutorily defined inflationary factor. It affects all districts in the same way. Wage Adjustment Factor (WAF): Gives a district credit for having higher school costs if it is located in a geographic area where average wages are higher than in other areas of the state. Calculated using the latest available average wage data supplied by the state’s Executive Office of Labor and Workforce Development (EOLWD). Low-Income Group: Determined based on the relative concentration of low-income students served in the district. Corresponds to a foundation budget rate for low-income students.
A11: Municipal Contribution | E11: Back to the top
A12: This report displays the required local contribution for a single municipality. Each municipality has a target local share of its foundation budget, based on local ability to pay. The required local contribution for each municipality is based on the previous year's required contribution, and includes some transition factors so that the shift toward the target levels occurs over a period of several years.
A14: Key Terms
A15: Equalized Valuation (EQV): Calculated by DOR every two years. Full and fair cash value of all taxable property for each municipality. Income: Derived annually by DOR from state income tax returns. Includes all forms of wage, pension, interest, business, investment, and capital gains income. Combined Effort Yield (CEY): Sum of property and income effort. Based on DESE-calculated property and income percentages, which, when applied to all municipalities in the Commonwealth, yields 59% of statewide foundation coming from local revenue. Target Local Contribution/Share: Calculated for each municipality as an equitable share of its foundation budget based on property wealth and income. Municipal Revenue Growth Factor (MRGF): Calculated each year by DOR and quantifies the most recent annual percentage change in each community's local revenues (such as the annual increase in the Proposition 2½ levy limit) that should be available for schools.
A16: Regional Allocation | E16: Back to the top
A17: This report displays the allocation of a municipality's required local contribution across the districts to which it belongs. The municipality's required contribution is allocated in direct proportion to the district's share of the municipality's foundation budget.
A18: Summary | E18: Back to the top
A19: This report displays the Chapter 70 aid calculation for a single district. The aid calculation begins with each district's prior year Chapter 70 amount. The difference between each district's foundation budget and its required contribution equals foundation aid. On the right-hand side, there is a comparison to the prior year.
A20: Key Terms
A21: Foundation Aid: The amount of aid needed by a district to reach its foundation budget, after factoring in this year's required local contribution. Foundation budget - Required Local Contribution = Foundation Aid Minimum Aid: A guaranteed per pupil aid increase over the prior year. Required Net School Spending (NSS): The sum of this year's required local contribution and Chapter 70 aid. A district must spend this amount to be in compliance.
A22: Regional District Members | E22: Back to the top
A23: This report displays relevant data for municipal members of a single regional district.
A24: Key Terms
A25: Foundation Enrollment: Foundation enrollment for the selected district, in total and by member. Required Minimum Contribution: Total required minimum contribution for the selected district, in total and by member.
A26: ="Comparison to "&PYr -> Comparison to FY25 | E26: Back to the top
A27: This report displays prior year and current year foundation enrollment, foundation budget, required local contribution and Chapter 70 aid for all operating districts.
A29: Rates | E29: Back to the top
A30: ="This sheet displays the "&CYr&" foundation budget rates." -> This sheet displays the FY26 foundation budget rates.
A31: Townwide Contributions | E31: Back to the top
A32: ="This sheet calculates the "&CYr&" required local contribution for each municipality" -> This sheet calculates the FY26 required local contribution for each municipality
A33: Aid436 | E33: Back to the top
A34: ="This sheet calculates the "&CYr&" Chapter 70 aid for each district." -> This sheet calculates the FY26 Chapter 70 aid for each district.

Sheet Foundation Budget
A1: Return to Index | U1: More about the data
A2: Massachusetts Department of Elementary and Secondary Education
A3: Office of School Finance
A4: =parameters!B1&" Chapter 70 Foundation Budget" -> FY26 Chapter 70 Foundation Budget
A5: =lea -> 999 | B5: =IF(lea=999,"State total cannot be computed on this page; Please enter an lea code on the index sheet",VLOOKUP(A5,dist915,2)) -> State total cannot be computed on this page; Please enter an lea code on the index sheet | H5: 6 | I5: 8 | K5: 9 | L5: 10 | M5: 11 | N5: 12 | O5: 13 | P5: 14
C6: Base Foundation Components | K6: Incremental Costs Above the Base
C7: 1 | D7: 2 | E7: 3 | F7: 4 | G7: 5 | H7: 6 | I7: 7 | K7: 8 | L7: 9 | M7: 10 | N7: 11 | O7: 12 | P7: 13 | Q7: 14
D8: ------ Kindergarten ------ | G8: Junior/ | H8: High | K8: Special Ed | L8: Special Ed | M8: English learners | N8: English learners | O8: English learners
C9: Pre-school | D9: Half-Day | E9: Full-Day | F9: Elementary | G9: Middle | H9: School | I9: Vocational | K9: In-District | L9: Tuitioned-Out | M9: PK-5 | N9: 6-8 | O9: High School/Voc | P9: Low income | Q9: TOTAL
B10: Foundation Enrollment | C10: =IF($A$5<>999,VLOOKUP(lea,dist915,VALUE(C$7)+2),0) -> 0 | D10: 0 | E10: 0 | F10: 0 | G10: 0 | H10: 0 | I10: =IF($A$5<>999,VLOOKUP(lea,dist915,VALUE(I$7)+2),0) -> 0 | K10: =IF($A$5<>999,VLOOKUP(lea,dist915,VALUE(K$7)+2),0) -> 0 | L10: 0 | M10: 0 | N10: 0 | O10: 0 | P10: 0 | Q10: 0
A12: 1 | B12: Administration | C12: =(VLOOKUP(VALUE(C$7),newrates,$A12+2)*C$10*waf) -> 0 | D12: =(VLOOKUP(VALUE(D$7),newrates,$A12+2)*D$10*waf) -> 0 | E12: 0 | F12: 0 | G12: 0 | H12: 0 | I12: 0 | K12: =(VLOOKUP(VALUE(K$7),newrates,$A12+2)*K$10*waf) -> 0 | L12: 0 | M12: 0 | N12: 0 | O12: 0 | P12: =IF(C29=0,0,(VLOOKUP(VALUE(P$7)+$C$29-1, newrates, $A12+2, FALSE))*P$10*waf) -> 0 | Q12: =SUM(C12:P12) -> 0
A13: 2 | B13: Instructional Leadership | C13: 0 | D13: 0 | E13: 0 | F13: 0 | G13: 0 | H13: 0 | I13: 0 | K13: 0 | L13: 0 | M13: 0 | N13: 0 | O13: 0 | P13: =IF(C29=0,0,(VLOOKUP(VALUE(P$7)+$C$29-1, newrates, $A13+2, FALSE))*P$10*waf) -> 0 | Q13: 0
A14: 3 | B14: Classroom & Specialist Teachers | C14: 0 | D14: 0 | E14: 0 | F14: 0 | G14: 0 | H14: 0 | I14: 0 | K14: 0 | L14: 0 | M14: 0 | N14: 0 | O14: 0 | P14: =IF(C29=0,0,(VLOOKUP(VALUE(P$7)+$C$29-1, newrates, $A14+2, FALSE))*P$10*waf) -> 0 | Q14: 0
A15: 4 | B15: Other Teaching Services | C15: 0 | D15: 0 | E15: 0 | F15: 0 | G15: 0 | H15: 0 | I15: 0 | K15: 0 | L15: 0 | M15: 0 | N15: 0 | O15: 0 | P15: =IF(C29=0,0,(VLOOKUP(VALUE(P$7)+$C$29-1, newrates, $A15+2, FALSE))*P$10*waf) -> 0 | Q15: 0
A16: 5 | B16: Professional Development | C16: 0 | D16: 0 | E16: 0 | F16: 0 | G16: 0 | H16: 0 | I16: 0 | K16: 0 | L16: 0 | M16: 0 | N16: 0 | O16: 0 | P16: =IF(C29=0,0,(VLOOKUP(VALUE(P$7)+$C$29-1, newrates, $A16+2, FALSE))*P$10*waf) -> 0 | Q16: 0
A17: 6 | B17: Instructional Materials, Equipment & Technology* | C17: =(VLOOKUP(VALUE(C$7),newrates,$A17+2)*C$10) -> 0 | D17: 0 | E17: 0 | F17: 0 | G17: 0 | H17: 0 | I17: 0 | K17: =(VLOOKUP(VALUE(K$7),newrates,$A17+2)*K$10) -> 0 | L17: =(VLOOKUP(VALUE(L$7),newrates,$A17+2)*L$10) -> 0 | M17: =(VLOOKUP(VALUE(M$7),newrates,$A17+2)*M$10) -> 0 | N17: =(VLOOKUP(VALUE(N$7),newrates,$A17+2)*N$10) -> 0 | O17: =(VLOOKUP(VALUE(O$7),newrates,$A17+2)*O$10) -> 0 | P17: =IF(C29=0,0,(VLOOKUP(VALUE(P$7)+$C$29-1, newrates, $A17+2, FALSE))*P$10) -> 0 | Q17: 0
A18: 7 | B18: Guidance & Psychological Services | C18: =(VLOOKUP(VALUE(C$7),newrates,$A18+2)*C$10*waf) -> 0 | D18: 0 | E18: 0 | F18: 0 | G18: 0 | H18: 0 | I18: 0 | K18: =(VLOOKUP(VALUE(K$7),newrates,$A18+2)*K$10*waf) -> 0 | L18: 0 | M18: 0 | N18: 0 | O18: 0 | P18: =IF(C29=0,0,(VLOOKUP(VALUE(P$7)+$C$29-1, newrates, $A18+2, FALSE))*P$10*waf) -> 0 | Q18: 0
A19: 8 | B19: Pupil Services | C19: 0 | D19: 0 | E19: 0 | F19: 0 | G19: 0 | H19: 0 | I19: 0 | K19: 0 | L19: 0 | M19: 0 | N19: 0 | O19: 0 | P19: =IF(C29=0,0,(VLOOKUP(VALUE(P$7)+$C$29-1, newrates, $A19+2, FALSE))*P$10*waf) -> 0 | Q19: 0
A20: 9 | B20: Operations & Maintenance | C20: 0 | D20: 0 | E20: 0 | F20: 0 | G20: 0 | H20: 0 | I20: 0 | K20: 0 | L20: 0 | M20: 0 | N20: 0 | O20: 0 | P20: =IF(C29=0,0,(VLOOKUP(VALUE(P$7)+$C$29-1, newrates, $A20+2, FALSE))*P$10*waf) -> 0 | Q20: 0
A21: 10 | B21: Employee Benefits/Fixed Charges* | C21: =(VLOOKUP(VALUE(C$7),newrates,$A21+2)*C$10) -> 0 | D21: 0 | E21: 0 | F21: 0 | G21: 0 | H21: 0 | I21: 0 | K21: =(VLOOKUP(VALUE(K$7),newrates,$A21+2)*K$10) -> 0 | L21: =(VLOOKUP(VALUE(L$7),newrates,$A21+2)*L$10) -> 0 | M21: =(VLOOKUP(VALUE(M$7),newrates,$A21+2)*M$10) -> 0 | N21: =(VLOOKUP(VALUE(N$7),newrates,$A21+2)*N$10) -> 0 | O21: =(VLOOKUP(VALUE(O$7),newrates,$A21+2)*O$10) -> 0 | P21: =IF(C29=0,0,(VLOOKUP(VALUE(P$7)+$C$29-1, newrates, $A21+2, FALSE))*P$10) -> 0 | Q21: 0
A22: 11 | B22: Special Education Tuition* | C22: 0 | D22: 0 | E22: 0 | F22: 0 | G22: 0 | H22: 0 | I22: 0 | K22: =(VLOOKUP(VALUE(K$7)-2,newrates,$A22+2)*K$10) -> 0 | L22: =(VLOOKUP(VALUE(L$7),newrates,$A22+2)*L$10) -> 0 | M22: =(VLOOKUP(VALUE(M$7),newrates,$A22+2)*M$10) -> 0 | N22: =(VLOOKUP(VALUE(N$7),newrates,$A22+2)*N$10) -> 0 | O22: =(VLOOKUP(VALUE(O$7)-2,newrates,$A22+2)*O$10) -> 0 | P22: =IF(C29=0,0,(VLOOKUP(VALUE(P$7)+$C$29-1, newrates, $A22+2, FALSE))*P$10) -> 0 | Q22: 0
A24: 12 | B24: Total | C24: =SUM(C12:C22) -> 0 | D24: =SUM(D12:D22) -> 0 | E24: =SUM(E12:E22) -> 0 | F24: 0 | G24: 0 | H24: 0 | I24: =SUM(I12:I22) -> 0 | K24: 0 | L24: 0 | M24: 0 | N24: 0 | O24: 0 | P24: 0 | Q24: =SUM(Q12:Q23) -> 0
A26: 13 | B26: Wage Adjustment Factor | C26: =VLOOKUP(lea,dist915,17) -> 0 | N26: Foundation Budget per Pupil | Q26: =IFERROR(IF(A5<>999,Q24/Q10," "),"") -> 
B27: *The wage adjustment factor is applied to underlying rates in all functions except instructional equipment, benefits and special education tuition.
A28: 14 | B28: Low-income percentage | C28: =VLOOKUP(lea,dist915,19) -> 0 | L28: English learner foundation budget as % total foundation budget | Q28: =IFERROR(IF(A5=999,"",SUM(M24:O24)/Q24),"") -> 
A29: 15 | B29: Low-income group | C29: =VLOOKUP(lea,dist915,18) -> 0 | L29: Low-income foundation budget as % total foundation budget | Q29: =IFERROR(IF(A5=999,"",P24/Q24),"") -> 
B32: Total foundation enrollment (column 14) does not include incremental costs above the base. The pupils are already counted in columns 1 to 7. | K32: Low-income group | L32: Low-income %
B33: Total foundation enrollment assigns pupils in pre-kindergarten and half-time kindergarten an enrollment count of .5. | K33: Group 1 | L33: 0-5.99%
B34: Special education in-district enrollment is an assumed percentage, representing 3.97 percent of K-12 non-vocational enrollment and | K34: Group 2 | L34: 6-11.99%
B35: 4.97 percent of vocational enrollment. | K35: Group 3 | L35: 12-17.99%
B36: Special education tuitioned-out enrollment is also an assumed percentage, representing 1 percent of non-vocational K-12 enrollment. | K36: Group 4 | L36: 18-23.99%
B37: Low-income enrollment is based on: (1) participation in Supplemental Nutrition Assistance Program (SNAP), | K37: Group 5 | L37: 24-29.99%
B38: the Transitional Assistance for Families with Dependent Children (TAFDC), MassHealth (Medicaid), or foster care; | K38: Group 6 | L38: 30-35.99%
B39: (2) homeless designation through the McKinney-Vento Homeless Education Assistance program; | K39: Group 7 | L39: 36-41.99%
B40: or (3) verification as low income through a supplemental data collection process. | K40: Group 8 | L40: 42-47.99%
B41: Low-income and English learner foundation budget increments are based on the number of students attending school in the district | K41: Group 9 | L41: 48-53.99%
B42: or district residents who attend charter schools. | K42: Group 10 | L42: 54-69.99%
B43: The low-income percentage is the ratio of the low-income enrollment to: | K43: Group 11 | L43: 70-79.99%
B44: the total students attending school in the district and the total resident students attending charter schools. | K44: Group 12 | L44: 80%+
B46: Each component of the foundation budget represents the enrollment in row 10 multiplied by the appropriate statewide foundation allotment.
B47: The foundation budget shown on this page may differ from the final number used in the formula, due to rounding error.
B50: Return to Index

Sheet Municipal Contribution
M1: =IF(VLOOKUP(A6,town351,18)>0,"lo","hi") -> hi
A2: Return to Index | G2: More about the data
A3: Massachusetts Department of Elementary and Secondary Education
A4: Office of School Finance
A5: =parameters!B1&" Chapter 70 Determination of City and Town Total Required Contribution" -> FY26 Chapter 70 Determination of City and Town Total Required Contribution
A6: =lea -> 999 | B6: =IF(lea>351, "This lea code does not refer to a city or a town - this table shows municipal data only",VLOOKUP(A6,aidcalc,2)) -> This lea code does not refer to a city or a town - this table shows municipal data only
A8: Effort Goal | E8: =parameters!B1&" Increments Toward Goal" -> FY26 Increments Toward Goal
A10: 1) | B10: 2024 equalized valuation | C10: =IF(A6<352,VLOOKUP($A$6,town351,3)," ") ->  | E10: 13) | F10: =PYr&" required local contribution" -> FY25 required local contribution | G10: =IF(A6<352,VLOOKUP($A$6,town351,14)," ") -> 
A11: 2) | B11: Uniform property percentage | C11: =IF(A6<352,'Townwide Contributions'!D5," ") ->  | E11: 14) | F11: Municipal revenue growth factor (DOR) | G11: =IF(A$6<352,VLOOKUP($A$6,town351,15)," ") -> 
A12: 3) | B12: Local effort from property wealth | C12: =IF(A6<352,VLOOKUP($A$6,town351,4)," ") ->  | E12: 15) | F12: =parameters!B1&" preliminary contribution (13 raised by 14)" -> FY26 preliminary contribution (13 raised by 14) | G12: =IF(A$6<352,VLOOKUP($A$6,town351,16)," ") -> 
E13: 16) | F13: Preliminary contribution pct of foundation (15 / 8) | G13: =IF(A$6<352,VLOOKUP($A$6,town351,17)/100," ") -> 
A14: 4) | B14: 2022 income | C14: =IF(A6<352,VLOOKUP($A$6,town351,5)," ") -> 
A15: 5) | B15: Uniform income percentage | C15: =IF(A6<352,'Townwide Contributions'!F5," ") ->  | E15: If preliminary contribution is above the target share:
A16: 6) | B16: Local effort from income | C16: =IF(A6<352,VLOOKUP($A$6,town351,6)," ") ->  | E16: 17) | F16: Excess local effort (15 - 10) | G16: =IF(AND(A$6<352,M$1="hi"),VLOOKUP($A$6,town351,21)," ") -> 
E17: 18) | F17: =parameters!$C$50&" reduction toward target (17 x "&parameters!$C$50&")" -> 100% reduction toward target (17 x 100%) | G17: =IF(AND(A$6<352,M$1="hi"),VLOOKUP($A$6,town351,22)," ") -> 
A18: 7) | B18: Combined effort yield (3 + 6) | C18: =IF(A6<352,VLOOKUP($A$6,town351,7)," ") ->  | E18: 19) | F18: =parameters!B1&" required local contribution (15 - 18), capped at 90% of foundation" -> FY26 required local contribution (15 - 18), capped at 90% of foundation | G18: =IF(AND(A$6<352,M$1="hi"),VLOOKUP($A$6,town351,24)," ") -> 
E19: 20) | F19: Contribution as percentage of foundation (19 / 8) | G19: =IF(AND(A$6<352,M$1="hi"),VLOOKUP($A$6,town351,25)/100," ") -> 
A20: 8) | B20: =parameters!B1&" Foundation budget" -> FY26 Foundation budget | C20: =IF(A6<352,VLOOKUP($A$6,town351,8)," ") -> 
A21: 9) | B21: Maximum local contribution (82.5% * 8) | C21: =IF(A6<352,VLOOKUP($A$6,town351,10)," ") ->  | E21: If preliminary contribution is below the target share:
E22: 21) | F22: Shortfall from target local share (10 - 15) | G22: =IF(AND(A$6<352,M1="lo"),-1*VLOOKUP($A$6,town351,27)," ") -> 
A23: 10) | B23: Target local contribution (lesser of 7 or 9) | C23: =IF(A6<352,VLOOKUP($A$6,town351,11)," ") ->  | E23: 22) | F23: Shortfall percentage (11 - 16) | G23: =IF(AND(A$6<352,M1="lo"),VLOOKUP($A$6,town351,18)/100," ") -> 
E24: 23) | F24: Added increment toward target (13 x 1% or 2%)* | G24: =IF(AND(A$6<352,M1="lo"),VLOOKUP($A$6,town351,20)," ") -> 
A25: 11) | B25: Target local share (10 as % of 8) | C25: =IF(A6<352,VLOOKUP(lea,town351,12)/100," ") ->  | F25: *1% if shortfall is between 2.5% and 7.5%; 2% if shortfall > 7.5%
A26: 12) | B26: Target aid share (100% minus 11) | C26: =IF(A6<352,VLOOKUP(lea,aidcalc,13)/100," ") ->  | E26: 24) | F26: Special increment toward 82.5% target** | G26: =IF(AND(A$6<352,M1="lo"),VLOOKUP($A$6,town351,23)," ") -> 
F27: **if combined effort yield > 175% foundation
F28: Combined effort yield as % of foundation | G28: =IF(AND(A$6<352,M1="lo"),IF(VLOOKUP($A$6,town351,9)>175%,VLOOKUP($A$6,town351,9)," "),"") -> 
B29: See a listing of all 351 communities | E29: 25) | F29: Shortfall from target after adding increments (10 - 15 - 23 - 24) | G29: =IF(AND(A$6<352,M1="lo"),-1*VLOOKUP($A$6,town351,28)," ") -> 
E30: 26) | F30: =parameters!B1&" required local contribution (15 + 23 + 24)" -> FY26 required local contribution (15 + 23 + 24) | G30: =IF(AND(A$6<352,M1="lo"),VLOOKUP($A$6,town351,24)," ") -> 
E31: 27) | F31: Contribution as percentage of foundation (26 / 8) | G31: =IF(AND(A$6<352,M1="lo"),VLOOKUP($A$6,town351,25)/100," ") -> 

Sheet Regional Allocation
J1: More about the data
D2: Return to Index
D3: Massachusetts Department of Elementary and Secondary Education
D4: Office of School Finance
D5: =CYr& " Chapter 70 Apportionment of Local Contribution Across School Districts" -> FY26 Chapter 70 Apportionment of Local Contribution Across School Districts
E7: 4 | F7: 4 | G7: 3 | H7: 2 | I7: 1
A9: 5 | D9: =lea -> 999 | E9: =IF($D$9>351, "", IF(AND($D$9>0, VLOOKUP($D$9*5-E$7, order1755, $A9)<>0), VLOOKUP($D$9*5-E$7, order1755, $A9), "")) ->  | F9: =IF(OR($D$9="", $D$9>351), "", IF(AND($D$9>0, VLOOKUP($D$9*5-F$7, order1755, $A9)<>0), VLOOKUP($D$9*5-F$7, order1755, $A9), "")) ->  | G9: =IF(OR($D$9="", $D$9>351), "", IF(AND($D$9>0, VLOOKUP($D$9*5-G$7, order1755, $A9)<>0), VLOOKUP($D$9*5-G$7, order1755, $A9), "")) ->  | H9: =IF(OR($D$9="", $D$9>351), "", IF(AND($D$9>0, VLOOKUP($D$9*5-H$7, order1755, $A9)<>0), VLOOKUP($D$9*5-H$7, order1755, $A9), "")) ->  | I9: =IF(OR($D$9="", $D$9>351), "", IF(AND($D$9>0, VLOOKUP($D$9*5-I$7, order1755, $A9)<>0), VLOOKUP($D$9*5-I$7, order1755, $A9), "")) ->  | J9: Combined Total for All Districts
A10: 6
E11: Prior Year Data (for comparison purposes)
A13: 15 | D13: 1 | E13: =parameters!B2&" foundation enrollment" -> FY25 foundation enrollment | F13: =IF(OR($D$9="", $D$9>351), "", IF(AND($D$9>0, VLOOKUP($D$9*5-F$7, order1755, $A13)<>0), VLOOKUP($D$9*5-F$7, order1755, $A13), "")) ->  | J13: =IF(OR($D$9="", $D$9>351), "", VLOOKUP($D$9*5, order1755, $A13)) -> 
A14: 6 | D14: 2 | E14: =parameters!B2&" foundation budget" -> FY25 foundation budget | J14: =IF(OR($D$9="", $D$9>351), "", VLOOKUP($D$9*5, order1755, $A14)) -> 
A15: 7 | D15: 3 | E15: ="Each district's share of municipality's combined "& parameters!B2&" foundation" -> Each district's share of municipality's combined FY25 foundation | J15: =IF(OR($D$9="", $D$9>351), "", VLOOKUP($D$9*5, order1755, $A15)) -> 
A16: 12 | D16: 4 | E16: =parameters!B2&" required contribution" -> FY25 required contribution | J16: =IF(OR($D$9="", $D$9>351), "", VLOOKUP($D$9*5, order1755, $A16)) -> 
E17: =parameters!B1& " apportionment of contribution among community's districts" -> FY26 apportionment of contribution among community's districts
D18: 5 | E18: =parameters!B1&" total unapportioned required contribution ('municipal contribution' tab row 19 or 25)" -> FY26 total unapportioned required contribution ('municipal contribution' tab row 19 or 25) | J18: =IF(OR($D$9="", $D$9>351), "", VLOOKUP($D$9,town351,24)) -> 
A19: 20 | D19: 6 | E19: =parameters!B1&" foundation enrollment" -> FY26 foundation enrollment | F19: =IF(OR($D$9="", $D$9>351), "", IF(AND($D$9>0, VLOOKUP($D$9*5-F$7, order1755, $A19)<>0), VLOOKUP($D$9*5-F$7, order1755, $A19), "")) ->  | J19: =IF(OR($D$9="", $D$9>351), "", VLOOKUP($D$9*5, order1755, $A19)) -> 
A20: 8 | D20: 7 | E20: =parameters!B1&" foundation budget" -> FY26 foundation budget | J20: =IF(OR($D$9="", $D$9>351), "", VLOOKUP($D$9*5, order1755, $A20)) -> 
A21: 9 | D21: 8 | E21: ="Each district's share of municipality's total "& parameters!B1&" foundation " -> Each district's share of municipality's total FY26 foundation | J21: =IF(OR($D$9="", $D$9>351), "", VLOOKUP($D$9*5, order1755, $A21)) -> 
A22: 11 | D22: 9 | E22: =parameters!B1&" Required Contribution" -> FY26 Required Contribution | J22: =VLOOKUP($D$9*5, order1755, $A22) -> 8377124261
A24: 13 | D24: 10 | E24: ="Change "&parameters!B1&" to "&parameters!B2& " (9 - 4)" -> Change FY26 to FY25 (9 - 4) | F24: =IF(OR($D$9="", $D$9>351), "", IF(AND($D$9>0, VLOOKUP($D$9*5-F$7, order1755, $A24)<>0), VLOOKUP($D$9*5-F$7, order1755, $A24), "")) ->  | G24: =IF(OR($D$9="", $D$9>351), "", IF(AND($D$9>0, VLOOKUP($D$9*5-G$7, order1755, $A24)<>0), VLOOKUP($D$9*5-G$7, order1755, $A24), "")) ->  | H24: =IF(OR($D$9="", $D$9>351), "", IF(AND($D$9>0, VLOOKUP($D$9*5-H$7, order1755, $A24)<>0), VLOOKUP($D$9*5-H$7, order1755, $A24), "")) ->  | I24: =IF(OR($D$9="", $D$9>351), "", IF(AND($D$9>0, VLOOKUP($D$9*5-I$7, order1755, $A24)<>0), VLOOKUP($D$9*5-I$7, order1755, $A24), "")) ->  | J24: =IF(OR($D$9="", $D$9>351), "", VLOOKUP($D$9*5, order1755, $A24)) -> 
E26: The combined totals on lines 5 and 9 may differ due to rounding.

Sheet Summary
B1: Return to Index | K1: More about the data
B3: Massachusetts Department of Elementary and Secondary Education
B4: =parameters!B1&" Chapter 70 Summary" -> FY26 Chapter 70 Summary
B6: =lea -> 999 | C6: =PROPER(VLOOKUP(B6,dist915,2)) -> State Total
B8: ="Aid Calculation "&CYr -> Aid Calculation FY26 | F8: ="Comparison to "&PYr -> Comparison to FY25
G10: =PYr -> FY25 | H10: =CYr -> FY26 | I10: Change | J10: Pct Chg | V10: FY06 | W10: FY07 | X10: FY08 | Y10: FY09 | Z10: FY10 | AA10: FY11 | AB10: FY12 | AC10: FY13 | AD10: FY14 | AE10: FY15 | AF10: FY16 | AG10: FY17 | AH10: FY18 | AI10: FY19 | AJ10: FY20 | AK10: FY21 | AL10: FY22 | AM10: FY23 | AN10: FY24 | AO10: FY25 | AP10: FY26
B11: Prior Year Aid | F11: Enrollment | G11: =VLOOKUP(B6,aidcalc,14) -> 905572 | H11: =VLOOKUP(B6,aidcalc,15) -> 905254 | I11: =H11-G11 -> -318 | J11: =IF(G11>0, I11/G11, 0) -> -0.0003511592673 | U11: Required District Contribution | V11: =VLOOKUP($B$6,disthist,5) -> 4743946672 | W11: =VLOOKUP($B$6,disthist,8) -> 4876428772 | X11: =VLOOKUP($B$6,disthist,11) -> 4997705374 | Y11: =VLOOKUP($B$6,disthist,14) -> 5110365426 | Z11: =VLOOKUP($B$6,disthist,18) -> 5250106061 | AA11: =VLOOKUP($B$6,disthist,22) -> 5302200670 | AB11: =VLOOKUP($B$6,disthist,27) -> 5413602268 | AC11: =VLOOKUP($B$6,disthist,30) -> 5582113529 | AD11: =VLOOKUP($B$6,disthist, 33) -> 5748475145 | AE11: =VLOOKUP($B$6,disthist, 36) -> 5817618237 | AF11: =VLOOKUP($B$6,disthist, 39) -> 5943909029 | AG11: =VLOOKUP($B$6,disthist, 42) -> 5926185567 | AH11: =VLOOKUP($B$6,disthist, 45) -> 6046916786 | AI11: =VLOOKUP($B$6,disthist, 48) -> 6246842886 | AJ11: =VLOOKUP($B$6,disthist, 51) -> 6513607368 | AK11: =VLOOKUP($B$6,disthist, 54) -> 6705321561 | AL11: =VLOOKUP($B$6,disthist, 57) -> 6827673657 | AM11: =VLOOKUP($B$6,disthist, 60) -> 7166744291 | AN11: =VLOOKUP($B$6,disthist, 63) -> 7566302116 | AO11: =VLOOKUP($B$6,disthist, 66) -> 7972055321 | AP11: =VLOOKUP($B$6,aidcalc,10 ) -> 8377124261
B12: 1 | C12: ="Chapter 70 "&PYr -> Chapter 70 FY25 | D12: =VLOOKUP(B6,aidcalc,6) -> 6901610127 | F12: Foundation budget | G12: =VLOOKUP(B6,disthist,65) -> 1.45351034e+10 | H12: =VLOOKUP(B6,aidcalc,9) -> 1.531427018e+10 | I12: =H12-G12 -> 779166783.1 | J12: =IF(G12>0, I12/G12, 0) -> 0.05360586448 | U12: C70 Aid | V12: =VLOOKUP($B$6,disthist,6) -> 3288603062 | W12: =VLOOKUP($B$6,disthist,9) -> 3505192039 | X12: =VLOOKUP($B$6,disthist,12) -> 3725343327 | Y12: =VLOOKUP($B$6,disthist,15)+VLOOKUP($B$6,disthist,16) -> 3948496062 | Z12: =VLOOKUP($B$6,disthist,19)+VLOOKUP($B$6,disthist,20) -> 4043156700 | AA12: =VLOOKUP($B$6,disthist,23)+VLOOKUP($B$6,disthist,24)+VLOOKUP($B$6,disthist,25) -> 4072032853 | AB12: =VLOOKUP($B$6,disthist,28) -> 3990504093 | AC12: =VLOOKUP($B$6,disthist,31) -> 4173223954 | AD12: =VLOOKUP($B$6,disthist,34) -> 4300854366 | AE12: =VLOOKUP($B$6,disthist,37) -> 4400335962 | AF12: =VLOOKUP($B$6,disthist,40) -> 4511521974 | AG12: =VLOOKUP($B$6,disthist,43) -> 4627705061 | AH12: =VLOOKUP($B$6,disthist,46) -> 4745645156 | AI12: =VLOOKUP($B$6,disthist,49) -> 4906614766 | AJ12: =VLOOKUP($B$6,disthist,52) -> 5175694094 | AK12: =VLOOKUP($B$6,disthist,55) -> 5283343073 | AL12: =VLOOKUP($B$6,disthist,58) -> 5502959667 | AM12: =VLOOKUP($B$6,disthist,61) -> 5997901329 | AN12: =VLOOKUP($B$6,disthist,64) -> 6592314528 | AO12: =VLOOKUP($B$6,disthist,67) -> 6901610127 | AP12: =VLOOKUP($B$6,aidcalc,25) -> 7321859878
F13: Required district contribution | G13: =VLOOKUP(B6,disthist,66) -> 7972055321 | H13: =VLOOKUP($B$6, aidcalc, 10) -> 8377124261 | I13: =H13-G13 -> 405068940 | J13: =IF(G13>0, I13/G13, 0) -> 0.050811105 | U13: Foundation Budget | V13: =VLOOKUP($B$6,disthist,4) -> 7551933454 | W13: =VLOOKUP($B$6,disthist,7) -> 8014672861 | X13: =VLOOKUP($B$6,disthist,10) -> 8406096436 | Y13: =VLOOKUP($B$6,disthist,13) -> 8811314229 | Z13: =VLOOKUP($B$6,disthist,17) -> 9088557473 | AA13: =VLOOKUP($B$6,disthist,21) -> 8921047970 | AB13: =VLOOKUP($B$6,disthist,26) -> 9119340580 | AC13: =VLOOKUP($B$6,disthist,29) -> 9467117141 | AD13: =VLOOKUP($B$6,disthist, 32) -> 9711217585 | AE13: =VLOOKUP($B$6,disthist, 35) -> 9866011313 | AF13: =VLOOKUP($B$6,disthist, 38) -> 1.009017727e+10 | AG13: =VLOOKUP($B$6,disthist, 41) -> 1.012823838e+10 | AH13: =VLOOKUP($B$6,disthist, 44) -> 1.037917384e+10 | AI13: =VLOOKUP($B$6,disthist, 47) -> 1.077758855e+10 | AJ13: =VLOOKUP($B$6,disthist, 50) -> 1.135904851e+10 | AK13: =VLOOKUP($B$6,disthist, 53) -> 1.16265311e+10 | AL13: =VLOOKUP($B$6,disthist, 56) -> 1.192622579e+10 | AM13: =VLOOKUP($B$6,disthist, 59) -> 1.289033588e+10 | AN13: =VLOOKUP($B$6,disthist, 62) -> 1.396338987e+10 | AO13: =VLOOKUP($B$6,disthist, 65) -> 1.45351034e+10 | AP13: =VLOOKUP($B$6,aidcalc,9 ) -> 1.531427018e+10
B14: Foundation Aid | F14: Chapter 70 aid | G14: =IF(B6=999,VLOOKUP(B6,disthist,67,0)+308558,VLOOKUP(B6,disthist,67,0)) -> 6901918685 | H14: =IF(B6=999,VLOOKUP($B$6,aidcalc,25,0)+308558,VLOOKUP($B$6,aidcalc,25,0)) -> 7322168436 | I14: =H14-G14 -> 420249751.2 | J14: =IF(G14>0, I14/G14, 0) -> 0.06088882967
B15: 2 | C15: ="Foundation budget "&CYr -> Foundation budget FY26 | D15: =VLOOKUP($B$6, aidcalc, 9) -> 1.531427018e+10 | F15: Required net school spending (NSS) | G15: =G13+G14 -> 1.487397401e+10 | H15: =H13+H14 -> 1.56992927e+10 | I15: =H15-G15 -> 825318691.2 | J15: =IF(G15>0, I15/G15, 0) -> 0.05548743671
B16: 3 | C16: ="Required district contribution "& CYr -> Required district contribution FY26 | D16: =VLOOKUP($B$6, aidcalc, 10) -> 8377124261
B17: 4 | C17: Foundation aid (2 -3) | D17: =VLOOKUP($B$6, aidcalc, 11) -> 6937145922 | F17: Target aid share | G17: =VLOOKUP(B$6,disthist,3)/100 -> 0.41 | H17: =VLOOKUP(B6,aidcalc,13)/100 -> 0.41
B18: 5 | C18: ="Increase over " & PYr&" (4 - 1)" -> Increase over FY25 (4 - 1) | D18: =VLOOKUP($B$6, aidcalc, 12) -> 383295932.5 | F18: C70 % of foundation | G18: =IF(G12>0,G14/G12,IF(G14>0,1,0)) -> 0.4748448288 | H18: =IF(H12>0,H14/H12,IF(H14>0,1,0)) -> 0.4781271552
B20: Minimum Aid | F20: Required NSS % of foundation | G20: =IF(G12>0,G15/G12,IF(G15>0,1,0)) -> 1.023313945 | H20: =IF(H12>0,H15/H12,IF(H15>0,1,0)) -> 1.025141421
B21: 6 | C21: $75 per pupil increase | D21: =IF(B6=999,"",VLOOKUP($B$6,aidcalc,17,0)) -> 
B22: 7 | C22: Minimum aid amount
C23: (if line 6 - line 5 > 0, then line 6 - line 5, otherwise 0) | D23: =VLOOKUP($B$6, aidcalc, 18,0) -> 37052849
B25: Subtotal
B26: 8 | C26: Sum of 1,5,7 | D26: =D12+D18+D23 -> 7321958909
B28: Minimum Aid Adjustment
B29: 9 | C29: Minimum aid adjustment | D29: =IF(B6=999,"",VLOOKUP($B$6, aidcalc, 20)) -> 
B30: 10 | C30: Aid adjustment increment
C31: (if line 9 - line 8 > 0, then line 9 - line 8, otherwise 0) | D31: =VLOOKUP($B$6, aidcalc, 21, FALSE) -> 0
B33: Non-Operating District Reduction to Foundation
B34: 11 | C34: Reduction to foundation | D34: =VLOOKUP($B$6, aidcalc, 23) -> 99030.29
B36: Hold Harmless Aid
B37: 12 | C37: Hold harmless aid | D37: =VLOOKUP($B$6, aidcalc, 24) -> 0
B39: =CYr&" Chapter 70 Aid" -> FY26 Chapter 70 Aid
B40: 13 | C40: Sum of 1,5,7,10, 12 minus 11 | D40: =VLOOKUP($B$6, aidcalc, 25) -> 7321859878
C41: =IF(B6=999,"with Devens aid","") -> with Devens aid | D41: =IF(B6=999,D40+308558,"") -> 7322168436
B43: Note on Minimum Aid Adjustment on lines 9 and 10:
B44: The minimum aid adjustment is the sum of (a) the greater of foundation aid or base aid determined based on the FY21 base and incremental rates, inflated to FY26, and (b) foundation enrollment multiplied by $30. The aid adjustment increment (line 10) is the line 9 amount less the line 8 amount if the difference is positive. Otherwise, the increment is zero.

Sheet parameters (hidden)
A1: Cyr | B1: FY26 | C1: 26
A2: Pyr | B2: FY25 | C2: 25
A3: As of | B3: 2025-01-13
A5: Parameters | D5: Base | K5: Analysis of Aggregate Wealth Model Implementation
B6: Which version of foundation budget? | C6: 1 | D6: 1 | G6: FY25 C70 including Devens | H6: 6901918685
B7: Effort reduction | C7: 1 | D7: 0 | K7: Progress Towards Target Local Share
B8: Pct downpayment on target aid share | C8: 0 | D8: 0 | G8: FY26 foundation aid increase | H8: ='Aid436'!L448 -> 383295932.5
D9: 0 | L9: FY07 | M9: FY08 | N9: FY09 | O9: FY10 | P9: FY11 | Q9: FY12 | R9: FY13 | S9: FY14 | T9: FY15 | U9: FY16 | V9: FY17 | W9: FY18 | X9: FY19 | Y9: FY20 | Z9: FY21 | AA9: FY22 | AB9: FY23 | AC9: FY24 | AD9: FY25 | AE9: =CYr -> FY26
G10: Minimum per pupil aid increase | H10: ='Aid436'!R448 -> 37052849 | K10: excess effort before effort reduction | L10: 621.084157 | M10: 494.058912 | N10: 372.382091 | O10: 228.110232 | P10: 366 | Q10: 293.3 | R10: 229.8 | S10: 234.5 | T10: 307.903014 | U10: 235.358789 | V10: 299.86437 | W10: 151.670894 | X10: 68.664221 | Y10: 21.435137 | Z10: 104.649236 | AA10: 93.814687 | AB10: 3.87058 | AC10: =2463965/1000000 -> 2.463965 | AD10: =35208638/1000000 -> 35.208638 | AE10: ='Townwide Contributions'!V361/1000000 -> 59.152037
G11: Min aid adjustment increase | H11: ='Aid436'!U448 -> 0 | K11: effort reduction | L11: 124.2168314 | M11: 123.514728 | N11: 122.88609 | O11: 34.216535 | P11: 109.8 | Q11: 58.7 | R11: 34.5 | S11: 35.2 | T11: 153.951507 | U11: 117.6793945 | V11: 254.8847145 | W11: 128.9202599 | X11: 68.664221 | Y11: 21.435137 | Z11: 104.649236 | AA11: 93.814687 | AB11: 3.87058 | AC11: =2463965/1000000 -> 2.463965 | AD11: 35.208638 | AE11: ='Townwide Contributions'!V361/1000000 -> 59.152037
G12: Non-op reduction | H12: ='Aid436'!W448 -> 99030.29 | K12: net excess after effort reduction | L12: 496.8673256 | M12: 370.544184 | N12: 249.496001 | O12: 193.893697 | P12: 256.2 | Q12: =Q10-Q11 -> 234.6 | R12: =R10-R11 -> 195.3 | S12: 199.3 | T12: 152.0806983 | U12: 117.4829132 | V12: 44.97879348 | W12: 22.74921402 | X12: 0 | Y12: 0 | Z12: 0 | AA12: 0 | AB12: 0 | AC12: 0 | AD12: =0/1000000 -> 0 | AE12: ='Townwide Contributions'!AC361/1000000 -> 0
G13: FY26 Chapter 70 | H13: ='Aid436'!Y448 -> 7321859878 | K13: shortfall below target before increment | L13: -321.452322 | M13: -352.174875 | N13: -359.193563 | O13: -427.2 | P13: -228 | Q13: -211 | R13: -200 | S13: -180.2 | T13: -162.972215 | U13: -132.627218 | V13: -96.928091 | W13: -103.17317 | X13: -117.254713 | Y13: -207.485209 | Z13: -163.71 | AA13: -228.999327 | AB13: -494.818496 | AC13: =-745851507/1000000 -> -745.851507 | AD13: =-662497802/1000000 -> -662.497802 | AE13: ='Townwide Contributions'!AA361/1000000 -> -719.339957
B14: Per pupil guaranteed increase | C14: 75 | D14: 0 | G14: Devens | H14: =308558 -> 308558 | K14: additional increments toward target | L14: 0 | M14: -19.739149 | N14: -21.387588 | O14: -121.2 | P14: -10.6 | Q14: -10 | R14: -4.2 | S14: -3.9 | T14: -7.563093 | U14: -5.848739 | V14: -2.474215 | W14: -3.628178 | X14: -5.320349 | Y14: -19.253945 | Z14: -9.378217 | AA14: -20.199768 | AB14: -56.264627 | AC14: =(63801354/1000000*-1)+(9952246/1000000*-1) -> -73.7536 | AD14: -58.842122 | AE14: =('Townwide Contributions'!T361/1000000*-1)+('Townwide Contributions'!W361/1000000*-1) -> -61.044796
B15: Which version of mrgf? | C15: 1 | D15: 1 | K15: net shortfall below target after increment | L15: -321.452322 | M15: -332.435726 | N15: -337.805975 | O15: -306 | P15: -217.4 | Q15: -200.9 | R15: -195.7 | S15: -176.3 | T15: -155.409122 | U15: -126.778479 | V15: -94.453876 | W15: -99.544992 | X15: -111.934364 | Y15: -188.231264 | Z15: -154.331783 | AA15: -208.799559 | AB15: -438.553869 | AC15: =-672097907/1000000 -> -672.097907 | AD15: =-603655680/1000000 -> -603.65568 | AE15: ='Townwide Contributions'!AB361/1000000 -> -658.295161
B16: Below effort threshold 1 | C16: 2.5 | D16: 2.5 | G16: Change in C70 Appropriation | H16: =H13+H14-H6 -> 420249751.2 | K16: n of municipalities with effort too high | L16: 232 | M16: 218 | N16: 214 | O16: 193 | P16: 282 | Q16: 257 | R16: 249 | S16: 255 | T16: 279 | U16: 278 | V16: 303 | W16: 291 | X16: 0 | Y16: 0 | Z16: 0 | AA16: 0 | AB16: 0 | AC16: 0 | AD16: 0 | AE16: ='Townwide Contributions'!AC364 -> 0
B17: Below effort threshold 2 | C17: 7.5 | D17: 7.5 | G17: Percent Change | H17: =H16/H6 -> 0.06088882967
B18: Below effort contribution increment, 5-10% under | C18: 0.01 | D18: 0.01
B19: Below effort contribution increment, >10% under | C19: 0.02 | D19: 0.02 | G19: N of Foundation Aid Districts | H19: ='Aid436'!P448 -> 96
B20: Maximum local contribution pct of foundation | C20: 0.825 | D20: 0.825 | G20: N of Operating Districts with an Aid Increase | H20: ='Comparison to FY25'!N332 -> 318
B21: Statewide target for local contribution % of foundation | C21: 0.59 | D21: 0.59 | G21: Total C70 Including Devens | H21: =H13+H14 -> 7322168436
B22: Cap contributions at fixed percentage of foundation | C22: 0.9 | D22: 0.9
D23: 0
A24: Eqv/income percentages
B26: Target effort | C26: =C21*localcont!K1765 -> 9035419408
B27: Effort based upon following percentages | C27: ='Townwide Contributions'!K361 -> 9035419413
B28: Difference from target | C28: =IF(ABS(C27-C26)<10,0,C27-C26) -> 0
B29: Percentage of EQV | C29: 0.003242731145
B30: Percentage of INCOME | C30: =C29*1/C34 -> 0.01569871015
B32: Total EQV | C32: ='Townwide Contributions'!C361 -> 1955053248000
B33: Total Income | C33: ='Townwide Contributions'!E361 -> 403836493290
B34: State Average % of EQV | C34: =C33/C32 -> 0.2065603552
A37: See Progress Towards Targets
K42: Progress Towards Target Aid Share
L44: FY07 | M44: FY08 | N44: FY09 | O44: FY10 | P44: FY11 | Q44: FY12 | R44: FY13 | S44: FY14 | T44: FY15 | U44: FY16 | V44: FY17 | W44: FY18 | X44: FY19 | Y44: FY20 | Z44: FY21 | AA44: FY22 | AB44: FY23 | AC44: FY24 | AD44: FY25 | AE44: =CYr -> FY26
K45: aid above target | L45: 394.9 | M45: 421 | N45: 440.4 | O45: 413.5991456 | P45: 489.2905867 | Q45: 360.5802896 | R45: 372.9139726 | S45: 385.3 | T45: 404.6539336 | U45: 419.0730779 | V45: 488.1362137 | W45: 497.4038449 | X45: 487.8069694 | Y45: 518.4487954 | Z45: 516.4943275 | AA45: 613.17696 | AB45: 712.8031016 | AC45: =867309653/1000000 -> 867.309653 | AD45: 942.2234328 | AE45: ='Aid436'!AE449/1000000 -> 1042.994175
K46: aid below target | L46: -176.3 | M46: -143 | N46: -105.5 | O46: -97.82363262 | P46: -75.73073977 | Q46: -110.4290612 | R46: -84.70629692 | S46: -66.9 | T46: -49.39921427 | U46: -44.48798888 | V46: -13.01302676 | W46: -7.202688836 | X46: -0.01809683687 | Y46: -0.001189981026 | Z46: -0.01283887927 | AA46: -0.001771922842 | AB46: -1.962882748e-06 | AC46: =3/1000000 -> 3e-06 | AD46: -1.045870017e-07 | AE46: ='Aid436'!AE450/1000000 -> -3.749999998e-09
C50: =TEXT(effortred,"0%") -> 100%

Sheet Regional District Members
E2: Return to Index
F3: Select or type full regional district name below
E4: =VLOOKUP(reg_order, regdistricts, 3, FALSE) -> 690 | F4: King Philip | G4: =VLOOKUP(F4,leas!$E$450:$H$536,4,FALSE) -> 40
E6: Massachusetts Department of Elementary and Secondary Education
E7: Office of School Finance
E8: =CYr&" Chapter 70" -> FY26 Chapter 70
E9: Regional District Enrollment and Contributions by Member City or Town
E10: The table below presents the minimum required local contribution for each member to the selected regional district.
E11: Note: A city or town might belong to more than one regional district (e.g., a regional district and a vocational district) and therefore be required to contribute to multiple districts. See the regional allocation tab for a full list of minimum required contributions for each city or town. Foundation enrollments are presented as whole numbers. The change column reflects differences prior to rounding.
B12: =VLOOKUP(E4, leas!D6:G445, 4, FALSE) -> 0690 | D12: 2 | E12: =VLOOKUP(reg_order, regdistricts, 2, FALSE) -> 690 King Philip
G14: Foundation Enrollment in Regional District | J14: Required Minimum Contribution to Regional District
B16: =VLOOKUP($E$4, regcount, 2, FALSE) -> 3 | E16: LEA | F16: Member | G16: =PYr -> FY25 | H16: =CYr -> FY26 | I16: Change | J16: =PYr -> FY25 | K16: =CYr -> FY26 | L16: Change
F18: Total | G18: =SUM(G20:G67) -> 1962 | H18: =SUM(H20:H67) -> 1933 | I18: =SUM(I20:I67) -> -29 | J18: =SUM(J20:J67) -> 20432925 | K18: =SUM(K20:K67) -> 21201197 | L18: =SUM(L20:L62) -> 768272
A20: =IF($C20<=$B$16,VLOOKUP(E20,leas!D6:G445,4,FALSE),"") -> 0208 | B20: =$E$4*100+C20 -> 69001 | C20: 1 | E20: =IF($C20<=$B$16, VLOOKUP($B20, regdetail, 5), " ") -> 208 | F20: =IF($C20<=$B$16, VLOOKUP($B20, regdetail, 6), " ") -> Norfolk | G20: =IF($C20<=$B$16,VLOOKUP(A20&$B$12, localcont!A10:X1764, 18, FALSE), "") -> 684.3488016 | H20: =IF($C20<=$B$16,VLOOKUP(A20&$B$12, localcont!$A$10:$X$1764, 23, FALSE), "") -> 681.0569948 | I20: =IF($C20<=$B$16, H20-G20, " ") -> -3.291806808 | J20: =IF($C20<=$B$16,VLOOKUP(A20&$B$12, localcont!$A$10:$X$1764, 15, FALSE), "") -> 7146329 | K20: =IF($C20<=$B$16,VLOOKUP(A20&$B$12, localcont!$A$10:$X$1764, 14, FALSE),"") -> 7471718 | L20: =IF($C20<=$B$16, K20-J20, " ") -> 325389
A21: =IF($C21<=$B$16,VLOOKUP(E21,leas!D7:G446,4,FALSE),"") -> 0238 | B21: =$E$4*100+C21 -> 69002 | C21: 2 | E21: 238 | F21: Plainville | G21: =IF($C21<=$B$16,VLOOKUP(A21&$B$12, localcont!A11:X1765, 18, FALSE), "") -> 532.2712902 | H21: =IF($C21<=$B$16,VLOOKUP(A21&$B$12, localcont!$A$10:$X$1764, 23, FALSE), "") -> 504.7834197 | I21: =IF($C21<=$B$16, H21-G21, " ") -> -27.48787047 | J21: =IF($C21<=$B$16,VLOOKUP(A21&$B$12, localcont!$A$10:$X$1764, 15, FALSE), "") -> 5435677 | K21: =IF($C21<=$B$16,VLOOKUP(A21&$B$12, localcont!$A$10:$X$1764, 14, FALSE),"") -> 5380202 | L21: =IF($C21<=$B$16, K21-J21, " ") -> -55475
A22: =IF($C22<=$B$16,VLOOKUP(E22,leas!D8:G447,4,FALSE),"") -> 0350 | B22: 69003 | C22: 3 | E22: 350 | F22: Wrentham | G22: =IF($C22<=$B$16,VLOOKUP(A22&$B$12, localcont!A12:X1766, 18, FALSE), "") -> 745.3799082 | H22: =IF($C22<=$B$16,VLOOKUP(A22&$B$12, localcont!$A$10:$X$1764, 23, FALSE), "") -> 747.1595855 | I22: 1.779677277 | J22: =IF($C22<=$B$16,VLOOKUP(A22&$B$12, localcont!$A$10:$X$1764, 15, FALSE), "") -> 7850919 | K22: =IF($C22<=$B$16,VLOOKUP(A22&$B$12, localcont!$A$10:$X$1764, 14, FALSE),"") -> 8349277 | L22: 498358
A23: =IF($C23<=$B$16,VLOOKUP(E23,leas!D9:G448,4,FALSE),"") ->  | B23: 69004 | C23: 4 | G23: =IF($C23<=$B$16,VLOOKUP(A23&$B$12, localcont!A13:X1767, 18, FALSE), "") ->  | H23: =IF($C23<=$B$16,VLOOKUP(A23&$B$12, localcont!$A$10:$X$1764, 23, FALSE), "") ->  | J23: =IF($C23<=$B$16,VLOOKUP(A23&$B$12, localcont!$A$10:$X$1764, 15, FALSE), "") ->  | K23: =IF($C23<=$B$16,VLOOKUP(A23&$B$12, localcont!$A$10:$X$1764, 14, FALSE),"") -> 
A24: =IF($C24<=$B$16,VLOOKUP(E24,leas!D10:G449,4,FALSE),"") ->  | B24: 69005 | C24: 5 | G24: =IF($C24<=$B$16,VLOOKUP(A24&$B$12, localcont!A14:X1768, 18, FALSE), "") ->  | H24: =IF($C24<=$B$16,VLOOKUP(A24&$B$12, localcont!$A$10:$X$1764, 23, FALSE), "") ->  | J24: =IF($C24<=$B$16,VLOOKUP(A24&$B$12, localcont!$A$10:$X$1764, 15, FALSE), "") ->  | K24: =IF($C24<=$B$16,VLOOKUP(A24&$B$12, localcont!$A$10:$X$1764, 14, FALSE),"") -> 
A25: =IF($C25<=$B$16,VLOOKUP(E25,leas!D11:G450,4,FALSE),"") ->  | B25: 69006 | C25: 6 | G25: =IF($C25<=$B$16,VLOOKUP(A25&$B$12, localcont!A15:X1769, 18, FALSE), "") ->  | H25: =IF($C25<=$B$16,VLOOKUP(A25&$B$12, localcont!$A$10:$X$1764, 23, FALSE), "") ->  | J25: =IF($C25<=$B$16,VLOOKUP(A25&$B$12, localcont!$A$10:$X$1764, 15, FALSE), "") ->  | K25: =IF($C25<=$B$16,VLOOKUP(A25&$B$12, localcont!$A$10:$X$1764, 14, FALSE),"") -> 
A26: =IF($C26<=$B$16,VLOOKUP(E26,leas!D12:G451,4,FALSE),"") ->  | B26: 69007 | C26: 7 | G26: =IF($C26<=$B$16,VLOOKUP(A26&$B$12, localcont!A16:X1770, 18, FALSE), "") ->  | H26: =IF($C26<=$B$16,VLOOKUP(A26&$B$12, localcont!$A$10:$X$1764, 23, FALSE), "") ->  | J26: =IF($C26<=$B$16,VLOOKUP(A26&$B$12, localcont!$A$10:$X$1764, 15, FALSE), "") ->  | K26: =IF($C26<=$B$16,VLOOKUP(A26&$B$12, localcont!$A$10:$X$1764, 14, FALSE),"") -> 
A27: =IF($C27<=$B$16,VLOOKUP(E27,leas!D13:G452,4,FALSE),"") ->  | B27: 69008 | C27: 8 | G27: =IF($C27<=$B$16,VLOOKUP(A27&$B$12, localcont!A17:X1771, 18, FALSE), "") ->  | H27: =IF($C27<=$B$16,VLOOKUP(A27&$B$12, localcont!$A$10:$X$1764, 23, FALSE), "") ->  | J27: =IF($C27<=$B$16,VLOOKUP(A27&$B$12, localcont!$A$10:$X$1764, 15, FALSE), "") ->  | K27: =IF($C27<=$B$16,VLOOKUP(A27&$B$12, localcont!$A$10:$X$1764, 14, FALSE),"") -> 
A28: =IF($C28<=$B$16,VLOOKUP(E28,leas!D14:G453,4,FALSE),"") ->  | B28: 69009 | C28: 9 | G28: =IF($C28<=$B$16,VLOOKUP(A28&$B$12, localcont!A18:X1772, 18, FALSE), "") ->  | H28: =IF($C28<=$B$16,VLOOKUP(A28&$B$12, localcont!$A$10:$X$1764, 23, FALSE), "") ->  | J28: =IF($C28<=$B$16,VLOOKUP(A28&$B$12, localcont!$A$10:$X$1764, 15, FALSE), "") ->  | K28: =IF($C28<=$B$16,VLOOKUP(A28&$B$12, localcont!$A$10:$X$1764, 14, FALSE),"") -> 
A29: =IF($C29<=$B$16,VLOOKUP(E29,leas!D15:G454,4,FALSE),"") ->  | B29: 69010 | C29: 10 | G29: =IF($C29<=$B$16,VLOOKUP(A29&$B$12, localcont!A19:X1773, 18, FALSE), "") ->  | H29: =IF($C29<=$B$16,VLOOKUP(A29&$B$12, localcont!$A$10:$X$1764, 23, FALSE), "") ->  | J29: =IF($C29<=$B$16,VLOOKUP(A29&$B$12, localcont!$A$10:$X$1764, 15, FALSE), "") ->  | K29: =IF($C29<=$B$16,VLOOKUP(A29&$B$12, localcont!$A$10:$X$1764, 14, FALSE),"") -> 
A30: =IF($C30<=$B$16,VLOOKUP(E30,leas!D16:G455,4,FALSE),"") ->  | B30: 69011 | C30: 11 | G30: =IF($C30<=$B$16,VLOOKUP(A30&$B$12, localcont!A20:X1774, 18, FALSE), "") ->  | H30: =IF($C30<=$B$16,VLOOKUP(A30&$B$12, localcont!$A$10:$X$1764, 23, FALSE), "") ->  | J30: =IF($C30<=$B$16,VLOOKUP(A30&$B$12, localcont!$A$10:$X$1764, 15, FALSE), "") ->  | K30: =IF($C30<=$B$16,VLOOKUP(A30&$B$12, localcont!$A$10:$X$1764, 14, FALSE),"") -> 
A31: =IF($C31<=$B$16,VLOOKUP(E31,leas!D17:G456,4,FALSE),"") ->  | B31: 69012 | C31: 12 | G31: =IF($C31<=$B$16,VLOOKUP(A31&$B$12, localcont!A21:X1775, 18, FALSE), "") ->  | H31: =IF($C31<=$B$16,VLOOKUP(A31&$B$12, localcont!$A$10:$X$1764, 23, FALSE), "") ->  | J31: =IF($C31<=$B$16,VLOOKUP(A31&$B$12, localcont!$A$10:$X$1764, 15, FALSE), "") ->  | K31: =IF($C31<=$B$16,VLOOKUP(A31&$B$12, localcont!$A$10:$X$1764, 14, FALSE),"") -> 
A32: =IF($C32<=$B$16,VLOOKUP(E32,leas!D18:G457,4,FALSE),"") ->  | B32: 69013 | C32: 13 | G32: =IF($C32<=$B$16,VLOOKUP(A32&$B$12, localcont!A22:X1776, 18, FALSE), "") ->  | H32: =IF($C32<=$B$16,VLOOKUP(A32&$B$12, localcont!$A$10:$X$1764, 23, FALSE), "") ->  | J32: =IF($C32<=$B$16,VLOOKUP(A32&$B$12, localcont!$A$10:$X$1764, 15, FALSE), "") ->  | K32: =IF($C32<=$B$16,VLOOKUP(A32&$B$12, localcont!$A$10:$X$1764, 14, FALSE),"") -> 
A33: =IF($C33<=$B$16,VLOOKUP(E33,leas!D19:G458,4,FALSE),"") ->  | B33: 69014 | C33: 14 | G33: =IF($C33<=$B$16,VLOOKUP(A33&$B$12, localcont!A23:X1777, 18, FALSE), "") ->  | H33: =IF($C33<=$B$16,VLOOKUP(A33&$B$12, localcont!$A$10:$X$1764, 23, FALSE), "") ->  | J33: =IF($C33<=$B$16,VLOOKUP(A33&$B$12, localcont!$A$10:$X$1764, 15, FALSE), "") ->  | K33: =IF($C33<=$B$16,VLOOKUP(A33&$B$12, localcont!$A$10:$X$1764, 14, FALSE),"") -> 
A34: =IF($C34<=$B$16,VLOOKUP(E34,leas!D20:G459,4,FALSE),"") ->  | B34: 69015 | C34: 15 | G34: =IF($C34<=$B$16,VLOOKUP(A34&$B$12, localcont!A24:X1778, 18, FALSE), "") ->  | H34: =IF($C34<=$B$16,VLOOKUP(A34&$B$12, localcont!$A$10:$X$1764, 23, FALSE), "") ->  | J34: =IF($C34<=$B$16,VLOOKUP(A34&$B$12, localcont!$A$10:$X$1764, 15, FALSE), "") ->  | K34: =IF($C34<=$B$16,VLOOKUP(A34&$B$12, localcont!$A$10:$X$1764, 14, FALSE),"") -> 
A35: =IF($C35<=$B$16,VLOOKUP(E35,leas!D21:G460,4,FALSE),"") ->  | B35: 69016 | C35: 16 | G35: =IF($C35<=$B$16,VLOOKUP(A35&$B$12, localcont!A25:X1779, 18, FALSE), "") ->  | H35: =IF($C35<=$B$16,VLOOKUP(A35&$B$12, localcont!$A$10:$X$1764, 23, FALSE), "") ->  | J35: =IF($C35<=$B$16,VLOOKUP(A35&$B$12, localcont!$A$10:$X$1764, 15, FALSE), "") ->  | K35: =IF($C35<=$B$16,VLOOKUP(A35&$B$12, localcont!$A$10:$X$1764, 14, FALSE),"") -> 
A36: =IF($C36<=$B$16,VLOOKUP(E36,leas!D22:G461,4,FALSE),"") ->  | B36: 69017 | C36: 17 | G36: =IF($C36<=$B$16,VLOOKUP(A36&$B$12, localcont!A26:X1780, 18, FALSE), "") ->  | H36: =IF($C36<=$B$16,VLOOKUP(A36&$B$12, localcont!$A$10:$X$1764, 23, FALSE), "") ->  | J36: =IF($C36<=$B$16,VLOOKUP(A36&$B$12, localcont!$A$10:$X$1764, 15, FALSE), "") ->  | K36: =IF($C36<=$B$16,VLOOKUP(A36&$B$12, localcont!$A$10:$X$1764, 14, FALSE),"") -> 
A37: =IF($C37<=$B$16,VLOOKUP(E37,leas!D23:G462,4,FALSE),"") ->  | B37: 69018 | C37: 18 | G37: =IF($C37<=$B$16,VLOOKUP(A37&$B$12, localcont!A27:X1781, 18, FALSE), "") ->  | H37: =IF($C37<=$B$16,VLOOKUP(A37&$B$12, localcont!$A$10:$X$1764, 23, FALSE), "") ->  | J37: =IF($C37<=$B$16,VLOOKUP(A37&$B$12, localcont!$A$10:$X$1764, 15, FALSE), "") ->  | K37: =IF($C37<=$B$16,VLOOKUP(A37&$B$12, localcont!$A$10:$X$1764, 14, FALSE),"") -> 
A38: =IF($C38<=$B$16,VLOOKUP(E38,leas!D24:G463,4,FALSE),"") ->  | B38: 69019 | C38: 19 | G38: =IF($C38<=$B$16,VLOOKUP(A38&$B$12, localcont!A28:X1782, 18, FALSE), "") ->  | H38: =IF($C38<=$B$16,VLOOKUP(A38&$B$12, localcont!$A$10:$X$1764, 23, FALSE), "") ->  | J38: =IF($C38<=$B$16,VLOOKUP(A38&$B$12, localcont!$A$10:$X$1764, 15, FALSE), "") ->  | K38: =IF($C38<=$B$16,VLOOKUP(A38&$B$12, localcont!$A$10:$X$1764, 14, FALSE),"") -> 
A39: =IF($C39<=$B$16,VLOOKUP(E39,leas!D25:G464,4,FALSE),"") ->  | B39: 69020 | C39: 20 | G39: =IF($C39<=$B$16,VLOOKUP(A39&$B$12, localcont!A29:X1783, 18, FALSE), "") ->  | H39: =IF($C39<=$B$16,VLOOKUP(A39&$B$12, localcont!$A$10:$X$1764, 23, FALSE), "") ->  | J39: =IF($C39<=$B$16,VLOOKUP(A39&$B$12, localcont!$A$10:$X$1764, 15, FALSE), "") ->  | K39: =IF($C39<=$B$16,VLOOKUP(A39&$B$12, localcont!$A$10:$X$1764, 14, FALSE),"") -> 
A40: =IF($C40<=$B$16,VLOOKUP(E40,leas!D26:G465,4,FALSE),"") ->  | B40: 69021 | C40: 21 | G40: =IF($C40<=$B$16,VLOOKUP(A40&$B$12, localcont!A30:X1784, 18, FALSE), "") ->  | H40: =IF($C40<=$B$16,VLOOKUP(A40&$B$12, localcont!$A$10:$X$1764, 23, FALSE), "") ->  | J40: =IF($C40<=$B$16,VLOOKUP(A40&$B$12, localcont!$A$10:$X$1764, 15, FALSE), "") ->  | K40: =IF($C40<=$B$16,VLOOKUP(A40&$B$12, localcont!$A$10:$X$1764, 14, FALSE),"") -> 
A41: =IF($C41<=$B$16,VLOOKUP(E41,leas!D27:G466,4,FALSE),"") ->  | B41: 69022 | C41: 22 | G41: =IF($C41<=$B$16,VLOOKUP(A41&$B$12, localcont!A31:X1785, 18, FALSE), "") ->  | H41: =IF($C41<=$B$16,VLOOKUP(A41&$B$12, localcont!$A$10:$X$1764, 23, FALSE), "") ->  | J41: =IF($C41<=$B$16,VLOOKUP(A41&$B$12, localcont!$A$10:$X$1764, 15, FALSE), "") ->  | K41: =IF($C41<=$B$16,VLOOKUP(A41&$B$12, localcont!$A$10:$X$1764, 14, FALSE),"") -> 
A42: =IF($C42<=$B$16,VLOOKUP(E42,leas!D28:G467,4,FALSE),"") ->  | B42: 69023 | C42: 23 | G42: =IF($C42<=$B$16,VLOOKUP(A42&$B$12, localcont!A32:X1786, 18, FALSE), "") ->  | H42: =IF($C42<=$B$16,VLOOKUP(A42&$B$12, localcont!$A$10:$X$1764, 23, FALSE), "") ->  | J42: =IF($C42<=$B$16,VLOOKUP(A42&$B$12, localcont!$A$10:$X$1764, 15, FALSE), "") ->  | K42: =IF($C42<=$B$16,VLOOKUP(A42&$B$12, localcont!$A$10:$X$1764, 14, FALSE),"") -> 
A43: =IF($C43<=$B$16,VLOOKUP(E43,leas!D29:G468,4,FALSE),"") ->  | B43: 69024 | C43: 24 | G43: =IF($C43<=$B$16,VLOOKUP(A43&$B$12, localcont!A33:X1787, 18, FALSE), "") ->  | H43: =IF($C43<=$B$16,VLOOKUP(A43&$B$12, localcont!$A$10:$X$1764, 23, FALSE), "") ->  | J43: =IF($C43<=$B$16,VLOOKUP(A43&$B$12, localcont!$A$10:$X$1764, 15, FALSE), "") ->  | K43: =IF($C43<=$B$16,VLOOKUP(A43&$B$12, localcont!$A$10:$X$1764, 14, FALSE),"") -> 
A44: =IF($C44<=$B$16,VLOOKUP(E44,leas!D30:G469,4,FALSE),"") ->  | B44: 69025 | C44: 25 | G44: =IF($C44<=$B$16,VLOOKUP(A44&$B$12, localcont!A34:X1788, 18, FALSE), "") ->  | H44: =IF($C44<=$B$16,VLOOKUP(A44&$B$12, localcont!$A$10:$X$1764, 23, FALSE), "") ->  | J44: =IF($C44<=$B$16,VLOOKUP(A44&$B$12, localcont!$A$10:$X$1764, 15, FALSE), "") ->  | K44: =IF($C44<=$B$16,VLOOKUP(A44&$B$12, localcont!$A$10:$X$1764, 14, FALSE),"") -> 
A45: =IF($C45<=$B$16,VLOOKUP(E45,leas!D31:G470,4,FALSE),"") ->  | B45: 69026 | C45: 26 | G45: =IF($C45<=$B$16,VLOOKUP(A45&$B$12, localcont!A35:X1789, 18, FALSE), "") ->  | H45: =IF($C45<=$B$16,VLOOKUP(A45&$B$12, localcont!$A$10:$X$1764, 23, FALSE), "") ->  | J45: =IF($C45<=$B$16,VLOOKUP(A45&$B$12, localcont!$A$10:$X$1764, 15, FALSE), "") ->  | K45: =IF($C45<=$B$16,VLOOKUP(A45&$B$12, localcont!$A$10:$X$1764, 14, FALSE),"") -> 
A46: =IF($C46<=$B$16,VLOOKUP(E46,leas!D32:G471,4,FALSE),"") ->  | B46: 69027 | C46: 27 | G46: =IF($C46<=$B$16,VLOOKUP(A46&$B$12, localcont!A36:X1790, 18, FALSE), "") ->  | H46: =IF($C46<=$B$16,VLOOKUP(A46&$B$12, localcont!$A$10:$X$1764, 23, FALSE), "") ->  | J46: =IF($C46<=$B$16,VLOOKUP(A46&$B$12, localcont!$A$10:$X$1764, 15, FALSE), "") ->  | K46: =IF($C46<=$B$16,VLOOKUP(A46&$B$12, localcont!$A$10:$X$1764, 14, FALSE),"") -> 
A47: =IF($C47<=$B$16,VLOOKUP(E47,leas!D33:G472,4,FALSE),"") ->  | B47: 69028 | C47: 28 | G47: =IF($C47<=$B$16,VLOOKUP(A47&$B$12, localcont!A37:X1791, 18, FALSE), "") ->  | H47: =IF($C47<=$B$16,VLOOKUP(A47&$B$12, localcont!$A$10:$X$1764, 23, FALSE), "") ->  | J47: =IF($C47<=$B$16,VLOOKUP(A47&$B$12, localcont!$A$10:$X$1764, 15, FALSE), "") ->  | K47: =IF($C47<=$B$16,VLOOKUP(A47&$B$12, localcont!$A$10:$X$1764, 14, FALSE),"") -> 
A48: =IF($C48<=$B$16,VLOOKUP(E48,leas!D34:G473,4,FALSE),"") ->  | B48: 69029 | C48: 29 | G48: =IF($C48<=$B$16,VLOOKUP(A48&$B$12, localcont!A38:X1792, 18, FALSE), "") ->  | H48: =IF($C48<=$B$16,VLOOKUP(A48&$B$12, localcont!$A$10:$X$1764, 23, FALSE), "") ->  | J48: =IF($C48<=$B$16,VLOOKUP(A48&$B$12, localcont!$A$10:$X$1764, 15, FALSE), "") ->  | K48: =IF($C48<=$B$16,VLOOKUP(A48&$B$12, localcont!$A$10:$X$1764, 14, FALSE),"") -> 
A49: =IF($C49<=$B$16,VLOOKUP(E49,leas!D35:G474,4,FALSE),"") ->  | B49: 69030 | C49: 30 | G49: =IF($C49<=$B$16,VLOOKUP(A49&$B$12, localcont!A39:X1793, 18, FALSE), "") ->  | H49: =IF($C49<=$B$16,VLOOKUP(A49&$B$12, localcont!$A$10:$X$1764, 23, FALSE), "") ->  | J49: =IF($C49<=$B$16,VLOOKUP(A49&$B$12, localcont!$A$10:$X$1764, 15, FALSE), "") ->  | K49: =IF($C49<=$B$16,VLOOKUP(A49&$B$12, localcont!$A$10:$X$1764, 14, FALSE),"") -> 
A50: =IF($C50<=$B$16,VLOOKUP(E50,leas!D36:G475,4,FALSE),"") ->  | B50: 69031 | C50: 31 | G50: =IF($C50<=$B$16,VLOOKUP(A50&$B$12, localcont!A40:X1794, 18, FALSE), "") ->  | H50: =IF($C50<=$B$16,VLOOKUP(A50&$B$12, localcont!$A$10:$X$1764, 23, FALSE), "") ->  | J50: =IF($C50<=$B$16,VLOOKUP(A50&$B$12, localcont!$A$10:$X$1764, 15, FALSE), "") ->  | K50: =IF($C50<=$B$16,VLOOKUP(A50&$B$12, localcont!$A$10:$X$1764, 14, FALSE),"") -> 
A51: =IF($C51<=$B$16,VLOOKUP(E51,leas!D37:G476,4,FALSE),"") ->  | B51: 69032 | C51: 32 | G51: =IF($C51<=$B$16,VLOOKUP(A51&$B$12, localcont!A41:X1795, 18, FALSE), "") ->  | H51: =IF($C51<=$B$16,VLOOKUP(A51&$B$12, localcont!$A$10:$X$1764, 23, FALSE), "") ->  | J51: =IF($C51<=$B$16,VLOOKUP(A51&$B$12, localcont!$A$10:$X$1764, 15, FALSE), "") ->  | K51: =IF($C51<=$B$16,VLOOKUP(A51&$B$12, localcont!$A$10:$X$1764, 14, FALSE),"") -> 
A52: =IF($C52<=$B$16,VLOOKUP(E52,leas!D38:G477,4,FALSE),"") ->  | B52: 69033 | C52: 33 | F52: =IF($C52<=$B$16, VLOOKUP($B52, regdetail, 6), " ") ->  | G52: =IF($C52<=$B$16,VLOOKUP(A52&$B$12, localcont!A42:X1796, 18, FALSE), "") ->  | H52: =IF($C52<=$B$16,VLOOKUP(A52&$B$12, localcont!$A$10:$X$1764, 23, FALSE), "") ->  | J52: =IF($C52<=$B$16,VLOOKUP(A52&$B$12, localcont!$A$10:$X$1764, 15, FALSE), "") ->  | K52: =IF($C52<=$B$16,VLOOKUP(A52&$B$12, localcont!$A$10:$X$1764, 14, FALSE),"") -> 
A53: =IF($C53<=$B$16,VLOOKUP(E53,leas!D39:G478,4,FALSE),"") ->  | B53: 69034 | C53: 34 | G53: =IF($C53<=$B$16,VLOOKUP(A53&$B$12, localcont!A43:X1797, 18, FALSE), "") ->  | H53: =IF($C53<=$B$16,VLOOKUP(A53&$B$12, localcont!$A$10:$X$1764, 23, FALSE), "") ->  | J53: =IF($C53<=$B$16,VLOOKUP(A53&$B$12, localcont!$A$10:$X$1764, 15, FALSE), "") ->  | K53: =IF($C53<=$B$16,VLOOKUP(A53&$B$12, localcont!$A$10:$X$1764, 14, FALSE),"") -> 
A54: =IF($C54<=$B$16,VLOOKUP(E54,leas!D40:G479,4,FALSE),"") ->  | B54: 69035 | C54: 35 | G54: =IF($C54<=$B$16,VLOOKUP(A54&$B$12, localcont!A44:X1798, 18, FALSE), "") ->  | H54: =IF($C54<=$B$16,VLOOKUP(A54&$B$12, localcont!$A$10:$X$1764, 23, FALSE), "") ->  | J54: =IF($C54<=$B$16,VLOOKUP(A54&$B$12, localcont!$A$10:$X$1764, 15, FALSE), "") ->  | K54: =IF($C54<=$B$16,VLOOKUP(A54&$B$12, localcont!$A$10:$X$1764, 14, FALSE),"") -> 
A55: =IF($C55<=$B$16,VLOOKUP(E55,leas!D41:G480,4,FALSE),"") ->  | B55: 69036 | C55: 36 | G55: =IF($C55<=$B$16,VLOOKUP(A55&$B$12, localcont!A45:X1799, 18, FALSE), "") ->  | H55: =IF($C55<=$B$16,VLOOKUP(A55&$B$12, localcont!$A$10:$X$1764, 23, FALSE), "") ->  | J55: =IF($C55<=$B$16,VLOOKUP(A55&$B$12, localcont!$A$10:$X$1764, 15, FALSE), "") ->  | K55: =IF($C55<=$B$16,VLOOKUP(A55&$B$12, localcont!$A$10:$X$1764, 14, FALSE),"") -> 
A56: =IF($C56<=$B$16,VLOOKUP(E56,leas!D42:G481,4,FALSE),"") ->  | B56: 69037 | C56: 37 | G56: =IF($C56<=$B$16,VLOOKUP(A56&$B$12, localcont!A46:X1800, 18, FALSE), "") ->  | H56: =IF($C56<=$B$16,VLOOKUP(A56&$B$12, localcont!$A$10:$X$1764, 23, FALSE), "") ->  | J56: =IF($C56<=$B$16,VLOOKUP(A56&$B$12, localcont!$A$10:$X$1764, 15, FALSE), "") ->  | K56: =IF($C56<=$B$16,VLOOKUP(A56&$B$12, localcont!$A$10:$X$1764, 14, FALSE),"") -> 
A57: =IF($C57<=$B$16,VLOOKUP(E57,leas!D43:G482,4,FALSE),"") ->  | B57: 69038 | C57: 38 | G57: =IF($C57<=$B$16,VLOOKUP(A57&$B$12, localcont!A47:X1801, 18, FALSE), "") ->  | H57: =IF($C57<=$B$16,VLOOKUP(A57&$B$12, localcont!$A$10:$X$1764, 23, FALSE), "") ->  | J57: =IF($C57<=$B$16,VLOOKUP(A57&$B$12, localcont!$A$10:$X$1764, 15, FALSE), "") ->  | K57: =IF($C57<=$B$16,VLOOKUP(A57&$B$12, localcont!$A$10:$X$1764, 14, FALSE),"") -> 
A58: =IF($C58<=$B$16,VLOOKUP(E58,leas!D44:G483,4,FALSE),"") ->  | B58: 69039 | C58: 39 | G58: =IF($C58<=$B$16,VLOOKUP(A58&$B$12, localcont!A48:X1802, 18, FALSE), "") ->  | H58: =IF($C58<=$B$16,VLOOKUP(A58&$B$12, localcont!$A$10:$X$1764, 23, FALSE), "") ->  | J58: =IF($C58<=$B$16,VLOOKUP(A58&$B$12, localcont!$A$10:$X$1764, 15, FALSE), "") ->  | K58: =IF($C58<=$B$16,VLOOKUP(A58&$B$12, localcont!$A$10:$X$1764, 14, FALSE),"") -> 
A59: =IF($C59<=$B$16,VLOOKUP(E59,leas!D45:G484,4,FALSE),"") ->  | B59: 69040 | C59: 40 | G59: =IF($C59<=$B$16,VLOOKUP(A59&$B$12, localcont!A49:X1803, 18, FALSE), "") ->  | H59: =IF($C59<=$B$16,VLOOKUP(A59&$B$12, localcont!$A$10:$X$1764, 23, FALSE), "") ->  | J59: =IF($C59<=$B$16,VLOOKUP(A59&$B$12, localcont!$A$10:$X$1764, 15, FALSE), "") ->  | K59: =IF($C59<=$B$16,VLOOKUP(A59&$B$12, localcont!$A$10:$X$1764, 14, FALSE),"") -> 
A60: =IF($C60<=$B$16,VLOOKUP(E60,leas!D46:G485,4,FALSE),"") ->  | B60: 69041 | C60: 41 | G60: =IF($C60<=$B$16,VLOOKUP(A60&$B$12, localcont!A50:X1804, 18, FALSE), "") ->  | H60: =IF($C60<=$B$16,VLOOKUP(A60&$B$12, localcont!$A$10:$X$1764, 23, FALSE), "") ->  | J60: =IF($C60<=$B$16,VLOOKUP(A60&$B$12, localcont!$A$10:$X$1764, 15, FALSE), "") ->  | K60: =IF($C60<=$B$16,VLOOKUP(A60&$B$12, localcont!$A$10:$X$1764, 14, FALSE),"") -> 
A61: =IF($C61<=$B$16,VLOOKUP(E61,leas!D47:G486,4,FALSE),"") ->  | B61: 69042 | C61: 42 | G61: =IF($C61<=$B$16,VLOOKUP(A61&$B$12, localcont!A51:X1805, 18, FALSE), "") ->  | H61: =IF($C61<=$B$16,VLOOKUP(A61&$B$12, localcont!$A$10:$X$1764, 23, FALSE), "") ->  | J61: =IF($C61<=$B$16,VLOOKUP(A61&$B$12, localcont!$A$10:$X$1764, 15, FALSE), "") ->  | K61: =IF($C61<=$B$16,VLOOKUP(A61&$B$12, localcont!$A$10:$X$1764, 14, FALSE),"") -> 
A62: =IF($C62<=$B$16,VLOOKUP(E62,leas!D48:G487,4,FALSE),"") ->  | B62: 69043 | C62: 43 | G62: =IF($C62<=$B$16,VLOOKUP(A62&$B$12, localcont!A52:X1806, 18, FALSE), "") ->  | H62: =IF($C62<=$B$16,VLOOKUP(A62&$B$12, localcont!$A$10:$X$1764, 23, FALSE), "") ->  | J62: =IF($C62<=$B$16,VLOOKUP(A62&$B$12, localcont!$A$10:$X$1764, 15, FALSE), "") ->  | K62: =IF($C62<=$B$16,VLOOKUP(A62&$B$12, localcont!$A$10:$X$1764, 14, FALSE),"") -> 
A63: =IF($C63<=$B$16,VLOOKUP(E63,leas!D49:G488,4,FALSE),"") ->  | B63: 69044 | C63: 44 | G63: =IF($C63<=$B$16,VLOOKUP(A63&$B$12, localcont!A53:X1807, 18, FALSE), "") ->  | H63: =IF($C63<=$B$16,VLOOKUP(A63&$B$12, localcont!$A$10:$X$1764, 23, FALSE), "") ->  | J63: =IF($C63<=$B$16,VLOOKUP(A63&$B$12, localcont!$A$10:$X$1764, 15, FALSE), "") ->  | K63: =IF($C63<=$B$16,VLOOKUP(A63&$B$12, localcont!$A$10:$X$1764, 14, FALSE),"") ->  | P63: =IF($C63>$B$16,"",O63*$P$13) -> 
A64: =IF($C64<=$B$16,VLOOKUP(E64,leas!D50:G489,4,FALSE),"") ->  | B64: 69045 | C64: 45 | G64: =IF($C64<=$B$16,VLOOKUP(A64&$B$12, localcont!A54:X1808, 18, FALSE), "") ->  | H64: =IF($C64<=$B$16,VLOOKUP(A64&$B$12, localcont!$A$10:$X$1764, 23, FALSE), "") ->  | J64: =IF($C64<=$B$16,VLOOKUP(A64&$B$12, localcont!$A$10:$X$1764, 15, FALSE), "") ->  | K64: =IF($C64<=$B$16,VLOOKUP(A64&$B$12, localcont!$A$10:$X$1764, 14, FALSE),"") -> 
A65: =IF($C65<=$B$16,VLOOKUP(E65,leas!D51:G490,4,FALSE),"") ->  | B65: 69046 | C65: 46 | G65: =IF($C65<=$B$16,VLOOKUP(A65&$B$12, localcont!A55:X1809, 18, FALSE), "") ->  | H65: =IF($C65<=$B$16,VLOOKUP(A65&$B$12, localcont!$A$10:$X$1764, 23, FALSE), "") ->  | J65: =IF($C65<=$B$16,VLOOKUP(A65&$B$12, localcont!$A$10:$X$1764, 15, FALSE), "") ->  | K65: =IF($C65<=$B$16,VLOOKUP(A65&$B$12, localcont!$A$10:$X$1764, 14, FALSE),"") -> 
A66: =IF($C66<=$B$16,VLOOKUP(E66,leas!D52:G491,4,FALSE),"") ->  | B66: 69047 | C66: 47 | G66: =IF($C66<=$B$16,VLOOKUP(A66&$B$12, localcont!A56:X1810, 18, FALSE), "") ->  | H66: =IF($C66<=$B$16,VLOOKUP(A66&$B$12, localcont!$A$10:$X$1764, 23, FALSE), "") ->  | J66: =IF($C66<=$B$16,VLOOKUP(A66&$B$12, localcont!$A$10:$X$1764, 15, FALSE), "") ->  | K66: =IF($C66<=$B$16,VLOOKUP(A66&$B$12, localcont!$A$10:$X$1764, 14, FALSE),"") -> 
A67: =IF($C67<=$B$16,VLOOKUP(E67,leas!D53:G492,4,FALSE),"") ->  | B67: 69048 | C67: 48 | G67: =IF($C67<=$B$16,VLOOKUP(A67&$B$12, localcont!A57:X1811, 18, FALSE), "") ->  | H67: =IF($C67<=$B$16,VLOOKUP(A67&$B$12, localcont!$A$10:$X$1764, 23, FALSE), "") ->  | J67: =IF($C67<=$B$16,VLOOKUP(A67&$B$12, localcont!$A$10:$X$1764, 15, FALSE), "") ->  | K67: =IF($C67<=$B$16,VLOOKUP(A67&$B$12, localcont!$A$10:$X$1764, 14, FALSE),"") -> 
A68: =IF($C68<=$B$16,VLOOKUP(E68,leas!D54:G493,4,FALSE),"") ->  | B68: 69049 | C68: 49 | G68: =IF($C68<=$B$16,VLOOKUP(A68&$B$12, localcont!A58:X1812, 18, FALSE), "") ->  | H68: =IF($C68<=$B$16,VLOOKUP(A68&$B$12, localcont!$A$10:$X$1764, 23, FALSE), "") ->  | J68: =IF($C68<=$B$16,VLOOKUP(A68&$B$12, localcont!$A$10:$X$1764, 15, FALSE), "") ->  | K68: =IF($C68<=$B$16,VLOOKUP(A68&$B$12, localcont!$A$10:$X$1764, 14, FALSE),"") -> 

Sheet Comparison to FY25
B1: Return to Index | P1: More about the data
A2: Massachusetts Department of Elementary and Secondary Education
A3: =CYr&" Chapter 70 Comparison to "&PYr -> FY26 Chapter 70 Comparison to FY25
C7: =PYr -> FY25 | D7: =CYr -> FY26 | F7: =PYr -> FY25 | G7: =CYr -> FY26 | I7: =PYr -> FY25 | J7: =CYr -> FY26 | L7: =PYr -> FY25 | M7: =CYr -> FY26
B8: Operating | C8: Foundation | D8: Foundation | F8: Foundation | G8: Foundation | I8: Minimum | J8: Minimum | L8: Chapter 70 | M8: Chapter 70
A9: LEA | B9: District name | C9: Enrollment | D9: Enrollment | E9: change | F9: Budget | G9: Budget | H9: change per pupil | I9: Contribution | J9: Contribution | K9: change per pupil | L9: aid | M9: aid | N9: change in aid | O9: change in aid per pupil | P9: % change in aid
A10: 1 | B10: Abington | C10: =VLOOKUP(A10,aidcalc,14,FALSE) -> 2202 | D10: =VLOOKUP(A10,aidcalc,15,FALSE) -> 2200 | E10: =D10-C10 -> -2 | F10: =VLOOKUP(A10,aidcalc,4,FALSE) -> 32236384.53 | G10: =VLOOKUP(A10,aidcalc,9,FALSE) -> 33501030.56 | H10: =(G10-F10)/$D10 -> 574.8391042 | I10: =VLOOKUP(A10,aidcalc,5,FALSE) -> 17754107 | J10: =VLOOKUP(A10,aidcalc,10,FALSE) -> 18800612 | K10: =(J10-I10)/$D10 -> 475.6840909 | L10: =VLOOKUP(A10,aidcalc,6,FALSE) -> 14482278 | M10: =VLOOKUP(A10,aidcalc,25,FALSE) -> 14700419 | N10: =M10-L10 -> 218141 | O10: =(M10-L10)/$D10 -> 99.155 | P10: =ROUND(IF(F10>0,(M10-L10)/L10,100),2) -> 0.02
A11: 3 | B11: Acushnet | C11: 1173 | D11: 1131 | E11: -42 | F11: 15622821.81 | G11: 15639642.75 | H11: 14.87262599 | I11: 8852864 | J11: 9288698 | K11: 385.3527851 | L11: 7292322 | M11: 7377147 | N11: 84825 | O11: 75 | P11: 0.01
A12: 5 | B12: Agawam | C12: 3486 | D12: 3463 | E12: -23 | F12: 52988778.25 | G12: 55345476.31 | H12: 680.5365463 | I12: 26903037 | J12: 28135196 | K12: 355.8068149 | L12: 26085741 | M12: 27210280 | N12: 1124539 | O12: 324.7297141 | P12: 0.04
A13: 7 | B13: Amesbury | C13: 1898 | D13: 1919 | E13: 21 | F13: 26495878.26 | G13: 28109289.03 | H13: 840.7560031 | I13: 19160041 | J13: 20286760 | K13: 587.1386139 | L13: 9669679 | M13: 9813604 | N13: 143925 | O13: 75 | P13: 0.01
A14: 8 | B14: Amherst | C14: 984 | D14: 1037 | E14: 53 | F14: 13476149.79 | G14: 14981907.18 | H14: 1452.032199 | I14: 11117824 | J14: 11896370 | K14: 750.7675988 | L14: 6383109 | M14: 6460884 | N14: 77775 | O14: 75 | P14: 0.01
A15: 9 | B15: Andover | C15: 5465 | D15: 5464 | E15: -1 | F15: 72595075.47 | G15: 75901319.69 | H15: 605.0959395 | I15: 59890937 | J15: 62087646 | K15: 402.0331259 | L15: 14519160 | M15: 14928960 | N15: 409800 | O15: 75 | P15: 0.03
A16: 10 | B16: Arlington | C16: 6021 | D16: 6114 | E16: 93 | F16: 77449420.44 | G16: 81515548.27 | H16: 665.051984 | I16: 58893679 | J16: 61905761 | K16: 492.6532548 | L16: 19329593 | M16: 19788143 | N16: 458550 | O16: 75 | P16: 0.02
A17: 14 | B17: Ashland | C17: 2857 | D17: 2837 | E17: -20 | F17: 37765344.57 | G17: 39209499.74 | H17: 509.0430631 | I17: 26791174 | J17: 28541470 | K17: 616.9531195 | L17: 11570628 | M17: 11783403 | N17: 212775 | O17: 75 | P17: 0.02
A18: 16 | B18: Attleboro | C18: 6313 | D18: 6440 | E18: 127 | F18: 102004503.3 | G18: 110074456.2 | H18: 1253.098267 | I18: 46028760 | J18: 48277999 | K18: 349.2607143 | L18: 55975743 | M18: 61796457 | N18: 5820714 | O18: 903.8375776 | P18: 0.1
A19: 17 | B19: Auburn | C19: 2367 | D19: 2400 | E19: 33 | F19: 32470504.22 | G19: 34174444.38 | H19: 709.9750667 | I19: 17758731 | J19: 18808409 | K19: 437.3658333 | L19: 15380489 | M19: 15560489 | N19: 180000 | O19: 75 | P19: 0.01
A20: 18 | B20: Avon | C20: 572 | D20: 588 | E20: 16 | F20: 9514711.52 | G20: 10349488.58 | H20: 1419.688878 | I20: 5674808 | J20: 5949758 | K20: 467.6020408 | L20: 4205555 | M20: 4399731 | N20: 194176 | O20: 330.2312925 | P20: 0.05
A21: 20 | B21: Barnstable | C21: 5306 | D21: 5230 | E21: -76 | F21: 88879328.45 | G21: 91282281.55 | H21: 459.4556597 | I21: 63910403 | J21: 68459559 | K21: 869.8195029 | L21: 25303877 | M21: 25696127 | N21: 392250 | O21: 75 | P21: 0.02
A22: 23 | B22: Bedford | C22: 2579 | D22: 2528 | E22: -51 | F22: 34828204.55 | G22: 35245066.37 | H22: 164.8978734 | I22: 28733269 | J22: 29077179 | K22: 136.0403481 | L22: 6288709 | M22: 6478309 | N22: 189600 | O22: 75 | P22: 0.03
A23: 24 | B23: Belchertown | C23: 2106 | D23: 2043 | E23: -63 | F23: 27898291.62 | G23: 27957662.77 | H23: 29.06076848 | I23: 14251380 | J23: 15052180 | K23: 391.9725893 | L23: 14429030 | M23: 14582255 | N23: 153225 | O23: 75 | P23: 0.01
A24: 25 | B24: Bellingham | C24: 2175 | D24: 2206 | E24: 31 | F24: 30088447.59 | G24: 31820375.34 | H24: 785.0987081 | I24: 20822076 | J24: 22163244 | K24: 607.9637353 | L24: 10200632 | M24: 10366082 | N24: 165450 | O24: 75 | P24: 0.02
A25: 26 | B25: Belmont | C25: 4521 | D25: 4538 | E25: 17 | F25: 59533725.07 | G25: 61875520.81 | H25: 516.0413706 | I25: 47889465 | J25: 49876878 | K25: 437.9490965 | L25: 12254719 | M25: 12595069 | N25: 340350 | O25: 75 | P25: 0.03
A26: 27 | B26: Berkley | C26: 682 | D26: 640 | E26: -42 | F26: 8895289.57 | G26: 8738336.55 | H26: -245.2390937 | I26: 5017565 | J26: 5232212 | K26: 335.3859375 | L26: 4222848 | M26: 4270848 | N26: 48000 | O26: 75 | P26: 0.01
A27: 30 | B27: Beverly | C27: 4466 | D27: 4437 | E27: -29 | F27: 62707090.12 | G27: 64124970 | H27: 319.558233 | I27: 49168020 | J27: 51585549 | K27: 544.8566599 | L27: 15008945 | M27: 15341720 | N27: 332775 | O27: 75 | P27: 0.02
A28: 31 | B28: Billerica | C28: 4925 | D28: 4999 | E28: 74 | F28: 65232366.11 | G28: 68911291.64 | H28: 735.9322925 | I28: 52490595 | J28: 55154759 | K28: 532.9393879 | L28: 20582134 | M28: 20957059 | N28: 374925 | O28: 75 | P28: 0.02
A29: 35 | B29: Boston | C29: 57369 | D29: 57616 | E29: 247 | F29: 1145949554 | G29: 1220875807 | H29: 1300.441759 | I29: 945408382 | J29: 1007222540 | K29: 1072.864447 | L29: 236667161 | M29: 240988361 | N29: 4321200 | O29: 75 | P29: 0.02
A30: 36 | B30: Bourne | C30: 1698 | D30: 1624 | E30: -74 | F30: 24109451.63 | G30: 24040569.22 | H30: -42.41527709 | I30: 19319804 | J30: 19771933 | K30: 278.4045567 | L30: 5649175 | M30: 5770975 | N30: 121800 | O30: 75 | P30: 0.02
A31: 38 | B31: Boxford | C31: 745 | D31: 743 | E31: -2 | F31: 9024222.11 | G31: 9323322.947 | H31: 402.5583271 | I31: 7139841 | J31: 7499139 | K31: 483.577389 | L31: 1932573 | M31: 1988298 | N31: 55725 | O31: 75 | P31: 0.03
A32: 40 | B32: Braintree | C32: 5181 | D32: 5121 | E32: -60 | F32: 73532608.81 | G32: 75740827.68 | H32: 431.2085283 | I32: 55176708 | J32: 57604796 | K32: 474.1433314 | L32: 21191400 | M32: 21575475 | N32: 384075 | O32: 75 | P32: 0.02
A33: 41 | B33: Brewster | C33: 421 | D33: 419 | E33: -2 | F33: 5984373.99 | G33: 6081078.08 | H33: 230.7973508 | I33: 4937108 | J33: 5016889 | K33: 190.4081146 | L33: 1421235 | M33: 1452660 | N33: 31425 | O33: 75 | P33: 0.02
A34: 43 | B34: Brimfield | C34: 270 | D34: 251 | E34: -19 | F34: 3675840.46 | G34: 3424747.86 | H34: -1000.368924 | I34: 1922423 | J34: 1917011 | K34: -21.56175299 | L34: 1753417 | M34: 1772242 | N34: 18825 | O34: 75 | P34: 0.01
A35: 44 | B35: Brockton | C35: 16775 | D35: 17203 | E35: 428 | F35: 314919037.4 | G35: 344720845.5 | H35: 1732.361103 | I35: 58428285 | J35: 62646528 | K35: 245.2039179 | L35: 256490752 | M35: 282074317 | N35: 25583565 | O35: 1487.157182 | P35: 0.1
A36: 45 | B36: Brookfield | C36: 225 | D36: 221 | E36: -4 | F36: 3232462.2 | G36: 3273863.38 | H36: 187.3356561 | I36: 1406803 | J36: 1445613 | K36: 175.6108597 | L36: 1935136 | M36: 1951711 | N36: 16575 | O36: 75 | P36: 0.01
A37: 46 | B37: Brookline | C37: 6899 | D37: 6881 | E37: -18 | F37: 91993751.56 | G37: 95312162.89 | H37: 482.2571331 | I37: 75894845 | J37: 78632534 | K37: 397.862084 | L37: 16752743 | M37: 17268818 | N37: 516075 | O37: 75 | P37: 0.03
A38: 48 | B38: Burlington | C38: 3523 | D38: 3523 | E38: 0 | F38: 49033422.45 | G38: 50997674.38 | H38: 557.5509313 | I38: 39058316 | J38: 41124446 | K38: 586.4689185 | L38: 9975106 | M38: 10239331 | N38: 264225 | O38: 75 | P38: 0.03
A39: 49 | B39: Cambridge | C39: 7297 | D39: 7446 | E39: 149 | F39: 118963463.1 | G39: 129510666.7 | H39: 1416.492549 | I39: 98144857 | J39: 106846300 | K39: 1168.606366 | L39: 20818606 | M39: 22664367 | N39: 1845761 | O39: 247.8862476 | P39: 0.09
A40: 50 | B40: Canton | C40: 3291 | D40: 3301 | E40: 10 | F40: 44999693.3 | G40: 47358582.6 | H40: 714.5983935 | I40: 36588682 | J40: 38091394 | K40: 455.2293244 | L40: 9007450 | M40: 9267189 | N40: 259739 | O40: 78.68494396 | P40: 0.03
A41: 51 | B41: Carlisle | C41: 571 | D41: 576 | E41: 5 | F41: 6853478.081 | G41: 7237676.12 | H41: 667.0104844 | I41: 5654120 | J41: 5971083 | K41: 550.2829861 | L41: 1447374 | M41: 1490574 | N41: 43200 | O41: 75 | P41: 0.03
A42: 52 | B42: Carver | C42: 1501 | D42: 1467 | E42: -34 | F42: 20958681.78 | G42: 21388080.56 | H42: 292.7053752 | I42: 11414545 | J42: 11861024 | K42: 304.3483299 | L42: 10619393 | M42: 10729418 | N42: 110025 | O42: 75 | P42: 0.01
A43: 56 | B43: Chelmsford | C43: 5181 | D43: 5132 | E43: -49 | F43: 66887500.86 | G43: 68619087.45 | H43: 337.4097019 | I43: 52463272 | J43: 55152965 | K43: 524.1022993 | L43: 14680624 | M43: 15065524 | N43: 384900 | O43: 75 | P43: 0.03
A44: 57 | B44: Chelsea | C44: 7095 | D44: 7029 | E44: -66 | F44: 146924932.9 | G44: 155824471.3 | H44: 1266.117294 | I44: 23727035 | J44: 25069966 | K44: 191.055769 | L44: 123197898 | M44: 130754505 | N44: 7556607 | O44: 1075.06146 | P44: 0.06
A45: 61 | B45: Chicopee | C45: 7202 | D45: 7198 | E45: -4 | F45: 129158251.1 | G45: 136705068.7 | H45: 1048.460342 | I45: 35132393 | J45: 36463911 | K45: 184.9844401 | L45: 94025858 | M45: 100241158 | N45: 6215300 | O45: 863.4759655 | P45: 0.07
A46: 63 | B46: Clarksburg | C46: 204 | D46: 201 | E46: -3 | F46: 2889718.21 | G46: 2998078.92 | H46: 539.10801 | I46: 806811 | J46: 793818 | K46: -64.64179104 | L46: 2082907 | M46: 2204261 | N46: 121354 | O46: 603.7512438 | P46: 0.06
A47: 64 | B47: Clinton | C47: 2095 | D47: 2129 | E47: 34 | F47: 34438020.57 | G47: 36558782.02 | H47: 996.1303194 | I47: 14024833 | J47: 14710647 | K47: 322.1296383 | L47: 20413188 | M47: 21848135 | N47: 1434947 | O47: 674.0004697 | P47: 0.07
A48: 65 | B48: Cohasset | C48: 1433 | D48: 1408 | E48: -25 | F48: 17839057.45 | G48: 18191220.13 | H48: 250.1155355 | I48: 14717222 | J48: 15007757 | K48: 206.3458807 | L48: 3121835 | M48: 3227435 | N48: 105600 | O48: 75 | P48: 0.03
A49: 67 | B49: Concord | C49: 1943 | D49: 1892 | E49: -51 | F49: 24161392.54 | G49: 24461959.49 | H49: 158.8620241 | I49: 19933149 | J49: 20181116 | K49: 131.0607822 | L49: 4240305 | M49: 4382205 | N49: 141900 | O49: 75 | P49: 0.03
A50: 68 | B50: Conway | C50: 68 | D50: 83 | E50: 15 | F50: 969244.92 | G50: 1196505.07 | H50: 2738.074096 | I50: 799627 | J50: 987117 | K50: 2258.915663 | L50: 644516 | M50: 650741 | N50: 6225 | O50: 75 | P50: 0.01
A51: 71 | B51: Danvers | C51: 3349 | D51: 3313 | E51: -36 | F51: 44328380.18 | G51: 46476053.4 | H51: 648.2563296 | I51: 34918958 | J51: 36728197 | K51: 546.1029279 | L51: 9640400 | M51: 9888875 | N51: 248475 | O51: 75 | P51: 0.03
A52: 72 | B52: Dartmouth | C52: 3284 | D52: 3203 | E52: -81 | F52: 44678547.48 | G52: 45395663.05 | H52: 223.88872 | I52: 36166183 | J52: 37451422 | K52: 401.2610053 | L52: 10790867 | M52: 11031092 | N52: 240225 | O52: 75 | P52: 0.02
A53: 73 | B53: Dedham | C53: 2748 | D53: 2707 | E53: -41 | F53: 39060888.15 | G53: 40094755.54 | H53: 381.9236759 | I53: 29321375 | J53: 30840581 | K53: 561.2138899 | L53: 9739513 | M53: 9942538 | N53: 203025 | O53: 75 | P53: 0.02
A54: 74 | B54: Deerfield | C54: 279 | D54: 261 | E54: -18 | F54: 3547455.86 | G54: 3493016.69 | H54: -208.5791954 | I54: 2926651 | J54: 2881739 | K54: -172.0766284 | L54: 1186069 | M54: 1205644 | N54: 19575 | O54: 75 | P54: 0.02
A55: 77 | B55: Douglas | C55: 1072 | D55: 1041 | E55: -31 | F55: 14237865.39 | G55: 14294446.85 | H55: 54.35298751 | I55: 8850986 | J55: 9322034 | K55: 452.4956772 | L55: 9039013 | M55: 9117088 | N55: 78075 | O55: 75 | P55: 0.01
A56: 78 | B56: Dover | C56: 491 | D56: 474 | E56: -17 | F56: 5959421.474 | G56: 6012595.309 | H56: 112.1810865 | I56: 4916523 | J56: 4960391 | K56: 92.54852321 | L56: 1083811 | M56: 1119361 | N56: 35550 | O56: 75 | P56: 0.03
A57: 79 | B57: Dracut | C57: 3837 | D57: 3775 | E57: -62 | F57: 54583406.89 | G57: 55951048.69 | H57: 362.2892185 | I57: 27974680 | J57: 28785919 | K57: 214.8977483 | L57: 27570439 | M57: 27853564 | N57: 283125 | O57: 75 | P57: 0.01
A58: 82 | B58: Duxbury | C58: 2658 | D58: 2693 | E58: 35 | F58: 33652713.46 | G58: 35054190.46 | H58: 520.4147785 | I58: 27763489 | J58: 28849041 | K58: 403.1013739 | L58: 6947940 | M58: 7149915 | N58: 201975 | O58: 75 | P58: 0.03
A59: 83 | B59: East Bridgewater | C59: 1963 | D59: 1956 | E59: -7 | F59: 26713492.3 | G59: 27680260.6 | H59: 494.2578221 | I59: 14744525 | J59: 15476590 | K59: 374.2663599 | L59: 13077469 | M59: 13224169 | N59: 146700 | O59: 75 | P59: 0.01
A60: 85 | B60: Eastham | C60: 198 | D60: 195 | E60: -3 | F60: 2893667.62 | G60: 2811123.1 | H60: -423.3052308 | I60: 2387276 | J60: 2319176 | K60: -349.2307692 | L60: 527429 | M60: 542054 | N60: 14625 | O60: 75 | P60: 0.03
A61: 86 | B61: Easthampton | C61: 1580 | D61: 1565 | E61: -15 | F61: 23097746.73 | G61: 23886649.57 | H61: 504.0912716 | I61: 14936633 | J61: 15814907 | K61: 561.1974441 | L61: 8828792 | M61: 8946167 | N61: 117375 | O61: 75 | P61: 0.01
A62: 87 | B62: East Longmeadow | C62: 2522 | D62: 2468 | E62: -54 | F62: 34416160.82 | G62: 34975334.98 | H62: 226.5697569 | I62: 19663608 | J62: 20638923 | K62: 395.1843598 | L62: 15299736 | M62: 15484836 | N62: 185100 | O62: 75 | P62: 0.01
A63: 88 | B63: Easton | C63: 3404 | D63: 3349 | E63: -55 | F63: 44308894.52 | G63: 45287684.26 | H63: 292.2632846 | I63: 34692019 | J63: 36311272 | K63: 483.5034339 | L63: 11009437 | M63: 11260612 | N63: 251175 | O63: 75 | P63: 0.02
A64: 89 | B64: Edgartown | C64: 434 | D64: 393 | E64: -41 | F64: 6714943.73 | G64: 6271711.71 | H64: -1127.816845 | I64: 5539828 | J64: 5174162 | K64: -930.4478372 | L64: 1210787 | M64: 1240262 | N64: 29475 | O64: 75 | P64: 0.02
A65: 91 | B65: Erving | C65: 204 | D65: 175 | E65: -29 | F65: 2756151.77 | G65: 2485223.59 | H65: -1548.161029 | I65: 2220663 | J65: 2050310 | K65: -973.4457143 | L65: 577216 | M65: 590341 | N65: 13125 | O65: 75 | P65: 0.02
A66: 93 | B66: Everett | C66: 8020 | D66: 8009 | E66: -11 | F66: 161811104.9 | G66: 172711734.6 | H66: 1361.047538 | I66: 43738229 | J66: 45846412 | K66: 263.2267449 | L66: 118072876 | M66: 126865323 | N66: 8792447 | O66: 1097.820827 | P66: 0.07
A67: 94 | B67: Fairhaven | C67: 1595 | D67: 1590 | E67: -5 | F67: 23598054.43 | G67: 24525650.53 | H67: 583.3937736 | I67: 14889430 | J67: 15860855 | K67: 610.9591195 | L67: 9797583 | M67: 9916833 | N67: 119250 | O67: 75 | P67: 0.01
A68: 95 | B68: Fall River | C68: 12433 | D68: 13106 | E68: 673 | F68: 243053149.8 | G68: 273966514.1 | H68: 2358.718472 | I68: 40721548 | J68: 43178238 | K68: 187.4477339 | L68: 202331602 | M68: 230788276 | N68: 28456674 | O68: 2171.270716 | P68: 0.14
A69: 96 | B69: Falmouth | C69: 2870 | D69: 2810 | E69: -60 | F69: 43218462.88 | G69: 43846641.97 | H69: 223.5512776 | I69: 35655232 | J69: 36173479 | K69: 184.4295374 | L69: 9621389 | M69: 9832139 | N69: 210750 | O69: 75 | P69: 0.02
A70: 97 | B70: Fitchburg | C70: 5623 | D70: 5791 | E70: 168 | F70: 101071841.4 | G70: 110532274.9 | H70: 1633.644186 | I70: 23118748 | J70: 24320887 | K70: 207.5874633 | L70: 77953093 | M70: 86211388 | N70: 8258295 | O70: 1426.056812 | P70: 0.11
A71: 98 | B71: Florida | C71: 55 | D71: 47 | E71: -8 | F71: 865066.34 | G71: 767290.66 | H71: -2080.333617 | I71: 439942 | J71: 449313 | K71: 199.3829787 | L71: 565437 | M71: 568962 | N71: 3525 | O71: 75 | P71: 0.01
A72: 99 | B72: Foxborough | C72: 2573 | D72: 2580 | E72: 7 | F72: 35604499.84 | G72: 37172001.84 | H72: 607.5589168 | I72: 28583943 | J72: 29764062 | K72: 457.4104651 | L72: 9695632 | M72: 9889132 | N72: 193500 | O72: 75 | P72: 0.02
A73: 100 | B73: Framingham | C73: 9521 | D73: 9532 | E73: 11 | F73: 164084535.7 | G73: 173968070 | H73: 1036.879393 | I73: 78033062 | J73: 81468888 | K73: 360.4517415 | L73: 85986718 | M73: 92499182 | N73: 6512464 | O73: 683.2211498 | P73: 0.08
A74: 101 | B74: Franklin | C74: =VLOOKUP(A74,aidcalc,14,FALSE) -> 5058 | D74: =VLOOKUP(A74,aidcalc,15,FALSE) -> 4951 | E74: =D74-C74 -> -107 | F74: =VLOOKUP(A74,aidcalc,4,FALSE) -> 66584573.91 | G74: =VLOOKUP(A74,aidcalc,9,FALSE) -> 68009481.34 | H74: =(G74-F74)/$D74 -> 287.8019461 | I74: =VLOOKUP(A74,aidcalc,5,FALSE) -> 49904466 | J74: =VLOOKUP(A74,aidcalc,10,FALSE) -> 52439022 | K74: =(J74-I74)/$D74 -> 511.9280953 | L74: =VLOOKUP(A74,aidcalc,6,FALSE) -> 29717993 | M74: =VLOOKUP(A74,aidcalc,25,FALSE) -> 30089318 | N74: =M74-L74 -> 371325 | O74: =(M74-L74)/$D74 -> 75 | P74: =ROUND(IF(F74>0,(M74-L74)/L74,100),2) -> 0.01
A75: 103 | B75: Gardner | C75: 2453 | D75: 2500 | E75: 47 | F75: 41586508.2 | G75: 45038410.02 | H75: 1380.760728 | I75: 11909298 | J75: 12662453 | K75: 301.262 | L75: 29677210 | M75: 32375957 | N75: 2698747 | O75: 1079.4988 | P75: 0.09
A76: 105 | B76: Georgetown | C76: 1196 | D76: 1157 | E76: -39 | F76: 15097839.61 | G76: 15021753.37 | H76: -65.76165946 | I76: 11942079 | J76: 12206104 | K76: 228.1979257 | L76: 5837882 | M76: 5924657 | N76: 86775 | O76: 75 | P76: 0.01
A77: 107 | B77: Gloucester | C77: 3064 | D77: 3009 | E77: -55 | F77: 49375946.82 | G77: 50710044.2 | H77: 443.3690184 | I77: 37665556 | J77: 39344590 | K77: 558.003988 | L77: 11710391 | M77: 11936066 | N77: 225675 | O77: 75 | P77: 0.02
A78: 110 | B78: Grafton | C78: 2902 | D78: 2956 | E78: 54 | F78: 37107723.81 | G78: 39402336.33 | H78: 776.2559269 | I78: 25816666 | J78: 27625677 | K78: 611.979364 | L78: 13096328 | M78: 13318028 | N78: 221700 | O78: 75 | P78: 0.02
A79: 111 | B79: Granby | C79: 655 | D79: 641 | E79: -14 | F79: 9658208.78 | G79: 9473831.24 | H79: -287.640468 | I79: 5916543 | J79: 6338906 | K79: 658.9126365 | L79: 4833550 | M79: 4881625 | N79: 48075 | O79: 75 | P79: 0.01
A80: 114 | B80: Greenfield | C80: 1759 | D80: 1686 | E80: -73 | F80: 27960950.6 | G80: 28110844.75 | H80: 88.9051898 | I80: 11465787 | J80: 11981726 | K80: 306.0136418 | L80: 16495164 | M80: 16621614 | N80: 126450 | O80: 75 | P80: 0.01
A81: 117 | B81: Hadley | C81: 449 | D81: 435 | E81: -14 | F81: 6210751.32 | G81: 6594207.05 | H81: 881.5074253 | I81: 5123870 | J81: 5374427 | K81: 575.9931034 | L81: 1396796 | M81: 1429421 | N81: 32625 | O81: 75 | P81: 0.02
A82: 118 | B82: Halifax | C82: 564 | D82: 543 | E82: -21 | F82: 7511760.556 | G82: 7476145.688 | H82: -65.58907643 | I82: 4050476 | J82: 4173331 | K82: 226.252302 | L82: 3567733 | M82: 3608458 | N82: 40725 | O82: 75 | P82: 0.01
A83: 121 | B83: Hancock | C83: 85 | D83: 86 | E83: 1 | F83: 1270682.74 | G83: 1251017 | H83: -228.6713953 | I83: 820427 | J83: 855049 | K83: 402.5813953 | L83: 450256 | M83: 456706 | N83: 6450 | O83: 75 | P83: 0.01
A84: 122 | B84: Hanover | C84: 2497 | D84: 2472 | E84: -25 | F84: 31861566.58 | G84: 32549060.69 | H84: 278.1125017 | I84: 24358612 | J84: 25651759 | K84: 523.1177184 | L84: 7718131 | M84: 7903531 | N84: 185400 | O84: 75 | P84: 0.02
A85: 125 | B85: Harvard | C85: 881 | D85: 868 | E85: -13 | F85: 10978851.09 | G85: 11305864.01 | H85: 376.7429954 | I85: 8697832 | J85: 9082614 | K85: 443.297235 | L85: 2288491 | M85: 2353591 | N85: 65100 | O85: 75 | P85: 0.03
A86: 127 | B86: Hatfield | C86: 310 | D86: 278 | E86: -32 | F86: 4167872.81 | G86: 3981919.64 | H86: -668.896295 | I86: 3438495 | J86: 3285084 | K86: -551.8381295 | L86: 927396 | M86: 948246 | N86: 20850 | O86: 75 | P86: 0.02
A87: 128 | B87: Haverhill | C87: 8401 | D87: 8435 | E87: 34 | F87: 140921702.3 | G87: 149713124.7 | H87: 1042.255164 | I87: 52953650 | J87: 55493490 | K87: 301.107291 | L87: 87968052 | M87: 94219635 | N87: 6251583 | O87: 741.1479549 | P87: 0.07
A88: 131 | B88: Hingham | C88: 3606 | D88: 3528 | E88: -78 | F88: 45884665.99 | G88: 46634192.57 | H88: 212.4508438 | I88: 37854849 | J88: 38473209 | K88: 175.2721088 | L88: 8910217 | M88: 9174817 | N88: 264600 | O88: 75 | P88: 0.03
A89: 133 | B89: Holbrook | C89: 1355 | D89: 1394 | E89: 39 | F89: 21278519.47 | G89: 23413602.23 | H89: 1531.62321 | I89: 10008705 | J89: 10616613 | K89: 436.0889527 | L89: 11269814 | M89: 12796989 | N89: 1527175 | O89: 1095.534433 | P89: 0.14
A90: 135 | B90: Holland | C90: 157 | D90: 153 | E90: -4 | F90: 2372741.1 | G90: 2321784.99 | H90: -333.0464706 | I90: 1515869 | J90: 1507847 | K90: -52.43137255 | L90: 1029684 | M90: 1041159 | N90: 11475 | O90: 75 | P90: 0.01
A91: 136 | B91: Holliston | C91: 2652 | D91: 2577 | E91: -75 | F91: 33400106.24 | G91: 33988555.89 | H91: 228.3467787 | I91: 25423217 | J91: 26548599 | K91: 436.7023671 | L91: 9188590 | M91: 9381865 | N91: 193275 | O91: 75 | P91: 0.02
A92: 137 | B92: Holyoke | C92: 5850 | D92: 5804 | E92: -46 | F92: 114374878.1 | G92: 120721754.3 | H92: 1093.53485 | I92: 13183748 | J92: 13957634 | K92: 133.3366644 | L92: 101191130 | M92: 106764120 | N92: 5572990 | O92: 960.1981392 | P92: 0.06
A93: 138 | B93: Hopedale | C93: 865 | D93: 883 | E93: 18 | F93: 11657637.4 | G93: 12503191.36 | H93: 957.5922484 | I93: 6842443 | J93: 7211367 | K93: 417.8074745 | L93: 6311210 | M93: 6377435 | N93: 66225 | O93: 75 | P93: 0.01
A94: 139 | B94: Hopkinton | C94: 4165 | D94: 4208 | E94: 43 | F94: 52668757.26 | G94: 55425077.17 | H94: 655.0189915 | I94: 43451724 | J94: 45725689 | K94: 540.3909221 | L94: 10232819 | M94: 10548419 | N94: 315600 | O94: 75 | P94: 0.03
A95: 141 | B95: Hudson | C95: 2407 | D95: 2414 | E95: 7 | F95: 35386035.23 | G95: 37349315.83 | H95: 813.2893927 | I95: 22432839 | J95: 23481576 | K95: 434.4395195 | L95: 13248275 | M95: 13867740 | N95: 619465 | O95: 256.6135046 | P95: 0.05
A96: 142 | B96: Hull | C96: 757 | D96: 700 | E96: -57 | F96: 10813118.21 | G96: 10469817.63 | H96: -490.4294015 | I96: 8920823 | J96: 8637600 | K96: -404.6042857 | L96: 4075024 | M96: 4127524 | N96: 52500 | O96: 75 | P96: 0.01
A97: 144 | B97: Ipswich | C97: 1551 | D97: 1534 | E97: -17 | F97: 21036885.2 | G97: 21484399.09 | H97: 291.7300461 | I97: 17194551 | J97: 17724629 | K97: 345.5528031 | L97: 4308646 | M97: 4423696 | N97: 115050 | O97: 75 | P97: 0.03
A98: 145 | B98: Kingston | C98: 1151 | D98: 1202 | E98: 51 | F98: 14866128.2 | G98: 16585038.48 | H98: 1430.041831 | I98: 9396563 | J98: 10539421 | K98: 950.797005 | L98: 5550621 | M98: 6045617 | N98: 494996 | O98: 411.8103161 | P98: 0.09
A99: 149 | B99: Lawrence | C99: 14816 | D99: 15214 | E99: 398 | F99: 301454148.4 | G99: 333930425.1 | H99: 2134.631041 | I99: 15203337 | J99: 16318715 | K99: 73.31260681 | L99: 286250811 | M99: 317611710 | N99: 31360899 | O99: 2061.318457 | P99: 0.11
A100: 150 | B100: Lee | C100: 549 | D100: 537 | E100: -12 | F100: 8566370.2 | G100: 8801759.27 | H100: 438.3409125 | I100: 7067255 | J100: 7261451 | K100: 361.6312849 | L100: 2227335 | M100: 2267610 | N100: 40275 | O100: 75 | P100: 0.02
A101: 151 | B101: Leicester | C101: 1405 | D101: 1360 | E101: -45 | F101: 21380842.22 | G101: 21685353.44 | H101: 223.9053088 | I101: 10610635 | J101: 11866934 | K101: 923.7492647 | L101: 11244367 | M101: 11346367 | N101: 102000 | O101: 75 | P101: 0.01
A102: 152 | B102: Lenox | C102: 482 | D102: 441 | E102: -41 | F102: 6823610.07 | G102: 6520538.45 | H102: -687.2372336 | I102: 5629478 | J102: 5379444 | K102: -566.9705215 | L102: 1395373 | M102: 1428448 | N102: 33075 | O102: 75 | P102: 0.02
A103: 153 | B103: Leominster | C103: 6009 | D103: 6122 | E103: 113 | F103: 103734761.7 | G103: 111313888 | H103: 1238.014757 | I103: 36964269 | J103: 38590697 | K103: 265.6693891 | L103: 66770493 | M103: 72723191 | N103: 5952698 | O103: 972.345312 | P103: 0.09
A104: 154 | B104: Leverett | C104: 105 | D104: 96 | E104: -9 | F104: 1407132.92 | G104: 1304428.15 | H104: -1069.841354 | I104: 1083930 | J104: 1076153 | K104: -81.01041667 | L104: 407888 | M104: 415088 | N104: 7200 | O104: 75 | P104: 0.02
A105: 155 | B105: Lexington | C105: 6851 | D105: 6816 | E105: -35 | F105: 91458917.92 | G105: 94617837.14 | H105: 463.4564578 | I105: 75453607 | J105: 78059716 | K105: 382.3516725 | L105: 18321635 | M105: 18832835 | N105: 511200 | O105: 75 | P105: 0.03
A106: 157 | B106: Lincoln | C106: 585 | D106: 610 | E106: 25 | F106: 7515362.228 | G106: 8265928.551 | H106: 1230.436595 | I106: 6200174 | J106: 6819391 | K106: 1015.109836 | L106: 1348018 | M106: 1446538 | N106: 98520 | O106: 161.5081967 | P106: 0.07
A107: 158 | B107: Littleton | C107: 1636 | D107: 1601 | E107: -35 | F107: 20185599.03 | G107: 20480046 | H107: 183.9144097 | I107: 15942774 | J107: 16667629 | K107: 452.7514054 | L107: 5019100 | M107: 5139175 | N107: 120075 | O107: 75 | P107: 0.02
A108: 159 | B108: Longmeadow | C108: 2723 | D108: 2729 | E108: 6 | F108: 34218165.74 | G108: 35588989.33 | H108: 502.3171821 | I108: 27327546 | J108: 28680259 | K108: 495.6808355 | L108: 7382561 | M108: 7587236 | N108: 204675 | O108: 75 | P108: 0.03
A109: 160 | B109: Lowell | C109: 16506 | D109: 16836 | E109: 330 | F109: 308040584.4 | G109: 330445792.4 | H109: 1330.791636 | I109: 64989538 | J109: 68956678 | K109: 235.634355 | L109: 243051046 | M109: 261489114 | N109: 18438068 | O109: 1095.157282 | P109: 0.08
A110: 161 | B110: Ludlow | C110: 2221 | D110: 2201 | E110: -20 | F110: 33328396.51 | G110: 34386677.93 | H110: 480.8184552 | I110: 18877355 | J110: 19968467 | K110: 495.7346661 | L110: 14690003 | M110: 14855078 | N110: 165075 | O110: 75 | P110: 0.01
A111: 162 | B111: Lunenburg | C111: 1633 | D111: 1603 | E111: -30 | F111: 21553250.21 | G111: 22073945.75 | H111: 324.8256644 | I111: 12595979 | J111: 13334631 | K111: 460.7935122 | L111: 8988960 | M111: 9109185 | N111: 120225 | O111: 75 | P111: 0.01
A112: 163 | B112: Lynn | C112: 18143 | D112: 18512 | E112: 369 | F112: 351967448.9 | G112: 384629298.8 | H112: 1764.360952 | I112: 64398962 | J112: 67502992 | K112: 167.6766422 | L112: 287568487 | M112: 317126307 | N112: 29557820 | O112: 1596.684313 | P112: 0.1
A113: 164 | B113: Lynnfield | C113: 2195 | D113: 2196 | E113: 1 | F113: 27975039.2 | G113: 28903113.11 | H113: 422.6201791 | I113: 22407746 | J113: 23204609 | K113: 362.8702186 | L113: 6173290 | M113: 6337990 | N113: 164700 | O113: 75 | P113: 0.03
A114: 165 | B114: Malden | C114: 6863 | D114: 6927 | E114: 64 | F114: 121527751.1 | G114: 130437793.4 | H114: 1286.277213 | I114: 57647090 | J114: 60667748 | K114: 436.0701602 | L114: 63910729 | M114: 69770045 | N114: 5859316 | O114: 845.8663202 | P114: 0.09
A115: 167 | B115: Mansfield | C115: 3412 | D115: 3272 | E115: -140 | F115: 46131542.89 | G115: 45824586.93 | H115: -93.81294504 | I115: 34993046 | J115: 36857964 | K115: 569.9627139 | L115: 19845997 | M115: 20091397 | N115: 245400 | O115: 75 | P115: 0.01
A116: 168 | B116: Marblehead | C116: 2588 | D116: 2552 | E116: -36 | F116: 32926181.66 | G116: 33445073.46 | H116: 203.3275078 | I116: 27164100 | J116: 27592185 | K116: 167.744906 | L116: 6623479 | M116: 6814879 | N116: 191400 | O116: 75 | P116: 0.03
A117: 169 | B117: Marion | C117: 388 | D117: 372 | E117: -16 | F117: 5105842 | G117: 5064172.85 | H117: -112.0138441 | I117: 3952749 | J117: 4004960 | K117: 140.3521505 | L117: 1195102 | M117: 1223002 | N117: 27900 | O117: 75 | P117: 0.02
A118: 170 | B118: Marlborough | C118: 5345 | D118: 5378 | E118: 33 | F118: 91366536.51 | G118: 97477474.84 | H118: 1136.284553 | I118: 43502723 | J118: 45576532 | K118: 385.6097062 | L118: 47863814 | M118: 51900943 | N118: 4037129 | O118: 750.6747862 | P118: 0.08
A119: 171 | B119: Marshfield | C119: 3669 | D119: 3620 | E119: -49 | F119: 49730334.69 | G119: 51268162.59 | H119: 424.8143368 | I119: 40410183 | J119: 41905509 | K119: 413.0734807 | L119: 15590973 | M119: 15862473 | N119: 271500 | O119: 75 | P119: 0.02
A120: 172 | B120: Mashpee | C120: 1416 | D120: 1405 | E120: -11 | F120: 21264618.64 | G120: 21964764.18 | H120: 498.3242278 | I120: 17203029 | J120: 18120931 | K120: 653.311032 | L120: 5005530 | M120: 5110905 | N120: 105375 | O120: 75 | P120: 0.02
A121: 173 | B121: Mattapoisett | C121: 383 | D121: 364 | E121: -19 | F121: 4865916.08 | G121: 4742122.1 | H121: -340.0933516 | I121: 4014381 | J121: 3912251 | K121: -280.5769231 | L121: 1045053 | M121: 1072353 | N121: 27300 | O121: 75 | P121: 0.03
A122: 174 | B122: Maynard | C122: 1258 | D122: 1265 | E122: 7 | F122: 17943402.25 | G122: 18638398.79 | H122: 549.4043818 | I122: 12813459 | J122: 13605109 | K122: 625.8102767 | L122: 5794050 | M122: 5888925 | N122: 94875 | O122: 75 | P122: 0.02
A123: 175 | B123: Medfield | C123: 2371 | D123: 2374 | E123: 3 | F123: 29971700.25 | G123: 31077353.33 | H123: 465.7342353 | I123: 24726652 | J123: 25638817 | K123: 384.2312553 | L123: 6899678 | M123: 7077728 | N123: 178050 | O123: 75 | P123: 0.03
A124: 176 | B124: Medford | C124: 4524 | D124: 4511 | E124: -13 | F124: 73681605.55 | G124: 76664491.98 | H124: 661.2472698 | I124: 57259487 | J124: 60826753 | K124: 790.7927289 | L124: 17877796 | M124: 18216121 | N124: 338325 | O124: 75 | P124: 0.02
A125: 177 | B125: Medway | C125: 2157 | D125: 2145 | E125: -12 | F125: 28282405.94 | G125: 29200155.63 | H125: 427.855334 | I125: 20376839 | J125: 21596243 | K125: 568.4867133 | L125: 11042877 | M125: 11203752 | N125: 160875 | O125: 75 | P125: 0.01
A126: 178 | B126: Melrose | C126: 4112 | D126: 3985 | E126: -127 | F126: 53488054.66 | G126: 54259488.06 | H126: 193.5842916 | I126: 41053058 | J126: 43224298 | K126: 544.8531995 | L126: 12688006 | M126: 12986881 | N126: 298875 | O126: 75 | P126: 0.02
A127: 181 | B127: Methuen | C127: 6860 | D127: 6767 | E127: -93 | F127: 115622808.2 | G127: 120570223.2 | H127: 731.1090513 | I127: 47005987 | J127: 49535858 | K127: 373.8541451 | L127: 68616821 | M127: 71034365 | N127: 2417544 | O127: 357.2549136 | P127: 0.04
A128: 182 | B128: Middleborough | C128: 3086 | D128: 3000 | E128: -86 | F128: 45255834.98 | G128: 45765962.31 | H128: 170.0424433 | I128: 23019131 | J128: 25060283 | K128: 680.384 | L128: 22651805 | M128: 22876805 | N128: 225000 | O128: 75 | P128: 0.01
A129: 184 | B129: Middleton | C129: 702 | D129: 671 | E129: -31 | F129: 8701795.6 | G129: 8885649.089 | H129: 273.9992375 | I129: 7178981 | J129: 7330661 | K129: 226.0506706 | L129: 1842179 | M129: 1892504 | N129: 50325 | O129: 75 | P129: 0.03
A130: 185 | B130: Milford | C130: 4680 | D130: 4791 | E130: 111 | F130: 79260184.29 | G130: 86368278.71 | H130: 1483.634819 | I130: 30457781 | J130: 31831621 | K130: 286.754331 | L130: 48802403 | M130: 54536658 | N130: 5734255 | O130: 1196.880609 | P130: 0.12
A131: 186 | B131: Millbury | C131: 1646 | D131: 1583 | E131: -63 | F131: 23341579.9 | G131: 23480532.76 | H131: 87.77818067 | I131: 14332855 | J131: 15188966 | K131: 540.8155401 | L131: 9023943 | M131: 9142668 | N131: 118725 | O131: 75 | P131: 0.01
A132: 187 | B132: Millis | C132: 1086 | D132: 1081 | E132: -5 | F132: 14399304.71 | G132: 14821764.16 | H132: 390.8043013 | I132: 11879426 | J132: 12227955 | K132: 322.413506 | L132: 5104966 | M132: 5186041 | N132: 81075 | O132: 75 | P132: 0.02
A133: 189 | B133: Milton | C133: 4303 | D133: 4355 | E133: 52 | F133: 55677434.43 | G133: 58361210.54 | H133: 616.2516911 | I133: 44754901 | J133: 46814490 | K133: 472.9251435 | L133: 12123394 | M133: 12450019 | N133: 326625 | O133: 75 | P133: 0.03
A134: 191 | B134: Monson | C134: 811 | D134: 760 | E134: -51 | F134: 11739604.36 | G134: 11632479.86 | H134: -140.9532895 | I134: 6544648 | J134: 6793526 | K134: 327.4710526 | L134: 7751629 | M134: 7808629 | N134: 57000 | O134: 75 | P134: 0.01
A135: 196 | B135: Nahant | C135: 238 | D135: 245 | E135: 7 | F135: 2904538.07 | G135: 3159072.39 | H135: 1038.915592 | I135: 2396244 | J135: 2606235 | K135: 857.1061224 | L135: 586155 | M135: 604530 | N135: 18375 | O135: 75 | P135: 0.03
A136: 197 | B136: Nantucket | C136: 1668 | D136: 1701 | E136: 33 | F136: 25535123.51 | G136: 27110453.82 | H136: 926.1201117 | I136: 21066477 | J136: 22366124 | K136: 764.0487948 | L136: 4583727 | M136: 4744330 | N136: 160603 | O136: 94.41681364 | P136: 0.04
A137: 198 | B137: Natick | C137: 5293 | D137: 5287 | E137: -6 | F137: 67714131.17 | G137: 70521736.72 | H137: 531.0394445 | I137: 54650974 | J137: 56626783 | K137: 373.7108001 | L137: 13716207 | M137: 14112732 | N137: 396525 | O137: 75 | P137: 0.03
A138: 199 | B138: Needham | C138: =VLOOKUP(A138,aidcalc,14,FALSE) -> 5582 | D138: =VLOOKUP(A138,aidcalc,15,FALSE) -> 5523 | E138: =D138-C138 -> -59 | F138: =VLOOKUP(A138,aidcalc,4,FALSE) -> 72809517.78 | G138: =VLOOKUP(A138,aidcalc,9,FALSE) -> 74618544.11 | H138: =(G138-F138)/$D138 -> 327.5441479 | I138: =VLOOKUP(A138,aidcalc,5,FALSE) -> 60067852 | J138: =VLOOKUP(A138,aidcalc,10,FALSE) -> 61560299 | K138: =(J138-I138)/$D138 -> 270.2239725 | L138: =VLOOKUP(A138,aidcalc,6,FALSE) -> 13892984 | M138: =VLOOKUP(A138,aidcalc,25,FALSE) -> 14307209 | N138: =M138-L138 -> 414225 | O138: =(M138-L138)/$D138 -> 75 | P138: =ROUND(IF(F138>0,(M138-L138)/L138,100),2) -> 0.03
A139: 201 | B139: New Bedford | C139: 14110 | D139: 14156 | E139: 46 | F139: 274431862.4 | G139: 295054094.8 | H139: 1456.783863 | I139: 38100672 | J139: 40756053 | K139: 187.5798955 | L139: 236331190 | M139: 254298042 | N139: 17966852 | O139: 1269.204012 | P139: 0.08
A140: 204 | B140: Newburyport | C140: 2185 | D140: 2037 | E140: -148 | F140: 27513365.69 | G140: 26732481.83 | H140: -383.3499558 | I140: 22663896 | J140: 22054297 | K140: -299.2631321 | L140: 5887385 | M140: 6040160 | N140: 152775 | O140: 75 | P140: 0.03
A141: 207 | B141: Newton | C141: 11757 | D141: 11630 | E141: -127 | F141: 159609730.4 | G141: 163854442.6 | H141: 364.9795524 | I141: 131678028 | J141: 135179915 | K141: 301.1080825 | L141: 28656534 | M141: 29528784 | N141: 872250 | O141: 75 | P141: 0.03
A142: 208 | B142: Norfolk | C142: 1031 | D142: 1029 | E142: -2 | F142: 12579945.42 | G142: 13116177.87 | H142: 521.1199713 | I142: 9800477 | J142: 10294403 | K142: 480.0058309 | L142: 3719629 | M142: 3796804 | N142: 77175 | O142: 75 | P142: 0.02
A143: 209 | B143: North Adams | C143: 1280 | D143: 1254 | E143: -26 | F143: 22174984.27 | G143: 22791831.23 | H143: 491.9034769 | I143: 5756158 | J143: 6084549 | K143: 261.8748006 | L143: 16418826 | M143: 16707282 | N143: 288456 | O143: 230.0287081 | P143: 0.02
A144: 210 | B144: Northampton | C144: 2600 | D144: 2602 | E144: 2 | F144: 35941837.47 | G144: 37433634.75 | H144: 573.3271637 | I144: 29043502 | J144: 30204769 | K144: 446.2978478 | L144: 8229089 | M144: 8424239 | N144: 195150 | O144: 75 | P144: 0.02
A145: 211 | B145: North Andover | C145: 4460 | D145: 4433 | E145: -27 | F145: 58940201.54 | G145: 61037819.24 | H145: 473.1824273 | I145: 47473051 | J145: 49916865 | K145: 551.2776901 | L145: 12406539 | M145: 12739014 | N145: 332475 | O145: 75 | P145: 0.03
A146: 212 | B146: North Attleborough | C146: 3974 | D146: 3838 | E146: -136 | F146: 52550990.75 | G146: 52893827.05 | H146: 89.32681084 | I146: 34400627 | J146: 36308302 | K146: 497.0492444 | L146: 21706827 | M146: 21994677 | N146: 287850 | O146: 75 | P146: 0.01
A147: 213 | B147: Northborough | C147: 1667 | D147: 1587 | E147: -80 | F147: 20846041.26 | G147: 20570416.46 | H147: -173.6766226 | I147: 16677517 | J147: 16970593 | K147: 184.6729679 | L147: 4406358 | M147: 4525383 | N147: 119025 | O147: 75 | P147: 0.03
A148: 214 | B148: Northbridge | C148: 1918 | D148: 1900 | E148: -18 | F148: 27773856.9 | G148: 28797160.49 | H148: 538.5808368 | I148: 15208759 | J148: 16088295 | K148: 462.9136842 | L148: 16105353 | M148: 16247853 | N148: 142500 | O148: 75 | P148: 0.01
A149: 215 | B149: North Brookfield | C149: 565 | D149: 551 | E149: -14 | F149: 8161429.12 | G149: 8296193.11 | H149: 244.5807441 | I149: 3523318 | J149: 3734618 | K149: 383.4845735 | L149: 4964316 | M149: 5005641 | N149: 41325 | O149: 75 | P149: 0.01
A150: 217 | B150: North Reading | C150: 2260 | D150: 2262 | E150: 2 | F150: 29675954.01 | G150: 30731201.13 | H150: 466.5106637 | I150: 24047692 | J150: 24625659 | K150: 255.5114943 | L150: 7727287 | M150: 7896937 | N150: 169650 | O150: 75 | P150: 0.02
A151: 218 | B151: Norton | C151: 2173 | D151: 2143 | E151: -30 | F151: 29386897.03 | G151: 30090005.92 | H151: 328.095609 | I151: 22278223 | J151: 23659419 | K151: 644.5151657 | L151: 13386532 | M151: 13547257 | N151: 160725 | O151: 75 | P151: 0.01
A152: 219 | B152: Norwell | C152: 2115 | D152: 2115 | E152: 0 | F152: 26697645.46 | G152: 27721329.64 | H152: 484.0114335 | I152: 22025558 | J152: 22870097 | K152: 399.3092199 | L152: 5232088 | M152: 5390713 | N152: 158625 | O152: 75 | P152: 0.03
A153: 220 | B153: Norwood | C153: 3596 | D153: 3637 | E153: 41 | F153: 56535316.26 | G153: 59825304.49 | H153: 904.5884608 | I153: 39118730 | J153: 41305173 | K153: 601.1666208 | L153: 17416586 | M153: 18520131 | N153: 1103545 | O153: 303.4217762 | P153: 0.06
A154: 221 | B154: Oak Bluffs | C154: 421 | D154: 390 | E154: -31 | F154: 6233849.85 | G154: 6005152.34 | H154: -586.4038718 | I154: 5142926 | J154: 4954251 | K154: -483.7820513 | L154: 1995349 | M154: 2024599 | N154: 29250 | O154: 75 | P154: 0.01
A155: 223 | B155: Orange | C155: 573 | D155: 511 | E155: -62 | F155: 9418168.63 | G155: 9107782.01 | H155: -607.4102153 | I155: 2446944 | J155: 2457008 | K155: 19.69471624 | L155: 6971225 | M155: 7009550 | N155: 38325 | O155: 75 | P155: 0.01
A156: 224 | B156: Orleans | C156: 145 | D156: 150 | E156: 5 | F156: 2052611.25 | G156: 2277162.91 | H156: 1497.011067 | I156: 1693404 | J156: 1878659 | K156: 1235.033333 | L156: 469634 | M156: 480884 | N156: 11250 | O156: 75 | P156: 0.02
A157: 226 | B157: Oxford | C157: 1569 | D157: 1523 | E157: -46 | F157: 23877644.36 | G157: 24166880.36 | H157: 189.9120158 | I157: 11652431 | J157: 12243821 | K157: 388.305975 | L157: 12225213 | M157: 12339438 | N157: 114225 | O157: 75 | P157: 0.01
A158: 227 | B158: Palmer | C158: 1196 | D158: 1219 | E158: 23 | F158: 19106951.32 | G158: 20132069.31 | H158: 840.9499508 | I158: 7584489 | J158: 7960370 | K158: 308.3519278 | L158: 11845054 | M158: 12171699 | N158: 326645 | O158: 267.9614438 | P158: 0.03
A159: 229 | B159: Peabody | C159: 5981 | D159: 5850 | E159: -131 | F159: 95329652.76 | G159: 98600551.81 | H159: 559.1280427 | I159: 58256933 | J159: 60475751 | K159: 379.2851282 | L159: 37072720 | M159: 38124801 | N159: 1052081 | O159: 179.842906 | P159: 0.03
A160: 230 | B160: Pelham | C160: 63 | D160: 65 | E160: 2 | F160: 910076.45 | G160: 994542.49 | H160: 1299.477538 | I160: 661794 | J160: 701943 | K160: 617.6769231 | L160: 254815 | M160: 292599 | N160: 37784 | O160: 581.2923077 | P160: 0.15
A161: 231 | B161: Pembroke | C161: 2483 | D161: 2437 | E161: -46 | F161: 33089290.71 | G161: 33498160.49 | H161: 167.7758637 | I161: 25260111 | J161: 26492804 | K161: 505.8239639 | L161: 14267124 | M161: 14449899 | N161: 182775 | O161: 75 | P161: 0.01
A162: 234 | B162: Petersham | C162: 83 | D162: 100 | E162: 17 | F162: 1204091.58 | G162: 1523839.14 | H162: 3197.4756 | I162: 666342 | J162: 809811 | K162: 1434.69 | L162: 537750 | M162: 714028 | N162: 176278 | O162: 1762.78 | P162: 0.33
A163: 236 | B163: Pittsfield | C163: 5558 | D163: 5576 | E163: 18 | F163: 97815674.27 | G163: 104024895.3 | H163: 1113.561872 | I163: 33854715 | J163: 35574534 | K163: 308.4323888 | L163: 63960959 | M163: 68450361 | N163: 4489402 | O163: 805.1294835 | P163: 0.07
A164: 238 | B164: Plainville | C164: 633 | D164: 650 | E164: 17 | F164: 8367252.29 | G164: 9318021.79 | H164: 1462.722308 | I164: 6374798 | J164: 7105163 | K164: 1123.638462 | L164: 3092873 | M164: 3141623 | N164: 48750 | O164: 75 | P164: 0.02
A165: 239 | B165: Plymouth | C165: 7591 | D165: 7381 | E165: -210 | F165: 112170810.5 | G165: 115252249.9 | H165: 417.4826427 | I165: 88503759 | J165: 92866994 | K165: 591.1441539 | L165: 29055747 | M165: 29609322 | N165: 553575 | O165: 75 | P165: 0.02
A166: 240 | B166: Plympton | C166: 263 | D166: 258 | E166: -5 | F166: 3445673.115 | G166: 3562008.988 | H166: 450.9142347 | I166: 2338631 | J166: 2543035 | K166: 792.2635659 | L166: 1107042 | M166: 1126392 | N166: 19350 | O166: 75 | P166: 0.02
A167: 242 | B167: Provincetown | C167: 87 | D167: 94 | E167: 7 | F167: 1580908.48 | G167: 1658443.61 | H167: 824.8418085 | I167: 1304249 | J167: 1368216 | K167: 680.5 | L167: 314499 | M167: 321549 | N167: 7050 | O167: 75 | P167: 0.02
A168: 243 | B168: Quincy | C168: 9799 | D168: 9851 | E168: 52 | F168: 167877095.9 | G168: 177359599.8 | H168: 962.5930289 | I168: 127478124 | J168: 135165569 | K168: 780.3720434 | L168: 46126903 | M168: 46865728 | N168: 738825 | O168: 75 | P168: 0.02
A169: 244 | B169: Randolph | C169: 3105 | D169: 3265 | E169: 160 | F169: 53653467.41 | G169: 60202189.73 | H169: 2005.734247 | I169: 27738483 | J169: 29584825 | K169: 565.4952527 | L169: 25914984 | M169: 30617365 | N169: 4702381 | O169: 1440.239204 | P169: 0.18
A170: 246 | B170: Reading | C170: 3676 | D170: 3663 | E170: -13 | F170: 47040957.59 | G170: 48771409.24 | H170: 472.4137725 | I170: 38808790 | J170: 40236412 | K170: 389.7411957 | L170: 11776583 | M170: 12051308 | N170: 274725 | O170: 75 | P170: 0.02
A171: 248 | B171: Revere | C171: 8010 | D171: 7962 | E171: -48 | F171: 150716408.5 | G171: 159415532.2 | H171: 1092.580209 | I171: 48522644 | J171: 52200934 | K171: 461.9806581 | L171: 102193765 | M171: 107214598 | N171: 5020833 | O171: 630.5994725 | P171: 0.05
A172: 249 | B172: Richmond | C172: 122 | D172: 123 | E172: 1 | F172: 1660447.39 | G172: 1789484.88 | H172: 1049.085285 | I172: 1369869 | J172: 1476325 | K172: 865.495935 | L172: 535143 | M172: 544368 | N172: 9225 | O172: 75 | P172: 0.02
A173: 250 | B173: Rochester | C173: 500 | D173: 473 | E173: -27 | F173: 6292946.62 | G173: 6154033.37 | H173: -293.685518 | I173: 4161563 | J173: 4242497 | K173: 171.1078224 | L173: 2466282 | M173: 2501757 | N173: 35475 | O173: 75 | P173: 0.01
A174: 251 | B174: Rockland | C174: 2186 | D174: 2203 | E174: 17 | F174: 35665890.65 | G174: 37854417.12 | H174: 993.4300811 | I174: 17102717 | J174: 17961039 | K174: 389.6150704 | L174: 18764880 | M174: 19893378 | N174: 1128498 | O174: 512.2551067 | P174: 0.06
A175: 252 | B175: Rockport | C175: 555 | D175: 520 | E175: -35 | F175: 7652804.318 | G175: 7625722.318 | H175: -52.0807684 | I175: 6313563 | J175: 6291221 | K175: -42.96538462 | L175: 1648466 | M175: 1687466 | N175: 39000 | O175: 75 | P175: 0.02
A176: 253 | B176: Rowe | C176: 45 | D176: 41 | E176: -4 | F176: 784243.28 | G176: 704404.78 | H176: -1947.280488 | I176: 647001 | J176: 581134 | K176: -1606.512195 | L176: 150845 | M176: 153920 | N176: 3075 | O176: 75 | P176: 0.02
A177: 258 | B177: Salem | C177: 4290 | D177: 4278 | E177: -12 | F177: 75190968.38 | G177: 79288061.76 | H177: 957.7123375 | I177: 45548652 | J177: 48249759 | K177: 631.3948107 | L177: 29642316 | M177: 31038303 | N177: 1395987 | O177: 326.3176718 | P177: 0.05
A178: 261 | B178: Sandwich | C178: 2227 | D178: 2162 | E178: -65 | F178: 29473433.75 | G178: 29672861.21 | H178: 92.24211841 | I178: 24315583 | J178: 24480111 | K178: 76.09990749 | L178: 7739676 | M178: 7901826 | N178: 162150 | O178: 75 | P178: 0.02
A179: 262 | B179: Saugus | C179: 2977 | D179: 3018 | E179: 41 | F179: 46319897.8 | G179: 50782365.64 | H179: 1478.617575 | I179: 32254007 | J179: 34611764 | K179: 781.2316103 | L179: 14065891 | M179: 16170602 | N179: 2104711 | O179: 697.3860172 | P179: 0.15
A180: 263 | B180: Savoy | C180: 35 | D180: 36 | E180: 1 | F180: 622293.56 | G180: 599224.79 | H180: -640.7991667 | I180: 425422 | J180: 419808 | K180: -155.9444444 | L180: 525939 | M180: 528639 | N180: 2700 | O180: 75 | P180: 0.01
A181: 264 | B181: Scituate | C181: 2752 | D181: 2716 | E181: -36 | F181: 35051638.61 | G181: 35753574.68 | H181: 258.4447963 | I181: 28917602 | J181: 29496699 | K181: 213.216863 | L181: 6827035 | M181: 7030735 | N181: 203700 | O181: 75 | P181: 0.03
A182: 265 | B182: Seekonk | C182: 2076 | D182: 2040 | E182: -36 | F182: 26822442.26 | G182: 27170412.23 | H182: 170.5735147 | I182: 19300371 | J182: 20374751 | K182: 526.6568627 | L182: 7970778 | M182: 8123778 | N182: 153000 | O182: 75 | P182: 0.02
A183: 266 | B183: Sharon | C183: 3518 | D183: 3420 | E183: -98 | F183: 45602230.37 | G183: 46223465.28 | H183: 181.6476344 | I183: 35374920 | J183: 36996923 | K183: 474.269883 | L183: 10864366 | M183: 11120866 | N183: 256500 | O183: 75 | P183: 0.02
A184: 269 | B184: Sherborn | C184: 402 | D184: 398 | E184: -4 | F184: 4869362.174 | G184: 5048450.201 | H184: 449.9699166 | I184: 4017224 | J184: 4164971 | K184: 371.2236181 | L184: 888765 | M184: 918615 | N184: 29850 | O184: 75 | P184: 0.03
A185: 271 | B185: Shrewsbury | C185: 5998 | D185: 5945 | E185: -53 | F185: 77754351.17 | G185: 80350322.88 | H185: 436.6647115 | I185: 60858729 | J185: 64461566 | K185: 606.0280908 | L185: 21595260 | M185: 22041135 | N185: 445875 | O185: 75 | P185: 0.02
A186: 272 | B186: Shutesbury | C186: 99 | D186: 106 | E186: 7 | F186: 1330308.45 | G186: 1485214.67 | H186: 1461.379434 | I186: 822355 | J186: 941768 | K186: 1126.537736 | L186: 656282 | M186: 664232 | N186: 7950 | O186: 75 | P186: 0.01
A187: 273 | B187: Somerset | C187: 1587 | D187: 1606 | E187: 19 | F187: 20961593.84 | G187: 22010520.12 | H187: 653.1296887 | I187: 10906308 | J187: 11879285 | K187: 605.8387298 | L187: 10798977 | M187: 10919427 | N187: 120450 | O187: 75 | P187: 0.01
A188: 274 | B188: Somerville | C188: 5146 | D188: 5155 | E188: 9 | F188: 92273702.11 | G188: 95463549.59 | H188: 618.7870951 | I188: 76125804 | J188: 78757428 | K188: 510.499321 | L188: 21780232 | M188: 22166857 | N188: 386625 | O188: 75 | P188: 0.02
A189: 275 | B189: Southampton | C189: 463 | D189: 476 | E189: 13 | F189: 6090235.14 | G189: 6438163.62 | H189: 730.9421849 | I189: 4421614 | J189: 4736509 | K189: 661.5441176 | L189: 2671398 | M189: 2707098 | N189: 35700 | O189: 75 | P189: 0.01
A190: 276 | B190: Southborough | C190: 1223 | D190: 1218 | E190: -5 | F190: 14839839.36 | G190: 15401749.17 | H190: 461.3381091 | I190: 12011425 | J190: 12482147 | K190: 386.4712644 | L190: 3290363 | M190: 3381713 | N190: 91350 | O190: 75 | P190: 0.03
A191: 277 | B191: Southbridge | C191: 2248 | D191: 2242 | E191: -6 | F191: 41980389.5 | G191: 44392355.59 | H191: 1075.810031 | I191: 9707895 | J191: 10094448 | K191: 172.4143622 | L191: 32272495 | M191: 34297908 | N191: 2025413 | O191: 903.3956289 | P191: 0.06
A192: 278 | B192: South Hadley | C192: 1817 | D192: 1798 | E192: -19 | F192: 26078106.46 | G192: 26607493.2 | H192: 294.4308899 | I192: 15934556 | J192: 16689854 | K192: 420.0767519 | L192: 10867199 | M192: 11002049 | N192: 134850 | O192: 75 | P192: 0.01
A193: 281 | B193: Springfield | C193: 28394 | D193: 28380 | E193: -14 | F193: 557622637.5 | G193: 600170350.4 | H193: 1499.214689 | I193: 51503174 | J193: 54330699 | K193: 99.63090204 | L193: 506119464 | M193: 545839651 | N193: 39720187 | O193: 1399.583756 | P193: 0.08
A194: 284 | B194: Stoneham | C194: 2456 | D194: 2511 | E194: 55 | F194: 33190354.09 | G194: 35320286.73 | H194: 848.2407963 | I194: 26075035 | J194: 27572799 | K194: 596.4810832 | L194: 7515053 | M194: 7747488 | N194: 232435 | O194: 92.56670649 | P194: 0.03
A195: 285 | B195: Stoughton | C195: 3781 | D195: 3860 | E195: 79 | F195: 60534150.37 | G195: 65412011.17 | H195: 1263.694507 | I195: 31939620 | J195: 33998047 | K195: 533.2712435 | L195: 28594530 | M195: 31413964 | N195: 2819434 | O195: 730.4233161 | P195: 0.1
A196: 287 | B196: Sturbridge | C196: 901 | D196: 827 | E196: -74 | F196: 11550189.47 | G196: 10928183.49 | H196: -752.1233132 | I196: 6370085 | J196: 6377304 | K196: 8.729141475 | L196: 5180104 | M196: 5242129 | N196: 62025 | O196: 75 | P196: 0.01
A197: 288 | B197: Sudbury | C197: 2509 | D197: 2492 | E197: -17 | F197: 29591077.41 | G197: 30743352.29 | H197: 462.3895972 | I197: 23968199 | J197: 24941706 | K197: 390.6528892 | L197: 5818444 | M197: 6005344 | N197: 186900 | O197: 75 | P197: 0.03
A198: 289 | B198: Sunderland | C198: 142 | D198: 142 | E198: 0 | F198: 2077119.52 | G198: 2093428.05 | H198: 114.8488028 | I198: 1678357 | J198: 1712476 | K198: 240.2746479 | L198: 910256 | M198: 920906 | N198: 10650 | O198: 75 | P198: 0.01
A199: 290 | B199: Sutton | C199: 1314 | D199: 1280 | E199: -34 | F199: 16892397.65 | G199: 17087859.71 | H199: 152.7047344 | I199: 13481611 | J199: 14097484 | K199: 481.1507813 | L199: 5805981 | M199: 5901981 | N199: 96000 | O199: 75 | P199: 0.02
A200: 291 | B200: Swampscott | C200: 2040 | D200: 2055 | E200: 15 | F200: 26943739.01 | G200: 28287967.39 | H200: 654.1257324 | I200: 21599799 | J200: 22504337 | K200: 440.1644769 | L200: 5343940 | M200: 5783630 | N200: 439690 | O200: 213.9610706 | P200: 0.08
A201: 292 | B201: Swansea | C201: 2081 | D201: 1984 | E201: -97 | F201: 28125194.14 | G201: 27640649.03 | H201: -244.2263659 | I201: 17101306 | J201: 18099370 | K201: 503.0564516 | L201: 11023888 | M201: 11172688 | N201: 148800 | O201: 75 | P201: 0.01
A202: 293 | B202: Taunton | C202: =VLOOKUP(A202,aidcalc,14,FALSE) -> 8235 | D202: =VLOOKUP(A202,aidcalc,15,FALSE) -> 8457 | E202: =D202-C202 -> 222 | F202: =VLOOKUP(A202,aidcalc,4,FALSE) -> 140024274.2 | G202: =VLOOKUP(A202,aidcalc,9,FALSE) -> 153498975.2 | H202: =(G202-F202)/$D202 -> 1593.319256 | I202: =VLOOKUP(A202,aidcalc,5,FALSE) -> 45058660 | J202: =VLOOKUP(A202,aidcalc,10,FALSE) -> 48056845 | K202: =(J202-I202)/$D202 -> 354.5211068 | L202: =VLOOKUP(A202,aidcalc,6,FALSE) -> 94965614 | M202: =VLOOKUP(A202,aidcalc,25,FALSE) -> 105442130 | N202: =M202-L202 -> 10476516 | O202: =(M202-L202)/$D202 -> 1238.798155 | P202: =ROUND(IF(F202>0,(M202-L202)/L202,100),2) -> 0.11
A203: 295 | B203: Tewksbury | C203: 3258 | D203: 3274 | E203: 16 | F203: 42576904.1 | G203: 44323386.89 | H203: 533.4400703 | I203: 34163893 | J203: 35797036 | K203: 498.8219304 | L203: 14151347 | M203: 14396897 | N203: 245550 | O203: 75 | P203: 0.02
... 129 more rows

Sheet Aid436
D1: c70fy25 | E1: c70fy25 | F1: c70fy25 | N1: c70fy25
B3: 2 | C3: 3 | D3: 4 | E3: 5 | F3: 6 | G3: 7 | H3: 8 | I3: 9 | J3: 10 | K3: 11 | L3: 12 | M3: 13 | N3: 14 | O3: 15 | P3: 16 | Q3: 17 | R3: 18 | S3: 19 | T3: 20 | U3: 21 | V3: 22 | W3: 23 | X3: 24 | Y3: 25 | Z3: 26 | AA3: 27 | AB3: 28 | AC3: 29 | AD3: 30 | AE3: 31 | AF3: 32 | AG3: 33 | AH3: 34 | AI3: 35 | AJ3: 36 | AK3: 37 | AL3: 38 | AM3: 39 | AN3: 40 | AO3: 41 | AQ3: 42 | AR3: 43 | AS3: 44
A4: Return to Index | C4: nonop | H4: priorc70 | I4: found | J4: prelcont436 | K4: foundaid | L4: foundinc | O4: enro | R4: minaid | S4: Updated 1/14/25 | W4: rednonop | X4: holdharmlessaid | Y4: chapter70
A5: More about the data | G5: =COUNTIF(G10:G447,"<>0") -> 4 | H5: Base Aid | I5: Foundation Aid Calculation | Q5: Minimum Aid Calculation | S5: Minimum Aid Adjustment | X5: =COUNTIF(X10:X447,"<>0") -> 0 | AC5: Analysis | AM5: SUMMARY FOR EXPORT (reads from columns to the left)
Q6: 75
D7: foundation | E7: required | I7: foundation | J7: required | M7: district | N7: foundation | O7: foundation | P7: operating dist | V7: c70 prior | AB7: nss | AP7: =O7 -> foundation | AQ7: =I7 -> foundation | AR7: =J7 -> required
D8: budget | E8: contribution | F8: chapter 70 | G8: base aid | I8: budget | J8: contribution | K8: foundation | L8: foundation | M8: target aid | N8: enrollment | O8: enrollment | P8: foundation | Q8: Min Aid | R8: Addl Aid | S8: Aid from | U8: Increment | V8: to non-op | W8: non-op | X8: hold | Y8: Chapter 70 | Z8: c70 pct of | AA8: =CYr -> FY26 | AB8: percent of | AE8: Aid Comp'd | AF8: Distance from | AG8: Foundation | AK8: per pupil | AM8: =A9 -> LEA | AN8: =B9 -> District | AO8: =C9 -> Non-Op | AP8: =O8 -> enrollment | AQ8: budget | AR8: contribution | AS8: =Y8 -> Chapter 70
A9: LEA | B9: District | C9: Non-Op | D9: =PYr -> FY25 | E9: =PYr -> FY25 | F9: =PYr -> FY25 | G9: adjusement | H9: base aid | I9: =CYr -> FY26 | J9: =CYr -> FY26 | K9: aid | L9: aid increase | M9: percentage | N9: =PYr -> FY25 | O9: =CYr -> FY26 | P9: aid? | Q9: Per Pupil | R9: to Reach Min | S9: MinAidAdj Formula | T9: plus $30/pupil | U9: above min aid | V9: reduction | W9: reduction | X9: harmless aid | Y9: =CYr -> FY26 | Z9: foundation | AA9: Required NSS | AB9: foundation | AC9: ∆ in Foundation Budget | AD9: ∆ in Aid | AE9: to Target | AF9: Aid Target | AG9: Budget PP | AH9: blank | AI9: blank | AJ9: blank | AK9: ∆ in Aid | AL9: blank | AM9: =CYr -> FY26 | AN9: =CYr -> FY26 | AO9: =CYr -> FY26 | AP9: FY26 | AQ9: FY26 | AR9: FY26 | AS9: FY26
A10: 1 | B10: Abington | C10: 1 | D10: 32236384.53 | E10: 17754107 | F10: 14482278 | G10: 0 | H10: =F10+G10 -> 14482278 | I10: =SUMIF(dist1755,A10,found1755) -> 33501030.56 | J10: =SUMIF(dist1755,A10,prelcont1755) -> 18800612 | K10: =ROUND(MAX(found-prelcont436,0),0) -> 14700419 | L10: =IF(foundaid>priorc70,foundaid-priorc70,0) -> 218141 | M10: =ROUND(100-'Townwide Contributions'!L10,2) -> 36.79 | N10: 2202 | O10: =SUMIF(dist1755,A10,enro1755) -> 2200 | P10: =IF(AND(C10=1,L10>0),1,0) -> 1 | Q10: =IF(nonop=1,enro*$Q$6,0) -> 165000 | R10: =IF((foundinc)<Q10,Q10-(foundinc),0) -> 0 | S10: 14482278 | T10: =S10+30*enro -> 14548278 | U10: =IF(AND(T10-priorc70-foundinc-minaid>0,nonop=1), T10-priorc70-foundinc-minaid,0) -> 0 | V10: =priorc70+ foundinc+minaidadjincrement+minaid -> 14700419 | W10: =IF(AND(C10=0,V10>found),V10-found,0) -> 0 | X10: 0 | Y10: =priorc70+foundinc+minaidadjincrement+minaid-rednonop+holdharmlessaid -> 14700419 | Z10: =IF(C10=1, Y10/I10*100, 0) -> 43.88049786 | AA10: =prelcont436+chapter70 -> 33501031 | AB10: =IF(found>0,AA10*100/found,0) -> 100.0000013 | AC10: =I10-D10 -> 1264646.029 | AD10: =Y10-F10 -> 218141 | AE10: =Y10-((M10/100)*I10) -> 2375389.856 | AF10: =IF(C10=1, (Y10/I10*100)-M10, "") -> 7.090497864 | AG10: =IFERROR(ROUND(I10/O10, 2), 0) -> 15227.74 | AK10: =IFERROR(AD10/O10, 0) -> 99.155 | AM10: =A10 -> 1 | AN10: =B10 -> Abington | AO10: =C10 -> 1 | AP10: =O10 -> 2200 | AQ10: =I10 -> 33501030.56 | AR10: =J10 -> 18800612 | AS10: =Y10 -> 14700419
A11: 2 | B11: Acton | C11: 0 | D11: 0 | E11: 0 | F11: 0 | G11: 0 | H11: =F11+G11 -> 0 | I11: 0 | J11: =SUMIF(dist1755,A11,prelcont1755) -> 0 | K11: =ROUND(MAX(found-prelcont436,0),0) -> 0 | L11: =IF(foundaid>priorc70,foundaid-priorc70,0) -> 0 | M11: =ROUND(100-'Townwide Contributions'!L11,2) -> 17.5 | N11: 0 | O11: 0 | P11: 0 | Q11: 0 | R11: =IF((foundinc)<Q11,Q11-(foundinc),0) -> 0 | S11: 0 | T11: 0 | U11: 0 | V11: 0 | W11: 0 | X11: 0 | Y11: =priorc70+foundinc+minaidadjincrement+minaid-rednonop+holdharmlessaid -> 0 | Z11: 0 | AA11: 0 | AB11: 0 | AC11: 0 | AD11: 0 | AE11: =Y11-((M11/100)*I11) -> 0 | AF11: =IF(C11=1, (Y11/I11*100)-M11, "") ->  | AG11: 0 | AK11: 0 | AM11: 2 | AN11: Acton | AO11: 0 | AP11: =O11 -> 0 | AQ11: 0 | AR11: 0 | AS11: 0
A12: 3 | B12: Acushnet | C12: 1 | D12: 15622821.81 | E12: 8852864 | F12: 7292322 | G12: 0 | H12: 7292322 | I12: 15639642.75 | J12: 9288698 | K12: 6350945 | L12: 0 | M12: =ROUND(100-'Townwide Contributions'!L12,2) -> 32.36 | N12: 1173 | O12: 1131 | P12: 0 | Q12: 84825 | R12: 84825 | S12: 7292322 | T12: 7326252 | U12: 0 | V12: 7377147 | W12: 0 | X12: 0 | Y12: 7377147 | Z12: 47.16953653 | AA12: 16665845 | AB12: 106.5615453 | AC12: 16820.94 | AD12: 84825 | AE12: 2316158.606 | AF12: 14.80953653 | AG12: 13828.15 | AK12: 75 | AM12: 3 | AN12: Acushnet | AO12: 1 | AP12: 1131 | AQ12: 15639642.75 | AR12: 9288698 | AS12: 7377147
A13: 4 | B13: Adams | C13: 0 | D13: 0 | E13: 0 | F13: 0 | G13: 0 | H13: 0 | I13: 0 | J13: 0 | K13: 0 | L13: 0 | M13: =ROUND(100-'Townwide Contributions'!L13,2) -> 65.05 | N13: 0 | O13: 0 | P13: 0 | Q13: 0 | R13: 0 | S13: 0 | T13: 0 | U13: 0 | V13: 0 | W13: 0 | X13: 0 | Y13: 0 | Z13: 0 | AA13: 0 | AB13: 0 | AC13: 0 | AD13: 0 | AE13: 0 | AG13: 0 | AK13: 0 | AM13: 4 | AN13: Adams | AO13: 0 | AP13: 0 | AQ13: 0 | AR13: 0 | AS13: 0
A14: 5 | B14: Agawam | C14: 1 | D14: 52988778.25 | E14: 26903037 | F14: 26085741 | G14: 0 | H14: 26085741 | I14: 55345476.31 | J14: 28135196 | K14: 27210280 | L14: 1124539 | M14: =ROUND(100-'Townwide Contributions'!L14,2) -> 44.25 | N14: 3486 | O14: 3463 | P14: 1 | Q14: 259725 | R14: 0 | S14: 26085741 | T14: 26189631 | U14: 0 | V14: 27210280 | W14: 0 | X14: 0 | Y14: 27210280 | Z14: 49.16441562 | AA14: 55345476 | AB14: 99.99999944 | AC14: 2356698.06 | AD14: 1124539 | AE14: 2719906.733 | AF14: 4.91441562 | AG14: 15981.95 | AK14: 324.7297141 | AM14: 5 | AN14: Agawam | AO14: 1 | AP14: 3463 | AQ14: 55345476.31 | AR14: 28135196 | AS14: 27210280
A15: 6 | B15: Alford | C15: 0 | D15: 0 | E15: 0 | F15: 0 | G15: 0 | H15: 0 | I15: 0 | J15: 0 | K15: 0 | L15: 0 | M15: =ROUND(100-'Townwide Contributions'!L15,2) -> 17.5 | N15: 0 | O15: 0 | P15: 0 | Q15: 0 | R15: 0 | S15: 0 | T15: 0 | U15: 0 | V15: 0 | W15: 0 | X15: 0 | Y15: 0 | Z15: 0 | AA15: 0 | AB15: 0 | AC15: 0 | AD15: 0 | AE15: 0 | AG15: 0 | AK15: 0 | AM15: 6 | AN15: Alford | AO15: 0 | AP15: 0 | AQ15: 0 | AR15: 0 | AS15: 0
A16: 7 | B16: Amesbury | C16: 1 | D16: 26495878.26 | E16: 19160041 | F16: 9669679 | G16: 0 | H16: 9669679 | I16: 28109289.03 | J16: 20286760 | K16: 7822529 | L16: 0 | M16: =ROUND(100-'Townwide Contributions'!L16,2) -> 17.5 | N16: 1898 | O16: 1919 | P16: 0 | Q16: 143925 | R16: 143925 | S16: 9669679 | T16: 9727249 | U16: 0 | V16: 9813604 | W16: 0 | X16: 0 | Y16: 9813604 | Z16: 34.91231667 | AA16: 30100364 | AB16: 107.0833345 | AC16: 1613410.77 | AD16: 143925 | AE16: 4894478.42 | AF16: 17.41231667 | AG16: 14647.88 | AK16: 75 | AM16: 7 | AN16: Amesbury | AO16: 1 | AP16: 1919 | AQ16: 28109289.03 | AR16: 20286760 | AS16: 9813604
A17: 8 | B17: Amherst | C17: 1 | D17: 13476149.79 | E17: 11117824 | F17: 6383109 | G17: 0 | H17: 6383109 | I17: 14981907.18 | J17: 11896370 | K17: 3085537 | L17: 0 | M17: =ROUND(100-'Townwide Contributions'!L17,2) -> 17.5 | N17: 984 | O17: 1037 | P17: 0 | Q17: 77775 | R17: 77775 | S17: 6383109 | T17: 6414219 | U17: 0 | V17: 6460884 | W17: 0 | X17: 0 | Y17: 6460884 | Z17: 43.12457635 | AA17: 18357254 | AB17: 122.5294869 | AC17: 1505757.39 | AD17: 77775 | AE17: 3839050.244 | AF17: 25.62457635 | AG17: 14447.36 | AK17: 75 | AM17: 8 | AN17: Amherst | AO17: 1 | AP17: 1037 | AQ17: 14981907.18 | AR17: 11896370 | AS17: 6460884
A18: 9 | B18: Andover | C18: 1 | D18: 72595075.47 | E18: 59890937 | F18: 14519160 | G18: 0 | H18: 14519160 | I18: 75901319.69 | J18: 62087646 | K18: 13813674 | L18: 0 | M18: =ROUND(100-'Townwide Contributions'!L18,2) -> 17.5 | N18: 5465 | O18: 5464 | P18: 0 | Q18: 409800 | R18: 409800 | S18: 14519160 | T18: 14683080 | U18: 0 | V18: 14928960 | W18: 0 | X18: 0 | Y18: 14928960 | Z18: 19.66890702 | AA18: 77016606 | AB18: 101.4693899 | AC18: 3306244.214 | AD18: 409800 | AE18: 1646229.055 | AF18: 2.168907025 | AG18: 13891.16 | AK18: 75 | AM18: 9 | AN18: Andover | AO18: 1 | AP18: 5464 | AQ18: 75901319.69 | AR18: 62087646 | AS18: 14928960
A19: 10 | B19: Arlington | C19: 1 | D19: 77449420.44 | E19: 58893679 | F19: 19329593 | G19: 0 | H19: 19329593 | I19: 81515548.27 | J19: 61905761 | K19: 19609787 | L19: 280194 | M19: =ROUND(100-'Townwide Contributions'!L19,2) -> 17.5 | N19: 6021 | O19: 6114 | P19: 1 | Q19: 458550 | R19: 178356 | S19: 19329593 | T19: 19513013 | U19: 0 | V19: 19788143 | W19: 0 | X19: 0 | Y19: 19788143 | Z19: 24.27529891 | AA19: =prelcont436+chapter70 -> 81693904 | AB19: 100.2187996 | AC19: 4066127.83 | AD19: 458550 | AE19: 5522922.052 | AF19: 6.775298909 | AG19: 13332.61 | AK19: 75 | AM19: 10 | AN19: Arlington | AO19: 1 | AP19: 6114 | AQ19: 81515548.27 | AR19: 61905761 | AS19: 19788143
A20: 11 | B20: Ashburnham | C20: 0 | D20: 0 | E20: 0 | F20: 0 | G20: 0 | H20: 0 | I20: 0 | J20: 0 | K20: 0 | L20: 0 | M20: =ROUND(100-'Townwide Contributions'!L20,2) -> 47.48 | N20: 0 | O20: 0 | P20: 0 | Q20: 0 | R20: 0 | S20: 0 | T20: 0 | U20: 0 | V20: 0 | W20: 0 | X20: 0 | Y20: 0 | Z20: 0 | AA20: 0 | AB20: 0 | AC20: 0 | AD20: 0 | AE20: 0 | AG20: 0 | AK20: 0 | AM20: 11 | AN20: Ashburnham | AO20: 0 | AP20: 0 | AQ20: 0 | AR20: 0 | AS20: 0
A21: 12 | B21: Ashby | C21: 0 | D21: 0 | E21: 0 | F21: 0 | G21: 0 | H21: 0 | I21: 0 | J21: 0 | K21: 0 | L21: 0 | M21: =ROUND(100-'Townwide Contributions'!L21,2) -> 38.27 | N21: 0 | O21: 0 | P21: 0 | Q21: 0 | R21: 0 | S21: 0 | T21: 0 | U21: 0 | V21: 0 | W21: 0 | X21: 0 | Y21: 0 | Z21: 0 | AA21: 0 | AB21: 0 | AC21: 0 | AD21: 0 | AE21: 0 | AG21: 0 | AK21: 0 | AM21: 12 | AN21: Ashby | AO21: 0 | AP21: 0 | AQ21: 0 | AR21: 0 | AS21: 0
A22: 13 | B22: Ashfield | C22: 0 | D22: 216797.25 | E22: 158626 | F22: 93683 | G22: 0 | H22: 93683 | I22: 240365.82 | J22: 182183 | K22: 58183 | L22: 0 | M22: =ROUND(100-'Townwide Contributions'!L22,2) -> 17.5 | N22: 11 | O22: 12 | P22: 0 | Q22: 0 | R22: 0 | S22: 93683 | T22: 94043 | U22: 0 | V22: 93683 | W22: 0 | X22: 0 | Y22: 93683 | Z22: 0 | AA22: 275866 | AB22: 114.7692297 | AC22: 23568.57 | AD22: 0 | AE22: 51618.9815 | AG22: 20030.49 | AK22: 0 | AM22: 13 | AN22: Ashfield | AO22: 0 | AP22: 12 | AQ22: 240365.82 | AR22: 182183 | AS22: 93683
A23: 14 | B23: Ashland | C23: 1 | D23: 37765344.57 | E23: 26791174 | F23: 11570628 | G23: 0 | H23: 11570628 | I23: 39209499.74 | J23: 28541470 | K23: 10668030 | L23: 0 | M23: =ROUND(100-'Townwide Contributions'!L23,2) -> 17.5 | N23: 2857 | O23: 2837 | P23: 0 | Q23: 212775 | R23: 212775 | S23: 11570628 | T23: 11655738 | U23: 0 | V23: 11783403 | W23: 0 | X23: 0 | Y23: 11783403 | Z23: 30.05241862 | AA23: 40324873 | AB23: 102.8446506 | AC23: 1444155.17 | AD23: 212775 | AE23: 4921740.546 | AF23: 12.55241862 | AG23: 13820.76 | AK23: 75 | AM23: 14 | AN23: Ashland | AO23: 1 | AP23: 2837 | AQ23: 39209499.74 | AR23: 28541470 | AS23: 11783403
A24: 15 | B24: Athol | C24: 0 | D24: 0 | E24: 0 | F24: 0 | G24: 0 | H24: 0 | I24: 0 | J24: 0 | K24: 0 | L24: 0 | M24: =ROUND(100-'Townwide Contributions'!L24,2) -> 69.69 | N24: 0 | O24: 0 | P24: 0 | Q24: 0 | R24: 0 | S24: 0 | T24: 0 | U24: 0 | V24: 0 | W24: 0 | X24: 0 | Y24: 0 | Z24: 0 | AA24: 0 | AB24: 0 | AC24: 0 | AD24: 0 | AE24: 0 | AG24: 0 | AK24: 0 | AM24: 15 | AN24: Athol | AO24: 0 | AP24: 0 | AQ24: 0 | AR24: 0 | AS24: 0
A25: 16 | B25: Attleboro | C25: 1 | D25: 102004503.3 | E25: 46028760 | F25: 55975743 | G25: 0 | H25: 55975743 | I25: 110074456.2 | J25: 48277999 | K25: 61796457 | L25: 5820714 | M25: =ROUND(100-'Townwide Contributions'!L25,2) -> 51.09 | N25: 6313 | O25: 6440 | P25: 1 | Q25: 483000 | R25: 0 | S25: 55975743 | T25: 56168943 | U25: 0 | V25: 61796457 | W25: 0 | X25: 0 | Y25: 61796457 | Z25: 56.14059715 | AA25: 110074456 | AB25: 99.99999985 | AC25: 8069952.84 | AD25: 5820714 | AE25: 5559417.343 | AF25: 5.050597147 | AG25: 17092.31 | AK25: 903.8375776 | AM25: 16 | AN25: Attleboro | AO25: 1 | AP25: 6440 | AQ25: 110074456.2 | AR25: 48277999 | AS25: 61796457
A26: 17 | B26: Auburn | C26: 1 | D26: 32470504.22 | E26: 17758731 | F26: 15380489 | G26: 0 | H26: 15380489 | I26: 34174444.38 | J26: 18808409 | K26: 15366035 | L26: 0 | M26: =ROUND(100-'Townwide Contributions'!L26,2) -> 39.86 | N26: 2367 | O26: 2400 | P26: 0 | Q26: 180000 | R26: 180000 | S26: 15380489 | T26: 15452489 | U26: 0 | V26: 15560489 | W26: 0 | X26: 0 | Y26: 15560489 | Z26: 45.53252959 | AA26: 34368898 | AB26: 100.569003 | AC26: 1703940.16 | AD26: 180000 | AE26: 1938555.47 | AF26: 5.672529591 | AG26: 14239.35 | AK26: 75 | AM26: 17 | AN26: Auburn | AO26: 1 | AP26: 2400 | AQ26: 34174444.38 | AR26: 18808409 | AS26: 15560489
A27: 18 | B27: Avon | C27: 1 | D27: 9514711.52 | E27: 5674808 | F27: 4205555 | G27: 0 | H27: 4205555 | I27: 10349488.58 | J27: 5949758 | K27: 4399731 | L27: 194176 | M27: =ROUND(100-'Townwide Contributions'!L27,2) -> 33.36 | N27: 572 | O27: 588 | P27: 1 | Q27: 44100 | R27: 0 | S27: 4205555 | T27: 4223195 | U27: 0 | V27: 4399731 | W27: 0 | X27: 0 | Y27: 4399731 | Z27: 42.51157887 | AA27: 10349489 | AB27: 100.0000041 | AC27: 834777.06 | AD27: 194176 | AE27: 947141.6097 | AF27: 9.151578867 | AG27: 17601.17 | AK27: 330.2312925 | AM27: 18 | AN27: Avon | AO27: 1 | AP27: 588 | AQ27: 10349488.58 | AR27: 5949758 | AS27: 4399731
A28: 19 | B28: Ayer | C28: 0 | D28: 0 | E28: 0 | F28: 0 | G28: 0 | H28: 0 | I28: 0 | J28: 0 | K28: 0 | L28: 0 | M28: =ROUND(100-'Townwide Contributions'!L28,2) -> 23.87 | N28: 0 | O28: 0 | P28: 0 | Q28: 0 | R28: 0 | S28: 0 | T28: 0 | U28: 0 | V28: 0 | W28: 0 | X28: 0 | Y28: 0 | Z28: 0 | AA28: 0 | AB28: 0 | AC28: 0 | AD28: 0 | AE28: 0 | AG28: 0 | AK28: 0 | AM28: 19 | AN28: Ayer | AO28: 0 | AP28: 0 | AQ28: 0 | AR28: 0 | AS28: 0
A29: 20 | B29: Barnstable | C29: 1 | D29: 88879328.45 | E29: 63910403 | F29: 25303877 | G29: 0 | H29: 25303877 | I29: 91282281.55 | J29: 68459559 | K29: 22822723 | L29: 0 | M29: =ROUND(100-'Townwide Contributions'!L29,2) -> 17.5 | N29: 5306 | O29: 5230 | P29: 0 | Q29: 392250 | R29: 392250 | S29: 25303877 | T29: 25460777 | U29: 0 | V29: 25696127 | W29: 0 | X29: 0 | Y29: 25696127 | Z29: 28.15018048 | AA29: 94155686 | AB29: 103.1478228 | AC29: 2402953.1 | AD29: 392250 | AE29: 9721727.729 | AF29: 10.65018048 | AG29: 17453.59 | AK29: 75 | AM29: 20 | AN29: Barnstable | AO29: 1 | AP29: 5230 | AQ29: 91282281.55 | AR29: 68459559 | AS29: 25696127
A30: 21 | B30: Barre | C30: 0 | D30: 0 | E30: 0 | F30: 0 | G30: 0 | H30: 0 | I30: 0 | J30: 0 | K30: 0 | L30: 0 | M30: =ROUND(100-'Townwide Contributions'!L30,2) -> 53.32 | N30: 0 | O30: 0 | P30: 0 | Q30: 0 | R30: 0 | S30: 0 | T30: 0 | U30: 0 | V30: 0 | W30: 0 | X30: 0 | Y30: 0 | Z30: 0 | AA30: 0 | AB30: 0 | AC30: 0 | AD30: 0 | AE30: 0 | AG30: 0 | AK30: 0 | AM30: 21 | AN30: Barre | AO30: 0 | AP30: 0 | AQ30: 0 | AR30: 0 | AS30: 0
A31: 22 | B31: Becket | C31: 0 | D31: 250517.91 | E31: 198708 | F31: 76923 | G31: 0 | H31: 76923 | I31: 361845.85 | J31: 287491 | K31: 74355 | L31: 0 | M31: =ROUND(100-'Townwide Contributions'!L31,2) -> 17.5 | N31: 13 | O31: 19 | P31: 0 | Q31: 0 | R31: 0 | S31: 76923 | T31: 77493 | U31: 0 | V31: 76923 | W31: 0 | X31: 0 | Y31: 76923 | Z31: 0 | AA31: 364414 | AB31: 100.7097359 | AC31: 111327.94 | AD31: 0 | AE31: 13599.97625 | AG31: 19044.52 | AK31: 0 | AM31: 22 | AN31: Becket | AO31: 0 | AP31: 19 | AQ31: 361845.85 | AR31: 287491 | AS31: 76923
A32: 23 | B32: Bedford | C32: 1 | D32: 34828204.55 | E32: 28733269 | F32: 6288709 | G32: 0 | H32: 6288709 | I32: 35245066.37 | J32: 29077179 | K32: 6167887 | L32: 0 | M32: =ROUND(100-'Townwide Contributions'!L32,2) -> 17.5 | N32: 2579 | O32: 2528 | P32: 0 | Q32: 189600 | R32: 189600 | S32: 6288709 | T32: 6364549 | U32: 0 | V32: 6478309 | W32: 0 | X32: 0 | Y32: 6478309 | Z32: 18.38075415 | AA32: 35555488 | AB32: 100.880752 | AC32: 416861.8241 | AD32: 189600 | AE32: 310422.3853 | AF32: 0.8807541517 | AG32: 13941.88 | AK32: 75 | AM32: 23 | AN32: Bedford | AO32: 1 | AP32: 2528 | AQ32: 35245066.37 | AR32: 29077179 | AS32: 6478309
A33: 24 | B33: Belchertown | C33: 1 | D33: 27898291.62 | E33: 14251380 | F33: 14429030 | G33: 0 | H33: 14429030 | I33: 27957662.77 | J33: 15052180 | K33: 12905483 | L33: 0 | M33: =ROUND(100-'Townwide Contributions'!L33,2) -> 40.66 | N33: 2106 | O33: 2043 | P33: 0 | Q33: 153225 | R33: 153225 | S33: 14429030 | T33: 14490320 | U33: 0 | V33: 14582255 | W33: 0 | X33: 0 | Y33: 14582255 | Z33: 52.15834786 | AA33: 29634435 | AB33: 105.9975408 | AC33: 59371.15 | AD33: 153225 | AE33: 3214669.318 | AF33: 11.49834786 | AG33: 13684.61 | AK33: 75 | AM33: 24 | AN33: Belchertown | AO33: 1 | AP33: 2043 | AQ33: 27957662.77 | AR33: 15052180 | AS33: 14582255
A34: 25 | B34: Bellingham | C34: 1 | D34: 30088447.59 | E34: 20822076 | F34: 10200632 | G34: 0 | H34: 10200632 | I34: 31820375.34 | J34: 22163244 | K34: 9657131 | L34: 0 | M34: =ROUND(100-'Townwide Contributions'!L34,2) -> 25.29 | N34: 2175 | O34: 2206 | P34: 0 | Q34: 165450 | R34: 165450 | S34: 10200632 | T34: 10266812 | U34: 0 | V34: 10366082 | W34: 0 | X34: 0 | Y34: 10366082 | Z34: 32.57686903 | AA34: 32529326 | AB34: 102.2279771 | AC34: 1731927.75 | AD34: 165450 | AE34: 2318709.077 | AF34: 7.286869032 | AG34: 14424.47 | AK34: 75 | AM34: 25 | AN34: Bellingham | AO34: 1 | AP34: 2206 | AQ34: 31820375.34 | AR34: 22163244 | AS34: 10366082
A35: 26 | B35: Belmont | C35: 1 | D35: 59533725.07 | E35: 47889465 | F35: 12254719 | G35: 0 | H35: 12254719 | I35: 61875520.81 | J35: 49876878 | K35: 11998643 | L35: 0 | M35: =ROUND(100-'Townwide Contributions'!L35,2) -> 17.5 | N35: 4521 | O35: 4538 | P35: 0 | Q35: 340350 | R35: 340350 | S35: 12254719 | T35: 12390859 | U35: 0 | V35: 12595069 | W35: 0 | X35: 0 | Y35: 12595069 | Z35: 20.35549573 | AA35: 62471947 | AB35: 100.963913 | AC35: 2341795.74 | AD35: 340350 | AE35: 1766852.858 | AF35: 2.855495735 | AG35: 13634.98 | AK35: 75 | AM35: 26 | AN35: Belmont | AO35: 1 | AP35: 4538 | AQ35: 61875520.81 | AR35: 49876878 | AS35: 12595069
A36: 27 | B36: Berkley | C36: 1 | D36: 8895289.57 | E36: 5017565 | F36: 4222848 | G36: 0 | H36: 4222848 | I36: 8738336.55 | J36: 5232212 | K36: 3506125 | L36: 0 | M36: =ROUND(100-'Townwide Contributions'!L36,2) -> 35 | N36: 682 | O36: 640 | P36: 0 | Q36: 48000 | R36: 48000 | S36: 4222848 | T36: 4242048 | U36: 0 | V36: 4270848 | W36: 0 | X36: 0 | Y36: 4270848 | Z36: 48.87483991 | AA36: 9503060 | AB36: 108.7513618 | AC36: -156953.02 | AD36: 48000 | AE36: 1212430.207 | AF36: 13.87483991 | AG36: 13653.65 | AK36: 75 | AM36: 27 | AN36: Berkley | AO36: 1 | AP36: 640 | AQ36: 8738336.55 | AR36: 5232212 | AS36: 4270848
A37: 28 | B37: Berlin | C37: 0 | D37: 0 | E37: 0 | F37: 0 | G37: 0 | H37: 0 | I37: 0 | J37: 0 | K37: 0 | L37: 0 | M37: =ROUND(100-'Townwide Contributions'!L37,2) -> 17.5 | N37: 0 | O37: 0 | P37: 0 | Q37: 0 | R37: 0 | S37: 0 | T37: 0 | U37: 0 | V37: 0 | W37: 0 | X37: 0 | Y37: 0 | Z37: 0 | AA37: 0 | AB37: 0 | AC37: 0 | AD37: 0 | AE37: 0 | AG37: 0 | AK37: 0 | AM37: 28 | AN37: Berlin | AO37: 0 | AP37: 0 | AQ37: 0 | AR37: 0 | AS37: 0
A38: 29 | B38: Bernardston | C38: 0 | D38: 0 | E38: 0 | F38: 0 | G38: 0 | H38: 0 | I38: 0 | J38: 0 | K38: 0 | L38: 0 | M38: =ROUND(100-'Townwide Contributions'!L38,2) -> 38.49 | N38: 0 | O38: 0 | P38: 0 | Q38: 0 | R38: 0 | S38: 0 | T38: 0 | U38: 0 | V38: 0 | W38: 0 | X38: 0 | Y38: 0 | Z38: 0 | AA38: 0 | AB38: 0 | AC38: 0 | AD38: 0 | AE38: 0 | AG38: 0 | AK38: 0 | AM38: 29 | AN38: Bernardston | AO38: 0 | AP38: 0 | AQ38: 0 | AR38: 0 | AS38: 0
A39: 30 | B39: Beverly | C39: 1 | D39: 62707090.12 | E39: 49168020 | F39: 15008945 | G39: 0 | H39: 15008945 | I39: 64124970 | J39: 51585549 | K39: 12539421 | L39: 0 | M39: =ROUND(100-'Townwide Contributions'!L39,2) -> 17.5 | N39: 4466 | O39: 4437 | P39: 0 | Q39: 332775 | R39: 332775 | S39: 15008945 | T39: 15142055 | U39: 0 | V39: 15341720 | W39: 0 | X39: 0 | Y39: 15341720 | Z39: 23.92472074 | AA39: 66927269 | AB39: 104.370059 | AC39: 1417879.88 | AD39: 332775 | AE39: 4119850.25 | AF39: 6.424720745 | AG39: 14452.33 | AK39: 75 | AM39: 30 | AN39: Beverly | AO39: 1 | AP39: 4437 | AQ39: 64124970 | AR39: 51585549 | AS39: 15341720
A40: 31 | B40: Billerica | C40: 1 | D40: 65232366.11 | E40: 52490595 | F40: 20582134 | G40: 0 | H40: 20582134 | I40: 68911291.64 | J40: 55154759 | K40: 13756533 | L40: 0 | M40: =ROUND(100-'Townwide Contributions'!L40,2) -> 17.5 | N40: 4925 | O40: 4999 | P40: 0 | Q40: 374925 | R40: 374925 | S40: 20582134 | T40: 20732104 | U40: 0 | V40: 20957059 | W40: 0 | X40: 0 | Y40: 20957059 | Z40: 30.41164735 | AA40: 76111818 | AB40: 110.448979 | AC40: 3678925.53 | AD40: 374925 | AE40: 8897582.963 | AF40: 12.91164735 | AG40: 13785.02 | AK40: 75 | AM40: 31 | AN40: Billerica | AO40: 1 | AP40: 4999 | AQ40: 68911291.64 | AR40: 55154759 | AS40: 20957059
A41: 32 | B41: Blackstone | C41: 0 | D41: 317959.23 | E41: 163461 | F41: 234189 | G41: 0 | H41: 234189 | I41: 240365.82 | J41: 120024 | K41: 120342 | L41: 0 | M41: =ROUND(100-'Townwide Contributions'!L41,2) -> 46.15 | N41: 17 | O41: 12 | P41: 0 | Q41: 0 | R41: 0 | S41: 232927.64 | T41: 233287.64 | U41: 0 | V41: 234189 | W41: 0 | X41: 0 | Y41: 234189 | Z41: 0 | AA41: 354213 | AB41: 147.3641302 | AC41: -77593.41 | AD41: 0 | AE41: 123260.1741 | AG41: 20030.49 | AK41: 0 | AM41: 32 | AN41: Blackstone | AO41: 0 | AP41: 12 | AQ41: 240365.82 | AR41: 120024 | AS41: 234189
A42: 33 | B42: Blandford | C42: 0 | D42: 250517.91 | E42: 172932 | F42: 77586 | G42: 0 | H42: 77586 | I42: 223011.53 | J42: 162784 | K42: 60228 | L42: 0 | M42: =ROUND(100-'Townwide Contributions'!L42,2) -> 17.5 | N42: 13 | O42: 11 | P42: 0 | Q42: 0 | R42: 0 | S42: 77586 | T42: 77916 | U42: 0 | V42: 77586 | W42: 0 | X42: 0 | Y42: 77586 | Z42: 0 | AA42: 240370 | AB42: 107.7836648 | AC42: -27506.38 | AD42: 0 | AE42: 38558.98225 | AG42: 20273.78 | AK42: 0 | AM42: 33 | AN42: Blandford | AO42: 0 | AP42: 11 | AQ42: 223011.53 | AR42: 162784 | AS42: 77586
A43: 34 | B43: Bolton | C43: 0 | D43: 0 | E43: 0 | F43: 0 | G43: 0 | H43: 0 | I43: 17898.5144 | J43: 14425 | K43: 3474 | L43: 3474 | M43: =ROUND(100-'Townwide Contributions'!L43,2) -> 17.5 | N43: 0 | O43: 1 | P43: 0 | Q43: 0 | R43: 0 | S43: 3030 | T43: 3060 | U43: 0 | V43: 3474 | W43: 0 | X43: 0 | Y43: 3474 | Z43: 0 | AA43: 17899 | AB43: 100.0027131 | AC43: 17898.5144 | AD43: 3474 | AE43: 341.75998 | AG43: 17898.51 | AK43: 3474 | AM43: 34 | AN43: Bolton | AO43: 0 | AP43: 1 | AQ43: 17898.5144 | AR43: 14425 | AS43: 3474
A44: 35 | B44: Boston | C44: 1 | D44: 1145949554 | E44: 945408382 | F44: 236667161 | G44: 0 | H44: 236667161 | I44: 1220875807 | J44: 1007222540 | K44: 213653267 | L44: 0 | M44: =ROUND(100-'Townwide Contributions'!L44,2) -> 17.5 | N44: 57369 | O44: 57616 | P44: 0 | Q44: 4321200 | R44: 4321200 | S44: 236667161 | T44: 238395641 | U44: 0 | V44: 240988361 | W44: 0 | X44: 0 | Y44: 240988361 | Z44: 19.73897424 | AA44: 1248210901 | AB44: 102.2389742 | AC44: 74926252.4 | AD44: 4321200 | AE44: 27335094.86 | AF44: 2.238974244 | AG44: 21189.87 | AK44: 75 | AM44: 35 | AN44: Boston | AO44: 1 | AP44: 57616 | AQ44: 1220875807 | AR44: 1007222540 | AS44: 240988361
A45: 36 | B45: Bourne | C45: 1 | D45: 24109451.63 | E45: 19319804 | F45: 5649175 | G45: 0 | H45: 5649175 | I45: 24040569.22 | J45: 19771933 | K45: 4268636 | L45: 0 | M45: =ROUND(100-'Townwide Contributions'!L45,2) -> 17.5 | N45: 1698 | O45: 1624 | P45: 0 | Q45: 121800 | R45: 121800 | S45: 5649175 | T45: 5697895 | U45: 0 | V45: 5770975 | W45: 0 | X45: 0 | Y45: 5770975 | Z45: 24.00515124 | AA45: 25542908 | AB45: 106.2491814 | AC45: -68882.41 | AD45: 121800 | AE45: 1563875.386 | AF45: 6.505151239 | AG45: 14803.31 | AK45: 75 | AM45: 36 | AN45: Bourne | AO45: 1 | AP45: 1624 | AQ45: 24040569.22 | AR45: 19771933 | AS45: 5770975
A46: 37 | B46: Boxborough | C46: 0 | D46: 90908.90505 | E46: 69316 | F46: 32909 | G46: 0 | H46: 32909 | I46: 74532.86936 | J46: 57871 | K46: 16662 | L46: 0 | M46: =ROUND(100-'Townwide Contributions'!L46,2) -> 17.5 | N46: 5 | O46: 4 | P46: 0 | Q46: 0 | R46: 0 | S46: 32909 | T46: 33029 | U46: 0 | V46: 32909 | W46: 0 | X46: 0 | Y46: 32909 | Z46: 0 | AA46: 90780 | AB46: 121.7986115 | AC46: -16376.03569 | AD46: 0 | AE46: 19865.74786 | AG46: 18633.22 | AK46: 0 | AM46: 37 | AN46: Boxborough | AO46: 0 | AP46: 4 | AQ46: 74532.86936 | AR46: 57871 | AS46: 32909
A47: 38 | B47: Boxford | C47: 1 | D47: 9024222.11 | E47: 7139841 | F47: 1932573 | G47: 0 | H47: 1932573 | I47: 9323322.947 | J47: 7499139 | K47: 1824184 | L47: 0 | M47: =ROUND(100-'Townwide Contributions'!L47,2) -> 17.5 | N47: 745 | O47: 743 | P47: 0 | Q47: 55725 | R47: 55725 | S47: 1932573 | T47: 1954863 | U47: 0 | V47: 1988298 | W47: 0 | X47: 0 | Y47: 1988298 | Z47: 21.32606595 | AA47: 9487437 | AB47: 101.7602528 | AC47: 299100.837 | AD47: 55725 | AE47: 356716.4842 | AF47: 3.826065945 | AG47: 12548.21 | AK47: 75 | AM47: 38 | AN47: Boxford | AO47: 1 | AP47: 743 | AQ47: 9323322.947 | AR47: 7499139 | AS47: 1988298
A48: 39 | B48: Boylston | C48: 0 | D48: 267378.24 | E48: 220587 | F48: 113472 | G48: 0 | H48: 113472 | I48: 156188.61 | J48: 128856 | K48: 27333 | L48: 0 | M48: =ROUND(100-'Townwide Contributions'!L48,2) -> 17.5 | N48: 14 | O48: 9 | P48: 0 | Q48: 0 | R48: 0 | S48: 113472 | T48: 113742 | U48: 0 | V48: 113472 | W48: 0 | X48: 0 | Y48: 113472 | Z48: 0 | AA48: 242328 | AB48: 155.1508782 | AC48: -111189.63 | AD48: 0 | AE48: 86138.99325 | AG48: 17354.29 | AK48: 0 | AM48: 39 | AN48: Boylston | AO48: 0 | AP48: 9 | AQ48: 156188.61 | AR48: 128856 | AS48: 113472
A49: 40 | B49: Braintree | C49: 1 | D49: 73532608.81 | E49: 55176708 | F49: 21191400 | G49: 0 | H49: 21191400 | I49: 75740827.68 | J49: 57604796 | K49: 18136032 | L49: 0 | M49: =ROUND(100-'Townwide Contributions'!L49,2) -> 18.21 | N49: 5181 | O49: 5121 | P49: 0 | Q49: 384075 | R49: 384075 | S49: 21191400 | T49: 21345030 | U49: 0 | V49: 21575475 | W49: 0 | X49: 0 | Y49: 21575475 | Z49: 28.48592452 | AA49: 79180271 | AB49: 104.5410691 | AC49: 2208218.873 | AD49: 384075 | AE49: 7783070.279 | AF49: 10.27592452 | AG49: 14790.24 | AK49: 75 | AM49: 40 | AN49: Braintree | AO49: 1 | AP49: 5121 | AQ49: 75740827.68 | AR49: 57604796 | AS49: 21575475
A50: 41 | B50: Brewster | C50: 1 | D50: 5984373.99 | E50: 4937108 | F50: 1421235 | G50: 0 | H50: 1421235 | I50: 6081078.08 | J50: 5016889 | K50: 1064189 | L50: 0 | M50: =ROUND(100-'Townwide Contributions'!L50,2) -> 17.5 | N50: 421 | O50: 419 | P50: 0 | Q50: 31425 | R50: 31425 | S50: 1421235 | T50: 1433805 | U50: 0 | V50: 1452660 | W50: 0 | X50: 0 | Y50: 1452660 | Z50: 23.88819846 | AA50: 6469549 | AB50: 106.3881916 | AC50: 96704.09 | AD50: 31425 | AE50: 388471.336 | AF50: 6.388198456 | AG50: 14513.31 | AK50: 75 | AM50: 41 | AN50: Brewster | AO50: 1 | AP50: 419 | AQ50: 6081078.08 | AR50: 5016889 | AS50: 1452660
A51: 42 | B51: Bridgewater | C51: 0 | D51: 334819.56 | E51: 195386 | F51: 139434 | G51: 0 | H51: 139434 | I51: 448617.3 | J51: 258421 | K51: 190196 | L51: 50762 | M51: =ROUND(100-'Townwide Contributions'!L51,2) -> 33.72 | N51: 18 | O51: 24 | P51: 0 | Q51: 0 | R51: 0 | S51: 171164 | T51: 171884 | U51: 0 | V51: 190196 | W51: 0 | X51: 0 | Y51: 190196 | Z51: 0 | AA51: 448617 | AB51: 99.99993313 | AC51: 113797.74 | AD51: 50762 | AE51: 38922.24644 | AG51: 18692.39 | AK51: 2115.083333 | AM51: 42 | AN51: Bridgewater | AO51: 0 | AP51: 24 | AQ51: 448617.3 | AR51: 258421 | AS51: 190196
A52: 43 | B52: Brimfield | C52: 1 | D52: 3675840.46 | E52: 1922423 | F52: 1753417 | G52: 0 | H52: 1753417 | I52: 3424747.86 | J52: 1917011 | K52: 1507737 | L52: 0 | M52: =ROUND(100-'Townwide Contributions'!L52,2) -> 39.47 | N52: 270 | O52: 251 | P52: 0 | Q52: 18825 | R52: 18825 | S52: 1753417 | T52: 1760947 | U52: 0 | V52: 1772242 | W52: 0 | X52: 0 | Y52: 1772242 | Z52: 51.74810154 | AA52: 3689253 | AB52: 107.7233464 | AC52: -251092.6 | AD52: 18825 | AE52: 420494.0197 | AF52: 12.27810154 | AG52: 13644.41 | AK52: 75 | AM52: 43 | AN52: Brimfield | AO52: 1 | AP52: 251 | AQ52: 3424747.86 | AR52: 1917011 | AS52: 1772242
A53: 44 | B53: Brockton | C53: 1 | D53: 314919037.4 | E53: 58428285 | F53: 256490752 | G53: 0 | H53: 256490752 | I53: 344720845.5 | J53: 62646528 | K53: 282074317 | L53: 25583565 | M53: =ROUND(100-'Townwide Contributions'!L53,2) -> 76.95 | N53: 16775 | O53: 17203 | P53: 1 | Q53: 1290225 | R53: 0 | S53: 256490752 | T53: 257006842 | U53: 0 | V53: 282074317 | W53: 0 | X53: 0 | Y53: 282074317 | Z53: 81.82688128 | AA53: 344720845 | AB53: 99.99999986 | AC53: 29801808.05 | AD53: 25583565 | AE53: 16811626.4 | AF53: 4.876881284 | AG53: 20038.41 | AK53: 1487.157182 | AM53: 44 | AN53: Brockton | AO53: 1 | AP53: 17203 | AQ53: 344720845.5 | AR53: 62646528 | AS53: 282074317
A54: 45 | B54: Brookfield | C54: 1 | D54: 3232462.2 | E54: 1406803 | F54: 1935136 | G54: 0 | H54: 1935136 | I54: 3273863.38 | J54: 1445613 | K54: 1828250 | L54: 0 | M54: =ROUND(100-'Townwide Contributions'!L54,2) -> 51.11 | N54: 225 | O54: 221 | P54: 0 | Q54: 16575 | R54: 16575 | S54: 1935136 | T54: 1941766 | U54: 0 | V54: 1951711 | W54: 0 | X54: 0 | Y54: 1951711 | Z54: 59.61491893 | AA54: 3397324 | AB54: 103.7710987 | AC54: 41401.18 | AD54: 16575 | AE54: 278439.4265 | AF54: 8.504918934 | AG54: 14813.86 | AK54: 75 | AM54: 45 | AN54: Brookfield | AO54: 1 | AP54: 221 | AQ54: 3273863.38 | AR54: 1445613 | AS54: 1951711
A55: 46 | B55: Brookline | C55: 1 | D55: 91993751.56 | E55: 75894845 | F55: 16752743 | G55: 0 | H55: 16752743 | I55: 95312162.89 | J55: 78632534 | K55: 16679629 | L55: 0 | M55: =ROUND(100-'Townwide Contributions'!L55,2) -> 17.5 | N55: 6899 | O55: 6881 | P55: 0 | Q55: 516075 | R55: 516075 | S55: 16752743 | T55: 16959173 | U55: 0 | V55: 17268818 | W55: 0 | X55: 0 | Y55: 17268818 | Z55: 18.11816821 | AA55: 95901352 | AB55: 100.6181678 | AC55: 3318411.333 | AD55: 516075 | AE55: 589189.4942 | AF55: 0.6181682131 | AG55: 13851.5 | AK55: 75 | AM55: 46 | AN55: Brookline | AO55: 1 | AP55: 6881 | AQ55: 95312162.89 | AR55: 78632534 | AS55: 17268818
A56: 47 | B56: Buckland | C56: 0 | D56: 16860.33 | E56: 8952 | F56: 13134 | G56: 0 | H56: 13134 | I56: 0 | J56: 0 | K56: 0 | L56: 0 | M56: =ROUND(100-'Townwide Contributions'!L56,2) -> 43.36 | N56: 1 | O56: 0 | P56: 0 | Q56: 0 | R56: 0 | S56: 0 | T56: 0 | U56: 0 | V56: 13134 | W56: 13134 | X56: 0 | Y56: 0 | Z56: 0 | AA56: 0 | AB56: 0 | AC56: -16860.33 | AD56: -13134 | AE56: 0 | AG56: 0 | AK56: 0 | AM56: 47 | AN56: Buckland | AO56: 0 | AP56: 0 | AQ56: 0 | AR56: 0 | AS56: 0
A57: 48 | B57: Burlington | C57: 1 | D57: 49033422.45 | E57: 39058316 | F57: 9975106 | G57: 0 | H57: 9975106 | I57: 50997674.38 | J57: 41124446 | K57: 9873228 | L57: 0 | M57: =ROUND(100-'Townwide Contributions'!L57,2) -> 17.5 | N57: 3523 | O57: 3523 | P57: 0 | Q57: 264225 | R57: 264225 | S57: 9975106 | T57: 10080796 | U57: 0 | V57: 10239331 | W57: 0 | X57: 0 | Y57: 10239331 | Z57: 20.07803518 | AA57: 51363777 | AB57: 100.717881 | AC57: 1964251.931 | AD57: 264225 | AE57: 1314737.984 | AF57: 2.578035175 | AG57: 14475.64 | AK57: 75 | AM57: 48 | AN57: Burlington | AO57: 1 | AP57: 3523 | AQ57: 50997674.38 | AR57: 41124446 | AS57: 10239331
A58: 49 | B58: Cambridge | C58: 1 | D58: 118963463.1 | E58: 98144857 | F58: 20818606 | G58: 0 | H58: 20818606 | I58: 129510666.7 | J58: 106846300 | K58: 22664367 | L58: 1845761 | M58: =ROUND(100-'Townwide Contributions'!L58,2) -> 17.5 | N58: 7297 | O58: 7446 | P58: 1 | Q58: 558450 | R58: 0 | S58: 20818606 | T58: 21041986 | U58: 0 | V58: 22664367 | W58: 0 | X58: 0 | Y58: 22664367 | Z58: 17.50000026 | AA58: 129510667 | AB58: 100.0000003 | AC58: 10547203.52 | AD58: 1845761 | AE58: 0.3337387554 | AF58: 2.57692097e-07 | AG58: 17393.32 | AK58: 247.8862476 | AM58: 49 | AN58: Cambridge | AO58: 1 | AP58: 7446 | AQ58: 129510666.7 | AR58: 106846300 | AS58: 22664367
A59: 50 | B59: Canton | C59: 1 | D59: 44999693.3 | E59: 36588682 | F59: 9007450 | G59: 0 | H59: 9007450 | I59: 47358582.6 | J59: 38091394 | K59: 9267189 | L59: 259739 | M59: =ROUND(100-'Townwide Contributions'!L59,2) -> 17.5 | N59: 3291 | O59: 3301 | P59: 1 | Q59: 247575 | R59: 0 | S59: 9007450 | T59: 9106480 | U59: 0 | V59: 9267189 | W59: 0 | X59: 0 | Y59: 9267189 | Z59: 19.56812998 | AA59: 47358583 | AB59: 100.0000008 | AC59: 2358889.297 | AD59: 259739 | AE59: 979437.0451 | AF59: 2.068129981 | AG59: 14346.74 | AK59: 78.68494396 | AM59: 50 | AN59: Canton | AO59: 1 | AP59: 3301 | AQ59: 47358582.6 | AR59: 38091394 | AS59: 9267189
A60: 51 | B60: Carlisle | C60: 1 | D60: 6853478.081 | E60: 5654120 | F60: 1447374 | G60: 0 | H60: 1447374 | I60: 7237676.12 | J60: 5971083 | K60: 1266593 | L60: 0 | M60: =ROUND(100-'Townwide Contributions'!L60,2) -> 17.5 | N60: 571 | O60: 576 | P60: 0 | Q60: 43200 | R60: 43200 | S60: 1447374 | T60: 1464654 | U60: 0 | V60: 1490574 | W60: 0 | X60: 0 | Y60: 1490574 | Z60: 20.5946491 | AA60: 7461657 | AB60: 103.0946519 | AC60: 384198.039 | AD60: 43200 | AE60: 223980.679 | AF60: 3.094649101 | AG60: 12565.41 | AK60: 75 | AM60: 51 | AN60: Carlisle | AO60: 1 | AP60: 576 | AQ60: 7237676.12 | AR60: 5971083 | AS60: 1490574
A61: 52 | B61: Carver | C61: 1 | D61: 20958681.78 | E61: 11414545 | F61: 10619393 | G61: 0 | H61: 10619393 | I61: 21388080.56 | J61: 11861024 | K61: 9527057 | L61: 0 | M61: =ROUND(100-'Townwide Contributions'!L61,2) -> 37.87 | N61: 1501 | O61: 1467 | P61: 0 | Q61: 110025 | R61: 110025 | S61: 10619393 | T61: 10663403 | U61: 0 | V61: 10729418 | W61: 0 | X61: 0 | Y61: 10729418 | Z61: 50.16540857 | AA61: 22590442 | AB61: 105.6216426 | AC61: 429398.7854 | AD61: 110025 | AE61: 2629751.891 | AF61: 12.29540857 | AG61: 14579.47 | AK61: 75 | AM61: 52 | AN61: Carver | AO61: 1 | AP61: 1467 | AQ61: 21388080.56 | AR61: 11861024 | AS61: 10729418
A62: 53 | B62: Charlemont | C62: 0 | D62: 216797.25 | E62: 121733 | F62: 102815 | G62: 0 | H62: 102815 | I62: 240365.82 | J62: 133498 | K62: 106868 | L62: 4053 | M62: =ROUND(100-'Townwide Contributions'!L62,2) -> 33.58 | N62: 11 | O62: 12 | P62: 0 | Q62: 0 | R62: 0 | S62: 102815 | T62: 103175 | U62: 0 | V62: 106868 | W62: 0 | X62: 0 | Y62: 106868 | Z62: 0 | AA62: 240366 | AB62: 100.0000749 | AC62: 23568.57 | AD62: 4053 | AE62: 26153.15764 | AG62: 20030.49 | AK62: 337.75 | AM62: 53 | AN62: Charlemont | AO62: 0 | AP62: 12 | AQ62: 240365.82 | AR62: 133498 | AS62: 106868
A63: 54 | B63: Charlton | C63: 0 | D63: 0 | E63: 0 | F63: 0 | G63: 0 | H63: 0 | I63: 0 | J63: 0 | K63: 0 | L63: 0 | M63: =ROUND(100-'Townwide Contributions'!L63,2) -> 33.51 | N63: 0 | O63: 0 | P63: 0 | Q63: 0 | R63: 0 | S63: 0 | T63: 0 | U63: 0 | V63: 0 | W63: 0 | X63: 0 | Y63: 0 | Z63: 0 | AA63: 0 | AB63: 0 | AC63: 0 | AD63: 0 | AE63: 0 | AG63: 0 | AK63: 0 | AM63: 54 | AN63: Charlton | AO63: 0 | AP63: 0 | AQ63: 0 | AR63: 0 | AS63: 0
A64: 55 | B64: Chatham | C64: 0 | D64: 0 | E64: 0 | F64: 0 | G64: 0 | H64: 0 | I64: 0 | J64: 0 | K64: 0 | L64: 0 | M64: =ROUND(100-'Townwide Contributions'!L64,2) -> 17.5 | N64: 0 | O64: 0 | P64: 0 | Q64: 0 | R64: 0 | S64: 0 | T64: 0 | U64: 0 | V64: 0 | W64: 0 | X64: 0 | Y64: 0 | Z64: 0 | AA64: 0 | AB64: 0 | AC64: 0 | AD64: 0 | AE64: 0 | AG64: 0 | AK64: 0 | AM64: 55 | AN64: Chatham | AO64: 0 | AP64: 0 | AQ64: 0 | AR64: 0 | AS64: 0
A65: 56 | B65: Chelmsford | C65: 1 | D65: 66887500.86 | E65: 52463272 | F65: 14680624 | G65: 0 | H65: 14680624 | I65: 68619087.45 | J65: 55152965 | K65: 13466122 | L65: 0 | M65: =ROUND(100-'Townwide Contributions'!L65,2) -> 17.5 | N65: 5181 | O65: 5132 | P65: 0 | Q65: 384900 | R65: 384900 | S65: 14680624 | T65: 14834584 | U65: 0 | V65: 15065524 | W65: 0 | X65: 0 | Y65: 15065524 | Z65: 21.95529635 | AA65: 70218489 | AB65: 102.3308406 | AC65: 1731586.59 | AD65: 384900 | AE65: 3057183.696 | AF65: 4.455296347 | AG65: 13370.83 | AK65: 75 | AM65: 56 | AN65: Chelmsford | AO65: 1 | AP65: 5132 | AQ65: 68619087.45 | AR65: 55152965 | AS65: 15065524
A66: 57 | B66: Chelsea | C66: 1 | D66: 146924932.9 | E66: 23727035 | F66: 123197898 | G66: 0 | H66: 123197898 | I66: 155824471.3 | J66: 25069966 | K66: 130754505 | L66: 7556607 | M66: =ROUND(100-'Townwide Contributions'!L66,2) -> 77.44 | N66: 7095 | O66: 7029 | P66: 1 | Q66: 527175 | R66: 0 | S66: 123197898 | T66: 123408768 | U66: 0 | V66: 130754505 | W66: 0 | X66: 0 | Y66: 130754505 | Z66: 83.91140614 | AA66: 155824471 | AB66: 99.99999979 | AC66: 8899538.462 | AD66: 7556607 | AE66: 10084034.4 | AF66: 6.471406137 | AG66: 22168.8 | AK66: 1075.06146 | AM66: 57 | AN66: Chelsea | AO66: 1 | AP66: 7029 | AQ66: 155824471.3 | AR66: 25069966 | AS66: 130754505
A67: 58 | B67: Cheshire | C67: 0 | D67: 16860.33 | E67: 8468 | F67: 16351 | G67: 0 | H67: 16351 | I67: 17354.29 | J67: 8633 | K67: 8721 | L67: 0 | M67: =ROUND(100-'Townwide Contributions'!L67,2) -> 44.28 | N67: 1 | O67: 1 | P67: 0 | Q67: 0 | R67: 0 | S67: 16351 | T67: 16381 | U67: 0 | V67: 16351 | W67: 0 | X67: 0 | Y67: 16351 | Z67: 0 | AA67: 24984 | AB67: 143.964403 | AC67: 493.96 | AD67: 0 | AE67: 8666.520388 | AG67: 17354.29 | AK67: 0 | AM67: 58 | AN67: Cheshire | AO67: 0 | AP67: 1 | AQ67: 17354.29 | AR67: 8633 | AS67: 16351
A68: 59 | B68: Chester | C68: 0 | D68: 118022.31 | E68: 59715 | F68: 72014 | G68: 0 | H68: 72014 | I68: 156188.61 | J68: 76907 | K68: 79282 | L68: 7268 | M68: =ROUND(100-'Townwide Contributions'!L68,2) -> 45.87 | N68: 7 | O68: 9 | P68: 0 | Q68: 0 | R68: 0 | S68: 73738 | T68: 74008 | U68: 0 | V68: 79282 | W68: 0 | X68: 0 | Y68: 79282 | Z68: 0 | AA68: 156189 | AB68: 100.0002497 | AC68: 38166.3 | AD68: 7268 | AE68: 7638.284593 | AG68: 17354.29 | AK68: 807.5555556 | AM68: 59 | AN68: Chester | AO68: 0 | AP68: 9 | AQ68: 156188.61 | AR68: 76907 | AS68: 79282
A69: 60 | B69: Chesterfield | C69: 0 | D69: 267378.24 | E69: 204860 | F69: 133594 | G69: 0 | H69: 133594 | I69: 292428.69 | J69: 227046 | K69: 65383 | L69: 0 | M69: =ROUND(100-'Townwide Contributions'!L69,2) -> 17.5 | N69: 14 | O69: 15 | P69: 0 | Q69: 0 | R69: 0 | S69: 133594 | T69: 134044 | U69: 0 | V69: 133594 | W69: 0 | X69: 0 | Y69: 133594 | Z69: 0 | AA69: 360640 | AB69: 123.3257927 | AC69: 25050.45 | AD69: 0 | AE69: 82418.97925 | AG69: 19495.25 | AK69: 0 | AM69: 60 | AN69: Chesterfield | AO69: 0 | AP69: 15 | AQ69: 292428.69 | AR69: 227046 | AS69: 133594
A70: 61 | B70: Chicopee | C70: 1 | D70: 129158251.1 | E70: 35132393 | F70: 94025858 | G70: 0 | H70: 94025858 | I70: 136705068.7 | J70: 36463911 | K70: 100241158 | L70: 6215300 | M70: =ROUND(100-'Townwide Contributions'!L70,2) -> 70.47 | N70: 7202 | O70: 7198 | P70: 1 | Q70: 539850 | R70: 0 | S70: 94025858 | T70: 94241798 | U70: 0 | V70: 100241158 | W70: 0 | X70: 0 | Y70: 100241158 | Z70: 73.32658473 | AA70: 136705069 | AB70: 100.0000002 | AC70: 7546817.54 | AD70: 6215300 | AE70: 3905096.115 | AF70: 2.856584729 | AG70: 18992.09 | AK70: 863.4759655 | AM70: 61 | AN70: Chicopee | AO70: 1 | AP70: 7198 | AQ70: 136705068.7 | AR70: 36463911 | AS70: 100241158
A71: 62 | B71: Chilmark | C71: 0 | D71: 0 | E71: 0 | F71: 0 | G71: 0 | H71: 0 | I71: 0 | J71: 0 | K71: 0 | L71: 0 | M71: =ROUND(100-'Townwide Contributions'!L71,2) -> 17.5 | N71: 0 | O71: 0 | P71: 0 | Q71: 0 | R71: 0 | S71: 0 | T71: 0 | U71: 0 | V71: 0 | W71: 0 | X71: 0 | Y71: 0 | Z71: 0 | AA71: 0 | AB71: 0 | AC71: 0 | AD71: 0 | AE71: 0 | AG71: 0 | AK71: 0 | AM71: 62 | AN71: Chilmark | AO71: 0 | AP71: 0 | AQ71: 0 | AR71: 0 | AS71: 0
A72: 63 | B72: Clarksburg | C72: 1 | D72: 2889718.21 | E72: 806811 | F72: 2082907 | G72: 0 | H72: 2082907 | I72: 2998078.92 | J72: 793818 | K72: 2204261 | L72: 121354 | M72: =ROUND(100-'Townwide Contributions'!L72,2) -> 70.08 | N72: 204 | O72: 201 | P72: 1 | Q72: 15075 | R72: 0 | S72: 2082907 | T72: 2088937 | U72: 0 | V72: 2204261 | W72: 0 | X72: 0 | Y72: 2204261 | Z72: 73.5224475 | AA72: 2998079 | AB72: 100.0000027 | AC72: 108360.71 | AD72: 121354 | AE72: 103207.2929 | AF72: 3.442447501 | AG72: 14915.82 | AK72: 603.7512438 | AM72: 63 | AN72: Clarksburg | AO72: 1 | AP72: 201 | AQ72: 2998078.92 | AR72: 793818 | AS72: 2204261
A73: 64 | B73: Clinton | C73: 1 | D73: 34438020.57 | E73: 14024833 | F73: 20413188 | G73: 0 | H73: 20413188 | I73: 36558782.02 | J73: 14710647 | K73: 21848135 | L73: 1434947 | M73: =ROUND(100-'Townwide Contributions'!L73,2) -> 55.13 | N73: 2095 | O73: 2129 | P73: 1 | Q73: 159675 | R73: 0 | S73: 20413188 | T73: 20477058 | U73: 0 | V73: 21848135 | W73: 0 | X73: 0 | Y73: 21848135 | Z73: 59.76165997 | AA73: 36558782 | AB73: 99.99999995 | AC73: 2120761.45 | AD73: 1434947 | AE73: 1693278.472 | AF73: 4.63165997 | AG73: 17171.81 | AK73: 674.0004697 | AM73: 64 | AN73: Clinton | AO73: 1 | AP73: 2129 | AQ73: 36558782.02 | AR73: 14710647 | AS73: 21848135
A74: 65 | B74: Cohasset | C74: 1 | D74: 17839057.45 | E74: 14717222 | F74: 3121835 | G74: 0 | H74: 3121835 | I74: =SUMIF(dist1755,A74,found1755) -> 18191220.13 | J74: =SUMIF(dist1755,A74,prelcont1755) -> 15007757 | K74: =ROUND(MAX(found-prelcont436,0),0) -> 3183463 | L74: =IF(foundaid>priorc70,foundaid-priorc70,0) -> 61628 | M74: =ROUND(100-'Townwide Contributions'!L74,2) -> 17.5 | N74: 1433 | O74: =SUMIF(dist1755,A74,enro1755) -> 1408 | P74: =IF(AND(C74=1,L74>0),1,0) -> 1 | Q74: =IF(nonop=1,enro*$Q$6,0) -> 105600 | R74: =IF((foundinc)<Q74,Q74-(foundinc),0) -> 43972 | S74: 3121835 | T74: =S74+30*enro -> 3164075 | U74: =IF(AND(T74-priorc70-foundinc-minaid>0,nonop=1), T74-priorc70-foundinc-minaid,0) -> 0 | V74: =priorc70+ foundinc+minaidadjincrement+minaid -> 3227435 | W74: =IF(AND(C74=0,V74>found),V74-found,0) -> 0 | X74: 0 | Y74: =priorc70+foundinc+minaidadjincrement+minaid-rednonop+holdharmlessaid -> 3227435 | Z74: =IF(C74=1, Y74/I74*100, 0) -> 17.74171813 | AA74: =prelcont436+chapter70 -> 18235192 | AB74: =IF(found>0,AA74*100/found,0) -> 100.2417203 | AC74: =I74-D74 -> 352162.674 | AD74: =Y74-F74 -> 105600 | AE74: =Y74-((M74/100)*I74) -> 43971.47802 | AF74: =IF(C74=1, (Y74/I74*100)-M74, "") -> 0.241718135 | AG74: =IFERROR(ROUND(I74/O74, 2), 0) -> 12919.9 | AK74: =IFERROR(AD74/O74, 0) -> 75 | AM74: =A74 -> 65 | AN74: =B74 -> Cohasset | AO74: =C74 -> 1 | AP74: 1408 | AQ74: =I74 -> 18191220.13 | AR74: =J74 -> 15007757 | AS74: =Y74 -> 3227435
A75: 66 | B75: Colrain | C75: 0 | D75: 0 | E75: 0 | F75: 0 | G75: 0 | H75: =F75+G75 -> 0 | I75: 0 | J75: 0 | K75: 0 | L75: 0 | M75: =ROUND(100-'Townwide Contributions'!L75,2) -> 46.76 | N75: 0 | O75: 0 | P75: 0 | Q75: 0 | R75: 0 | S75: 0 | T75: 0 | U75: 0 | V75: 0 | W75: 0 | X75: 0 | Y75: 0 | Z75: 0 | AA75: 0 | AB75: 0 | AC75: 0 | AD75: 0 | AE75: 0 | AG75: 0 | AK75: 0 | AM75: 66 | AN75: Colrain | AO75: 0 | AP75: =O75 -> 0 | AQ75: 0 | AR75: 0 | AS75: 0
A76: 67 | B76: Concord | C76: 1 | D76: 24161392.54 | E76: 19933149 | F76: 4240305 | G76: 0 | H76: 4240305 | I76: 24461959.49 | J76: 20181116 | K76: 4280843 | L76: 40538 | M76: =ROUND(100-'Townwide Contributions'!L76,2) -> 17.5 | N76: 1943 | O76: 1892 | P76: 1 | Q76: 141900 | R76: 101362 | S76: 4240305 | T76: 4297065 | U76: 0 | V76: 4382205 | W76: 0 | X76: 0 | Y76: 4382205 | Z76: 17.91436619 | AA76: 24563321 | AB76: 100.4143638 | AC76: 300566.9496 | AD76: 141900 | AE76: 101362.0892 | AF76: 0.4143661886 | AG76: 12929.15 | AK76: 75 | AM76: 67 | AN76: Concord | AO76: 1 | AP76: 1892 | AQ76: 24461959.49 | AR76: 20181116 | AS76: 4382205
A77: 68 | B77: Conway | C77: 1 | D77: 969244.92 | E77: 799627 | F77: 644516 | G77: 0 | H77: 644516 | I77: 1196505.07 | J77: 987117 | K77: 209388 | L77: 0 | M77: =ROUND(100-'Townwide Contributions'!L77,2) -> 17.5 | N77: 68 | O77: 83 | P77: 0 | Q77: 6225 | R77: 6225 | S77: 644516 | T77: 647006 | U77: 0 | V77: 650741 | W77: 0 | X77: 0 | Y77: 650741 | Z77: 54.38681509 | AA77: 1637858 | AB77: 136.8868416 | AC77: 227260.15 | AD77: 6225 | AE77: 441352.6127 | AF77: 36.88681509 | AG77: 14415.72 | AK77: 75 | AM77: 68 | AN77: Conway | AO77: 1 | AP77: 83 | AQ77: 1196505.07 | AR77: 987117 | AS77: 650741
A78: 69 | B78: Cummington | C78: 0 | D78: 84301.65 | E78: 69549 | F78: 59811.12 | G78: 0 | H78: 59811.12 | I78: 86771.45 | J78: 71586 | K78: 15185 | L78: 0 | M78: =ROUND(100-'Townwide Contributions'!L78,2) -> 17.5 | N78: 5 | O78: 5 | P78: 0 | Q78: 0 | R78: 0 | S78: 59811.12 | T78: 59961.12 | U78: 0 | V78: 59811.12 | W78: 0 | X78: 0 | Y78: 59811.12 | Z78: 0 | AA78: 131397.12 | AB78: 151.4289781 | AC78: 2469.8 | AD78: 0 | AE78: 44626.11625 | AG78: 17354.29 | AK78: 0 | AM78: 69 | AN78: Cummington | AO78: 0 | AP78: 5 | AQ78: 86771.45 | AR78: 71586 | AS78: 59811.12
A79: 70 | B79: Dalton | C79: 0 | D79: 267378.24 | E79: 121597 | F79: 212169.48 | G79: 0 | H79: 212169.48 | I79: 483325.88 | J79: 221639 | K79: 261687 | L79: 49517.52 | M79: =ROUND(100-'Townwide Contributions'!L79,2) -> 50.39 | N79: 14 | O79: 26 | P79: 0 | Q79: 0 | R79: 0 | S79: 251126 | T79: 251906 | U79: 0 | V79: 261687 | W79: 0 | X79: 0 | Y79: 261687 | Z79: 0 | AA79: 483326 | AB79: 100.0000248 | AC79: 215947.64 | AD79: 49517.52 | AE79: 18139.08907 | AG79: 18589.46 | AK79: 1904.52 | AM79: 70 | AN79: Dalton | AO79: 0 | AP79: 26 | AQ79: 483325.88 | AR79: 221639 | AS79: 261687
A80: 71 | B80: Danvers | C80: 1 | D80: 44328380.18 | E80: 34918958 | F80: 9640400 | G80: 0 | H80: 9640400 | I80: 46476053.4 | J80: 36728197 | K80: 9747856 | L80: 107456 | M80: =ROUND(100-'Townwide Contributions'!L80,2) -> 17.5 | N80: 3349 | O80: 3313 | P80: 1 | Q80: 248475 | R80: 141019 | S80: 9640400 | T80: 9739790 | U80: 0 | V80: 9888875 | W80: 0 | X80: 0 | Y80: 9888875 | Z80: 21.27735528 | AA80: 46617072 | AB80: 100.3034221 | AC80: 2147673.22 | AD80: 248475 | AE80: 1755565.655 | AF80: 3.777355276 | AG80: 14028.39 | AK80: 75 | AM80: 71 | AN80: Danvers | AO80: 1 | AP80: 3313 | AQ80: 46476053.4 | AR80: 36728197 | AS80: 9888875
A81: 72 | B81: Dartmouth | C81: 1 | D81: 44678547.48 | E81: 36166183 | F81: 10790867 | G81: 0 | H81: 10790867 | I81: 45395663.05 | J81: 37451422 | K81: 7944241 | L81: 0 | M81: =ROUND(100-'Townwide Contributions'!L81,2) -> 17.5 | N81: 3284 | O81: 3203 | P81: 0 | Q81: 240225 | R81: 240225 | S81: 10790867 | T81: 10886957 | U81: 0 | V81: 11031092 | W81: 0 | X81: 0 | Y81: 11031092 | Z81: 24.29988078 | AA81: 48482514 | AB81: 106.7998807 | AC81: 717115.57 | AD81: 240225 | AE81: 3086850.966 | AF81: 6.799880779 | AG81: 14172.86 | AK81: 75 | AM81: 72 | AN81: Dartmouth | AO81: 1 | AP81: 3203 | AQ81: 45395663.05 | AR81: 37451422 | AS81: 11031092
A82: 73 | B82: Dedham | C82: 1 | D82: 39060888.15 | E82: 29321375 | F82: 9739513 | G82: 0 | H82: 9739513 | I82: 40094755.54 | J82: 30840581 | K82: 9254175 | L82: 0 | M82: =ROUND(100-'Townwide Contributions'!L82,2) -> 17.5 | N82: 2748 | O82: 2707 | P82: 0 | Q82: 203025 | R82: 203025 | S82: 9739513 | T82: 9820723 | U82: 0 | V82: 9942538 | W82: 0 | X82: 0 | Y82: 9942538 | Z82: 24.79760225 | AA82: 40783119 | AB82: 101.7168416 | AC82: 1033867.391 | AD82: 203025 | AE82: 2925955.781 | AF82: 7.297602246 | AG82: 14811.51 | AK82: 75 | AM82: 73 | AN82: Dedham | AO82: 1 | AP82: 2707 | AQ82: 40094755.54 | AR82: 30840581 | AS82: 9942538
A83: 74 | B83: Deerfield | C83: 1 | D83: 3547455.86 | E83: 2926651 | F83: 1186069 | G83: 0 | H83: 1186069 | I83: 3493016.69 | J83: 2881739 | K83: 611278 | L83: 0 | M83: =ROUND(100-'Townwide Contributions'!L83,2) -> 17.5 | N83: 279 | O83: 261 | P83: 0 | Q83: 19575 | R83: 19575 | S83: 1186069 | T83: 1193899 | U83: 0 | V83: 1205644 | W83: 0 | X83: 0 | Y83: 1205644 | Z83: 34.51583851 | AA83: 4087383 | AB83: 117.0158451 | AC83: -54439.17 | AD83: 19575 | AE83: 594366.0793 | AF83: 17.01583851 | AG83: 13383.21 | AK83: 75 | AM83: 74 | AN83: Deerfield | AO83: 1 | AP83: 261 | AQ83: 3493016.69 | AR83: 2881739 | AS83: 1205644
A84: 75 | B84: Dennis | C84: 0 | D84: 0 | E84: 0 | F84: 0 | G84: 0 | H84: 0 | I84: 0 | J84: 0 | K84: 0 | L84: 0 | M84: =ROUND(100-'Townwide Contributions'!L84,2) -> 17.5 | N84: 0 | O84: 0 | P84: 0 | Q84: 0 | R84: 0 | S84: 0 | T84: 0 | U84: 0 | V84: 0 | W84: 0 | X84: 0 | Y84: 0 | Z84: 0 | AA84: 0 | AB84: 0 | AC84: 0 | AD84: 0 | AE84: 0 | AG84: 0 | AK84: 0 | AM84: 75 | AN84: Dennis | AO84: 0 | AP84: 0 | AQ84: 0 | AR84: 0 | AS84: 0
A85: 76 | B85: Dighton | C85: 0 | D85: 16860.33 | E85: 8607 | F85: 8253 | G85: 0 | H85: 8253 | I85: 17354.29 | J85: 9474 | K85: 7880 | L85: 0 | M85: =ROUND(100-'Townwide Contributions'!L85,2) -> 35 | N85: 1 | O85: 1 | P85: 0 | Q85: 0 | R85: 0 | S85: 8253 | T85: 8283 | U85: 0 | V85: 8253 | W85: 0 | X85: 0 | Y85: 8253 | Z85: 0 | AA85: 17727 | AB85: 102.1476534 | AC85: 493.96 | AD85: 0 | AE85: 2178.9985 | AG85: 17354.29 | AK85: 0 | AM85: 76 | AN85: Dighton | AO85: 0 | AP85: 1 | AQ85: 17354.29 | AR85: 9474 | AS85: 8253
A86: 77 | B86: Douglas | C86: 1 | D86: 14237865.39 | E86: 8850986 | F86: 9039013 | G86: 0 | H86: 9039013 | I86: 14294446.85 | J86: 9322034 | K86: 4972413 | L86: 0 | M86: =ROUND(100-'Townwide Contributions'!L86,2) -> 25.89 | N86: 1072 | O86: 1041 | P86: 0 | Q86: 78075 | R86: 78075 | S86: 9039013 | T86: 9070243 | U86: 0 | V86: 9117088 | W86: 0 | X86: 0 | Y86: 9117088 | Z86: 63.78062821 | AA86: 18439122 | AB86: 128.995002 | AC86: 56581.46 | AD86: 78075 | AE86: 5416255.711 | AF86: 37.89062821 | AG86: 13731.46 | AK86: 75 | AM86: 77 | AN86: Douglas | AO86: 1 | AP86: 1041 | AQ86: 14294446.85 | AR86: 9322034 | AS86: 9117088
A87: 78 | B87: Dover | C87: 1 | D87: 5959421.474 | E87: 4916523 | F87: 1083811 | G87: 0 | H87: 1083811 | I87: 6012595.309 | J87: 4960391 | K87: 1052204 | L87: 0 | M87: =ROUND(100-'Townwide Contributions'!L87,2) -> 17.5 | N87: 491 | O87: 474 | P87: 0 | Q87: 35550 | R87: 35550 | S87: 1083811 | T87: 1098031 | U87: 0 | V87: 1119361 | W87: 0 | X87: 0 | Y87: 1119361 | Z87: 18.61693566 | AA87: 6079752 | AB87: 101.1169335 | AC87: 53173.83501 | AD87: 35550 | AE87: 67156.82097 | AF87: 1.116935658 | AG87: 12684.8 | AK87: 75 | AM87: 78 | AN87: Dover | AO87: 1 | AP87: 474 | AQ87: 6012595.309 | AR87: 4960391 | AS87: 1119361
A88: 79 | B88: Dracut | C88: 1 | D88: 54583406.89 | E88: 27974680 | F88: 27570439 | G88: 0 | H88: 27570439 | I88: 55951048.69 | J88: 28785919 | K88: 27165130 | L88: 0 | M88: =ROUND(100-'Townwide Contributions'!L88,2) -> 40.16 | N88: 3837 | O88: 3775 | P88: 0 | Q88: 283125 | R88: 283125 | S88: 27570439 | T88: 27683689 | U88: 0 | V88: 27853564 | W88: 0 | X88: 0 | Y88: 27853564 | Z88: 49.78202313 | AA88: 56639483 | AB88: 101.2304225 | AC88: 1367641.8 | AD88: 283125 | AE88: 5383622.846 | AF88: 9.622023129 | AG88: 14821.47 | AK88: 75 | AM88: 79 | AN88: Dracut | AO88: 1 | AP88: 3775 | AQ88: 55951048.69 | AR88: 28785919 | AS88: 27853564
A89: 80 | B89: Dudley | C89: 0 | D89: 0 | E89: 0 | F89: 0 | G89: 0 | H89: 0 | I89: 17354.29 | J89: 6371 | K89: 10983 | L89: 10983 | M89: =ROUND(100-'Townwide Contributions'!L89,2) -> 52.05 | N89: 0 | O89: 1 | P89: 0 | Q89: 0 | R89: 0 | S89: 10093 | T89: 10123 | U89: 0 | V89: 10983 | W89: 0 | X89: 0 | Y89: 10983 | Z89: 0 | AA89: 17354 | AB89: 99.99832894 | AC89: 17354.29 | AD89: 10983 | AE89: 1950.092055 | AG89: 17354.29 | AK89: 10983 | AM89: 80 | AN89: Dudley | AO89: 0 | AP89: 1 | AQ89: 17354.29 | AR89: 6371 | AS89: 10983
A90: 81 | B90: Dunstable | C90: 0 | D90: 0 | E90: 0 | F90: 0 | G90: 0 | H90: 0 | I90: 0 | J90: 0 | K90: 0 | L90: 0 | M90: =ROUND(100-'Townwide Contributions'!L90,2) -> 17.5 | N90: 0 | O90: 0 | P90: 0 | Q90: 0 | R90: 0 | S90: 0 | T90: 0 | U90: 0 | V90: 0 | W90: 0 | X90: 0 | Y90: 0 | Z90: 0 | AA90: 0 | AB90: 0 | AC90: 0 | AD90: 0 | AE90: 0 | AG90: 0 | AK90: 0 | AM90: 81 | AN90: Dunstable | AO90: 0 | AP90: 0 | AQ90: 0 | AR90: 0 | AS90: 0
A91: 82 | B91: Duxbury | C91: 1 | D91: 33652713.46 | E91: 27763489 | F91: 6947940 | G91: 0 | H91: 6947940 | I91: 35054190.46 | J91: 28849041 | K91: 6205149 | L91: 0 | M91: =ROUND(100-'Townwide Contributions'!L91,2) -> 17.5 | N91: 2658 | O91: 2693 | P91: 0 | Q91: 201975 | R91: 201975 | S91: 6947940 | T91: 7028730 | U91: 0 | V91: 7149915 | W91: 0 | X91: 0 | Y91: 7149915 | Z91: 20.39674831 | AA91: 35998956 | AB91: 102.6951572 | AC91: 1401476.998 | AD91: 201975 | AE91: 1015431.67 | AF91: 2.896748311 | AG91: 13016.78 | AK91: 75 | AM91: 82 | AN91: Duxbury | AO91: 1 | AP91: 2693 | AQ91: 35054190.46 | AR91: 28849041 | AS91: 7149915
A92: 83 | B92: East Bridgewater | C92: 1 | D92: 26713492.3 | E92: 14744525 | F92: 13077469 | G92: 0 | H92: 13077469 | I92: 27680260.6 | J92: 15476590 | K92: 12203671 | L92: 0 | M92: =ROUND(100-'Townwide Contributions'!L92,2) -> 37.19 | N92: 1963 | O92: 1956 | P92: 0 | Q92: 146700 | R92: 146700 | S92: 13077469 | T92: 13136149 | U92: 0 | V92: 13224169 | W92: 0 | X92: 0 | Y92: 13224169 | Z92: 47.77472724 | AA92: 28700759 | AB92: 103.686737 | AC92: 966768.3 | AD92: 146700 | AE92: 2929880.083 | AF92: 10.58472724 | AG92: 14151.46 | AK92: 75 | AM92: 83 | AN92: East Bridgewater | AO92: 1 | AP92: 1956 | AQ92: 27680260.6 | AR92: 15476590 | AS92: 13224169
A93: 84 | B93: East Brookfield | C93: 0 | D93: 267378.24 | E93: 141860 | F93: 186676 | G93: 0 | H93: 186676 | I93: 448617.3 | J93: 227537 | K93: 221080 | L93: 34404 | M93: =ROUND(100-'Townwide Contributions'!L93,2) -> 43.7 | N93: 14 | O93: 24 | P93: 0 | Q93: 0 | R93: 0 | S93: 200847 | T93: 201567 | U93: 0 | V93: 221080 | W93: 0 | X93: 0 | Y93: 221080 | Z93: 0 | AA93: 448617 | AB93: 99.99993313 | AC93: 181239.06 | AD93: 34404 | AE93: 25034.2399 | AG93: 18692.39 | AK93: 1433.5 | AM93: 84 | AN93: East Brookfield | AO93: 0 | AP93: 24 | AQ93: 448617.3 | AR93: 227537 | AS93: 221080
A94: 85 | B94: Eastham | C94: 1 | D94: 2893667.62 | E94: 2387276 | F94: 527429 | G94: 0 | H94: 527429 | I94: 2811123.1 | J94: 2319176 | K94: 491947 | L94: 0 | M94: =ROUND(100-'Townwide Contributions'!L94,2) -> 17.5 | N94: 198 | O94: 195 | P94: 0 | Q94: 14625 | R94: 14625 | S94: 527429 | T94: 533279 | U94: 0 | V94: 542054 | W94: 0 | X94: 0 | Y94: 542054 | Z94: 19.28247112 | AA94: 2861230 | AB94: 101.7824513 | AC94: -82544.52 | AD94: 14625 | AE94: 50107.4575 | AF94: 1.782471123 | AG94: 14416.02 | AK94: 75 | AM94: 85 | AN94: Eastham | AO94: 1 | AP94: 195 | AQ94: 2811123.1 | AR94: 2319176 | AS94: 542054
A95: 86 | B95: Easthampton | C95: 1 | D95: 23097746.73 | E95: 14936633 | F95: 8828792 | G95: 0 | H95: 8828792 | I95: 23886649.57 | J95: 15814907 | K95: 8071743 | L95: 0 | M95: =ROUND(100-'Townwide Contributions'!L95,2) -> 27.45 | N95: 1580 | O95: 1565 | P95: 0 | Q95: 117375 | R95: 117375 | S95: 8828792 | T95: 8875742 | U95: 0 | V95: 8946167 | W95: 0 | X95: 0 | Y95: 8946167 | Z95: 37.45258193 | AA95: 24761074 | AB95: 103.6607245 | AC95: 788902.84 | AD95: 117375 | AE95: 2389281.693 | AF95: 10.00258193 | AG95: 15263.03 | AK95: 75 | AM95: 86 | AN95: Easthampton | AO95: 1 | AP95: 1565 | AQ95: 23886649.57 | AR95: 15814907 | AS95: 8946167
A96: 87 | B96: East Longmeadow | C96: 1 | D96: 34416160.82 | E96: 19663608 | F96: 15299736 | G96: 0 | H96: 15299736 | I96: 34975334.98 | J96: 20638923 | K96: 14336412 | L96: 0 | M96: =ROUND(100-'Townwide Contributions'!L96,2) -> 35.39 | N96: 2522 | O96: 2468 | P96: 0 | Q96: 185100 | R96: 185100 | S96: 15299736 | T96: 15373776 | U96: 0 | V96: 15484836 | W96: 0 | X96: 0 | Y96: 15484836 | Z96: 44.27358883 | AA96: 36123759 | AB96: 103.2835254 | AC96: 559174.16 | AD96: 185100 | AE96: 3107064.951 | AF96: 8.883588827 | AG96: 14171.53 | AK96: 75 | AM96: 87 | AN96: East Longmeadow | AO96: 1 | AP96: 2468 | AQ96: 34975334.98 | AR96: 20638923 | AS96: 15484836
A97: 88 | B97: Easton | C97: 1 | D97: 44308894.52 | E97: 34692019 | F97: 11009437 | G97: 0 | H97: 11009437 | I97: 45287684.26 | J97: 36311272 | K97: 8976412 | L97: 0 | M97: =ROUND(100-'Townwide Contributions'!L97,2) -> 17.5 | N97: 3404 | O97: 3349 | P97: 0 | Q97: 251175 | R97: 251175 | S97: 11009437 | T97: 11109907 | U97: 0 | V97: 11260612 | W97: 0 | X97: 0 | Y97: 11260612 | Z97: 24.8646231 | AA97: 47571884 | AB97: 105.0437548 | AC97: 978789.74 | AD97: 251175 | AE97: 3335267.255 | AF97: 7.364623096 | AG97: 13522.75 | AK97: 75 | AM97: 88 | AN97: Easton | AO97: 1 | AP97: 3349 | AQ97: 45287684.26 | AR97: 36311272 | AS97: 11260612
A98: 89 | B98: Edgartown | C98: 1 | D98: 6714943.73 | E98: 5539828 | F98: 1210787 | G98: 0 | H98: 1210787 | I98: 6271711.71 | J98: 5174162 | K98: 1097550 | L98: 0 | M98: =ROUND(100-'Townwide Contributions'!L98,2) -> 17.5 | N98: 434 | O98: 393 | P98: 0 | Q98: 29475 | R98: 29475 | S98: 1210787 | T98: 1222577 | U98: 0 | V98: 1240262 | W98: 0 | X98: 0 | Y98: 1240262 | Z98: 19.77549443 | AA98: 6414424 | AB98: 102.2754919 | AC98: -443232.02 | AD98: 29475 | AE98: 142712.4508 | AF98: 2.275494432 | AG98: 15958.55 | AK98: 75 | AM98: 89 | AN98: Edgartown | AO98: 1 | AP98: 393 | AQ98: 6271711.71 | AR98: 5174162 | AS98: 1240262
A99: 90 | B99: Egremont | C99: 0 | D99: 0 | E99: 0 | F99: 0 | G99: 0 | H99: 0 | I99: 0 | J99: 0 | K99: 0 | L99: 0 | M99: =ROUND(100-'Townwide Contributions'!L99,2) -> 17.5 | N99: 0 | O99: 0 | P99: 0 | Q99: 0 | R99: 0 | S99: 0 | T99: 0 | U99: 0 | V99: 0 | W99: 0 | X99: 0 | Y99: 0 | Z99: 0 | AA99: 0 | AB99: 0 | AC99: 0 | AD99: 0 | AE99: 0 | AG99: 0 | AK99: 0 | AM99: 90 | AN99: Egremont | AO99: 0 | AP99: 0 | AQ99: 0 | AR99: 0 | AS99: 0
A100: 91 | B100: Erving | C100: 1 | D100: 2756151.77 | E100: 2220663 | F100: 577216 | G100: 0 | H100: 577216 | I100: 2485223.59 | J100: 2050310 | K100: 434914 | L100: 0 | M100: =ROUND(100-'Townwide Contributions'!L100,2) -> 17.5 | N100: 204 | O100: 175 | P100: 0 | Q100: 13125 | R100: 13125 | S100: 577216 | T100: 582466 | U100: 0 | V100: 590341 | W100: 0 | X100: 0 | Y100: 590341 | Z100: 23.75403977 | AA100: 2640651 | AB100: 106.2540614 | AC100: -270928.18 | AD100: 13125 | AE100: 155426.8718 | AF100: 6.254039772 | AG100: 14201.28 | AK100: 75 | AM100: 91 | AN100: Erving | AO100: 1 | AP100: 175 | AQ100: 2485223.59 | AR100: 2050310 | AS100: 590341
A101: 92 | B101: Essex | C101: 0 | D101: 0 | E101: 0 | F101: 0 | G101: 0 | H101: 0 | I101: 0 | J101: 0 | K101: 0 | L101: 0 | M101: =ROUND(100-'Townwide Contributions'!L101,2) -> 17.5 | N101: 0 | O101: 0 | P101: 0 | Q101: 0 | R101: 0 | S101: 0 | T101: 0 | U101: 0 | V101: 0 | W101: 0 | X101: 0 | Y101: 0 | Z101: 0 | AA101: 0 | AB101: 0 | AC101: 0 | AD101: 0 | AE101: 0 | AG101: 0 | AK101: 0 | AM101: 92 | AN101: Essex | AO101: 0 | AP101: 0 | AQ101: 0 | AR101: 0 | AS101: 0
A102: 93 | B102: Everett | C102: 1 | D102: 161811104.9 | E102: 43738229 | F102: 118072876 | G102: 0 | H102: 118072876 | I102: 172711734.6 | J102: 45846412 | K102: 126865323 | L102: 8792447 | M102: =ROUND(100-'Townwide Contributions'!L102,2) -> 71.87 | N102: 8020 | O102: 8009 | P102: 1 | Q102: 600675 | R102: 0 | S102: 118072876 | T102: 118313146 | U102: 0 | V102: 126865323 | W102: 0 | X102: 0 | Y102: 126865323 | Z102: 73.45495273 | AA102: 172711735 | AB102: 100.0000002 | AC102: 10900629.73 | AD102: 8792447 | AE102: 2737399.356 | AF102: 1.584952732 | AG102: 21564.71 | AK102: 1097.820827 | AM102: 93 | AN102: Everett | AO102: 1 | AP102: 8009 | AQ102: 172711734.6 | AR102: 45846412 | AS102: 126865323
A103: 94 | B103: Fairhaven | C103: 1 | D103: 23598054.43 | E103: 14889430 | F103: 9797583 | G103: 0 | H103: 9797583 | I103: 24525650.53 | J103: 15860855 | K103: 8664796 | L103: 0 | M103: =ROUND(100-'Townwide Contributions'!L103,2) -> 26.97 | N103: 1595 | O103: 1590 | P103: 0 | Q103: 119250 | R103: 119250 | S103: 9797583 | T103: 9845283 | U103: 0 | V103: 9916833 | W103: 0 | X103: 0 | Y103: 9916833 | Z103: 40.43453603 | AA103: 25777688 | AB103: 105.1050123 | AC103: 927596.1 | AD103: 119250 | AE103: 3302265.052 | AF103: 13.46453603 | AG103: 15424.94 | AK103: 75 | AM103: 94 | AN103: Fairhaven | AO103: 1 | AP103: 1590 | AQ103: 24525650.53 | AR103: 15860855 | AS103: 9916833
A104: 95 | B104: Fall River | C104: 1 | D104: 243053149.8 | E104: 40721548 | F104: 202331602 | G104: 0 | H104: 202331602 | I104: 273966514.1 | J104: 43178238 | K104: 230788276 | L104: 28456674 | M104: =ROUND(100-'Townwide Contributions'!L104,2) -> 77.95 | N104: 12433 | O104: 13106 | P104: 1 | Q104: 982950 | R104: 0 | S104: 202331602 | T104: 202724782 | U104: 0 | V104: 230788276 | W104: 0 | X104: 0 | Y104: 230788276 | Z104: 84.23959285 | AA104: 273966514 | AB104: 99.99999998 | AC104: 30913364.29 | AD104: 28456674 | AE104: 17231378.29 | AF104: 6.289592854 | AG104: 20903.9 | AK104: 2171.270716 | AM104: 95 | AN104: Fall River | AO104: 1 | AP104: 13106 | AQ104: 273966514.1 | AR104: 43178238 | AS104: 230788276
A105: 96 | B105: Falmouth | C105: 1 | D105: 43218462.88 | E105: 35655232 | F105: 9621389 | G105: 0 | H105: 9621389 | I105: 43846641.97 | J105: 36173479 | K105: 7673163 | L105: 0 | M105: =ROUND(100-'Townwide Contributions'!L105,2) -> 17.5 | N105: 2870 | O105: 2810 | P105: 0 | Q105: 210750 | R105: 210750 | S105: 9621389 | T105: 9705689 | U105: 0 | V105: 9832139 | W105: 0 | X105: 0 | Y105: 9832139 | Z105: 22.42392703 | AA105: 46005618 | AB105: 104.9239256 | AC105: 628179.09 | AD105: 210750 | AE105: 2158976.655 | AF105: 4.923927029 | AG105: 15603.79 | AK105: 75 | AM105: 96 | AN105: Falmouth | AO105: 1 | AP105: 2810 | AQ105: 43846641.97 | AR105: 36173479 | AS105: 9832139
A106: 97 | B106: Fitchburg | C106: 1 | D106: 101071841.4 | E106: 23118748 | F106: 77953093 | G106: 0 | H106: 77953093 | I106: 110532274.9 | J106: 24320887 | K106: 86211388 | L106: 8258295 | M106: =ROUND(100-'Townwide Contributions'!L106,2) -> 72.73 | N106: 5623 | O106: 5791 | P106: 1 | Q106: 434325 | R106: 0 | S106: 77953093 | T106: 78126823 | U106: 0 | V106: 86211388 | W106: 0 | X106: 0 | Y106: 86211388 | Z106: 77.9965744 | AA106: 110532275 | AB106: 100.0000001 | AC106: 9460433.48 | AD106: 8258295 | AE106: 5821264.487 | AF106: 5.266574395 | AG106: 19086.91 | AK106: 1426.056812 | AM106: 97 | AN106: Fitchburg | AO106: 1 | AP106: 5791 | AQ106: 110532274.9 | AR106: 24320887 | AS106: 86211388
A107: 98 | B107: Florida | C107: 1 | D107: 865066.34 | E107: 439942 | F107: 565437 | G107: 0 | H107: 565437 | I107: 767290.66 | J107: 449313 | K107: 317978 | L107: 0 | M107: =ROUND(100-'Townwide Contributions'!L107,2) -> 35.57 | N107: 55 | O107: 47 | P107: 0 | Q107: 3525 | R107: 3525 | S107: 565437 | T107: 566847 | U107: 0 | V107: 568962 | W107: 0 | X107: 0 | Y107: 568962 | Z107: 74.15208208 | AA107: 1018275 | AB107: 132.7104646 | AC107: -97775.68 | AD107: 3525 | AE107: 296036.7122 | AF107: 38.58208208 | AG107: 16325.33 | AK107: 75 | AM107: 98 | AN107: Florida | AO107: 1 | AP107: 47 | AQ107: 767290.66 | AR107: 449313 | AS107: 568962
A108: 99 | B108: Foxborough | C108: 1 | D108: 35604499.84 | E108: 28583943 | F108: 9695632 | G108: 0 | H108: 9695632 | I108: 37172001.84 | J108: 29764062 | K108: 7407940 | L108: 0 | M108: =ROUND(100-'Townwide Contributions'!L108,2) -> 17.5 | N108: 2573 | O108: 2580 | P108: 0 | Q108: 193500 | R108: 193500 | S108: 9695632 | T108: 9773032 | U108: 0 | V108: 9889132 | W108: 0 | X108: 0 | Y108: 9889132 | Z108: 26.60371115 | AA108: 39653194 | AB108: 106.6748952 | AC108: 1567502.005 | AD108: 193500 | AE108: 3384031.678 | AF108: 9.103711153 | AG108: 14407.75 | AK108: 75 | AM108: 99 | AN108: Foxborough | AO108: 1 | AP108: 2580 | AQ108: 37172001.84 | AR108: 29764062 | AS108: 9889132
A109: 100 | B109: Framingham | C109: 1 | D109: 164084535.7 | E109: 78033062 | F109: 85986718 | G109: 0 | H109: 85986718 | I109: 173968070 | J109: 81468888 | K109: 92499182 | L109: 6512464 | M109: =ROUND(100-'Townwide Contributions'!L109,2) -> 47.53 | N109: 9521 | O109: 9532 | P109: 1 | Q109: 714900 | R109: 0 | S109: 85986718 | T109: 86272678 | U109: 0 | V109: 92499182 | W109: 0 | X109: 0 | Y109: 92499182 | Z109: 53.17020646 | AA109: 173968070 | AB109: 99.99999998 | AC109: 9883534.376 | AD109: 6512464 | AE109: 9812158.317 | AF109: 5.640206456 | AG109: 18250.95 | AK109: 683.2211498 | AM109: 100 | AN109: Framingham | AO109: 1 | AP109: 9532 | AQ109: 173968070 | AR109: 81468888 | AS109: 92499182
A110: 101 | B110: Franklin | C110: 1 | D110: 66584573.91 | E110: 49904466 | F110: 29717993 | G110: 0 | H110: 29717993 | I110: 68009481.34 | J110: 52439022 | K110: 15570459 | L110: 0 | M110: =ROUND(100-'Townwide Contributions'!L110,2) -> 17.5 | N110: 5058 | O110: 4951 | P110: 0 | Q110: 371325 | R110: 371325 | S110: 29717993 | T110: 29866523 | U110: 0 | V110: 30089318 | W110: 0 | X110: 0 | Y110: 30089318 | Z110: 44.24282821 | AA110: 82528340 | AB110: 121.3482861 | AC110: 1424907.435 | AD110: 371325 | AE110: 18187658.76 | AF110: 26.74282821 | AG110: 13736.51 | AK110: 75 | AM110: 101 | AN110: Franklin | AO110: 1 | AP110: 4951 | AQ110: 68009481.34 | AR110: 52439022 | AS110: 30089318
A111: 102 | B111: Freetown | C111: 0 | D111: 16860.33 | E111: 12290 | F111: 16860.33 | G111: 0 | H111: 16860.33 | I111: 17354.29 | J111: 13171 | K111: 4183 | L111: 0 | M111: =ROUND(100-'Townwide Contributions'!L111,2) -> 17.5 | N111: 1 | O111: 1 | P111: 0 | Q111: 0 | R111: 0 | S111: 16769.06 | T111: 16799.06 | U111: 0 | V111: 16860.33 | W111: 0 | X111: 0 | Y111: 16860.33 | Z111: 0 | AA111: 30031.33 | AB111: 173.0484508 | AC111: 493.96 | AD111: 0 | AE111: 13823.32925 | AG111: 17354.29 | AK111: 0 | AM111: 102 | AN111: Freetown | AO111: 0 | AP111: 1 | AQ111: 17354.29 | AR111: 13171 | AS111: 16860.33
A112: 103 | B112: Gardner | C112: 1 | D112: 41586508.2 | E112: 11909298 | F112: 29677210 | G112: 0 | H112: 29677210 | I112: 45038410.02 | J112: 12662453 | K112: 32375957 | L112: 2698747 | M112: =ROUND(100-'Townwide Contributions'!L112,2) -> 66.43 | N112: 2453 | O112: 2500 | P112: 1 | Q112: 187500 | R112: 0 | S112: 29677210 | T112: 29752210 | U112: 0 | V112: 32375957 | W112: 0 | X112: 0 | Y112: 32375957 | Z112: 71.88521306 | AA112: 45038410 | AB112: 99.99999996 | AC112: 3451901.82 | AD112: 2698747 | AE112: 2456941.224 | AF112: 5.455213056 | AG112: 18015.36 | AK112: 1079.4988 | AM112: 103 | AN112: Gardner | AO112: 1 | AP112: 2500 | AQ112: 45038410.02 | AR112: 12662453 | AS112: 32375957
A113: 104 | B113: Aquinnah | C113: 0 | D113: 0 | E113: 0 | F113: 0 | G113: 0 | H113: 0 | I113: 0 | J113: 0 | K113: 0 | L113: 0 | M113: =ROUND(100-'Townwide Contributions'!L113,2) -> 17.5 | N113: 0 | O113: 0 | P113: 0 | Q113: 0 | R113: 0 | S113: 0 | T113: 0 | U113: 0 | V113: 0 | W113: 0 | X113: 0 | Y113: 0 | Z113: 0 | AA113: 0 | AB113: 0 | AC113: 0 | AD113: 0 | AE113: 0 | AG113: 0 | AK113: 0 | AM113: 104 | AN113: Aquinnah | AO113: 0 | AP113: 0 | AQ113: 0 | AR113: 0 | AS113: 0
A114: 105 | B114: Georgetown | C114: 1 | D114: 15097839.61 | E114: 11942079 | F114: 5837882 | G114: 0 | H114: 5837882 | I114: 15021753.37 | J114: 12206104 | K114: 2815649 | L114: 0 | M114: =ROUND(100-'Townwide Contributions'!L114,2) -> 17.5 | N114: 1196 | O114: 1157 | P114: 0 | Q114: 86775 | R114: 86775 | S114: 5837882 | T114: 5872592 | U114: 0 | V114: 5924657 | W114: 0 | X114: 0 | Y114: 5924657 | Z114: 39.44051572 | AA114: 18130761 | AB114: 120.6967027 | AC114: -76086.24 | AD114: 86775 | AE114: 3295850.16 | AF114: 21.94051572 | AG114: 12983.37 | AK114: 75 | AM114: 105 | AN114: Georgetown | AO114: 1 | AP114: 1157 | AQ114: 15021753.37 | AR114: 12206104 | AS114: 5924657
A115: 106 | B115: Gill | C115: 0 | D115: 0 | E115: 0 | F115: 0 | G115: 0 | H115: 0 | I115: 0 | J115: 0 | K115: 0 | L115: 0 | M115: =ROUND(100-'Townwide Contributions'!L115,2) -> 36.88 | N115: 0 | O115: 0 | P115: 0 | Q115: 0 | R115: 0 | S115: 0 | T115: 0 | U115: 0 | V115: 0 | W115: 0 | X115: 0 | Y115: 0 | Z115: 0 | AA115: 0 | AB115: 0 | AC115: 0 | AD115: 0 | AE115: 0 | AG115: 0 | AK115: 0 | AM115: 106 | AN115: Gill | AO115: 0 | AP115: 0 | AQ115: 0 | AR115: 0 | AS115: 0
A116: 107 | B116: Gloucester | C116: 1 | D116: 49375946.82 | E116: 37665556 | F116: 11710391 | G116: 0 | H116: 11710391 | I116: 50710044.2 | J116: 39344590 | K116: 11365454 | L116: 0 | M116: =ROUND(100-'Townwide Contributions'!L116,2) -> 17.5 | N116: 3064 | O116: 3009 | P116: 0 | Q116: 225675 | R116: 225675 | S116: 11710391 | T116: 11800661 | U116: 0 | V116: 11936066 | W116: 0 | X116: 0 | Y116: 11936066 | Z116: 23.53787339 | AA116: 51280656 | AB116: 101.1252441 | AC116: 1334097.376 | AD116: 225675 | AE116: 3061808.266 | AF116: 6.037873392 | AG116: 16852.79 | AK116: 75 | AM116: 107 | AN116: Gloucester | AO116: 1 | AP116: 3009 | AQ116: 50710044.2 | AR116: 39344590 | AS116: 11936066
A117: 108 | B117: Goshen | C117: 0 | D117: 151742.97 | E117: 99954 | F117: 96381 | G117: 0 | H117: 96381 | I117: 240365.82 | J117: 155850 | K117: 84516 | L117: 0 | M117: =ROUND(100-'Townwide Contributions'!L117,2) -> 31.18 | N117: 9 | O117: 12 | P117: 0 | Q117: 0 | R117: 0 | S117: 96381 | T117: 96741 | U117: 0 | V117: 96381 | W117: 0 | X117: 0 | Y117: 96381 | Z117: 0 | AA117: 252231 | AB117: 104.9363008 | AC117: 88622.85 | AD117: 0 | AE117: 21434.93732 | AG117: 20030.49 | AK117: 0 | AM117: 108 | AN117: Goshen | AO117: 0 | AP117: 12 | AQ117: 240365.82 | AR117: 155850 | AS117: 96381
A118: 109 | B118: Gosnold | C118: 0 | D118: 0 | E118: 0 | F118: 0 | G118: 0 | H118: 0 | I118: 0 | J118: 0 | K118: 0 | L118: 0 | M118: =ROUND(100-'Townwide Contributions'!L118,2) -> 100 | N118: 0 | O118: 0 | P118: 0 | Q118: 0 | R118: 0 | S118: 0 | T118: 0 | U118: 0 | V118: 0 | W118: 0 | X118: 0 | Y118: 0 | Z118: 0 | AA118: 0 | AB118: 0 | AC118: 0 | AD118: 0 | AE118: 0 | AG118: 0 | AK118: 0 | AM118: 109 | AN118: Gosnold | AO118: 0 | AP118: 0 | AQ118: 0 | AR118: 0 | AS118: 0
A119: 110 | B119: Grafton | C119: 1 | D119: 37107723.81 | E119: 25816666 | F119: 13096328 | G119: 0 | H119: 13096328 | I119: 39402336.33 | J119: 27625677 | K119: 11776659 | L119: 0 | M119: =ROUND(100-'Townwide Contributions'!L119,2) -> 17.5 | N119: 2902 | O119: 2956 | P119: 0 | Q119: 221700 | R119: 221700 | S119: 13096328 | T119: 13185008 | U119: 0 | V119: 13318028 | W119: 0 | X119: 0 | Y119: 13318028 | Z119: 33.80009725 | AA119: 40943705 | AB119: 103.9118713 | AC119: 2294612.52 | AD119: 221700 | AE119: 6422619.142 | AF119: 16.30009725 | AG119: 13329.61 | AK119: 75 | AM119: 110 | AN119: Grafton | AO119: 1 | AP119: 2956 | AQ119: 39402336.33 | AR119: 27625677 | AS119: 13318028
A120: 111 | B120: Granby | C120: 1 | D120: 9658208.78 | E120: 5916543 | F120: 4833550 | G120: 0 | H120: 4833550 | I120: 9473831.24 | J120: 6338906 | K120: 3134925 | L120: 0 | M120: =ROUND(100-'Townwide Contributions'!L120,2) -> 25.62 | N120: 655 | O120: 641 | P120: 0 | Q120: 48075 | R120: 48075 | S120: 4833550 | T120: 4852780 | U120: 0 | V120: 4881625 | W120: 0 | X120: 0 | Y120: 4881625 | Z120: 51.52746419 | AA120: 11220531 | AB120: 118.4371002 | AC120: -184377.54 | AD120: 48075 | AE120: 2454429.436 | AF120: 25.90746419 | AG120: 14779.77 | AK120: 75 | AM120: 111 | AN120: Granby | AO120: 1 | AP120: 641 | AQ120: 9473831.24 | AR120: 6338906 | AS120: 4881625
A121: 112 | B121: Granville | C121: 0 | D121: 0 | E121: 0 | F121: 0 | G121: 70028 | H121: 70028 | I121: 465971.59 | J121: 326452 | K121: 139520 | L121: 69492 | M121: =ROUND(100-'Townwide Contributions'!L121,2) -> 23.79 | N121: 0 | O121: 25 | P121: 0 | Q121: 0 | R121: 0 | S121: 137474 | T121: 138224 | U121: 0 | V121: 139520 | W121: 0 | X121: 0 | Y121: 139520 | Z121: 0 | AA121: 465972 | AB121: 100.000088 | AC121: 465971.59 | AD121: 139520 | AE121: 28665.35874 | AG121: 18638.86 | AK121: 5580.8 | AM121: 112 | AN121: Granville | AO121: 0 | AP121: 25 | AQ121: 465971.59 | AR121: 326452 | AS121: 139520
A122: 113 | B122: Great Barrington | C122: 0 | D122: 0 | E122: 0 | F122: 0 | G122: 0 | H122: 0 | I122: 0 | J122: 0 | K122: 0 | L122: 0 | M122: =ROUND(100-'Townwide Contributions'!L122,2) -> 17.5 | N122: 0 | O122: 0 | P122: 0 | Q122: 0 | R122: 0 | S122: 0 | T122: 0 | U122: 0 | V122: 0 | W122: 0 | X122: 0 | Y122: 0 | Z122: 0 | AA122: 0 | AB122: 0 | AC122: 0 | AD122: 0 | AE122: 0 | AG122: 0 | AK122: 0 | AM122: 113 | AN122: Great Barrington | AO122: 0 | AP122: 0 | AQ122: 0 | AR122: 0 | AS122: 0
A123: 114 | B123: Greenfield | C123: 1 | D123: 27960950.6 | E123: 11465787 | F123: 16495164 | G123: 0 | H123: 16495164 | I123: 28110844.75 | J123: 11981726 | K123: 16129119 | L123: 0 | M123: =ROUND(100-'Townwide Contributions'!L123,2) -> 53.35 | N123: 1759 | O123: 1686 | P123: 0 | Q123: 126450 | R123: 126450 | S123: 16495164 | T123: 16545744 | U123: 0 | V123: 16621614 | W123: 0 | X123: 0 | Y123: 16621614 | Z123: 59.12883141 | AA123: 28603340 | AB123: 101.751976 | AC123: 149894.15 | AD123: 126450 | AE123: 1624478.326 | AF123: 5.778831409 | AG123: 16673.1 | AK123: 75 | AM123: 114 | AN123: Greenfield | AO123: 1 | AP123: 1686 | AQ123: 28110844.75 | AR123: 11981726 | AS123: 16621614
A124: 115 | B124: Groton | C124: 0 | D124: 0 | E124: 0 | F124: 0 | G124: 0 | H124: 0 | I124: 0 | J124: 0 | K124: 0 | L124: 0 | M124: =ROUND(100-'Townwide Contributions'!L124,2) -> 17.5 | N124: 0 | O124: 0 | P124: 0 | Q124: 0 | R124: 0 | S124: 0 | T124: 0 | U124: 0 | V124: 0 | W124: 0 | X124: 0 | Y124: 0 | Z124: 0 | AA124: 0 | AB124: 0 | AC124: 0 | AD124: 0 | AE124: 0 | AG124: 0 | AK124: 0 | AM124: 115 | AN124: Groton | AO124: 0 | AP124: 0 | AQ124: 0 | AR124: 0 | AS124: 0
A125: 116 | B125: Groveland | C125: 0 | D125: 168603.3 | E125: 122594 | F125: 65470 | G125: 0 | H125: 65470 | I125: 138834.32 | J125: 101705 | K125: 37129 | L125: 0 | M125: =ROUND(100-'Townwide Contributions'!L125,2) -> 18.87 | N125: 10 | O125: 8 | P125: 0 | Q125: 0 | R125: 0 | S125: 65470 | T125: 65710 | U125: 0 | V125: 65470 | W125: 0 | X125: 0 | Y125: 65470 | Z125: 0 | AA125: 167175 | AB125: 120.4133099 | AC125: -29768.98 | AD125: 0 | AE125: 39271.96382 | AG125: 17354.29 | AK125: 0 | AM125: 116 | AN125: Groveland | AO125: 0 | AP125: 8 | AQ125: 138834.32 | AR125: 101705 | AS125: 65470
A126: 117 | B126: Hadley | C126: 1 | D126: 6210751.32 | E126: 5123870 | F126: 1396796 | G126: 0 | H126: 1396796 | I126: 6594207.05 | J126: 5374427 | K126: 1219780 | L126: 0 | M126: =ROUND(100-'Townwide Contributions'!L126,2) -> 17.5 | N126: 449 | O126: 435 | P126: 0 | Q126: 32625 | R126: 32625 | S126: 1396796 | T126: 1409846 | U126: 0 | V126: 1429421 | W126: 0 | X126: 0 | Y126: 1429421 | Z126: 21.6769202 | AA126: 6803848 | AB126: 103.1791684 | AC126: 383455.73 | AD126: 32625 | AE126: 275434.7663 | AF126: 4.176920199 | AG126: 15159.1 | AK126: 75 | AM126: 117 | AN126: Hadley | AO126: 1 | AP126: 435 | AQ126: 6594207.05 | AR126: 5374427 | AS126: 1429421
A127: 118 | B127: Halifax | C127: 1 | D127: 7511760.556 | E127: 4050476 | F127: 3567733 | G127: 0 | H127: 3567733 | I127: 7476145.688 | J127: 4173331 | K127: 3302815 | L127: 0 | M127: =ROUND(100-'Townwide Contributions'!L127,2) -> 37.74 | N127: 564 | O127: 543 | P127: 0 | Q127: 40725 | R127: 40725 | S127: 3567733 | T127: 3584023 | U127: 0 | V127: 3608458 | W127: 0 | X127: 0 | Y127: 3608458 | Z127: 48.26628788 | AA127: 7781789 | AB127: 104.0882471 | AC127: -35614.8685 | AD127: 40725 | AE127: 786960.6174 | AF127: 10.52628788 | AG127: 13768.22 | AK127: 75 | AM127: 118 | AN127: Halifax | AO127: 1 | AP127: 543 | AQ127: 7476145.688 | AR127: 4173331 | AS127: 3608458
A128: 119 | B128: Hamilton | C128: 0 | D128: 0 | E128: 0 | F128: 0 | G128: 0 | H128: 0 | I128: 0 | J128: 0 | K128: 0 | L128: 0 | M128: =ROUND(100-'Townwide Contributions'!L128,2) -> 17.5 | N128: 0 | O128: 0 | P128: 0 | Q128: 0 | R128: 0 | S128: 0 | T128: 0 | U128: 0 | V128: 0 | W128: 0 | X128: 0 | Y128: 0 | Z128: 0 | AA128: 0 | AB128: 0 | AC128: 0 | AD128: 0 | AE128: 0 | AG128: 0 | AK128: 0 | AM128: 119 | AN128: Hamilton | AO128: 0 | AP128: 0 | AQ128: 0 | AR128: 0 | AS128: 0
A129: 120 | B129: Hampden | C129: 0 | D129: 0 | E129: 0 | F129: 0 | G129: 0 | H129: 0 | I129: 0 | J129: 0 | K129: 0 | L129: 0 | M129: =ROUND(100-'Townwide Contributions'!L129,2) -> 17.5 | N129: 0 | O129: 0 | P129: 0 | Q129: 0 | R129: 0 | S129: 0 | T129: 0 | U129: 0 | V129: 0 | W129: 0 | X129: 0 | Y129: 0 | Z129: 0 | AA129: 0 | AB129: 0 | AC129: 0 | AD129: 0 | AE129: 0 | AG129: 0 | AK129: 0 | AM129: 120 | AN129: Hampden | AO129: 0 | AP129: 0 | AQ129: 0 | AR129: 0 | AS129: 0
A130: 121 | B130: Hancock | C130: 1 | D130: 1270682.74 | E130: 820427 | F130: 450256 | G130: 0 | H130: 450256 | I130: 1251017 | J130: 855049 | K130: 395968 | L130: 0 | M130: =ROUND(100-'Townwide Contributions'!L130,2) -> 17.5 | N130: 85 | O130: 86 | P130: 0 | Q130: 6450 | R130: 6450 | S130: 450256 | T130: 452836 | U130: 0 | V130: 456706 | W130: 0 | X130: 0 | Y130: 456706 | Z130: 36.50677809 | AA130: 1311755 | AB130: 104.8550899 | AC130: -19665.74 | AD130: 6450 | AE130: 237778.025 | AF130: 19.00677809 | AG130: 14546.71 | AK130: 75 | AM130: 121 | AN130: Hancock | AO130: 1 | AP130: 86 | AQ130: 1251017 | AR130: 855049 | AS130: 456706
A131: 122 | B131: Hanover | C131: 1 | D131: 31861566.58 | E131: 24358612 | F131: 7718131 | G131: 0 | H131: 7718131 | I131: 32549060.69 | J131: 25651759 | K131: 6897302 | L131: 0 | M131: =ROUND(100-'Townwide Contributions'!L131,2) -> 17.5 | N131: 2497 | O131: 2472 | P131: 0 | Q131: 185400 | R131: 185400 | S131: 7718131 | T131: 7792291 | U131: 0 | V131: 7903531 | W131: 0 | X131: 0 | Y131: 7903531 | Z131: 24.28190195 | AA131: 33555290 | AB131: 103.0914235 | AC131: 687494.1043 | AD131: 185400 | AE131: 2207445.38 | AF131: 6.781901946 | AG131: 13167.1 | AK131: 75 | AM131: 122 | AN131: Hanover | AO131: 1 | AP131: 2472 | AQ131: 32549060.69 | AR131: 25651759 | AS131: 7903531
A132: 123 | B132: Hanson | C132: 0 | D132: 101161.98 | E132: 61192 | F132: 40519 | G132: 0 | H132: 40519 | I132: 86771.45 | J132: 54413 | K132: 32358 | L132: 0 | M132: =ROUND(100-'Townwide Contributions'!L132,2) -> 29.91 | N132: 6 | O132: 5 | P132: 0 | Q132: 0 | R132: 0 | S132: 40519 | T132: 40669 | U132: 0 | V132: 40519 | W132: 0 | X132: 0 | Y132: 40519 | Z132: 0 | AA132: 94932 | AB132: 109.4046486 | AC132: -14390.53 | AD132: 0 | AE132: 14565.65931 | AG132: 17354.29 | AK132: 0 | AM132: 123 | AN132: Hanson | AO132: 0 | AP132: 5 | AQ132: 86771.45 | AR132: 54413 | AS132: 40519
A133: 124 | B133: Hardwick | C133: 0 | D133: 0 | E133: 0 | F133: 0 | G133: 0 | H133: 0 | I133: 0 | J133: 0 | K133: 0 | L133: 0 | M133: =ROUND(100-'Townwide Contributions'!L133,2) -> 46.66 | N133: 0 | O133: 0 | P133: 0 | Q133: 0 | R133: 0 | S133: 0 | T133: 0 | U133: 0 | V133: 0 | W133: 0 | X133: 0 | Y133: 0 | Z133: 0 | AA133: 0 | AB133: 0 | AC133: 0 | AD133: 0 | AE133: 0 | AG133: 0 | AK133: 0 | AM133: 124 | AN133: Hardwick | AO133: 0 | AP133: 0 | AQ133: 0 | AR133: 0 | AS133: 0
A134: 125 | B134: Harvard | C134: 1 | D134: 10978851.09 | E134: 8697832 | F134: 2288491 | G134: 0 | H134: 2288491 | I134: 11305864.01 | J134: 9082614 | K134: 2223250 | L134: 0 | M134: =ROUND(100-'Townwide Contributions'!L134,2) -> 17.5 | N134: 881 | O134: 868 | P134: 0 | Q134: 65100 | R134: 65100 | S134: 2288491 | T134: 2314531 | U134: 0 | V134: 2353591 | W134: 0 | X134: 0 | Y134: 2353591 | Z134: 20.81743596 | AA134: 11436205 | AB134: 101.1528618 | AC134: 327012.92 | AD134: 65100 | AE134: 375064.7983 | AF134: 3.31743596 | AG134: 13025.19 | AK134: 75 | AM134: 125 | AN134: Harvard | AO134: 1 | AP134: 868 | AQ134: 11305864.01 | AR134: 9082614 | AS134: 2353591
A135: 126 | B135: Harwich | C135: 0 | D135: 0 | E135: 0 | F135: 0 | G135: 0 | H135: 0 | I135: 0 | J135: 0 | K135: 0 | L135: 0 | M135: =ROUND(100-'Townwide Contributions'!L135,2) -> 17.5 | N135: 0 | O135: 0 | P135: 0 | Q135: 0 | R135: 0 | S135: 0 | T135: 0 | U135: 0 | V135: 0 | W135: 0 | X135: 0 | Y135: 0 | Z135: 0 | AA135: 0 | AB135: 0 | AC135: 0 | AD135: 0 | AE135: 0 | AG135: 0 | AK135: 0 | AM135: 126 | AN135: Harwich | AO135: 0 | AP135: 0 | AQ135: 0 | AR135: 0 | AS135: 0
A136: 127 | B136: Hatfield | C136: 1 | D136: 4167872.81 | E136: 3438495 | F136: 927396 | G136: 0 | H136: 927396 | I136: 3981919.64 | J136: 3285084 | K136: 696836 | L136: 0 | M136: =ROUND(100-'Townwide Contributions'!L136,2) -> 17.5 | N136: 310 | O136: 278 | P136: 0 | Q136: 20850 | R136: 20850 | S136: 927396 | T136: 935736 | U136: 0 | V136: 948246 | W136: 0 | X136: 0 | Y136: 948246 | Z136: 23.81379048 | AA136: 4233330 | AB136: 106.3137979 | AC136: -185953.17 | AD136: 20850 | AE136: 251410.063 | AF136: 6.313790476 | AG136: 14323.45 | AK136: 75 | AM136: 127 | AN136: Hatfield | AO136: 1 | AP136: 278 | AQ136: 3981919.64 | AR136: 3285084 | AS136: 948246
A137: 128 | B137: Haverhill | C137: 1 | D137: 140921702.3 | E137: 52953650 | F137: 87968052 | G137: 0 | H137: 87968052 | I137: 149713124.7 | J137: 55493490 | K137: 94219635 | L137: 6251583 | M137: =ROUND(100-'Townwide Contributions'!L137,2) -> 55.85 | N137: 8401 | O137: 8435 | P137: 1 | Q137: 632625 | R137: 0 | S137: 87968052 | T137: 88221102 | U137: 0 | V137: 94219635 | W137: 0 | X137: 0 | Y137: 94219635 | Z137: 62.93345037 | AA137: 149713125 | AB137: 100.0000002 | AC137: 8791422.31 | AD137: 6251583 | AE137: 10604854.88 | AF137: 7.083450371 | AG137: 17749.04 | AK137: 741.1479549 | AM137: 128 | AN137: Haverhill | AO137: 1 | AP137: 8435 | AQ137: 149713124.7 | AR137: 55493490 | AS137: 94219635
A138: 129 | B138: Hawley | C138: 0 | D138: 67441.32 | E138: 55639 | F138: 13300 | G138: 0 | H138: 13300 | I138: =SUMIF(dist1755,A138,found1755) -> 34708.58 | J138: =SUMIF(dist1755,A138,prelcont1755) -> 28635 | K138: =ROUND(MAX(found-prelcont436,0),0) -> 6074 | L138: =IF(foundaid>priorc70,foundaid-priorc70,0) -> 0 | M138: =ROUND(100-'Townwide Contributions'!L138,2) -> 17.5 | N138: 4 | O138: =SUMIF(dist1755,A138,enro1755) -> 2 | P138: =IF(AND(C138=1,L138>0),1,0) -> 0 | Q138: =IF(nonop=1,enro*$Q$6,0) -> 0 | R138: =IF((foundinc)<Q138,Q138-(foundinc),0) -> 0 | S138: 13300 | T138: =S138+30*enro -> 13360 | U138: =IF(AND(T138-priorc70-foundinc-minaid>0,nonop=1), T138-priorc70-foundinc-minaid,0) -> 0 | V138: =priorc70+ foundinc+minaidadjincrement+minaid -> 13300 | W138: =IF(AND(C138=0,V138>found),V138-found,0) -> 0 | X138: 0 | Y138: =priorc70+foundinc+minaidadjincrement+minaid-rednonop+holdharmlessaid -> 13300 | Z138: =IF(C138=1, Y138/I138*100, 0) -> 0 | AA138: =prelcont436+chapter70 -> 41935 | AB138: =IF(found>0,AA138*100/found,0) -> 120.8202698 | AC138: =I138-D138 -> -32732.74 | AD138: =Y138-F138 -> 0 | AE138: =Y138-((M138/100)*I138) -> 7225.9985 | AF138: =IF(C138=1, (Y138/I138*100)-M138, "") ->  | AG138: =IFERROR(ROUND(I138/O138, 2), 0) -> 17354.29 | AK138: =IFERROR(AD138/O138, 0) -> 0 | AM138: =A138 -> 129 | AN138: =B138 -> Hawley | AO138: =C138 -> 0 | AP138: 2 | AQ138: =I138 -> 34708.58 | AR138: =J138 -> 28635 | AS138: =Y138 -> 13300
A139: 130 | B139: Heath | C139: 0 | D139: 0 | E139: 0 | F139: 0 | G139: 0 | H139: =F139+G139 -> 0 | I139: 0 | J139: 0 | K139: 0 | L139: 0 | M139: =ROUND(100-'Townwide Contributions'!L139,2) -> 57.34 | N139: 0 | O139: 0 | P139: 0 | Q139: 0 | R139: 0 | S139: 0 | T139: 0 | U139: 0 | V139: 0 | W139: 0 | X139: 0 | Y139: 0 | Z139: 0 | AA139: 0 | AB139: 0 | AC139: 0 | AD139: 0 | AE139: 0 | AG139: 0 | AK139: 0 | AM139: 130 | AN139: Heath | AO139: 0 | AP139: =O139 -> 0 | AQ139: 0 | AR139: 0 | AS139: 0
A140: 131 | B140: Hingham | C140: 1 | D140: 45884665.99 | E140: 37854849 | F140: 8910217 | G140: 0 | H140: 8910217 | I140: 46634192.57 | J140: 38473209 | K140: 8160984 | L140: 0 | M140: =ROUND(100-'Townwide Contributions'!L140,2) -> 17.5 | N140: 3606 | O140: 3528 | P140: 0 | Q140: 264600 | R140: 264600 | S140: 8910217 | T140: 9016057 | U140: 0 | V140: 9174817 | W140: 0 | X140: 0 | Y140: 9174817 | Z140: 19.67401277 | AA140: 47648026 | AB140: 102.1740131 | AC140: 749526.577 | AD140: 264600 | AE140: 1013833.301 | AF140: 2.174012769 | AG140: 13218.31 | AK140: 75 | AM140: 131 | AN140: Hingham | AO140: 1 | AP140: 3528 | AQ140: 46634192.57 | AR140: 38473209 | AS140: 9174817
A141: 132 | B141: Hinsdale | C141: 0 | D141: 168603.3 | E141: 122029 | F141: 104923 | G141: 0 | H141: 104923 | I141: 173542.9 | J141: 123025 | K141: 50518 | L141: 0 | M141: =ROUND(100-'Townwide Contributions'!L141,2) -> 17.5 | N141: 10 | O141: 10 | P141: 0 | Q141: 0 | R141: 0 | S141: 104923 | T141: 105223 | U141: 0 | V141: 104923 | W141: 0 | X141: 0 | Y141: 104923 | Z141: 0 | AA141: 227948 | AB141: 131.3496548 | AC141: 4939.6 | AD141: 0 | AE141: 74552.9925 | AG141: 17354.29 | AK141: 0 | AM141: 132 | AN141: Hinsdale | AO141: 0 | AP141: 10 | AQ141: 173542.9 | AR141: 123025 | AS141: 104923
A142: 133 | B142: Holbrook | C142: 1 | D142: 21278519.47 | E142: 10008705 | F142: 11269814 | G142: 0 | H142: 11269814 | I142: 23413602.23 | J142: 10616613 | K142: 12796989 | L142: 1527175 | M142: =ROUND(100-'Townwide Contributions'!L142,2) -> 47.67 | N142: 1355 | O142: 1394 | P142: 1 | Q142: 104550 | R142: 0 | S142: 11269814 | T142: 11311634 | U142: 0 | V142: 12796989 | W142: 0 | X142: 0 | Y142: 12796989 | Z142: 54.65621597 | AA142: 23413602 | AB142: 99.99999903 | AC142: 2135082.754 | AD142: 1527175 | AE142: 1635724.819 | AF142: 6.986215973 | AG142: 16795.98 | AK142: 1095.534433 | AM142: 133 | AN142: Holbrook | AO142: 1 | AP142: 1394 | AQ142: 23413602.23 | AR142: 10616613 | AS142: 12796989
A143: 134 | B143: Holden | C143: 0 | D143: 33720.66 | E143: 19200 | F143: 14521 | G143: 0 | H143: 14521 | I143: 17354.29 | J143: 10322 | K143: 7032 | L143: 0 | M143: =ROUND(100-'Townwide Contributions'!L143,2) -> 33.93 | N143: 2 | O143: 1 | P143: 0 | Q143: 0 | R143: 0 | S143: 14521 | T143: 14551 | U143: 0 | V143: 14521 | W143: 0 | X143: 0 | Y143: 14521 | Z143: 0 | AA143: 24843 | AB143: 143.1519238 | AC143: -16366.37 | AD143: 0 | AE143: 8632.689403 | AG143: 17354.29 | AK143: 0 | AM143: 134 | AN143: Holden | AO143: 0 | AP143: 1 | AQ143: 17354.29 | AR143: 10322 | AS143: 14521
A144: 135 | B144: Holland | C144: 1 | D144: 2372741.1 | E144: 1515869 | F144: 1029684 | G144: 0 | H144: 1029684 | I144: 2321784.99 | J144: 1507847 | K144: 813938 | L144: 0 | M144: =ROUND(100-'Townwide Contributions'!L144,2) -> 29.71 | N144: 157 | O144: 153 | P144: 0 | Q144: 11475 | R144: 11475 | S144: 1029684 | T144: 1034274 | U144: 0 | V144: 1041159 | W144: 0 | X144: 0 | Y144: 1041159 | Z144: 44.84304122 | AA144: 2549006 | AB144: 109.7864794 | AC144: -50956.11 | AD144: 11475 | AE144: 351356.6795 | AF144: 15.13304122 | AG144: 15175.07 | AK144: 75 | AM144: 135 | AN144: Holland | AO144: 1 | AP144: 153 | AQ144: 2321784.99 | AR144: 1507847 | AS144: 1041159
A145: 136 | B145: Holliston | C145: 1 | D145: 33400106.24 | E145: 25423217 | F145: 9188590 | G145: 0 | H145: 9188590 | I145: 33988555.89 | J145: 26548599 | K145: 7439957 | L145: 0 | M145: =ROUND(100-'Townwide Contributions'!L145,2) -> 17.5 | N145: 2652 | O145: 2577 | P145: 0 | Q145: 193275 | R145: 193275 | S145: 9188590 | T145: 9265900 | U145: 0 | V145: 9381865 | W145: 0 | X145: 0 | Y145: 9381865 | Z145: 27.60301153 | AA145: 35930464 | AB145: 105.7134175 | AC145: 588449.6486 | AD145: 193275 | AE145: 3433867.719 | AF145: 10.10301153 | AG145: 13189.2 | AK145: 75 | AM145: 136 | AN145: Holliston | AO145: 1 | AP145: 2577 | AQ145: 33988555.89 | AR145: 26548599 | AS145: 9381865
A146: 137 | B146: Holyoke | C146: 1 | D146: 114374878.1 | E146: 13183748 | F146: 101191130 | G146: 0 | H146: 101191130 | I146: 120721754.3 | J146: 13957634 | K146: 106764120 | L146: 5572990 | M146: =ROUND(100-'Townwide Contributions'!L146,2) -> 81.3 | N146: 5850 | O146: 5804 | P146: 1 | Q146: 435300 | R146: 0 | S146: 101191130 | T146: 101365250 | U146: 0 | V146: 106764120 | W146: 0 | X146: 0 | Y146: 106764120 | Z146: 88.43817801 | AA146: 120721754 | AB146: 99.99999972 | AC146: 6346876.27 | AD146: 5572990 | AE146: 8617333.722 | AF146: 7.13817801 | AG146: 20799.75 | AK146: 960.1981392 | AM146: 137 | AN146: Holyoke | AO146: 1 | AP146: 5804 | AQ146: 120721754.3 | AR146: 13957634 | AS146: 106764120
A147: 138 | B147: Hopedale | C147: 1 | D147: 11657637.4 | E147: 6842443 | F147: 6311210 | G147: 0 | H147: 6311210 | I147: 12503191.36 | J147: 7211367 | K147: 5291824 | L147: 0 | M147: =ROUND(100-'Townwide Contributions'!L147,2) -> 38.66 | N147: 865 | O147: 883 | P147: 0 | Q147: 66225 | R147: 66225 | S147: 6311210 | T147: 6337700 | U147: 0 | V147: 6377435 | W147: 0 | X147: 0 | Y147: 6377435 | Z147: 51.00645762 | AA147: 13588802 | AB147: 108.6826684 | AC147: 845553.9553 | AD147: 66225 | AE147: 1543701.222 | AF147: 12.34645762 | AG147: 14159.9 | AK147: 75 | AM147: 138 | AN147: Hopedale | AO147: 1 | AP147: 883 | AQ147: 12503191.36 | AR147: 7211367 | AS147: 6377435
A148: 139 | B148: Hopkinton | C148: 1 | D148: 52668757.26 | E148: 43451724 | F148: 10232819 | G148: 0 | H148: 10232819 | I148: 55425077.17 | J148: 45725689 | K148: 9699388 | L148: 0 | M148: =ROUND(100-'Townwide Contributions'!L148,2) -> 17.5 | N148: 4165 | O148: 4208 | P148: 0 | Q148: 315600 | R148: 315600 | S148: 10232819 | T148: 10359059 | U148: 0 | V148: 10548419 | W148: 0 | X148: 0 | Y148: 10548419 | Z148: 19.03185262 | AA148: 56274108 | AB148: 101.5318532 | AC148: 2756319.916 | AD148: 315600 | AE148: 849030.4947 | AF148: 1.531852616 | AG148: 13171.36 | AK148: 75 | AM148: 139 | AN148: Hopkinton | AO148: 1 | AP148: 4208 | AQ148: 55425077.17 | AR148: 45725689 | AS148: 10548419
A149: 140 | B149: Hubbardston | C149: 0 | D149: 0 | E149: 0 | F149: 0 | G149: 0 | H149: 0 | I149: 0 | J149: 0 | K149: 0 | L149: 0 | M149: =ROUND(100-'Townwide Contributions'!L149,2) -> 37.54 | N149: 0 | O149: 0 | P149: 0 | Q149: 0 | R149: 0 | S149: 0 | T149: 0 | U149: 0 | V149: 0 | W149: 0 | X149: 0 | Y149: 0 | Z149: 0 | AA149: 0 | AB149: 0 | AC149: 0 | AD149: 0 | AE149: 0 | AG149: 0 | AK149: 0 | AM149: 140 | AN149: Hubbardston | AO149: 0 | AP149: 0 | AQ149: 0 | AR149: 0 | AS149: 0
A150: 141 | B150: Hudson | C150: 1 | D150: 35386035.23 | E150: 22432839 | F150: 13248275 | G150: 0 | H150: 13248275 | I150: 37349315.83 | J150: 23481576 | K150: 13867740 | L150: 619465 | M150: =ROUND(100-'Townwide Contributions'!L150,2) -> 30.44 | N150: 2407 | O150: 2414 | P150: 1 | Q150: 181050 | R150: 0 | S150: 13248275 | T150: 13320695 | U150: 0 | V150: 13867740 | W150: 0 | X150: 0 | Y150: 13867740 | Z150: 37.12983677 | AA150: 37349316 | AB150: 100.0000005 | AC150: 1963280.594 | AD150: 619465 | AE150: 2498608.262 | AF150: 6.689836766 | AG150: 15471.96 | AK150: 256.6135046 | AM150: 141 | AN150: Hudson | AO150: 1 | AP150: 2414 | AQ150: 37349315.83 | AR150: 23481576 | AS150: 13867740
A151: 142 | B151: Hull | C151: 1 | D151: 10813118.21 | E151: 8920823 | F151: 4075024 | G151: 0 | H151: 4075024 | I151: 10469817.63 | J151: 8637600 | K151: 1832218 | L151: 0 | M151: =ROUND(100-'Townwide Contributions'!L151,2) -> 17.5 | N151: 757 | O151: 700 | P151: 0 | Q151: 52500 | R151: 52500 | S151: 4075024 | T151: 4096024 | U151: 0 | V151: 4127524 | W151: 0 | X151: 0 | Y151: 4127524 | Z151: 39.42307446 | AA151: 12765124 | AB151: 121.9230788 | AC151: -343300.581 | AD151: 52500 | AE151: 2295305.915 | AF151: 21.92307446 | AG151: 14956.88 | AK151: 75 | AM151: 142 | AN151: Hull | AO151: 1 | AP151: 700 | AQ151: 10469817.63 | AR151: 8637600 | AS151: 4127524
A152: 143 | B152: Huntington | C152: 0 | D152: 686499.45 | E152: 265317 | F152: 421182 | G152: 0 | H152: 421182 | I152: 741045.99 | J152: 304598 | K152: 436448 | L152: 15266 | M152: =ROUND(100-'Townwide Contributions'!L152,2) -> 54.58 | N152: 37 | O152: 39 | P152: 0 | Q152: 0 | R152: 0 | S152: 421182 | T152: 422352 | U152: 0 | V152: 436448 | W152: 0 | X152: 0 | Y152: 436448 | Z152: 0 | AA152: 741046 | AB152: 100.0000013 | AC152: 54546.54 | AD152: 15266 | AE152: 31985.09866 | AG152: 19001.18 | AK152: 391.4358974 | AM152: 143 | AN152: Huntington | AO152: 0 | AP152: 39 | AQ152: 741045.99 | AR152: 304598 | AS152: 436448
A153: 144 | B153: Ipswich | C153: 1 | D153: 21036885.2 | E153: 17194551 | F153: 4308646 | G153: 0 | H153: 4308646 | I153: 21484399.09 | J153: 17724629 | K153: 3759770 | L153: 0 | M153: =ROUND(100-'Townwide Contributions'!L153,2) -> 17.5 | N153: 1551 | O153: 1534 | P153: 0 | Q153: 115050 | R153: 115050 | S153: 4308646 | T153: 4354666 | U153: 0 | V153: 4423696 | W153: 0 | X153: 0 | Y153: 4423696 | Z153: 20.59027102 | AA153: 22148325 | AB153: 103.0902698 | AC153: 447513.8908 | AD153: 115050 | AE153: 663926.1585 | AF153: 3.090271017 | AG153: 14005.48 | AK153: 75 | AM153: 144 | AN153: Ipswich | AO153: 1 | AP153: 1534 | AQ153: 21484399.09 | AR153: 17724629 | AS153: 4423696
